Workbook

Sheet Data
E1: Non- | M1: Event Detection | N1: Recovery Target Freq: | O1: Max Absolute Delta Hz | P1: Lowest Delta Hz | Q1: Highest Delta Hz | R1: Rows of data to shift to align T(0)
C2: Contingent | D2: Load | E2: Conforming | F2: Not | G2: Not | H2: Not | I2: Not | J2: BA | K2: BA | M2: Row | N2: =IF(Evaluation!G6<0,MIN(Evaluation!G4,60),MAX(Evaluation!G4,60)) -> 59.99862671 | O2: =MAX(ABS(P7:P1643)) -> 0.07818984985 | P2: =MIN($P6:$P1806) -> -0.07818984985 | Q2: =MAX($P6:$P1806) -> 0.008728027344 | R2: ='Graph 20 to 52s'!Q3 -> 1
C3: Resource | D3: Resources | E3: Load | F3: Used | G3: Used | H3: Used | I3: Used | J3: Bias | K3: Load | M3: =IF('Copy Results'!E4="Auto",MATCH(O$2,Q$7:Q$1806,0)+6-R2,'Copy Results'!E5) -> 805 | N3: =INDEX(A:A,M3) -> 40679.33794 | O3: t(0)
C4: Lost | D4: Tripped | E4: Load (-) | J4: Setting | M4: =IF('Copy Results'!E4="Auto",MATCH(1,N7:N1806,0)+6,'Copy Results'!E6) -> 921 | N4: =INDEX(A:A,M4) -> 40679.34062 | O4: t(Recovery) | P4: Delta | Q4: Absolute
A5: Time (T) | B5: Hz | C5: MW | D5: MW | E5: MW | J5: MW/0.1 Hz | K5: MW | M5: =MATCH(O$2,Q$7:Q$1806,0)+6 -> 806 | N5: =N4-N3 -> 00:03:52 | O5: Event Length mm:ss | P5: Hz | Q5: Delta Hz
A6: 2011-05-16T07:40:00 | B6: 60.00970459 | C6: 471 | E6: 0 | F6: 0 | J6: -653 | K6: 29756.85156 | N6: 0
A7: 2011-05-16T07:40:02 | B7: 60.00744629 | C7: 471 | E7: 0 | F7: 0 | J7: -653 | K7: 29756.85156 | M7: =IF(ROW()<$M$5,0,1) -> 0 | N7: =IF((M7=1)*(B7>$N$2),1,0) -> 0 | O7: =IF(ROW()<$M$3,0,1) -> 0 | P7: =B7-B6 -> -0.002258300781 | Q7: =ABS(P7) -> 0.002258300781
A8: 2011-05-16T07:40:04 | B8: 60.0045166 | C8: 471 | E8: 0 | F8: 0 | J8: -653 | K8: 29756.82227 | M8: =IF(ROW()<$M$5,0,1) -> 0 | N8: =IF((M8=1)*(B8>$N$2),1,0) -> 0 | O8: 0 | P8: =B8-B7 -> -0.0029296875 | Q8: =ABS(P8) -> 0.0029296875
A9: 2011-05-16T07:40:06 | B9: 60.00259399 | C9: 471 | E9: 0 | F9: 0 | J9: -653 | K9: 29756.82227 | M9: 0 | N9: 0 | O9: 0 | P9: -0.001922607422 | Q9: 0.001922607422
A10: 2011-05-16T07:40:08 | B10: 60.00033569 | C10: 471 | E10: 0 | F10: 0 | J10: -653 | K10: 29756.82227 | M10: 0 | N10: 0 | O10: 0 | P10: -0.002258300781 | Q10: 0.002258300781 | R10: =IF(Q10>(AVERAGE(Q6:Q9)+0.003),1," ") -> 
A11: 2011-05-16T07:40:10 | B11: 59.99871826 | C11: 471 | E11: 0 | F11: 0 | J11: -653 | K11: 29756.82227 | M11: 0 | N11: 0 | O11: 0 | P11: -0.001617431641 | Q11: 0.001617431641 | R11: =IF(Q11>(AVERAGE(Q7:Q10)+R$2),1," ") -> 
A12: 2011-05-16T07:40:12 | B12: 59.99710083 | C12: 471 | E12: 0 | F12: 0 | J12: -653 | K12: 29756.82227 | M12: 0 | N12: 0 | O12: 0 | P12: -0.001617431641 | Q12: 0.001617431641
A13: 2011-05-16T07:40:14 | B13: 59.9954834 | C13: 471 | E13: 0 | F13: 0 | J13: -653 | K13: 29766.46289 | M13: 0 | N13: 0 | O13: 0 | P13: -0.001617431641 | Q13: 0.001617431641
A14: 2011-05-16T07:40:16 | B14: 59.99353027 | C14: 471 | E14: 0 | F14: 0 | J14: -653 | K14: 29766.46289 | M14: 0 | N14: 0 | O14: 0 | P14: -0.001953125 | Q14: 0.001953125
A15: 2011-05-16T07:40:18 | B15: 59.9906311 | C15: 471 | E15: 0 | F15: 0 | J15: -653 | K15: 29766.46289 | M15: 0 | N15: 0 | O15: 0 | P15: -0.002899169922 | Q15: 0.002899169922
A16: 2011-05-16T07:40:20 | B16: 59.98739624 | C16: 471 | E16: 0 | F16: 0 | J16: -653 | K16: 29766.46289 | M16: 0 | N16: 0 | O16: 0 | P16: -0.003234863281 | Q16: 0.003234863281
A17: 2011-05-16T07:40:22 | B17: 59.98416138 | C17: 471 | E17: 0 | F17: 0 | J17: -653 | K17: 29766.46289 | M17: 0 | N17: 0 | O17: 0 | P17: -0.003234863281 | Q17: 0.003234863281
A18: 2011-05-16T07:40:24 | B18: 59.98092651 | C18: 471 | E18: 0 | F18: 0 | J18: -653 | K18: 29766.37305 | M18: 0 | N18: 0 | O18: 0 | P18: -0.003234863281 | Q18: 0.003234863281
A19: 2011-05-16T07:40:26 | B19: 59.97866821 | C19: 471 | E19: 0 | F19: 0 | J19: -653 | K19: 29766.37305 | M19: 0 | N19: 0 | O19: 0 | P19: -0.002258300781 | Q19: 0.002258300781
A20: 2011-05-16T07:40:28 | B20: 59.97836304 | C20: 471 | E20: 0 | F20: 0 | J20: -653 | K20: 29766.37305 | M20: 0 | N20: 0 | O20: 0 | P20: -0.0003051757812 | Q20: 0.0003051757812
A21: 2011-05-16T07:40:30 | B21: 59.97836304 | C21: 471 | E21: 0 | F21: 0 | J21: -653 | K21: 29766.37305 | M21: 0 | N21: 0 | O21: 0 | P21: 0 | Q21: 0
A22: 2011-05-16T07:40:32 | B22: 59.97836304 | C22: 471 | E22: 0 | F22: 0 | J22: -653 | K22: 29766.37305 | M22: 0 | N22: 0 | O22: 0 | P22: 0 | Q22: 0
A23: 2011-05-16T07:40:34 | B23: 59.97576904 | C23: 471 | E23: 0 | F23: 0 | J23: -653 | K23: 29780.98242 | M23: 0 | N23: 0 | O23: 0 | P23: -0.002593994141 | Q23: 0.002593994141
A24: 2011-05-16T07:40:36 | B24: 59.97381592 | C24: 471 | E24: 0 | F24: 0 | J24: -653 | K24: 29780.98242 | M24: 0 | N24: 0 | O24: 0 | P24: -0.001953125 | Q24: 0.001953125
A25: 2011-05-16T07:40:38 | B25: 59.972229 | C25: 471 | E25: 0 | F25: 0 | J25: -653 | K25: 29780.98242 | M25: 0 | N25: 0 | O25: 0 | P25: -0.001586914062 | Q25: 0.001586914062
A26: 2011-05-16T07:40:40 | B26: 59.972229 | C26: 471 | E26: 0 | F26: 0 | J26: -653 | K26: 29780.98242 | M26: 0 | N26: 0 | O26: 0 | P26: 0 | Q26: 0
A27: 2011-05-16T07:40:42 | B27: 59.97317505 | C27: 471 | E27: 0 | F27: 0 | J27: -653 | K27: 29780.98242 | M27: 0 | N27: 0 | O27: 0 | P27: 0.0009460449219 | Q27: 0.0009460449219
A28: 2011-05-16T07:40:44 | B28: 59.97351074 | C28: 471 | E28: 0 | F28: 0 | J28: -653 | K28: 29780.95117 | M28: 0 | N28: 0 | O28: 0 | P28: 0.0003356933594 | Q28: 0.0003356933594
A29: 2011-05-16T07:40:46 | B29: 59.97415161 | C29: 471 | E29: 0 | F29: 0 | J29: -653 | K29: 29780.95117 | M29: 0 | N29: 0 | O29: 0 | P29: 0.0006408691406 | Q29: 0.0006408691406
A30: 2011-05-16T07:40:48 | B30: 59.97286987 | C30: 471 | E30: 0 | F30: 0 | J30: -653 | K30: 29780.95117 | M30: 0 | N30: 0 | O30: 0 | P30: -0.001281738281 | Q30: 0.001281738281
A31: 2011-05-16T07:40:50 | B31: 59.97286987 | C31: 471 | E31: 0 | F31: 0 | J31: -653 | K31: 29780.95117 | M31: 0 | N31: 0 | O31: 0 | P31: 0 | Q31: 0
A32: 2011-05-16T07:40:52 | B32: 59.97286987 | C32: 471 | E32: 0 | F32: 0 | J32: -653 | K32: 29780.95117 | M32: 0 | N32: 0 | O32: 0 | P32: 0 | Q32: 0
A33: 2011-05-16T07:40:54 | B33: 59.96832275 | C33: 471 | E33: 0 | F33: 0 | J33: -653 | K33: 29770.3418 | M33: 0 | N33: 0 | O33: 0 | P33: -0.004547119141 | Q33: 0.004547119141
A34: 2011-05-16T07:40:56 | B34: 59.96768188 | C34: 471 | E34: 0 | F34: 0 | J34: -653 | K34: 29770.3418 | M34: 0 | N34: 0 | O34: 0 | P34: -0.0006408691406 | Q34: 0.0006408691406
A35: 2011-05-16T07:40:58 | B35: 59.96899414 | C35: 471 | E35: 0 | F35: 0 | J35: -653 | K35: 29770.3418 | M35: 0 | N35: 0 | O35: 0 | P35: 0.001312255859 | Q35: 0.001312255859
A36: 2011-05-16T07:41:00 | B36: 59.97027588 | C36: 471 | E36: 0 | F36: 0 | J36: -653 | K36: 29770.3418 | M36: 0 | N36: 0 | O36: 0 | P36: 0.001281738281 | Q36: 0.001281738281
A37: 2011-05-16T07:41:02 | B37: 59.972229 | C37: 471 | E37: 0 | F37: 0 | J37: -653 | K37: 29770.3418 | M37: 0 | N37: 0 | O37: 0 | P37: 0.001953125 | Q37: 0.001953125
A38: 2011-05-16T07:41:04 | B38: 59.97381592 | C38: 471 | E38: 0 | F38: 0 | J38: -653 | K38: 29770.3418 | M38: 0 | N38: 0 | O38: 0 | P38: 0.001586914062 | Q38: 0.001586914062
A39: 2011-05-16T07:41:06 | B39: 59.97479248 | C39: 471 | E39: 0 | F39: 0 | J39: -653 | K39: 29770.3418 | M39: 0 | N39: 0 | O39: 0 | P39: 0.0009765625 | Q39: 0.0009765625
A40: 2011-05-16T07:41:08 | B40: 59.97610474 | C40: 471 | E40: 0 | F40: 0 | J40: -653 | K40: 29770.3418 | M40: 0 | N40: 0 | O40: 0 | P40: 0.001312255859 | Q40: 0.001312255859
A41: 2011-05-16T07:41:10 | B41: 59.97769165 | C41: 471 | E41: 0 | F41: 0 | J41: -653 | K41: 29770.3418 | M41: 0 | N41: 0 | O41: 0 | P41: 0.001586914062 | Q41: 0.001586914062
A42: 2011-05-16T07:41:12 | B42: 59.97998047 | C42: 471 | E42: 0 | F42: 0 | J42: -653 | K42: 29770.3418 | M42: 0 | N42: 0 | O42: 0 | P42: 0.002288818359 | Q42: 0.002288818359
A43: 2011-05-16T07:41:14 | B43: 59.98318481 | C43: 471 | E43: 0 | F43: 0 | J43: -653 | K43: 29782.72852 | M43: 0 | N43: 0 | O43: 0 | P43: 0.003204345703 | Q43: 0.003204345703
A44: 2011-05-16T07:41:16 | B44: 59.98577881 | C44: 471 | E44: 0 | F44: 0 | J44: -653 | K44: 29782.72852 | M44: 0 | N44: 0 | O44: 0 | P44: 0.002593994141 | Q44: 0.002593994141
A45: 2011-05-16T07:41:18 | B45: 59.98739624 | C45: 471 | E45: 0 | F45: 0 | J45: -653 | K45: 29782.72852 | M45: 0 | N45: 0 | O45: 0 | P45: 0.001617431641 | Q45: 0.001617431641
A46: 2011-05-16T07:41:20 | B46: 59.98867798 | C46: 471 | E46: 0 | F46: 0 | J46: -653 | K46: 29782.72852 | M46: 0 | N46: 0 | O46: 0 | P46: 0.001281738281 | Q46: 0.001281738281
A47: 2011-05-16T07:41:22 | B47: 59.98999023 | C47: 471 | E47: 0 | F47: 0 | J47: -653 | K47: 29782.72852 | M47: 0 | N47: 0 | O47: 0 | P47: 0.001312255859 | Q47: 0.001312255859
A48: 2011-05-16T07:41:24 | B48: 59.99191284 | C48: 471 | E48: 0 | F48: 0 | J48: -653 | K48: 29782.81836 | M48: 0 | N48: 0 | O48: 0 | P48: 0.001922607422 | Q48: 0.001922607422
A49: 2011-05-16T07:41:26 | B49: 59.99353027 | C49: 471 | E49: 0 | F49: 0 | J49: -653 | K49: 29782.81836 | M49: 0 | N49: 0 | O49: 0 | P49: 0.001617431641 | Q49: 0.001617431641
A50: 2011-05-16T07:41:28 | B50: 59.99612427 | C50: 471 | E50: 0 | F50: 0 | J50: -653 | K50: 29782.81836 | M50: 0 | N50: 0 | O50: 0 | P50: 0.002593994141 | Q50: 0.002593994141
A51: 2011-05-16T07:41:30 | B51: 59.99804688 | C51: 471 | E51: 0 | F51: 0 | J51: -653 | K51: 29782.81836 | M51: 0 | N51: 0 | O51: 0 | P51: 0.001922607422 | Q51: 0.001922607422
A52: 2011-05-16T07:41:32 | B52: 59.99902344 | C52: 471 | E52: 0 | F52: 0 | J52: -653 | K52: 29782.81836 | M52: 0 | N52: 0 | O52: 0 | P52: 0.0009765625 | Q52: 0.0009765625
A53: 2011-05-16T07:41:34 | B53: 59.99902344 | C53: 471 | E53: 0 | F53: 0 | J53: -653 | K53: 29786.15234 | M53: 0 | N53: 0 | O53: 0 | P53: 0 | Q53: 0
A54: 2011-05-16T07:41:36 | B54: 59.9977417 | C54: 471 | E54: 0 | F54: 0 | J54: -653 | K54: 29786.15234 | M54: 0 | N54: 0 | O54: 0 | P54: -0.001281738281 | Q54: 0.001281738281
A55: 2011-05-16T07:41:38 | B55: 59.99645996 | C55: 471 | E55: 0 | F55: 0 | J55: -653 | K55: 29786.15234 | M55: 0 | N55: 0 | O55: 0 | P55: -0.001281738281 | Q55: 0.001281738281
A56: 2011-05-16T07:41:40 | B56: 59.99578857 | C56: 471 | E56: 0 | F56: 0 | J56: -653 | K56: 29786.15234 | M56: 0 | N56: 0 | O56: 0 | P56: -0.0006713867188 | Q56: 0.0006713867188
A57: 2011-05-16T07:41:42 | B57: 59.99612427 | C57: 471 | E57: 0 | F57: 0 | J57: -653 | K57: 29786.15234 | M57: 0 | N57: 0 | O57: 0 | P57: 0.0003356933594 | Q57: 0.0003356933594
A58: 2011-05-16T07:41:44 | B58: 59.99710083 | C58: 471 | E58: 0 | F58: 0 | J58: -653 | K58: 29786.21094 | M58: 0 | N58: 0 | O58: 0 | P58: 0.0009765625 | Q58: 0.0009765625
A59: 2011-05-16T07:41:46 | B59: 59.9977417 | C59: 471 | E59: 0 | F59: 0 | J59: -653 | K59: 29786.21094 | M59: 0 | N59: 0 | O59: 0 | P59: 0.0006408691406 | Q59: 0.0006408691406
A60: 2011-05-16T07:41:48 | B60: 59.99838257 | C60: 471 | E60: 0 | F60: 0 | J60: -653 | K60: 29786.21094 | M60: 0 | N60: 0 | O60: 0 | P60: 0.0006408691406 | Q60: 0.0006408691406
A61: 2011-05-16T07:41:50 | B61: 59.99935913 | C61: 471 | E61: 0 | F61: 0 | J61: -653 | K61: 29786.21094 | M61: 0 | N61: 0 | O61: 0 | P61: 0.0009765625 | Q61: 0.0009765625
A62: 2011-05-16T07:41:52 | B62: 60 | C62: 471 | E62: 0 | F62: 0 | J62: -653 | K62: 29786.21094 | M62: 0 | N62: 0 | O62: 0 | P62: 0.0006408691406 | Q62: 0.0006408691406
A63: 2011-05-16T07:41:54 | B63: 60.00064087 | C63: 471 | E63: 0 | F63: 0 | J63: -653 | K63: 29778.98242 | M63: 0 | N63: 0 | O63: 0 | P63: 0.0006408691406 | Q63: 0.0006408691406
A64: 2011-05-16T07:41:56 | B64: 60.00128174 | C64: 471 | E64: 0 | F64: 0 | J64: -653 | K64: 29778.98242 | M64: 0 | N64: 0 | O64: 0 | P64: 0.0006408691406 | Q64: 0.0006408691406
A65: 2011-05-16T07:41:58 | B65: 60.0022583 | C65: 471 | E65: 0 | F65: 0 | J65: -653 | K65: 29778.98242 | M65: 0 | N65: 0 | O65: 0 | P65: 0.0009765625 | Q65: 0.0009765625
A66: 2011-05-16T07:42:00 | B66: 60.00387573 | C66: 471 | E66: 0 | F66: 0 | J66: -653 | K66: 29778.98242 | M66: 0 | N66: 0 | O66: 0 | P66: 0.001617431641 | Q66: 0.001617431641
A67: 2011-05-16T07:42:02 | B67: 60.00646973 | C67: 471 | E67: 0 | F67: 0 | J67: -653 | K67: 29778.98242 | M67: 0 | N67: 0 | O67: 0 | P67: 0.002593994141 | Q67: 0.002593994141
A68: 2011-05-16T07:42:04 | B68: 60.00970459 | C68: 471 | E68: 0 | F68: 0 | J68: -653 | K68: 29778.92383 | M68: 0 | N68: 0 | O68: 0 | P68: 0.003234863281 | Q68: 0.003234863281
A69: 2011-05-16T07:42:06 | B69: 60.01358032 | C69: 471 | E69: 0 | F69: 0 | J69: -653 | K69: 29778.92383 | M69: 0 | N69: 0 | O69: 0 | P69: 0.003875732422 | Q69: 0.003875732422
A70: 2011-05-16T07:42:08 | B70: 60.0161438 | C70: 471 | E70: 0 | F70: 0 | J70: -653 | K70: 29778.92383 | M70: 0 | N70: 0 | O70: 0 | P70: 0.002563476562 | Q70: 0.002563476562
A71: 2011-05-16T07:42:10 | B71: 60.01776123 | C71: 471 | E71: 0 | F71: 0 | J71: -653 | K71: 29778.92383 | M71: 0 | N71: 0 | O71: =IF(ROW()<$M$3,0,1) -> 0 | P71: 0.001617431641 | Q71: 0.001617431641
A72: 2011-05-16T07:42:12 | B72: 60.01776123 | C72: 471 | E72: 0 | F72: 0 | J72: -653 | K72: 29778.92383 | M72: =IF(ROW()<$M$5,0,1) -> 0 | N72: =IF((M72=1)*(B72>$N$2),1,0) -> 0 | O72: 0 | P72: =B72-B71 -> 0 | Q72: =ABS(P72) -> 0
A73: 2011-05-16T07:42:14 | B73: 60.01486206 | C73: 471 | E73: 0 | F73: 0 | J73: -653 | K73: 29787.89648 | M73: 0 | N73: 0 | O73: 0 | P73: -0.002899169922 | Q73: 0.002899169922
A74: 2011-05-16T07:42:16 | B74: 60.0116272 | C74: 471 | E74: 0 | F74: 0 | J74: -653 | K74: 29787.89648 | M74: 0 | N74: 0 | O74: 0 | P74: -0.003234863281 | Q74: 0.003234863281
A75: 2011-05-16T07:42:18 | B75: 60.0090332 | C75: 471 | E75: 0 | F75: 0 | J75: -653 | K75: 29787.89648 | M75: 0 | N75: 0 | O75: 0 | P75: -0.002593994141 | Q75: 0.002593994141 | R75: =IF(Q75>(AVERAGE(Q71:Q74)+R$2),1," ") -> 
A76: 2011-05-16T07:42:20 | B76: 60.00775146 | C76: 471 | E76: 0 | F76: 0 | J76: -653 | K76: 29787.89648 | M76: 0 | N76: 0 | O76: 0 | P76: -0.001281738281 | Q76: 0.001281738281
A77: 2011-05-16T07:42:22 | B77: 60.00775146 | C77: 471 | E77: 0 | F77: 0 | J77: -653 | K77: 29787.89648 | M77: 0 | N77: 0 | O77: 0 | P77: 0 | Q77: 0
A78: 2011-05-16T07:42:24 | B78: 60.0090332 | C78: 471 | E78: 0 | F78: 0 | J78: -653 | K78: 29787.83789 | M78: 0 | N78: 0 | O78: 0 | P78: 0.001281738281 | Q78: 0.001281738281
A79: 2011-05-16T07:42:26 | B79: 60.0090332 | C79: 471 | E79: 0 | F79: 0 | J79: -653 | K79: 29787.83789 | M79: 0 | N79: 0 | O79: 0 | P79: 0 | Q79: 0
A80: 2011-05-16T07:42:28 | B80: 60.01324463 | C80: 471 | E80: 0 | F80: 0 | J80: -653 | K80: 29787.83789 | M80: 0 | N80: 0 | O80: 0 | P80: 0.004211425781 | Q80: 0.004211425781
A81: 2011-05-16T07:42:30 | B81: 60.01486206 | C81: 471 | E81: 0 | F81: 0 | J81: -653 | K81: 29787.83789 | M81: 0 | N81: 0 | O81: 0 | P81: 0.001617431641 | Q81: 0.001617431641
A82: 2011-05-16T07:42:32 | B82: 60.01519775 | C82: 471 | E82: 0 | F82: 0 | J82: -653 | K82: 29787.83789 | M82: 0 | N82: 0 | O82: 0 | P82: 0.0003356933594 | Q82: 0.0003356933594
A83: 2011-05-16T07:42:34 | B83: 60.01519775 | C83: 471 | E83: 0 | F83: 0 | J83: -653 | K83: 29813.38867 | M83: 0 | N83: 0 | O83: 0 | P83: 0 | Q83: 0
A84: 2011-05-16T07:42:36 | B84: 60.01486206 | C84: 471 | E84: 0 | F84: 0 | J84: -653 | K84: 29813.38867 | M84: 0 | N84: 0 | O84: 0 | P84: -0.0003356933594 | Q84: 0.0003356933594
A85: 2011-05-16T07:42:38 | B85: 60.01422119 | C85: 471 | E85: 0 | F85: 0 | J85: -653 | K85: 29813.38867 | M85: 0 | N85: 0 | O85: 0 | P85: -0.0006408691406 | Q85: 0.0006408691406
A86: 2011-05-16T07:42:40 | B86: 60.01358032 | C86: 471 | E86: 0 | F86: 0 | J86: -653 | K86: 29813.38867 | M86: 0 | N86: 0 | O86: 0 | P86: -0.0006408691406 | Q86: 0.0006408691406
A87: 2011-05-16T07:42:42 | B87: 60.01226807 | C87: 471 | E87: 0 | F87: 0 | J87: -653 | K87: 29813.38867 | M87: 0 | N87: 0 | O87: 0 | P87: -0.001312255859 | Q87: 0.001312255859
A88: 2011-05-16T07:42:44 | B88: 60.01098633 | C88: 471 | E88: 0 | F88: 0 | J88: -653 | K88: 29813.32812 | M88: 0 | N88: 0 | O88: 0 | P88: -0.001281738281 | Q88: 0.001281738281
A89: 2011-05-16T07:42:46 | B89: 60.00872803 | C89: 471 | E89: 0 | F89: 0 | J89: -653 | K89: 29813.32812 | M89: 0 | N89: 0 | O89: 0 | P89: -0.002258300781 | Q89: 0.002258300781
A90: 2011-05-16T07:42:48 | B90: 60.00646973 | C90: 471 | E90: 0 | F90: 0 | J90: -653 | K90: 29813.32812 | M90: 0 | N90: 0 | O90: 0 | P90: -0.002258300781 | Q90: 0.002258300781
A91: 2011-05-16T07:42:50 | B91: 60.00485229 | C91: 471 | E91: 0 | F91: 0 | J91: -653 | K91: 29813.32812 | M91: 0 | N91: 0 | O91: 0 | P91: -0.001617431641 | Q91: 0.001617431641
A92: 2011-05-16T07:42:52 | B92: 60.00354004 | C92: 471 | E92: 0 | F92: 0 | J92: -653 | K92: 29813.32812 | M92: 0 | N92: 0 | O92: 0 | P92: -0.001312255859 | Q92: 0.001312255859
A93: 2011-05-16T07:42:54 | B93: 60.00195312 | C93: 471 | E93: 0 | F93: 0 | J93: -653 | K93: 29797.45703 | M93: 0 | N93: 0 | O93: 0 | P93: -0.001586914062 | Q93: 0.001586914062
A94: 2011-05-16T07:42:56 | B94: 60 | C94: 471 | E94: 0 | F94: 0 | J94: -653 | K94: 29797.45703 | M94: 0 | N94: 0 | O94: 0 | P94: -0.001953125 | Q94: 0.001953125
A95: 2011-05-16T07:42:58 | B95: 59.9977417 | C95: 471 | E95: 0 | F95: 0 | J95: -653 | K95: 29797.45703 | M95: 0 | N95: 0 | O95: 0 | P95: -0.002258300781 | Q95: 0.002258300781
A96: 2011-05-16T07:43:00 | B96: 59.99612427 | C96: 471 | E96: 0 | F96: 0 | J96: -653 | K96: 29797.45703 | M96: 0 | N96: 0 | O96: 0 | P96: -0.001617431641 | Q96: 0.001617431641
A97: 2011-05-16T07:43:02 | B97: 59.99645996 | C97: 471 | E97: 0 | F97: 0 | J97: -653 | K97: 29797.45703 | M97: 0 | N97: 0 | O97: 0 | P97: 0.0003356933594 | Q97: 0.0003356933594
A98: 2011-05-16T07:43:04 | B98: 59.99740601 | C98: 471 | E98: 0 | F98: 0 | J98: -653 | K98: 29797.51562 | M98: 0 | N98: 0 | O98: 0 | P98: 0.0009460449219 | Q98: 0.0009460449219
A99: 2011-05-16T07:43:06 | B99: 59.99838257 | C99: 471 | E99: 0 | F99: 0 | J99: -653 | K99: 29797.51562 | M99: 0 | N99: 0 | O99: 0 | P99: 0.0009765625 | Q99: 0.0009765625
A100: 2011-05-16T07:43:08 | B100: 59.99935913 | C100: 471 | E100: 0 | F100: 0 | J100: -653 | K100: 29797.51562 | M100: 0 | N100: 0 | O100: 0 | P100: 0.0009765625 | Q100: 0.0009765625
A101: 2011-05-16T07:43:10 | B101: 59.99902344 | C101: 471 | E101: 0 | F101: 0 | J101: -653 | K101: 29797.51562 | M101: 0 | N101: 0 | O101: 0 | P101: -0.0003356933594 | Q101: 0.0003356933594
A102: 2011-05-16T07:43:12 | B102: 59.99871826 | C102: 471 | E102: 0 | F102: 0 | J102: -653 | K102: 29797.51562 | M102: 0 | N102: 0 | O102: 0 | P102: -0.0003051757812 | Q102: 0.0003051757812
A103: 2011-05-16T07:43:14 | B103: 59.9977417 | C103: 471 | E103: 0 | F103: 0 | J103: -653 | K103: 29780.32812 | M103: 0 | N103: 0 | O103: 0 | P103: -0.0009765625 | Q103: 0.0009765625
A104: 2011-05-16T07:43:16 | B104: 59.99645996 | C104: 471 | E104: 0 | F104: 0 | J104: -653 | K104: 29780.32812 | M104: 0 | N104: 0 | O104: 0 | P104: -0.001281738281 | Q104: 0.001281738281
A105: 2011-05-16T07:43:18 | B105: 59.99676514 | C105: 471 | E105: 0 | F105: 0 | J105: -653 | K105: 29780.32812 | M105: 0 | N105: 0 | O105: 0 | P105: 0.0003051757812 | Q105: 0.0003051757812
A106: 2011-05-16T07:43:20 | B106: 59.99676514 | C106: 471 | E106: 0 | F106: 0 | J106: -653 | K106: 29780.32812 | M106: 0 | N106: 0 | O106: 0 | P106: 0 | Q106: 0
A107: 2011-05-16T07:43:22 | B107: 59.9977417 | C107: 471 | E107: 0 | F107: 0 | J107: -653 | K107: 29780.32812 | M107: 0 | N107: 0 | O107: 0 | P107: 0.0009765625 | Q107: 0.0009765625
A108: 2011-05-16T07:43:24 | B108: 59.99804688 | C108: 471 | E108: 0 | F108: 0 | J108: -653 | K108: 29780.26758 | M108: 0 | N108: 0 | O108: 0 | P108: 0.0003051757812 | Q108: 0.0003051757812
A109: 2011-05-16T07:43:26 | B109: 59.9977417 | C109: 471 | E109: 0 | F109: 0 | J109: -653 | K109: 29780.26758 | M109: 0 | N109: 0 | O109: 0 | P109: -0.0003051757812 | Q109: 0.0003051757812
A110: 2011-05-16T07:43:28 | B110: 59.99578857 | C110: 471 | E110: 0 | F110: 0 | J110: -653 | K110: 29780.26758 | M110: 0 | N110: 0 | O110: 0 | P110: -0.001953125 | Q110: 0.001953125
A111: 2011-05-16T07:43:30 | B111: 59.99386597 | C111: 471 | E111: 0 | F111: 0 | J111: -653 | K111: 29780.26758 | M111: 0 | N111: 0 | O111: 0 | P111: -0.001922607422 | Q111: 0.001922607422
A112: 2011-05-16T07:43:32 | B112: 59.99255371 | C112: 471 | E112: 0 | F112: 0 | J112: -653 | K112: 29780.26758 | M112: 0 | N112: 0 | O112: 0 | P112: -0.001312255859 | Q112: 0.001312255859
A113: 2011-05-16T07:43:34 | B113: 59.99127197 | C113: 471 | E113: 0 | F113: 0 | J113: -653 | K113: 29785.63281 | M113: 0 | N113: 0 | O113: 0 | P113: -0.001281738281 | Q113: 0.001281738281
A114: 2011-05-16T07:43:36 | B114: 59.98999023 | C114: 471 | E114: 0 | F114: 0 | J114: -653 | K114: 29785.63281 | M114: 0 | N114: 0 | O114: 0 | P114: -0.001281738281 | Q114: 0.001281738281
A115: 2011-05-16T07:43:38 | B115: 59.98965454 | C115: 471 | E115: 0 | F115: 0 | J115: -653 | K115: 29785.63281 | M115: 0 | N115: 0 | O115: 0 | P115: -0.0003356933594 | Q115: 0.0003356933594
A116: 2011-05-16T07:43:40 | B116: 59.9883728 | C116: 471 | E116: 0 | F116: 0 | J116: -653 | K116: 29785.63281 | M116: 0 | N116: 0 | O116: 0 | P116: -0.001281738281 | Q116: 0.001281738281
A117: 2011-05-16T07:43:42 | B117: 59.98709106 | C117: 471 | E117: 0 | F117: 0 | J117: -653 | K117: 29785.63281 | M117: 0 | N117: 0 | O117: 0 | P117: -0.001281738281 | Q117: 0.001281738281
A118: 2011-05-16T07:43:44 | B118: 59.98641968 | C118: 471 | E118: 0 | F118: 0 | J118: -653 | K118: 29785.63281 | M118: 0 | N118: 0 | O118: 0 | P118: -0.0006713867188 | Q118: 0.0006713867188
A119: 2011-05-16T07:43:46 | B119: 59.98641968 | C119: 471 | E119: 0 | F119: 0 | J119: -653 | K119: 29785.63281 | M119: 0 | N119: 0 | O119: 0 | P119: 0 | Q119: 0
A120: 2011-05-16T07:43:48 | B120: 59.98641968 | C120: 471 | E120: 0 | F120: 0 | J120: -653 | K120: 29785.63281 | M120: 0 | N120: 0 | O120: 0 | P120: 0 | Q120: 0
A121: 2011-05-16T07:43:50 | B121: 59.98675537 | C121: 471 | E121: 0 | F121: 0 | J121: -653 | K121: 29785.63281 | M121: 0 | N121: 0 | O121: 0 | P121: 0.0003356933594 | Q121: 0.0003356933594
A122: 2011-05-16T07:43:52 | B122: 59.98675537 | C122: 471 | E122: 0 | F122: 0 | J122: -653 | K122: 29785.63281 | M122: 0 | N122: 0 | O122: 0 | P122: 0 | Q122: 0
A123: 2011-05-16T07:43:54 | B123: 59.98641968 | C123: 471 | E123: 0 | F123: 0 | J123: -653 | K123: 29787.11719 | M123: 0 | N123: 0 | O123: 0 | P123: -0.0003356933594 | Q123: 0.0003356933594
A124: 2011-05-16T07:43:56 | B124: 59.9861145 | C124: 471 | E124: 0 | F124: 0 | J124: -653 | K124: 29787.11719 | M124: 0 | N124: 0 | O124: 0 | P124: -0.0003051757812 | Q124: 0.0003051757812
A125: 2011-05-16T07:43:58 | B125: 59.9861145 | C125: 471 | E125: 0 | F125: 0 | J125: -653 | K125: 29787.11719 | M125: 0 | N125: 0 | O125: 0 | P125: 0 | Q125: 0
A126: 2011-05-16T07:44:00 | B126: 59.98513794 | C126: 471 | E126: 0 | F126: 0 | J126: -653 | K126: 29787.11719 | M126: 0 | N126: 0 | O126: 0 | P126: -0.0009765625 | Q126: 0.0009765625
A127: 2011-05-16T07:44:02 | B127: 59.98416138 | C127: 471 | E127: 0 | F127: 0 | J127: -653 | K127: 29787.11719 | M127: 0 | N127: 0 | O127: 0 | P127: -0.0009765625 | Q127: 0.0009765625
A128: 2011-05-16T07:44:04 | B128: 59.98352051 | C128: 471 | E128: 0 | F128: 0 | J128: -653 | K128: 29787.11719 | M128: 0 | N128: 0 | O128: 0 | P128: -0.0006408691406 | Q128: 0.0006408691406
A129: 2011-05-16T07:44:06 | B129: 59.98223877 | C129: 471 | E129: 0 | F129: 0 | J129: -653 | K129: 29787.11719 | M129: 0 | N129: 0 | O129: 0 | P129: -0.001281738281 | Q129: 0.001281738281
A130: 2011-05-16T07:44:08 | B130: 59.98028564 | C130: 471 | E130: 0 | F130: 0 | J130: -653 | K130: 29787.11719 | M130: 0 | N130: 0 | O130: 0 | P130: -0.001953125 | Q130: 0.001953125
A131: 2011-05-16T07:44:10 | B131: 59.97900391 | C131: 471 | E131: 0 | F131: 0 | J131: -653 | K131: 29787.11719 | M131: 0 | N131: 0 | O131: 0 | P131: -0.001281738281 | Q131: 0.001281738281
A132: 2011-05-16T07:44:12 | B132: 59.97769165 | C132: 471 | E132: 0 | F132: 0 | J132: -653 | K132: 29787.11719 | M132: 0 | N132: 0 | O132: 0 | P132: -0.001312255859 | Q132: 0.001312255859
A133: 2011-05-16T07:44:14 | B133: 59.97674561 | C133: 471 | E133: 0 | F133: 0 | J133: -653 | K133: 29780.66797 | M133: 0 | N133: 0 | O133: 0 | P133: -0.0009460449219 | Q133: 0.0009460449219
A134: 2011-05-16T07:44:16 | B134: 59.97640991 | C134: 471 | E134: 0 | F134: 0 | J134: -653 | K134: 29780.66797 | M134: 0 | N134: 0 | O134: 0 | P134: -0.0003356933594 | Q134: 0.0003356933594
A135: 2011-05-16T07:44:18 | B135: 59.97738647 | C135: 471 | E135: 0 | F135: 0 | J135: -653 | K135: 29780.66797 | M135: 0 | N135: 0 | O135: =IF(ROW()<$M$3,0,1) -> 0 | P135: 0.0009765625 | Q135: 0.0009765625
A136: 2011-05-16T07:44:20 | B136: 59.97998047 | C136: 471 | E136: 0 | F136: 0 | J136: -653 | K136: 29780.66797 | M136: =IF(ROW()<$M$5,0,1) -> 0 | N136: =IF((M136=1)*(B136>$N$2),1,0) -> 0 | O136: 0 | P136: =B136-B135 -> 0.002593994141 | Q136: =ABS(P136) -> 0.002593994141
A137: 2011-05-16T07:44:22 | B137: 59.98318481 | C137: 471 | E137: 0 | F137: 0 | J137: -653 | K137: 29780.66797 | M137: 0 | N137: 0 | O137: 0 | P137: 0.003204345703 | Q137: 0.003204345703
A138: 2011-05-16T07:44:24 | B138: 59.9861145 | C138: 471 | E138: 0 | F138: 0 | J138: -653 | K138: 29780.75781 | M138: 0 | N138: 0 | O138: 0 | P138: 0.0029296875 | Q138: 0.0029296875
A139: 2011-05-16T07:44:26 | B139: 59.9883728 | C139: 471 | E139: 0 | F139: 0 | J139: -653 | K139: 29780.75781 | M139: 0 | N139: 0 | O139: 0 | P139: 0.002258300781 | Q139: 0.002258300781 | R139: =IF(Q139>(AVERAGE(Q135:Q138)+R$2),1," ") -> 
A140: 2011-05-16T07:44:28 | B140: 59.99029541 | C140: 471 | E140: 0 | F140: 0 | J140: -653 | K140: 29780.75781 | M140: 0 | N140: 0 | O140: 0 | P140: 0.001922607422 | Q140: 0.001922607422
A141: 2011-05-16T07:44:30 | B141: 59.99191284 | C141: 471 | E141: 0 | F141: 0 | J141: -653 | K141: 29780.75781 | M141: 0 | N141: 0 | O141: 0 | P141: 0.001617431641 | Q141: 0.001617431641
A142: 2011-05-16T07:44:32 | B142: 59.99353027 | C142: 471 | E142: 0 | F142: 0 | J142: -653 | K142: 29780.75781 | M142: 0 | N142: 0 | O142: 0 | P142: 0.001617431641 | Q142: 0.001617431641
A143: 2011-05-16T07:44:34 | B143: 59.99578857 | C143: 471 | E143: 0 | F143: 0 | J143: -653 | K143: 29777.70117 | M143: 0 | N143: 0 | O143: 0 | P143: 0.002258300781 | Q143: 0.002258300781
A144: 2011-05-16T07:44:36 | B144: 60 | C144: 471 | E144: 0 | F144: 0 | J144: -653 | K144: 29777.70117 | M144: 0 | N144: 0 | O144: 0 | P144: 0.004211425781 | Q144: 0.004211425781
A145: 2011-05-16T07:44:38 | B145: 60.00354004 | C145: 471 | E145: 0 | F145: 0 | J145: -653 | K145: 29777.70117 | M145: 0 | N145: 0 | O145: 0 | P145: 0.003540039062 | Q145: 0.003540039062
A146: 2011-05-16T07:44:40 | B146: 60.00646973 | C146: 471 | E146: 0 | F146: 0 | J146: -653 | K146: 29777.70117 | M146: 0 | N146: 0 | O146: 0 | P146: 0.0029296875 | Q146: 0.0029296875
A147: 2011-05-16T07:44:42 | B147: 60.00839233 | C147: 471 | E147: 0 | F147: 0 | J147: -653 | K147: 29777.70117 | M147: 0 | N147: 0 | O147: 0 | P147: 0.001922607422 | Q147: 0.001922607422
A148: 2011-05-16T07:44:44 | B148: 60.0090332 | C148: 471 | E148: 0 | F148: 0 | J148: -653 | K148: 29777.70117 | M148: 0 | N148: 0 | O148: 0 | P148: 0.0006408691406 | Q148: 0.0006408691406
A149: 2011-05-16T07:44:46 | B149: 60.00872803 | C149: 471 | E149: 0 | F149: 0 | J149: -653 | K149: 29777.70117 | M149: 0 | N149: 0 | O149: 0 | P149: -0.0003051757812 | Q149: 0.0003051757812
A150: 2011-05-16T07:44:48 | B150: 60.00872803 | C150: 471 | E150: 0 | F150: 0 | J150: -653 | K150: 29777.70117 | M150: 0 | N150: 0 | O150: 0 | P150: 0 | Q150: 0
A151: 2011-05-16T07:44:50 | B151: 60.0093689 | C151: 471 | E151: 0 | F151: 0 | J151: -653 | K151: 29777.70117 | M151: 0 | N151: 0 | O151: 0 | P151: 0.0006408691406 | Q151: 0.0006408691406
A152: 2011-05-16T07:44:52 | B152: 60.01098633 | C152: 471 | E152: 0 | F152: 0 | J152: -653 | K152: 29777.70117 | M152: 0 | N152: 0 | O152: 0 | P152: 0.001617431641 | Q152: 0.001617431641
A153: 2011-05-16T07:44:54 | B153: 60.01452637 | C153: 471 | E153: 0 | F153: 0 | J153: -653 | K153: 29788.63086 | M153: 0 | N153: 0 | O153: 0 | P153: 0.003540039062 | Q153: 0.003540039062
A154: 2011-05-16T07:44:56 | B154: 60.01809692 | C154: 471 | E154: 0 | F154: 0 | J154: -653 | K154: 29788.63086 | M154: 0 | N154: 0 | O154: 0 | P154: 0.003570556641 | Q154: 0.003570556641
A155: 2011-05-16T07:44:58 | B155: 60.02001953 | C155: 471 | E155: 0 | F155: 0 | J155: -653 | K155: 29788.63086 | M155: 0 | N155: 0 | O155: 0 | P155: 0.001922607422 | Q155: 0.001922607422
A156: 2011-05-16T07:45:00 | B156: 60.02035522 | C156: 471 | E156: 0 | F156: 0 | J156: -653 | K156: 29788.63086 | M156: 0 | N156: 0 | O156: 0 | P156: 0.0003356933594 | Q156: 0.0003356933594
A157: 2011-05-16T07:45:02 | B157: 60.02001953 | C157: 471 | E157: 0 | F157: 0 | J157: -653 | K157: 29788.63086 | M157: 0 | N157: 0 | O157: 0 | P157: -0.0003356933594 | Q157: 0.0003356933594
A158: 2011-05-16T07:45:04 | B158: 60.02001953 | C158: 471 | E158: 0 | F158: 0 | J158: -653 | K158: 29788.63086 | M158: 0 | N158: 0 | O158: 0 | P158: 0 | Q158: 0
A159: 2011-05-16T07:45:06 | B159: 60.01907349 | C159: 471 | E159: 0 | F159: 0 | J159: -653 | K159: 29788.63086 | M159: 0 | N159: 0 | O159: 0 | P159: -0.0009460449219 | Q159: 0.0009460449219
A160: 2011-05-16T07:45:08 | B160: 60.01809692 | C160: 471 | E160: 0 | F160: 0 | J160: -653 | K160: 29788.63086 | M160: 0 | N160: 0 | O160: 0 | P160: -0.0009765625 | Q160: 0.0009765625
A161: 2011-05-16T07:45:10 | B161: 60.01712036 | C161: 471 | E161: 0 | F161: 0 | J161: -653 | K161: 29788.63086 | M161: 0 | N161: 0 | O161: 0 | P161: -0.0009765625 | Q161: 0.0009765625
A162: 2011-05-16T07:45:12 | B162: 60.01712036 | C162: 471 | E162: 0 | F162: 0 | J162: -653 | K162: 29788.63086 | M162: 0 | N162: 0 | O162: 0 | P162: 0 | Q162: 0
A163: 2011-05-16T07:45:14 | B163: 60.01712036 | C163: 471 | E163: 0 | F163: 0 | J163: -653 | K163: 29788.50586 | M163: 0 | N163: 0 | O163: 0 | P163: 0 | Q163: 0
A164: 2011-05-16T07:45:16 | B164: 60.01452637 | C164: 471 | E164: 0 | F164: 0 | J164: -653 | K164: 29788.50586 | M164: 0 | N164: 0 | O164: 0 | P164: -0.002593994141 | Q164: 0.002593994141
A165: 2011-05-16T07:45:18 | B165: 60.01358032 | C165: 471 | E165: 0 | F165: 0 | J165: -653 | K165: 29788.50586 | M165: 0 | N165: 0 | O165: 0 | P165: -0.0009460449219 | Q165: 0.0009460449219
A166: 2011-05-16T07:45:20 | B166: 60.01226807 | C166: 471 | E166: 0 | F166: 0 | J166: -653 | K166: 29788.50586 | M166: 0 | N166: 0 | O166: 0 | P166: -0.001312255859 | Q166: 0.001312255859
A167: 2011-05-16T07:45:22 | B167: 60.0116272 | C167: 471 | E167: 0 | F167: 0 | J167: -653 | K167: 29788.50586 | M167: 0 | N167: 0 | O167: 0 | P167: -0.0006408691406 | Q167: 0.0006408691406
A168: 2011-05-16T07:45:24 | B168: 60.01065063 | C168: 471 | E168: 0 | F168: 0 | J168: -653 | K168: 29788.50586 | M168: 0 | N168: 0 | O168: 0 | P168: -0.0009765625 | Q168: 0.0009765625
A169: 2011-05-16T07:45:26 | B169: 60.00970459 | C169: 471 | E169: 0 | F169: 0 | J169: -653 | K169: 29788.50586 | M169: 0 | N169: 0 | O169: 0 | P169: -0.0009460449219 | Q169: 0.0009460449219
A170: 2011-05-16T07:45:28 | B170: 60.00839233 | C170: 471 | E170: 0 | F170: 0 | J170: -653 | K170: 29788.50586 | M170: 0 | N170: 0 | O170: 0 | P170: -0.001312255859 | Q170: 0.001312255859
A171: 2011-05-16T07:45:30 | B171: 60.00744629 | C171: 471 | E171: 0 | F171: 0 | J171: -653 | K171: 29788.50586 | M171: 0 | N171: 0 | O171: 0 | P171: -0.0009460449219 | Q171: 0.0009460449219
A172: 2011-05-16T07:45:32 | B172: 60.00775146 | C172: 471 | E172: 0 | F172: 0 | J172: -653 | K172: 29788.50586 | M172: 0 | N172: 0 | O172: 0 | P172: 0.0003051757812 | Q172: 0.0003051757812
A173: 2011-05-16T07:45:34 | B173: 60.00839233 | C173: 471 | E173: 0 | F173: 0 | J173: -653 | K173: 29780.61914 | M173: 0 | N173: 0 | O173: 0 | P173: 0.0006408691406 | Q173: 0.0006408691406
A174: 2011-05-16T07:45:36 | B174: 60.00839233 | C174: 471 | E174: 0 | F174: 0 | J174: -653 | K174: 29780.61914 | M174: 0 | N174: 0 | O174: 0 | P174: 0 | Q174: 0
A175: 2011-05-16T07:45:38 | B175: 60.00808716 | C175: 471 | E175: 0 | F175: 0 | J175: -653 | K175: 29780.61914 | M175: 0 | N175: 0 | O175: 0 | P175: -0.0003051757812 | Q175: 0.0003051757812
A176: 2011-05-16T07:45:40 | B176: 60.00744629 | C176: 471 | E176: 0 | F176: 0 | J176: -653 | K176: 29780.61914 | M176: 0 | N176: 0 | O176: 0 | P176: -0.0006408691406 | Q176: 0.0006408691406
A177: 2011-05-16T07:45:42 | B177: 60.0071106 | C177: 471 | E177: 0 | F177: 0 | J177: -653 | K177: 29780.61914 | M177: 0 | N177: 0 | O177: 0 | P177: -0.0003356933594 | Q177: 0.0003356933594
A178: 2011-05-16T07:45:44 | B178: 60.00839233 | C178: 471 | E178: 0 | F178: 0 | J178: -653 | K178: 29780.56055 | M178: 0 | N178: 0 | O178: 0 | P178: 0.001281738281 | Q178: 0.001281738281
A179: 2011-05-16T07:45:46 | B179: 60.0093689 | C179: 471 | E179: 0 | F179: 0 | J179: -653 | K179: 29780.56055 | M179: 0 | N179: 0 | O179: 0 | P179: 0.0009765625 | Q179: 0.0009765625
A180: 2011-05-16T07:45:48 | B180: 60.00970459 | C180: 471 | E180: 0 | F180: 0 | J180: -653 | K180: 29780.56055 | M180: 0 | N180: 0 | O180: 0 | P180: 0.0003356933594 | Q180: 0.0003356933594
A181: 2011-05-16T07:45:50 | B181: 60.01000977 | C181: 471 | E181: 0 | F181: 0 | J181: -653 | K181: 29780.56055 | M181: 0 | N181: 0 | O181: 0 | P181: 0.0003051757812 | Q181: 0.0003051757812
A182: 2011-05-16T07:45:52 | B182: 60.01065063 | C182: 471 | E182: 0 | F182: 0 | J182: -653 | K182: 29780.56055 | M182: 0 | N182: 0 | O182: 0 | P182: 0.0006408691406 | Q182: 0.0006408691406
A183: 2011-05-16T07:45:54 | B183: 60.01196289 | C183: 471 | E183: 0 | F183: 0 | J183: -653 | K183: 29784.96289 | M183: 0 | N183: 0 | O183: 0 | P183: 0.001312255859 | Q183: 0.001312255859
A184: 2011-05-16T07:45:56 | B184: 60.01324463 | C184: 471 | E184: 0 | F184: 0 | J184: -653 | K184: 29784.96289 | M184: 0 | N184: 0 | O184: 0 | P184: 0.001281738281 | Q184: 0.001281738281
A185: 2011-05-16T07:45:58 | B185: 60.01452637 | C185: 471 | E185: 0 | F185: 0 | J185: -653 | K185: 29784.96289 | M185: 0 | N185: 0 | O185: 0 | P185: 0.001281738281 | Q185: 0.001281738281
A186: 2011-05-16T07:46:00 | B186: 60.0161438 | C186: 471 | E186: 0 | F186: 0 | J186: -653 | K186: 29784.96289 | M186: 0 | N186: 0 | O186: 0 | P186: 0.001617431641 | Q186: 0.001617431641
A187: 2011-05-16T07:46:02 | B187: 60.01712036 | C187: 471 | E187: 0 | F187: 0 | J187: -653 | K187: 29784.96289 | M187: 0 | N187: 0 | O187: 0 | P187: 0.0009765625 | Q187: 0.0009765625
A188: 2011-05-16T07:46:04 | B188: 60.01712036 | C188: 471 | E188: 0 | F188: 0 | J188: -653 | K188: 29784.93359 | M188: 0 | N188: 0 | O188: 0 | P188: 0 | Q188: 0
A189: 2011-05-16T07:46:06 | B189: 60.0161438 | C189: 471 | E189: 0 | F189: 0 | J189: -653 | K189: 29784.93359 | M189: 0 | N189: 0 | O189: 0 | P189: -0.0009765625 | Q189: 0.0009765625
A190: 2011-05-16T07:46:08 | B190: 60.01583862 | C190: 471 | E190: 0 | F190: 0 | J190: -653 | K190: 29784.93359 | M190: 0 | N190: 0 | O190: 0 | P190: -0.0003051757812 | Q190: 0.0003051757812
A191: 2011-05-16T07:46:10 | B191: 60.0161438 | C191: 471 | E191: 0 | F191: 0 | J191: -653 | K191: 29784.93359 | M191: 0 | N191: 0 | O191: 0 | P191: 0.0003051757812 | Q191: 0.0003051757812
A192: 2011-05-16T07:46:12 | B192: 60.01583862 | C192: 471 | E192: 0 | F192: 0 | J192: -653 | K192: 29784.93359 | M192: 0 | N192: 0 | O192: 0 | P192: -0.0003051757812 | Q192: 0.0003051757812
A193: 2011-05-16T07:46:14 | B193: 60.01486206 | C193: 471 | E193: 0 | F193: 0 | J193: -653 | K193: 29760.41602 | M193: 0 | N193: 0 | O193: 0 | P193: -0.0009765625 | Q193: 0.0009765625
A194: 2011-05-16T07:46:16 | B194: 60.01422119 | C194: 471 | E194: 0 | F194: 0 | J194: -653 | K194: 29760.41602 | M194: 0 | N194: 0 | O194: 0 | P194: -0.0006408691406 | Q194: 0.0006408691406
A195: 2011-05-16T07:46:18 | B195: 60.01226807 | C195: 471 | E195: 0 | F195: 0 | J195: -653 | K195: 29760.41602 | M195: 0 | N195: 0 | O195: 0 | P195: -0.001953125 | Q195: 0.001953125
A196: 2011-05-16T07:46:20 | B196: 60.00970459 | C196: 471 | E196: 0 | F196: 0 | J196: -653 | K196: 29760.41602 | M196: 0 | N196: 0 | O196: 0 | P196: -0.002563476562 | Q196: 0.002563476562
A197: 2011-05-16T07:46:22 | B197: 60.0071106 | C197: 471 | E197: 0 | F197: 0 | J197: -653 | K197: 29760.41602 | M197: 0 | N197: 0 | O197: 0 | P197: -0.002593994141 | Q197: 0.002593994141
A198: 2011-05-16T07:46:24 | B198: 60.00582886 | C198: 471 | E198: 0 | F198: 0 | J198: -653 | K198: 29760.41602 | M198: 0 | N198: 0 | O198: 0 | P198: -0.001281738281 | Q198: 0.001281738281
A199: 2011-05-16T07:46:26 | B199: 60.00515747 | C199: 471 | E199: 0 | F199: 0 | J199: -653 | K199: 29760.41602 | M199: 0 | N199: 0 | O199: =IF(ROW()<$M$3,0,1) -> 0 | P199: -0.0006713867188 | Q199: 0.0006713867188
A200: 2011-05-16T07:46:28 | B200: 60.00515747 | C200: 471 | E200: 0 | F200: 0 | J200: -653 | K200: 29760.41602 | M200: =IF(ROW()<$M$5,0,1) -> 0 | N200: =IF((M200=1)*(B200>$N$2),1,0) -> 0 | O200: 0 | P200: =B200-B199 -> 0 | Q200: =ABS(P200) -> 0
... 1606 more rows

Sheet Copy Results
A1: Balancing Authority Name: | B1: MyBA | D1: =$B$1&TEXT($B$34,"\_yymmdd")&TEXT($B$35,"\_hhmm")&"_FRS_Form2.9.xlsm" -> MyBA_110516_0806_FRS_Form2.9.xlsm
B2: Interconnection Prevailing UFLS First Step Relay trip point | C2: 58.5 | D2: Hz
B3: Interconnection High Relay trip point | C3: =60-C2+60 -> 61.5 | D3: Hz
A4: Note: See "Instruction" tab for more detailed instructions. | E4: Auto | F4: Event Detection | Z4: Auto
D5: =Data!N3 -> 40679.33794 | E5: 1245 | F5: Manually selected row number of the Event Starting Time. | Z5: Manual
A6: Step 1. | B6: Copy and Paste Event Data into the appropriate cells of the "Data" worksheet. | D6: =Data!N4 -> 40679.34062 | E6: 1442 | F6: Manually selected row number of the Event Ending Time.
B7: Maintain date and time format of mm/dd/yy hh:mm:ss.
A8: Step 2. | B8: Data must start at least 2 full minutes before the beginning of the event. | C8: =Data!N3 -> 40679.33794
B9: Collect the same amount of data for each event. Suggest 2 to 3 minutes before to 15 minutes after (up to 60 minutes total). Delete unused rows of data in the Data worksheet below your data, columns A through R. You must also delete any un-used event detection formulas in columns N through R as well.
A10: Step 3. | B10: Enter your BA name in cell B1 of this worksheet.
A11: Step 4. | B11: Verify that the "Auto" Event Detection selected the correct event. Verify time and delta Hz
B12: by comparing time of event and delta Hz on graph to the right to that on Form 1 for this event. If the wrong event was selected, in cell "E4" of this worksheet select "Manual" and manually select the beginning and ending row numbers of the desired event and enter these in cells "E5" and "E6". Only rarely should you have to use the "Manual" process.
A13: Step 5. | B13: Verify that the "Auto" selection of T(0) is correct by observing "Graph 20 to 52s". | C13: =Data!N4 -> 40679.34062
B14: The very first frequency data point of the event on the graph
B15: must not be included in the "A Value" average. This is accomplished when the
B16: first frequency data point of the event is dead center of the graph on the center
B17: vertical grid line. The Auto event detection will select the single largest event in the
B18: data provided. An adjustment for T(0) alignment is provided in Cell Q3 on the Graph 20 to 52s.
A19: Step 6. | B19: When T(0) is properly aligned. Hit the big blue button to copy your data for pasting into FRS Form 1 "BA Event Data" worksheet.
A30: Step 7. | B30: Paste data into "FRS Form 1" in the appropriate row on the "BA Event Data" worksheet.
B31: Be sure to use the latest version of Form 1. This is Form 2.9 so use Form 1.9.
A33: Step 8. | B33: Save this workbook using the following file name in bold below:
B34: =Evaluation!G2 -> 2011-05-16T08:06:38 | C34: Date yymmdd
B35: =Evaluation!G2 -> 40679.33794 | C35: Time hh:ss of T(0)
B36: Where "MyBA" = your BA mnemonic
B38: =$B$1&TEXT($B$34,"\_yymmdd")&TEXT($B$35,"\_hhmm")&"_FRS_Form2.9.xlsm" -> MyBA_110516_0806_FRS_Form2.9.xlsm

Sheet Evaluation
B1: 2 | C1: seconds | F1: Date: | G1: =G2 -> 2011-05-16T08:06:38 | K1: Balancing Authority | L1: ='Copy Results'!B1 -> MyBA | R1: A Point | S1: =$B$78 -> 40679.33792 | Y1: Non-Conforming Load sign convention | Z1: + | AA1: (Data is positive for Load then enter "+" else "-" | AM1: Date: | AN1: =AN2 -> 2011-05-16T08:06:38 | AR1: Frequency Response Initiative - Additional Primary Frequency Response Evaluation Points
F2: Time of T(0) | G2: ='Copy Results'!C8 -> 40679.33794 | K2: Grid Nominal Frequency | L2: 60 | M2: Hz | R2: FPointA | S2: =$C$78 -> 60.00195312 | T2: =$B$78 -> 40679.33792 | AM2: Time of T(0) | AN2: =$G2 -> 40679.33794 | AR2: Frequency @ T(+46) | AS2: =C102 -> 59.90081406 | AT2: Hz
F3: Time of Frequency Recovery to 60 Hz or Pre-Perturbation Hz | G3: ='Copy Results'!C13 -> 40679.34062 | R3: A Value | S3: =AVERAGE($C$71:$C$78) -> 59.99862671 | AM3: Time of Frequency Recovery to 60 Hz or Pre-Perturbation Hz | AN3: =$G3 -> 40679.34062 | AR3: Frequency @ T(+76) | AS3: =C117 -> 59.91469955 | AT3: Hz | AU3: Actual | AW3: Load | AX3: Non-
F4: Value A Pre-Perturbation Average Frequency [T(-2 ) to T(-16)] | G4: =AVERAGE($C$71:$C$78) -> 59.99862671 | H4: Hz | K4: Droop Setting | L4: 0.05 | M4: =L4*L2 -> 3 | N4: Hz | R4: C Value | S4: =IF($K$16="Low Hz",MIN($C$79:$C$88),MAX($C$79:$C$88)) -> 59.87011337 | AM4: Value A Pre-Perturbation Average Frequency [T(-2 ) to T(-16)] | AN4: =AVERAGE($W$71:$W$78) -> 59.99862671 | AO4: Hz | AR4: Frequency @ T(+106) | AS4: =C132 -> 59.9440918 | AT4: Hz | AU4: Primary | AV4: Un-adjusted | AW4: Resources | AX4: Conforming | BB4: Adjusted
F5: Value B Post-Perturbation Average Frequency [T(+20 to T(+52)] | G5: =AVERAGE($C$89:$C$105) -> 59.89716092 | H5: Hz | K5: Deadband Setting | L5: 0 | M5: Hz | R5: Delta FC | AM5: Value B Post-Perturbation Average Frequency [T(+20 to T(+52)] | AN5: =AVERAGE($W$89:$W$105) -> 59.89716092 | AO5: Hz | AR5: Frequency @ T(+136) | AS5: =C147 -> 59.95153809 | AT5: Hz | AU5: Freq Response | AV5: P.U. | AW5: Tripped | AX5: Load | AY5: Spare | AZ5: Spare | BA5: Spare | BB5: P.U.
F6: Pre to Post Perturbation Delta Frequency Actual | G6: =G5-G4 -> -0.1014657862 | H6: Hz | K6: Hz Span | L6: =M4-L5 -> 3 | M6: Hz | AM6: Pre to Post Perturbation Delta Frequency Actual | AN6: =AN5-AN4 -> -0.1014657862 | AO6: Hz | AR6: Frequency @ T(+166) | AS6: =C162 -> 59.96737671 | AT6: Hz | AU6: MW/0.1 Hz | AV6: Performance | AW6: Adjustment | AX6: Adjustment | AY6: Adjustment | AZ6: Adjustment | BA6: Adjustment | BB6: Performance
F7: Value A Pre-Perturbation Average Contingent MW [T(-2 ) to T(-16)] | G7: =AVERAGE($D$71:$D$78) -> 471.0874939 | H7: MW | AM7: Value A Pre-Perturbation Contingency MW [T(-2 ) to T(-16)] | AN7: =AVERAGE($D$71:$D$78) -> 471.0874939 | AO7: MW | AR7: EPFR @ T(+46) | AS7: =AE102 -> -653 | AT7: MW/0.1 Hz | AU7: =((X102-AK$78)/((AS2-AN$4)*-10)) -> -481.6222456 | AV7: =AU7/AS7 -> 0.7375532092 | AW7: =$Y102-$AN$15 -> 0 | AX7: =$Z102-$AN$16 -> 0 | AY7: =$AA102-$AN$17 -> 0 | AZ7: =$AC102*-10*(W102-$L$2)-$AN$19 -> 0 | BA7: =$AD102-$AN$20 -> 0 | BB7: =(AU7+SUM(AW7:AZ7))/AS7 -> 0.7375532092
F8: Value B Post-Perturbation Average Contingent MW [T(+20 to T(+52)] | G8: =AVERAGE($D$89:$D$105) -> 0 | H8: MW | AM8: Value B Post-Perturbation Average Contingency MW [T(+20 to T(+52)] | AN8: =AVERAGE($D$89:$D$105)-AN28+AN20 -> 0 | AO8: MW | AR8: EPFR @ T(+76) | AS8: =AE117 -> -653 | AT8: MW/0.1 Hz | AU8: =((X117-AK$78)/((AS3-AN$4)*-10)) -> -561.3052134 | AV8: =AU8/AS8 -> 0.8595791936 | AW8: =$Y117-$AN$15 -> 0 | AX8: =$Z117-$AN$16 -> 0 | AY8: =$AA117-$AN$17 -> 0 | AZ8: =$AC117*-10*(W117-$L$2)-$AN$19 -> 0 | BA8: =$AD117-$AN$20 -> 0 | BB8: =(AU8+SUM(AW8:AZ8))/AS8 -> 0.8595791936
F9: Pre to Post Perturbation Contingent Delta MW Actual | G9: =G8-G7-AN28+AN20 -> -471.0874939 | H9: MW | AM9: Pre to Post Perturbation Contingency Delta MW Actual | AN9: =(AN8-AN7)*-1 -> 471.0874939 | AO9: MW | AR9: EPFR @ T(+106) | AS9: =AE132 -> -653 | AT9: MW/0.1 Hz | AU9: =((X132-AK$78)/((AS4-AN$4)*-10)) -> -863.8273643 | AV9: 1.32285967 | AW9: =$Y132-$AN$15 -> 0 | AX9: =$Z132-$AN$16 -> 0 | AY9: =$AA132-$AN$17 -> 0 | AZ9: =$AC132*-10*(W132-$L$2)-$AN$19 -> 0 | BA9: =$AD132-$AN$20 -> 0 | BB9: =(AU9+SUM(AW9:AZ9))/AS9 -> 1.32285967
F10: Initial Performance Ramp Magnitude Adjustment | G10: =(D77-D49)*0.59 -> -0.05900360107 | H10: MW | AR10: EPFR @ T(+136) | AS10: =AE147 -> -653 | AT10: MW/0.1 Hz | AU10: =((X147-AK$78)/((AS5-AN$4)*-10)) -> -1000.427414 | AV10: 1.532048107 | AW10: =$Y147-$AN$15 -> 0 | AX10: =$Z147-$AN$16 -> 0 | AY10: =$AA147-$AN$17 -> 0 | AZ10: =$AC147*-10*(W147-$L$2)-$AN$19 -> 0 | BA10: =$AD147-$AN$20 -> 0 | BB10: =(AU10+SUM(AW10:AZ10))/AS10 -> 1.532048107
F11: EPFR Pre-Perturbation Average | G11: =AVERAGE(H71:H78) -> 8.967590332 | H11: MW | AM11: EPFR Pre-Perturbation Average | AN11: =AVERAGE(AT71:AT78) -> 8.967590332 | AO11: MW | AR11: EPFR @ T(+166) | AS11: =AE162 -> -653 | AT11: MW/0.1 Hz | AU11: =((X162-AK$78)/((AS6-AN$4)*-10)) -> -1507.47998 | AV11: 2.308545146 | AW11: =$Y162-$AN$15 -> 0 | AX11: =$Z162-$AN$16 -> 0 | AY11: =$AA162-$AN$17 -> 0 | AZ11: =$AC162*-10*(W162-$L$2)-$AN$19 -> 0 | BA11: =$AD162-$AN$20 -> 0 | BB11: =(AU11+SUM(AW11:AZ11))/AS11 -> 2.308545146
F12: EPFR Post-Perturbation Average | G12: =AVERAGE(H89:H105) -> 671.5391742 | H12: MW | AM12: EPFR Post-Perturbation Average | AN12: =AVERAGE($AG89:$AG105) -> 671.5391742 | AO12: MW
F13: EPFR Delta | G13: =G12-G11 -> 662.5715839 | H13: MW | K13: TC (frequency response filter constant) | L13: 0.35 | M13: Time Constant for delayed delivery of PFR during Sustained Measure | AM13: EPFR Unadjusted | AN13: =AN12-AN11 -> 662.5715839 | AO13: MW
AM14: EPFR Adjusted | AN14: =AN13+AN30 -> 662.5715839 | AO14: MW | AR14: T(20) to T(52) Evaluation
AM15: Pre Load Resources MW | AN15: =AVERAGE($Y$71:$Y$78) -> 0 | AO15: MW | AR15: Pre-Perturbation Bias Setting | AS15: =AVERAGE($AE$71:$AE$78) -> -653 | AT15: MW/0.1 Hz
K16: =IF(G6<0,"Low Hz","High Hz") -> Low Hz | L16: Delta Hz Event | AM16: Pre Non-Conforming Load MW | AN16: =AVERAGE($Z$71:$Z$78) -> 0 | AO16: MW | AR16: Post-Perturbation Bias Setting | AS16: =AVERAGE($AE$89:$AE$105) -> -653 | AT16: MW/0.1 Hz
K17: =LOOKUP(G3,B43:B529,N43:N529) -> 0 | L17: Actual Interchange MW Average during frequency recovery period | AM17: Spare | AN17: =AVERAGE($AA$71:$AA$78) -> 0 | AO17: MW | AR17: EPFR for Bias Setting Pre-Perturbation Average | AS17: =(AN4-$L$2)*10*AS15 -> 8.967590332 | AT17: MW
K18: =LOOKUP(G3,B43:B529,O43:O529) -> 617.5245463 | L18: Target Interchange MW Average during frequency recovery period | AR18: EPFR for Bias Setting Post-Perturbation Average | AS18: =(AN5-$L$2)*10*AS16 -> 671.5391742 | AT18: MW
D19: EPFR = Expected Primary Frequency Response | F19: EPFR(Final) | G19: =G13+G10 -> 662.5125803 | H19: MW | K19: =LOOKUP(G3,B49:B529,Q49:Q529) -> 226.516496 | L19: Interchange Average Ramp MW during frequency recovery period | AM19: Spare | AN19: =AVERAGE($AC$71:$AC$78)*-10*(AN4-$L$2) -> 0 | AO19: MW | AR19: EPFR for Bias Setting Delta | AS19: =AS18-AS17 -> 662.5715839 | AT19: MW
F20: MW Response in right direction for frequency delta | G20: =IF((G6*G9)>0,"Yes","No") -> Yes | K20: =D77 -> 470.8999939 | L20: Actual MW @ T(-4) | AM20: Spare | AN20: =AVERAGE($AD$71:$AD$78) -> 0 | AO20: MW | AR20: Primary Frequency Response Delivery % of Bias | AS20: =(AN9)/AS19 -> 0.7109986382
K21: =LOOKUP(G3,B43:B524,D43:D524)-D77+I77-LOOKUP(G3,B43:B524,I43:I524)-AN28+AN20 -> -494.589637 | L21: Starting and Ending Difference in Interchange MW during frequency recovery period (indicates ramp direction during recovery period) | AM21: Sum of Pre Perturbation Adjustments | AN21: =SUM(AN15:AN20) -> 0 | AO21: MW
K22: =G3-G2 -> 00:03:52 | L22: Event Duration (h:mm:ss)
K23: =IF(K18-K20<0,"Yes","No") -> No | L23: Target MW Average minus MW @ T(-4) less than zero | AM23: Post Load Resources MW | AN23: =AVERAGE($Y$89:$Y$105) -> 0 | AO23: MW | AR23: Pre-Perturbation BA Load | AS23: =AVERAGE($AF$71:$AF$78) -> 30202.74219 | AT23: MW
K24: =IF(K21>0,K18-K20,K18-(K20+K21)) -> 641.2141894 | L24: Interchange Target Relative Average Change - MW (Low Frequency Event) | AM24: Post Non-Conforming Load MW | AN24: =AVERAGE($Z$89:$Z$105) -> 0 | AO24: MW | AR24: Post-Perturbation BA Load | AS24: =AVERAGE($AF$89:$AF$105) -> 30136.76953 | AT24: MW
K25: =IF(K21>0,K17-K20,K17-(K20+K21)) -> 23.68964315 | L25: Interchange Actual Relative Average Change - MW (Low Frequency Event) | AM25: Spare | AN25: =AVERAGE($AA$89:$AA$105) -> 0 | AO25: MW | AR25: Pre to Post Perturbation BA Load Change | AS25: =AS24-AS23 -> -65.97265625 | AT25: MW
K26: =IF(K17-K20<0,"Yes","No") -> Yes | L26: Interchange Actual Average minus MW @ T(-4) less than zero | AR26: Load Dampening Frequency Response | AS26: =AS25/(AN6*-10) -> -65.01960781 | AT26: MW/0.1 Hz
K27: =IF(K17-K20>0,"Yes","No") -> No | L27: Interchange Average MW minus MW @ T(-4) greater than zero | AM27: Spare | AN27: =AVERAGE($AC$89:$AC$105)*-10*(AN5-$L$2) -> 0 | AO27: MW | AR27: Load Dampening % of Total BA Frequency Response | AS27: =AS25/AN9*-1 -> 0.1400433191
K28: =IF(K18-K20>0,"Yes","No") -> Yes | L28: Interchange Target MW Average minus MW @ T(-4) greater than zero | AM28: Spare | AN28: =AVERAGE($AD$89:$AD$105) -> 0 | AO28: MW
K29: =IF(K21>0,K18-(K20+K21),K18-K20) -> 146.6245524 | L29: Interchange Target Relative Average Change - MW (High Frequency Event) | AM29: Sum of Post Perturbation Adjustments | AN29: =SUM(AN23:AN27) -> 0 | AO29: MW
K30: =IF(K21>0,K17-(K20+K21),K17-K20) -> -470.8999939 | L30: Interchange Actual Relative Average Change - MW (High Frequency Event) | AM30: Net Total Adjustments MW | AN30: =AN29-AN21 -> 0 | AO30: MW | AR30: Average Bias Setting when Hz is greater than +/-0.036 Hz | AS30: =AVERAGE(AY43:AY529) -> -653 | AT30: MW/0.1 Hz
K31: =IF(K21>=0,"Up","Down") -> Down | L31: Ramp Direction during frequency recovery period
V32: Frequency, Actual Interchange, Adjustment Data, Bias and Load used in the evaluation | AI32: 20 to 52 second Average Period Evaluation
F33: Initial Response P.U. Performance | G33: =IF(G20="Yes",G9/G19*-1," ") -> 0.71106196 | H33: P.U. | K33: =AV7 -> 0.7375532092 | L33: P.U. Sustianed Response P.U. Performance | AM33: Initial P.U. Performance for FRO | AN33: =AN9/AN13 -> 0.7109986382 | AO33: P.U.
AM34: Initial P.U. Performance Adjusted for FRO | AN34: =((AN8-AN7)*-1+AN30)/AN13 -> 0.7109986382 | AO34: P.U.
K35: Initial | Z35: Non- | AM35: Non- | AV35: Actual | AW35: Actual
H36: Bias | K36: Measure | N36: Average | O36: Average | Q36: Average | X36: Contingent | Y36: Load | Z36: Conforming | AA36: Not | AB36: Not | AC36: Not | AD36: Not | AE36: BA | AF36: BA | AG36: Expected Primary | AK36: Contingent | AL36: Load | AM36: Conforming | AN36: Not | AO36: Not | AP36: Not | AQ36: Not | AR36: BA | AS36: BA | AU36: Expected | AV36: Average | AW36: Primary
H37: (EPFR) | I37: (TC) | K37: Final | N37: Output | O37: Target | Q37: Ramp | X37: Resource | Y37: Resources | Z37: Load | AA37: Used | AB37: Used | AC37: Used | AD37: Used | AE37: Bias | AF37: Load | AG37: Freq Response | AK37: Resource | AL37: Resources | AM37: Load | AN37: Used | AO37: Used | AP37: Used | AQ37: Used | AR37: Bias | AS37: Load | AU37: MW/0.1 Hz | AV37: Primary | AW37: Freq Response
D38: Contingent | E38: Value B | H38: Expected | I38: Delayed | K38: Expected | M38: Recovery | N38: During | O38: During | P38: Recovery | Q38: During | W38: Frequency | X38: Lost | Y38: Tripped | Z38: Load (-) | AE38: Setting | AG38: Based on Bias Setting | AJ38: Frequency | AK38: Lost | AL38: Tripped | AM38: Load (-) | AR38: Setting | AT38: EPFR | AU38: Response | AV38: Freq Response | AW38: Beta
D39: Resource | E39: 20 to 52 sec | H39: Primary | I39: Delivery | K39: Primary | L39: Average | M39: Period | N39: Recovery | O39: Recovery | P39: Period | Q39: Recovery | V39: T | W39: Hz | X39: MW | Y39: MW | Z39: MW | AA39: MW | AC39: MW/0.1 Hz | AD39: MW | AE39: MW/0.1 Hz | AF39: MW | AG39: MW | AI39: T | AJ39: Hz | AK39: MW | AL39: MW | AM39: MW | AN39: MW | AP39: MW/0.1 Hz | AQ39: MW | AR39: MW/0.1 Hz | AS39: MW | AT39: MW | AU39: MW/0.1 Hz | AV39: MW/0.1 Hz | AW39: MW/0.1 Hz
C40: Frequency | D40: Lost | E40: Average | F40: Average | H40: Frequency | I40: Frequency | K40: Frequency | L40: Ramp | M40: Target | N40: Period | O40: Period | P40: Ramp | Q40: Period
B41: T | C41: Hz | D41: MW | E41: Frequency | F41: MW | H41: Response | I41: Response | K41: Response | L41: MW/scan | M41: MW | N41: MW | O41: MW | P41: MW | Q41: MW
A43: T-72 sec | B43: =B44-TIME(0,0,$B$1) -> 40679.33711 | C43: =LOOKUP($B43,Data!$A$6:$A$1806,Data!$B$6:$B$1806) -> 59.98028564 | D43: =LOOKUP(B43,Data!$A$6:$A$1806,Data!C$6:C$1806) -> 471 | G43: =AE43*-M$4*10 -> 19590 | H43: =(IF((C43-L$2)>0,((C43-L$2-L$5)/((L$4*L$2)-L$5)*G43*-1),((C43-L$2+L$5)/((L$4*L$2)-L$5)*G43*-1))) -> 128.7347412 | I43: =L$13*H43+(1-L$13)*I42 -> 45.05715942 | U43: T-72 sec | V43: =V44-TIME(0,0,$B$1) -> 40679.33711 | W43: =LOOKUP($V43,Data!$A$6:$A$1806,Data!$B$6:$B$1806) -> 59.98028564 | X43: =LOOKUP($V43,Data!$A$6:$A$1806,Data!$C$6:$C$1806) -> 471 | Y43: =LOOKUP($V43,Data!$A$6:$A$1806,Data!$D$6:$D$1806) -> 0 | Z43: =IF($Z$1="+",LOOKUP($V43,Data!$A$6:$A$1806,Data!$E$6:$E$1806)*-1,LOOKUP($V43,Data!$A$6:$A$1806,Data!$E$6:$E$1806)) -> 0 | AA43: =LOOKUP($V43,Data!$A$6:$A$1806,Data!$F$6:$F$1806) -> 0 | AC43: =LOOKUP($V43,Data!$A$6:$A$1806,Data!$H$6:$H$1806) -> 0 | AD43: =LOOKUP($V43,Data!$A$6:$A$1806,Data!$I$6:$I$1806) -> 0 | AE43: =IF(LOOKUP($V43,Data!$A$6:$A$1806,Data!$J$6:$J$1806)>0,(LOOKUP($V43,Data!$A$6:$A$1806,Data!$J$6:$J$1806)*-1),LOOKUP($V43,Data!$A$6:$A$1806,Data!$J$6:$J$1806)) -> -653 | AF43: =LOOKUP($V43,Data!$A$6:$A$1806,Data!$K$6:$K$1806) -> 30155.67188 | AG43: =(IF((W43-$L$2)>0,((W43-$L$2-$L$5)/(($L$4*$L$2)-$L$5)*G43*-1),((W43-$L$2+$L$5)/(($L$4*$L$2)-$L$5)*G43*-1))) -> 128.7347412 | AH43: T-72 sec | AI43: =AI44-TIME(0,0,$B$1) -> 40679.33711 | AX43: =ABS(C43-60) -> 0.01971435547 | AY43: =IF(AX43>0.036,AE43," ") -> 
A44: T-70 sec | B44: 40679.33713 | C44: =LOOKUP(B44,Data!$A$6:$A$1806,Data!B$6:B$1806) -> 59.98223877 | D44: =LOOKUP(B44,Data!$A$6:$A$1806,Data!C$6:C$1806) -> 471 | G44: =AE44*-M$4*10 -> 19590 | H44: =(IF((C44-L$2)>0,((C44-L$2-L$5)/((L$4*L$2)-L$5)*G44*-1),((C44-L$2+L$5)/((L$4*L$2)-L$5)*G44*-1))) -> 115.980835 | I44: 69.88044586 | U44: T-70 sec | V44: 40679.33713 | W44: =LOOKUP($V44,Data!$A$6:$A$1806,Data!$B$6:$B$1806) -> 59.98223877 | X44: =LOOKUP($V44,Data!$A$6:$A$1806,Data!$C$6:$C$1806) -> 471 | Y44: =LOOKUP($V44,Data!$A$6:$A$1806,Data!$D$6:$D$1806) -> 0 | Z44: =IF($Z$1="+",LOOKUP($V44,Data!$A$6:$A$1806,Data!$E$6:$E$1806)*-1,LOOKUP($V44,Data!$A$6:$A$1806,Data!$E$6:$E$1806)) -> 0 | AA44: =LOOKUP($V44,Data!$A$6:$A$1806,Data!$F$6:$F$1806) -> 0 | AC44: =LOOKUP($V44,Data!$A$6:$A$1806,Data!$H$6:$H$1806) -> 0 | AD44: =LOOKUP($V44,Data!$A$6:$A$1806,Data!$I$6:$I$1806) -> 0 | AE44: =IF(LOOKUP($V44,Data!$A$6:$A$1806,Data!$J$6:$J$1806)>0,(LOOKUP($V44,Data!$A$6:$A$1806,Data!$J$6:$J$1806)*-1),LOOKUP($V44,Data!$A$6:$A$1806,Data!$J$6:$J$1806)) -> -653 | AF44: =LOOKUP($V44,Data!$A$6:$A$1806,Data!$K$6:$K$1806) -> 30155.67188 | AG44: =(IF((W44-$L$2)>0,((W44-$L$2-$L$5)/(($L$4*$L$2)-$L$5)*G44*-1),((W44-$L$2+$L$5)/(($L$4*$L$2)-$L$5)*G44*-1))) -> 115.980835 | AH44: T-70 sec | AI44: 40679.33713 | AX44: =ABS(C44-60) -> 0.01776123047 | AY44: =IF(AX44>0.036,AE44," ") -> 
A45: T-68 sec | B45: 40679.33715 | C45: =LOOKUP(B45,Data!$A$6:$A$1806,Data!B$6:B$1806) -> 59.98352051 | D45: =LOOKUP(B45,Data!$A$6:$A$1806,Data!C$6:C$1806) -> 471 | G45: 19590 | H45: 107.611084 | I45: 83.0861692 | U45: T-68 sec | V45: 40679.33715 | W45: =LOOKUP($V45,Data!$A$6:$A$1806,Data!$B$6:$B$1806) -> 59.98352051 | X45: =LOOKUP($V45,Data!$A$6:$A$1806,Data!$C$6:$C$1806) -> 471 | Y45: =LOOKUP($V45,Data!$A$6:$A$1806,Data!$D$6:$D$1806) -> 0 | Z45: =IF($Z$1="+",LOOKUP($V45,Data!$A$6:$A$1806,Data!$E$6:$E$1806)*-1,LOOKUP($V45,Data!$A$6:$A$1806,Data!$E$6:$E$1806)) -> 0 | AA45: =LOOKUP($V45,Data!$A$6:$A$1806,Data!$F$6:$F$1806) -> 0 | AC45: =LOOKUP($V45,Data!$A$6:$A$1806,Data!$H$6:$H$1806) -> 0 | AD45: =LOOKUP($V45,Data!$A$6:$A$1806,Data!$I$6:$I$1806) -> 0 | AE45: =IF(LOOKUP($V45,Data!$A$6:$A$1806,Data!$J$6:$J$1806)>0,(LOOKUP($V45,Data!$A$6:$A$1806,Data!$J$6:$J$1806)*-1),LOOKUP($V45,Data!$A$6:$A$1806,Data!$J$6:$J$1806)) -> -653 | AF45: =LOOKUP($V45,Data!$A$6:$A$1806,Data!$K$6:$K$1806) -> 30155.67188 | AG45: 107.611084 | AH45: T-68 sec | AI45: 40679.33715 | AX45: 0.01647949219
A46: T-66 sec | B46: =B47-TIME(0,0,$B$1) -> 40679.33718 | C46: =LOOKUP(B46,Data!$A$6:$A$1806,Data!B$6:B$1806) -> 59.98577881 | D46: =LOOKUP(B46,Data!$A$6:$A$1806,Data!C$6:C$1806) -> 471 | G46: 19590 | H46: 92.86437988 | I46: 86.50854294 | U46: T-66 sec | V46: 40679.33718 | W46: =LOOKUP($V46,Data!$A$6:$A$1806,Data!$B$6:$B$1806) -> 59.98577881 | X46: =LOOKUP($V46,Data!$A$6:$A$1806,Data!$C$6:$C$1806) -> 471 | Y46: =LOOKUP($V46,Data!$A$6:$A$1806,Data!$D$6:$D$1806) -> 0 | Z46: =IF($Z$1="+",LOOKUP($V46,Data!$A$6:$A$1806,Data!$E$6:$E$1806)*-1,LOOKUP($V46,Data!$A$6:$A$1806,Data!$E$6:$E$1806)) -> 0 | AA46: =LOOKUP($V46,Data!$A$6:$A$1806,Data!$F$6:$F$1806) -> 0 | AC46: =LOOKUP($V46,Data!$A$6:$A$1806,Data!$H$6:$H$1806) -> 0 | AD46: =LOOKUP($V46,Data!$A$6:$A$1806,Data!$I$6:$I$1806) -> 0 | AE46: =IF(LOOKUP($V46,Data!$A$6:$A$1806,Data!$J$6:$J$1806)>0,(LOOKUP($V46,Data!$A$6:$A$1806,Data!$J$6:$J$1806)*-1),LOOKUP($V46,Data!$A$6:$A$1806,Data!$J$6:$J$1806)) -> -653 | AF46: =LOOKUP($V46,Data!$A$6:$A$1806,Data!$K$6:$K$1806) -> 30155.67188 | AG46: 92.86437988 | AH46: T-66 sec | AI46: 40679.33718 | AX46: 0.01422119141
A47: T-64 sec | B47: 40679.3372 | C47: =LOOKUP(B47,Data!$A$6:$A$1806,Data!B$6:B$1806) -> 59.98739624 | D47: =LOOKUP(B47,Data!$A$6:$A$1806,Data!C$6:C$1806) -> 471 | G47: 19590 | H47: 82.30255127 | I47: 85.03644586 | U47: T-64 sec | V47: 40679.3372 | W47: =LOOKUP($V47,Data!$A$6:$A$1806,Data!$B$6:$B$1806) -> 59.98739624 | X47: =LOOKUP($V47,Data!$A$6:$A$1806,Data!$C$6:$C$1806) -> 471 | Y47: =LOOKUP($V47,Data!$A$6:$A$1806,Data!$D$6:$D$1806) -> 0 | Z47: =IF($Z$1="+",LOOKUP($V47,Data!$A$6:$A$1806,Data!$E$6:$E$1806)*-1,LOOKUP($V47,Data!$A$6:$A$1806,Data!$E$6:$E$1806)) -> 0 | AA47: =LOOKUP($V47,Data!$A$6:$A$1806,Data!$F$6:$F$1806) -> 0 | AC47: =LOOKUP($V47,Data!$A$6:$A$1806,Data!$H$6:$H$1806) -> 0 | AD47: =LOOKUP($V47,Data!$A$6:$A$1806,Data!$I$6:$I$1806) -> 0 | AE47: =IF(LOOKUP($V47,Data!$A$6:$A$1806,Data!$J$6:$J$1806)>0,(LOOKUP($V47,Data!$A$6:$A$1806,Data!$J$6:$J$1806)*-1),LOOKUP($V47,Data!$A$6:$A$1806,Data!$J$6:$J$1806)) -> -653 | AF47: =LOOKUP($V47,Data!$A$6:$A$1806,Data!$K$6:$K$1806) -> 30142.79102 | AG47: 82.30255127 | AH47: T-64 sec | AI47: 40679.3372 | AX47: 0.01260375977
A48: T-62 sec | B48: 40679.33722 | C48: =LOOKUP(B48,Data!$A$6:$A$1806,Data!B$6:B$1806) -> 59.98803711 | D48: =LOOKUP(B48,Data!$A$6:$A$1806,Data!C$6:C$1806) -> 471 | G48: 19590 | H48: 78.11767578 | I48: 82.61487633 | U48: T-62 sec | V48: 40679.33722 | W48: =LOOKUP($V48,Data!$A$6:$A$1806,Data!$B$6:$B$1806) -> 59.98803711 | X48: =LOOKUP($V48,Data!$A$6:$A$1806,Data!$C$6:$C$1806) -> 471 | Y48: =LOOKUP($V48,Data!$A$6:$A$1806,Data!$D$6:$D$1806) -> 0 | Z48: =IF($Z$1="+",LOOKUP($V48,Data!$A$6:$A$1806,Data!$E$6:$E$1806)*-1,LOOKUP($V48,Data!$A$6:$A$1806,Data!$E$6:$E$1806)) -> 0 | AA48: =LOOKUP($V48,Data!$A$6:$A$1806,Data!$F$6:$F$1806) -> 0 | AC48: =LOOKUP($V48,Data!$A$6:$A$1806,Data!$H$6:$H$1806) -> 0 | AD48: =LOOKUP($V48,Data!$A$6:$A$1806,Data!$I$6:$I$1806) -> 0 | AE48: =IF(LOOKUP($V48,Data!$A$6:$A$1806,Data!$J$6:$J$1806)>0,(LOOKUP($V48,Data!$A$6:$A$1806,Data!$J$6:$J$1806)*-1),LOOKUP($V48,Data!$A$6:$A$1806,Data!$J$6:$J$1806)) -> -653 | AF48: =LOOKUP($V48,Data!$A$6:$A$1806,Data!$K$6:$K$1806) -> 30142.79102 | AG48: 78.11767578 | AH48: T-62 sec | AI48: 40679.33722 | AX48: 0.01196289062
A49: T-60 sec | B49: 40679.33725 | C49: =LOOKUP(B49,Data!$A$6:$A$1806,Data!B$6:B$1806) -> 59.98739624 | D49: =LOOKUP(B49,Data!$A$6:$A$1806,Data!C$6:C$1806) -> 471 | G49: 19590 | H49: 82.30255127 | I49: 82.50556256 | L49: =(D$78-D$49-I$78+I$49)/29 -> 2.946882253 | M49: =M50-L49-(I50-I49) -> 471 | U49: T-60 sec | V49: 40679.33725 | W49: =LOOKUP($V49,Data!$A$6:$A$1806,Data!$B$6:$B$1806) -> 59.98739624 | X49: =LOOKUP($V49,Data!$A$6:$A$1806,Data!$C$6:$C$1806) -> 471 | Y49: =LOOKUP($V49,Data!$A$6:$A$1806,Data!$D$6:$D$1806) -> 0 | Z49: =IF($Z$1="+",LOOKUP($V49,Data!$A$6:$A$1806,Data!$E$6:$E$1806)*-1,LOOKUP($V49,Data!$A$6:$A$1806,Data!$E$6:$E$1806)) -> 0 | AA49: =LOOKUP($V49,Data!$A$6:$A$1806,Data!$F$6:$F$1806) -> 0 | AC49: =LOOKUP($V49,Data!$A$6:$A$1806,Data!$H$6:$H$1806) -> 0 | AD49: =LOOKUP($V49,Data!$A$6:$A$1806,Data!$I$6:$I$1806) -> 0 | AE49: =IF(LOOKUP($V49,Data!$A$6:$A$1806,Data!$J$6:$J$1806)>0,(LOOKUP($V49,Data!$A$6:$A$1806,Data!$J$6:$J$1806)*-1),LOOKUP($V49,Data!$A$6:$A$1806,Data!$J$6:$J$1806)) -> -653 | AF49: =LOOKUP($V49,Data!$A$6:$A$1806,Data!$K$6:$K$1806) -> 30142.79102 | AG49: 82.30255127 | AH49: T-60 sec | AI49: 40679.33725 | AX49: 0.01260375977
A50: T-58 sec | B50: 40679.33727 | C50: =LOOKUP(B50,Data!$A$6:$A$1806,Data!B$6:B$1806) -> 59.9861145 | D50: =LOOKUP(B50,Data!$A$6:$A$1806,Data!C$6:C$1806) -> 471 | G50: 19590 | H50: 90.67230225 | I50: 85.36392145 | L50: 2.946882253 | M50: =M51-L50-(I51-I50) -> 476.8052411 | U50: T-58 sec | V50: 40679.33727 | W50: =LOOKUP($V50,Data!$A$6:$A$1806,Data!$B$6:$B$1806) -> 59.9861145 | X50: =LOOKUP($V50,Data!$A$6:$A$1806,Data!$C$6:$C$1806) -> 471 | Y50: =LOOKUP($V50,Data!$A$6:$A$1806,Data!$D$6:$D$1806) -> 0 | Z50: =IF($Z$1="+",LOOKUP($V50,Data!$A$6:$A$1806,Data!$E$6:$E$1806)*-1,LOOKUP($V50,Data!$A$6:$A$1806,Data!$E$6:$E$1806)) -> 0 | AA50: =LOOKUP($V50,Data!$A$6:$A$1806,Data!$F$6:$F$1806) -> 0 | AC50: =LOOKUP($V50,Data!$A$6:$A$1806,Data!$H$6:$H$1806) -> 0 | AD50: =LOOKUP($V50,Data!$A$6:$A$1806,Data!$I$6:$I$1806) -> 0 | AE50: =IF(LOOKUP($V50,Data!$A$6:$A$1806,Data!$J$6:$J$1806)>0,(LOOKUP($V50,Data!$A$6:$A$1806,Data!$J$6:$J$1806)*-1),LOOKUP($V50,Data!$A$6:$A$1806,Data!$J$6:$J$1806)) -> -653 | AF50: =LOOKUP($V50,Data!$A$6:$A$1806,Data!$K$6:$K$1806) -> 30142.79102 | AG50: 90.67230225 | AH50: T-58 sec | AI50: 40679.33727 | AX50: 0.01388549805
A51: T-56 sec | B51: 40679.33729 | C51: =LOOKUP(B51,Data!$A$6:$A$1806,Data!B$6:B$1806) -> 59.98480225 | D51: =LOOKUP(B51,Data!$A$6:$A$1806,Data!C$6:C$1806) -> 471 | G51: 19590 | H51: 99.24133301 | I51: 90.22101549 | L51: 2.946882253 | M51: 484.6092174 | U51: T-56 sec | V51: 40679.33729 | W51: =LOOKUP($V51,Data!$A$6:$A$1806,Data!$B$6:$B$1806) -> 59.98480225 | X51: =LOOKUP($V51,Data!$A$6:$A$1806,Data!$C$6:$C$1806) -> 471 | Y51: =LOOKUP($V51,Data!$A$6:$A$1806,Data!$D$6:$D$1806) -> 0 | Z51: =IF($Z$1="+",LOOKUP($V51,Data!$A$6:$A$1806,Data!$E$6:$E$1806)*-1,LOOKUP($V51,Data!$A$6:$A$1806,Data!$E$6:$E$1806)) -> 0 | AA51: =LOOKUP($V51,Data!$A$6:$A$1806,Data!$F$6:$F$1806) -> 0 | AC51: =LOOKUP($V51,Data!$A$6:$A$1806,Data!$H$6:$H$1806) -> 0 | AD51: =LOOKUP($V51,Data!$A$6:$A$1806,Data!$I$6:$I$1806) -> 0 | AE51: =IF(LOOKUP($V51,Data!$A$6:$A$1806,Data!$J$6:$J$1806)>0,(LOOKUP($V51,Data!$A$6:$A$1806,Data!$J$6:$J$1806)*-1),LOOKUP($V51,Data!$A$6:$A$1806,Data!$J$6:$J$1806)) -> -653 | AF51: =LOOKUP($V51,Data!$A$6:$A$1806,Data!$K$6:$K$1806) -> 30142.79102 | AG51: 99.24133301 | AH51: T-56 sec | AI51: 40679.33729 | AX51: 0.01519775391
A52: T-54 sec | B52: 40679.33731 | C52: =LOOKUP(B52,Data!$A$6:$A$1806,Data!B$6:B$1806) -> 59.98352051 | D52: =LOOKUP(B52,Data!$A$6:$A$1806,Data!C$6:C$1806) -> 471 | G52: 19590 | H52: 107.611084 | I52: 96.30753947 | L52: 2.946882253 | M52: 493.6426237 | U52: T-54 sec | V52: 40679.33731 | W52: =LOOKUP($V52,Data!$A$6:$A$1806,Data!$B$6:$B$1806) -> 59.98352051 | X52: =LOOKUP($V52,Data!$A$6:$A$1806,Data!$C$6:$C$1806) -> 471 | Y52: =LOOKUP($V52,Data!$A$6:$A$1806,Data!$D$6:$D$1806) -> 0 | Z52: =IF($Z$1="+",LOOKUP($V52,Data!$A$6:$A$1806,Data!$E$6:$E$1806)*-1,LOOKUP($V52,Data!$A$6:$A$1806,Data!$E$6:$E$1806)) -> 0 | AA52: =LOOKUP($V52,Data!$A$6:$A$1806,Data!$F$6:$F$1806) -> 0 | AC52: =LOOKUP($V52,Data!$A$6:$A$1806,Data!$H$6:$H$1806) -> 0 | AD52: =LOOKUP($V52,Data!$A$6:$A$1806,Data!$I$6:$I$1806) -> 0 | AE52: =IF(LOOKUP($V52,Data!$A$6:$A$1806,Data!$J$6:$J$1806)>0,(LOOKUP($V52,Data!$A$6:$A$1806,Data!$J$6:$J$1806)*-1),LOOKUP($V52,Data!$A$6:$A$1806,Data!$J$6:$J$1806)) -> -653 | AF52: =LOOKUP($V52,Data!$A$6:$A$1806,Data!$K$6:$K$1806) -> 30154.66602 | AG52: 107.611084 | AH52: T-54 sec | AI52: 40679.33731 | AX52: 0.01647949219
A53: T-52 sec | B53: 40679.33734 | C53: =LOOKUP(B53,Data!$A$6:$A$1806,Data!B$6:B$1806) -> 59.98318481 | D53: =LOOKUP(B53,Data!$A$6:$A$1806,Data!C$6:C$1806) -> 471 | G53: 19590 | H53: 109.8031616 | I53: 101.0310072 | L53: 2.946882253 | M53: 501.3129737 | U53: T-52 sec | V53: 40679.33734 | W53: =LOOKUP($V53,Data!$A$6:$A$1806,Data!$B$6:$B$1806) -> 59.98318481 | X53: =LOOKUP($V53,Data!$A$6:$A$1806,Data!$C$6:$C$1806) -> 471 | Y53: =LOOKUP($V53,Data!$A$6:$A$1806,Data!$D$6:$D$1806) -> 0 | Z53: =IF($Z$1="+",LOOKUP($V53,Data!$A$6:$A$1806,Data!$E$6:$E$1806)*-1,LOOKUP($V53,Data!$A$6:$A$1806,Data!$E$6:$E$1806)) -> 0 | AA53: =LOOKUP($V53,Data!$A$6:$A$1806,Data!$F$6:$F$1806) -> 0 | AC53: =LOOKUP($V53,Data!$A$6:$A$1806,Data!$H$6:$H$1806) -> 0 | AD53: =LOOKUP($V53,Data!$A$6:$A$1806,Data!$I$6:$I$1806) -> 0 | AE53: =IF(LOOKUP($V53,Data!$A$6:$A$1806,Data!$J$6:$J$1806)>0,(LOOKUP($V53,Data!$A$6:$A$1806,Data!$J$6:$J$1806)*-1),LOOKUP($V53,Data!$A$6:$A$1806,Data!$J$6:$J$1806)) -> -653 | AF53: =LOOKUP($V53,Data!$A$6:$A$1806,Data!$K$6:$K$1806) -> 30154.66602 | AG53: 109.8031616 | AH53: T-52 sec | AI53: 40679.33734 | AX53: 0.01681518555
A54: T-50 sec | B54: 40679.33736 | C54: =LOOKUP(B54,Data!$A$6:$A$1806,Data!B$6:B$1806) -> 59.98352051 | D54: =LOOKUP(B54,Data!$A$6:$A$1806,Data!C$6:C$1806) -> 471 | G54: 19590 | H54: 107.611084 | I54: 103.3340341 | L54: 2.946882253 | M54: 506.5628828 | U54: T-50 sec | V54: 40679.33736 | W54: =LOOKUP($V54,Data!$A$6:$A$1806,Data!$B$6:$B$1806) -> 59.98352051 | X54: =LOOKUP($V54,Data!$A$6:$A$1806,Data!$C$6:$C$1806) -> 471 | Y54: =LOOKUP($V54,Data!$A$6:$A$1806,Data!$D$6:$D$1806) -> 0 | Z54: =IF($Z$1="+",LOOKUP($V54,Data!$A$6:$A$1806,Data!$E$6:$E$1806)*-1,LOOKUP($V54,Data!$A$6:$A$1806,Data!$E$6:$E$1806)) -> 0 | AA54: =LOOKUP($V54,Data!$A$6:$A$1806,Data!$F$6:$F$1806) -> 0 | AC54: =LOOKUP($V54,Data!$A$6:$A$1806,Data!$H$6:$H$1806) -> 0 | AD54: =LOOKUP($V54,Data!$A$6:$A$1806,Data!$I$6:$I$1806) -> 0 | AE54: =IF(LOOKUP($V54,Data!$A$6:$A$1806,Data!$J$6:$J$1806)>0,(LOOKUP($V54,Data!$A$6:$A$1806,Data!$J$6:$J$1806)*-1),LOOKUP($V54,Data!$A$6:$A$1806,Data!$J$6:$J$1806)) -> -653 | AF54: =LOOKUP($V54,Data!$A$6:$A$1806,Data!$K$6:$K$1806) -> 30154.66602 | AG54: 107.611084 | AH54: T-50 sec | AI54: 40679.33736 | AX54: 0.01647949219
A55: T-48 sec | B55: 40679.33738 | C55: =LOOKUP(B55,Data!$A$6:$A$1806,Data!B$6:B$1806) -> 59.98416138 | D55: =LOOKUP(B55,Data!$A$6:$A$1806,Data!C$6:C$1806) -> 471.3000183 | G55: 19590 | H55: 103.4262085 | I55: 103.3662951 | L55: 2.946882253 | M55: 509.5420261 | U55: T-48 sec | V55: 40679.33738 | W55: =LOOKUP($V55,Data!$A$6:$A$1806,Data!$B$6:$B$1806) -> 59.98416138 | X55: =LOOKUP($V55,Data!$A$6:$A$1806,Data!$C$6:$C$1806) -> 471.3000183 | Y55: =LOOKUP($V55,Data!$A$6:$A$1806,Data!$D$6:$D$1806) -> 0 | Z55: =IF($Z$1="+",LOOKUP($V55,Data!$A$6:$A$1806,Data!$E$6:$E$1806)*-1,LOOKUP($V55,Data!$A$6:$A$1806,Data!$E$6:$E$1806)) -> 0 | AA55: =LOOKUP($V55,Data!$A$6:$A$1806,Data!$F$6:$F$1806) -> 0 | AC55: =LOOKUP($V55,Data!$A$6:$A$1806,Data!$H$6:$H$1806) -> 0 | AD55: =LOOKUP($V55,Data!$A$6:$A$1806,Data!$I$6:$I$1806) -> 0 | AE55: =IF(LOOKUP($V55,Data!$A$6:$A$1806,Data!$J$6:$J$1806)>0,(LOOKUP($V55,Data!$A$6:$A$1806,Data!$J$6:$J$1806)*-1),LOOKUP($V55,Data!$A$6:$A$1806,Data!$J$6:$J$1806)) -> -653 | AF55: =LOOKUP($V55,Data!$A$6:$A$1806,Data!$K$6:$K$1806) -> 30150.34766 | AG55: 103.4262085 | AH55: T-48 sec | AI55: 40679.33738 | AX55: 0.01583862305
A56: T-46 sec | B56: 40679.33741 | C56: =LOOKUP(B56,Data!$A$6:$A$1806,Data!B$6:B$1806) -> 59.98513794 | D56: =LOOKUP(B56,Data!$A$6:$A$1806,Data!C$6:C$1806) -> 471.3000183 | G56: 19590 | H56: 97.04925537 | I56: 101.1553312 | L56: 2.946882253 | M56: 510.2779444 | U56: T-46 sec | V56: 40679.33741 | W56: =LOOKUP($V56,Data!$A$6:$A$1806,Data!$B$6:$B$1806) -> 59.98513794 | X56: =LOOKUP($V56,Data!$A$6:$A$1806,Data!$C$6:$C$1806) -> 471.3000183 | Y56: =LOOKUP($V56,Data!$A$6:$A$1806,Data!$D$6:$D$1806) -> 0 | Z56: =IF($Z$1="+",LOOKUP($V56,Data!$A$6:$A$1806,Data!$E$6:$E$1806)*-1,LOOKUP($V56,Data!$A$6:$A$1806,Data!$E$6:$E$1806)) -> 0 | AA56: =LOOKUP($V56,Data!$A$6:$A$1806,Data!$F$6:$F$1806) -> 0 | AC56: =LOOKUP($V56,Data!$A$6:$A$1806,Data!$H$6:$H$1806) -> 0 | AD56: =LOOKUP($V56,Data!$A$6:$A$1806,Data!$I$6:$I$1806) -> 0 | AE56: =IF(LOOKUP($V56,Data!$A$6:$A$1806,Data!$J$6:$J$1806)>0,(LOOKUP($V56,Data!$A$6:$A$1806,Data!$J$6:$J$1806)*-1),LOOKUP($V56,Data!$A$6:$A$1806,Data!$J$6:$J$1806)) -> -653 | AF56: =LOOKUP($V56,Data!$A$6:$A$1806,Data!$K$6:$K$1806) -> 30150.34766 | AG56: 97.04925537 | AH56: T-46 sec | AI56: 40679.33741 | AX56: 0.01486206055
A57: T-44 sec | B57: 40679.33743 | C57: =LOOKUP(B57,Data!$A$6:$A$1806,Data!B$6:B$1806) -> 59.98547363 | D57: =LOOKUP(B57,Data!$A$6:$A$1806,Data!C$6:C$1806) -> 471.3000183 | G57: 19590 | H57: 94.85717773 | I57: 98.9509775 | L57: 2.946882253 | M57: 511.020473 | U57: T-44 sec | V57: 40679.33743 | W57: =LOOKUP($V57,Data!$A$6:$A$1806,Data!$B$6:$B$1806) -> 59.98547363 | X57: =LOOKUP($V57,Data!$A$6:$A$1806,Data!$C$6:$C$1806) -> 471.3000183 | Y57: =LOOKUP($V57,Data!$A$6:$A$1806,Data!$D$6:$D$1806) -> 0 | Z57: =IF($Z$1="+",LOOKUP($V57,Data!$A$6:$A$1806,Data!$E$6:$E$1806)*-1,LOOKUP($V57,Data!$A$6:$A$1806,Data!$E$6:$E$1806)) -> 0 | AA57: =LOOKUP($V57,Data!$A$6:$A$1806,Data!$F$6:$F$1806) -> 0 | AC57: =LOOKUP($V57,Data!$A$6:$A$1806,Data!$H$6:$H$1806) -> 0 | AD57: =LOOKUP($V57,Data!$A$6:$A$1806,Data!$I$6:$I$1806) -> 0 | AE57: =IF(LOOKUP($V57,Data!$A$6:$A$1806,Data!$J$6:$J$1806)>0,(LOOKUP($V57,Data!$A$6:$A$1806,Data!$J$6:$J$1806)*-1),LOOKUP($V57,Data!$A$6:$A$1806,Data!$J$6:$J$1806)) -> -653 | AF57: =LOOKUP($V57,Data!$A$6:$A$1806,Data!$K$6:$K$1806) -> 30159.63477 | AG57: 94.85717773 | AH57: T-44 sec | AI57: 40679.33743 | AX57: 0.01452636719
A58: T-42 sec | B58: 40679.33745 | C58: =LOOKUP(B58,Data!$A$6:$A$1806,Data!B$6:B$1806) -> 59.98641968 | D58: =LOOKUP(B58,Data!$A$6:$A$1806,Data!C$6:C$1806) -> 471.3000183 | G58: 19590 | H58: 88.67950439 | I58: 95.35596191 | L58: 2.946882253 | M58: 510.3723396 | U58: T-42 sec | V58: 40679.33745 | W58: =LOOKUP($V58,Data!$A$6:$A$1806,Data!$B$6:$B$1806) -> 59.98641968 | X58: =LOOKUP($V58,Data!$A$6:$A$1806,Data!$C$6:$C$1806) -> 471.3000183 | Y58: =LOOKUP($V58,Data!$A$6:$A$1806,Data!$D$6:$D$1806) -> 0 | Z58: =IF($Z$1="+",LOOKUP($V58,Data!$A$6:$A$1806,Data!$E$6:$E$1806)*-1,LOOKUP($V58,Data!$A$6:$A$1806,Data!$E$6:$E$1806)) -> 0 | AA58: =LOOKUP($V58,Data!$A$6:$A$1806,Data!$F$6:$F$1806) -> 0 | AC58: =LOOKUP($V58,Data!$A$6:$A$1806,Data!$H$6:$H$1806) -> 0 | AD58: =LOOKUP($V58,Data!$A$6:$A$1806,Data!$I$6:$I$1806) -> 0 | AE58: =IF(LOOKUP($V58,Data!$A$6:$A$1806,Data!$J$6:$J$1806)>0,(LOOKUP($V58,Data!$A$6:$A$1806,Data!$J$6:$J$1806)*-1),LOOKUP($V58,Data!$A$6:$A$1806,Data!$J$6:$J$1806)) -> -653 | AF58: =LOOKUP($V58,Data!$A$6:$A$1806,Data!$K$6:$K$1806) -> 30159.63477 | AG58: 88.67950439 | AH58: T-42 sec | AI58: 40679.33745 | AX58: 0.01358032227
A59: T-40 sec | B59: 40679.33748 | C59: =LOOKUP(B59,Data!$A$6:$A$1806,Data!B$6:B$1806) -> 59.98675537 | D59: =LOOKUP(B59,Data!$A$6:$A$1806,Data!C$6:C$1806) -> 471.8999939 | G59: 19590 | H59: 86.48742676 | I59: 92.25197461 | L59: 2.946882253 | M59: 510.2152346 | U59: T-40 sec | V59: 40679.33748 | W59: =LOOKUP($V59,Data!$A$6:$A$1806,Data!$B$6:$B$1806) -> 59.98675537 | X59: =LOOKUP($V59,Data!$A$6:$A$1806,Data!$C$6:$C$1806) -> 471.8999939 | Y59: =LOOKUP($V59,Data!$A$6:$A$1806,Data!$D$6:$D$1806) -> 0 | Z59: =IF($Z$1="+",LOOKUP($V59,Data!$A$6:$A$1806,Data!$E$6:$E$1806)*-1,LOOKUP($V59,Data!$A$6:$A$1806,Data!$E$6:$E$1806)) -> 0 | AA59: =LOOKUP($V59,Data!$A$6:$A$1806,Data!$F$6:$F$1806) -> 0 | AC59: =LOOKUP($V59,Data!$A$6:$A$1806,Data!$H$6:$H$1806) -> 0 | AD59: =LOOKUP($V59,Data!$A$6:$A$1806,Data!$I$6:$I$1806) -> 0 | AE59: =IF(LOOKUP($V59,Data!$A$6:$A$1806,Data!$J$6:$J$1806)>0,(LOOKUP($V59,Data!$A$6:$A$1806,Data!$J$6:$J$1806)*-1),LOOKUP($V59,Data!$A$6:$A$1806,Data!$J$6:$J$1806)) -> -653 | AF59: =LOOKUP($V59,Data!$A$6:$A$1806,Data!$K$6:$K$1806) -> 30159.63477 | AG59: 86.48742676 | AH59: T-40 sec | AI59: 40679.33748 | AX59: 0.01324462891
A60: T-38 sec | B60: 40679.3375 | C60: =LOOKUP(B60,Data!$A$6:$A$1806,Data!B$6:B$1806) -> 59.98739624 | D60: =LOOKUP(B60,Data!$A$6:$A$1806,Data!C$6:C$1806) -> 471.8999939 | G60: 19590 | H60: 82.30255127 | I60: 88.76967644 | L60: 2.946882253 | M60: 509.6798187 | U60: T-38 sec | V60: 40679.3375 | W60: =LOOKUP($V60,Data!$A$6:$A$1806,Data!$B$6:$B$1806) -> 59.98739624 | X60: =LOOKUP($V60,Data!$A$6:$A$1806,Data!$C$6:$C$1806) -> 471.8999939 | Y60: =LOOKUP($V60,Data!$A$6:$A$1806,Data!$D$6:$D$1806) -> 0 | Z60: =IF($Z$1="+",LOOKUP($V60,Data!$A$6:$A$1806,Data!$E$6:$E$1806)*-1,LOOKUP($V60,Data!$A$6:$A$1806,Data!$E$6:$E$1806)) -> 0 | AA60: =LOOKUP($V60,Data!$A$6:$A$1806,Data!$F$6:$F$1806) -> 0 | AC60: =LOOKUP($V60,Data!$A$6:$A$1806,Data!$H$6:$H$1806) -> 0 | AD60: =LOOKUP($V60,Data!$A$6:$A$1806,Data!$I$6:$I$1806) -> 0 | AE60: =IF(LOOKUP($V60,Data!$A$6:$A$1806,Data!$J$6:$J$1806)>0,(LOOKUP($V60,Data!$A$6:$A$1806,Data!$J$6:$J$1806)*-1),LOOKUP($V60,Data!$A$6:$A$1806,Data!$J$6:$J$1806)) -> -653 | AF60: =LOOKUP($V60,Data!$A$6:$A$1806,Data!$K$6:$K$1806) -> 30159.63477 | AG60: 82.30255127 | AH60: T-38 sec | AI60: 40679.3375 | AX60: 0.01260375977
A61: T-36 sec | B61: 40679.33752 | C61: =LOOKUP(B61,Data!$A$6:$A$1806,Data!B$6:B$1806) -> 59.98773193 | D61: =LOOKUP(B61,Data!$A$6:$A$1806,Data!C$6:C$1806) -> 471.8999939 | G61: 19590 | H61: 80.11047363 | I61: 85.73895546 | L61: 2.946882253 | M61: 509.5959799 | U61: T-36 sec | V61: 40679.33752 | W61: =LOOKUP($V61,Data!$A$6:$A$1806,Data!$B$6:$B$1806) -> 59.98773193 | X61: =LOOKUP($V61,Data!$A$6:$A$1806,Data!$C$6:$C$1806) -> 471.8999939 | Y61: =LOOKUP($V61,Data!$A$6:$A$1806,Data!$D$6:$D$1806) -> 0 | Z61: =IF($Z$1="+",LOOKUP($V61,Data!$A$6:$A$1806,Data!$E$6:$E$1806)*-1,LOOKUP($V61,Data!$A$6:$A$1806,Data!$E$6:$E$1806)) -> 0 | AA61: =LOOKUP($V61,Data!$A$6:$A$1806,Data!$F$6:$F$1806) -> 0 | AC61: =LOOKUP($V61,Data!$A$6:$A$1806,Data!$H$6:$H$1806) -> 0 | AD61: =LOOKUP($V61,Data!$A$6:$A$1806,Data!$I$6:$I$1806) -> 0 | AE61: =IF(LOOKUP($V61,Data!$A$6:$A$1806,Data!$J$6:$J$1806)>0,(LOOKUP($V61,Data!$A$6:$A$1806,Data!$J$6:$J$1806)*-1),LOOKUP($V61,Data!$A$6:$A$1806,Data!$J$6:$J$1806)) -> -653 | AF61: =LOOKUP($V61,Data!$A$6:$A$1806,Data!$K$6:$K$1806) -> 30151.41602 | AG61: 80.11047363 | AH61: T-36 sec | AI61: 40679.33752 | AX61: 0.01226806641
A62: T-34 sec | B62: 40679.33755 | C62: =LOOKUP(B62,Data!$A$6:$A$1806,Data!B$6:B$1806) -> 59.98901367 | D62: =LOOKUP(B62,Data!$A$6:$A$1806,Data!C$6:C$1806) -> 471.8999939 | G62: 19590 | H62: 71.74072266 | I62: 80.83957398 | L62: 2.946882253 | M62: 507.6434807 | U62: T-34 sec | V62: 40679.33755 | W62: =LOOKUP($V62,Data!$A$6:$A$1806,Data!$B$6:$B$1806) -> 59.98901367 | X62: =LOOKUP($V62,Data!$A$6:$A$1806,Data!$C$6:$C$1806) -> 471.8999939 | Y62: =LOOKUP($V62,Data!$A$6:$A$1806,Data!$D$6:$D$1806) -> 0 | Z62: =IF($Z$1="+",LOOKUP($V62,Data!$A$6:$A$1806,Data!$E$6:$E$1806)*-1,LOOKUP($V62,Data!$A$6:$A$1806,Data!$E$6:$E$1806)) -> 0 | AA62: =LOOKUP($V62,Data!$A$6:$A$1806,Data!$F$6:$F$1806) -> 0 | AC62: =LOOKUP($V62,Data!$A$6:$A$1806,Data!$H$6:$H$1806) -> 0 | AD62: =LOOKUP($V62,Data!$A$6:$A$1806,Data!$I$6:$I$1806) -> 0 | AE62: =IF(LOOKUP($V62,Data!$A$6:$A$1806,Data!$J$6:$J$1806)>0,(LOOKUP($V62,Data!$A$6:$A$1806,Data!$J$6:$J$1806)*-1),LOOKUP($V62,Data!$A$6:$A$1806,Data!$J$6:$J$1806)) -> -653 | AF62: =LOOKUP($V62,Data!$A$6:$A$1806,Data!$K$6:$K$1806) -> 30151.41602 | AG62: 71.74072266 | AH62: T-34 sec | AI62: 40679.33755 | AX62: 0.01098632812
A63: T-32 sec | B63: 40679.33757 | C63: =LOOKUP(B63,Data!$A$6:$A$1806,Data!B$6:B$1806) -> 59.98901367 | D63: =LOOKUP(B63,Data!$A$6:$A$1806,Data!C$6:C$1806) -> 471.8999939 | G63: 19590 | H63: 71.74072266 | I63: 77.65497601 | L63: 2.946882253 | M63: 507.405765 | U63: T-32 sec | V63: 40679.33757 | W63: =LOOKUP($V63,Data!$A$6:$A$1806,Data!$B$6:$B$1806) -> 59.98901367 | X63: =LOOKUP($V63,Data!$A$6:$A$1806,Data!$C$6:$C$1806) -> 471.8999939 | Y63: =LOOKUP($V63,Data!$A$6:$A$1806,Data!$D$6:$D$1806) -> 0 | Z63: =IF($Z$1="+",LOOKUP($V63,Data!$A$6:$A$1806,Data!$E$6:$E$1806)*-1,LOOKUP($V63,Data!$A$6:$A$1806,Data!$E$6:$E$1806)) -> 0 | AA63: =LOOKUP($V63,Data!$A$6:$A$1806,Data!$F$6:$F$1806) -> 0 | AC63: =LOOKUP($V63,Data!$A$6:$A$1806,Data!$H$6:$H$1806) -> 0 | AD63: =LOOKUP($V63,Data!$A$6:$A$1806,Data!$I$6:$I$1806) -> 0 | AE63: =IF(LOOKUP($V63,Data!$A$6:$A$1806,Data!$J$6:$J$1806)>0,(LOOKUP($V63,Data!$A$6:$A$1806,Data!$J$6:$J$1806)*-1),LOOKUP($V63,Data!$A$6:$A$1806,Data!$J$6:$J$1806)) -> -653 | AF63: =LOOKUP($V63,Data!$A$6:$A$1806,Data!$K$6:$K$1806) -> 30156.16211 | AG63: 71.74072266 | AH63: T-32 sec | AI63: 40679.33757 | AX63: 0.01098632812
A64: T-30 sec | B64: 40679.33759 | C64: =LOOKUP(B64,Data!$A$6:$A$1806,Data!B$6:B$1806) -> 59.98803711 | D64: =LOOKUP(B64,Data!$A$6:$A$1806,Data!C$6:C$1806) -> 471.3999939 | G64: 19590 | H64: 78.11767578 | I64: 77.81692093 | L64: 2.946882253 | M64: 510.5145922 | U64: T-30 sec | V64: 40679.33759 | W64: =LOOKUP($V64,Data!$A$6:$A$1806,Data!$B$6:$B$1806) -> 59.98803711 | X64: =LOOKUP($V64,Data!$A$6:$A$1806,Data!$C$6:$C$1806) -> 471.3999939 | Y64: =LOOKUP($V64,Data!$A$6:$A$1806,Data!$D$6:$D$1806) -> 0 | Z64: =IF($Z$1="+",LOOKUP($V64,Data!$A$6:$A$1806,Data!$E$6:$E$1806)*-1,LOOKUP($V64,Data!$A$6:$A$1806,Data!$E$6:$E$1806)) -> 0 | AA64: =LOOKUP($V64,Data!$A$6:$A$1806,Data!$F$6:$F$1806) -> 0 | AC64: =LOOKUP($V64,Data!$A$6:$A$1806,Data!$H$6:$H$1806) -> 0 | AD64: =LOOKUP($V64,Data!$A$6:$A$1806,Data!$I$6:$I$1806) -> 0 | AE64: =IF(LOOKUP($V64,Data!$A$6:$A$1806,Data!$J$6:$J$1806)>0,(LOOKUP($V64,Data!$A$6:$A$1806,Data!$J$6:$J$1806)*-1),LOOKUP($V64,Data!$A$6:$A$1806,Data!$J$6:$J$1806)) -> -653 | AF64: =LOOKUP($V64,Data!$A$6:$A$1806,Data!$K$6:$K$1806) -> 30156.16211 | AG64: 78.11767578 | AH64: T-30 sec | AI64: 40679.33759 | AX64: 0.01196289062
A65: T-28 sec | B65: 40679.33762 | C65: =LOOKUP(B65,Data!$A$6:$A$1806,Data!B$6:B$1806) -> 59.98641968 | D65: =LOOKUP(B65,Data!$A$6:$A$1806,Data!C$6:C$1806) -> 471.3999939 | G65: 19590 | H65: 88.67950439 | I65: 81.61882514 | L65: 2.946882253 | M65: 517.2633786 | U65: T-28 sec | V65: 40679.33762 | W65: =LOOKUP($V65,Data!$A$6:$A$1806,Data!$B$6:$B$1806) -> 59.98641968 | X65: =LOOKUP($V65,Data!$A$6:$A$1806,Data!$C$6:$C$1806) -> 471.3999939 | Y65: =LOOKUP($V65,Data!$A$6:$A$1806,Data!$D$6:$D$1806) -> 0 | Z65: =IF($Z$1="+",LOOKUP($V65,Data!$A$6:$A$1806,Data!$E$6:$E$1806)*-1,LOOKUP($V65,Data!$A$6:$A$1806,Data!$E$6:$E$1806)) -> 0 | AA65: =LOOKUP($V65,Data!$A$6:$A$1806,Data!$F$6:$F$1806) -> 0 | AC65: =LOOKUP($V65,Data!$A$6:$A$1806,Data!$H$6:$H$1806) -> 0 | AD65: =LOOKUP($V65,Data!$A$6:$A$1806,Data!$I$6:$I$1806) -> 0 | AE65: =IF(LOOKUP($V65,Data!$A$6:$A$1806,Data!$J$6:$J$1806)>0,(LOOKUP($V65,Data!$A$6:$A$1806,Data!$J$6:$J$1806)*-1),LOOKUP($V65,Data!$A$6:$A$1806,Data!$J$6:$J$1806)) -> -653 | AF65: =LOOKUP($V65,Data!$A$6:$A$1806,Data!$K$6:$K$1806) -> 30156.16211 | AG65: 88.67950439 | AH65: T-28 sec | AI65: 40679.33762 | AX65: 0.01358032227
A66: T-26 sec | B66: 40679.33764 | C66: =LOOKUP(B66,Data!$A$6:$A$1806,Data!B$6:B$1806) -> 59.98547363 | D66: =LOOKUP(B66,Data!$A$6:$A$1806,Data!C$6:C$1806) -> 471.3999939 | G66: 19590 | H66: 94.85717773 | I66: 86.25224855 | L66: 2.946882253 | M66: 524.8436843 | U66: T-26 sec | V66: 40679.33764 | W66: =LOOKUP($V66,Data!$A$6:$A$1806,Data!$B$6:$B$1806) -> 59.98547363 | X66: =LOOKUP($V66,Data!$A$6:$A$1806,Data!$C$6:$C$1806) -> 471.3999939 | Y66: =LOOKUP($V66,Data!$A$6:$A$1806,Data!$D$6:$D$1806) -> 0 | Z66: =IF($Z$1="+",LOOKUP($V66,Data!$A$6:$A$1806,Data!$E$6:$E$1806)*-1,LOOKUP($V66,Data!$A$6:$A$1806,Data!$E$6:$E$1806)) -> 0 | AA66: =LOOKUP($V66,Data!$A$6:$A$1806,Data!$F$6:$F$1806) -> 0 | AC66: =LOOKUP($V66,Data!$A$6:$A$1806,Data!$H$6:$H$1806) -> 0 | AD66: =LOOKUP($V66,Data!$A$6:$A$1806,Data!$I$6:$I$1806) -> 0 | AE66: =IF(LOOKUP($V66,Data!$A$6:$A$1806,Data!$J$6:$J$1806)>0,(LOOKUP($V66,Data!$A$6:$A$1806,Data!$J$6:$J$1806)*-1),LOOKUP($V66,Data!$A$6:$A$1806,Data!$J$6:$J$1806)) -> -653 | AF66: =LOOKUP($V66,Data!$A$6:$A$1806,Data!$K$6:$K$1806) -> 30156.16211 | AG66: 94.85717773 | AH66: T-26 sec | AI66: 40679.33764 | AX66: 0.01452636719
A67: T-24 sec | B67: 40679.33766 | C67: =LOOKUP(B67,Data!$A$6:$A$1806,Data!B$6:B$1806) -> 59.98641968 | D67: =LOOKUP(B67,Data!$A$6:$A$1806,Data!C$6:C$1806) -> 471.3999939 | G67: 19590 | H67: 88.67950439 | I67: 87.1017881 | L67: 2.946882253 | M67: 528.6401061 | U67: T-24 sec | V67: 40679.33766 | W67: =LOOKUP($V67,Data!$A$6:$A$1806,Data!$B$6:$B$1806) -> 59.98641968 | X67: =LOOKUP($V67,Data!$A$6:$A$1806,Data!$C$6:$C$1806) -> 471.3999939 | Y67: =LOOKUP($V67,Data!$A$6:$A$1806,Data!$D$6:$D$1806) -> 0 | Z67: =IF($Z$1="+",LOOKUP($V67,Data!$A$6:$A$1806,Data!$E$6:$E$1806)*-1,LOOKUP($V67,Data!$A$6:$A$1806,Data!$E$6:$E$1806)) -> 0 | AA67: =LOOKUP($V67,Data!$A$6:$A$1806,Data!$F$6:$F$1806) -> 0 | AC67: =LOOKUP($V67,Data!$A$6:$A$1806,Data!$H$6:$H$1806) -> 0 | AD67: =LOOKUP($V67,Data!$A$6:$A$1806,Data!$I$6:$I$1806) -> 0 | AE67: =IF(LOOKUP($V67,Data!$A$6:$A$1806,Data!$J$6:$J$1806)>0,(LOOKUP($V67,Data!$A$6:$A$1806,Data!$J$6:$J$1806)*-1),LOOKUP($V67,Data!$A$6:$A$1806,Data!$J$6:$J$1806)) -> -653 | AF67: =LOOKUP($V67,Data!$A$6:$A$1806,Data!$K$6:$K$1806) -> 30164.14648 | AG67: 88.67950439 | AH67: T-24 sec | AI67: 40679.33766 | AX67: 0.01358032227
A68: T-22 sec | B68: 40679.33769 | C68: =LOOKUP(B68,Data!$A$6:$A$1806,Data!B$6:B$1806) -> 59.98934937 | D68: =LOOKUP(B68,Data!$A$6:$A$1806,Data!C$6:C$1806) -> 471.3999939 | G68: 19590 | H68: 69.54864502 | I68: 80.95818802 | L68: 2.946882253 | M68: 525.4433883 | U68: T-22 sec | V68: 40679.33769 | W68: =LOOKUP($V68,Data!$A$6:$A$1806,Data!$B$6:$B$1806) -> 59.98934937 | X68: =LOOKUP($V68,Data!$A$6:$A$1806,Data!$C$6:$C$1806) -> 471.3999939 | Y68: =LOOKUP($V68,Data!$A$6:$A$1806,Data!$D$6:$D$1806) -> 0 | Z68: =IF($Z$1="+",LOOKUP($V68,Data!$A$6:$A$1806,Data!$E$6:$E$1806)*-1,LOOKUP($V68,Data!$A$6:$A$1806,Data!$E$6:$E$1806)) -> 0 | AA68: =LOOKUP($V68,Data!$A$6:$A$1806,Data!$F$6:$F$1806) -> 0 | AC68: =LOOKUP($V68,Data!$A$6:$A$1806,Data!$H$6:$H$1806) -> 0 | AD68: =LOOKUP($V68,Data!$A$6:$A$1806,Data!$I$6:$I$1806) -> 0 | AE68: =IF(LOOKUP($V68,Data!$A$6:$A$1806,Data!$J$6:$J$1806)>0,(LOOKUP($V68,Data!$A$6:$A$1806,Data!$J$6:$J$1806)*-1),LOOKUP($V68,Data!$A$6:$A$1806,Data!$J$6:$J$1806)) -> -653 | AF68: =LOOKUP($V68,Data!$A$6:$A$1806,Data!$K$6:$K$1806) -> 30164.14648 | AG68: 69.54864502 | AH68: T-22 sec | AI68: 40679.33769 | AX68: 0.01065063477
A69: T-20 sec | B69: 40679.33771 | C69: =LOOKUP(B69,Data!$A$6:$A$1806,Data!B$6:B$1806) -> 59.99224854 | D69: =LOOKUP(B69,Data!$A$6:$A$1806,Data!C$6:C$1806) -> 471.3999939 | G69: 19590 | H69: 50.61706543 | I69: 70.33879511 | L69: 2.946882253 | M69: 517.7708776 | U69: T-20 sec | V69: 40679.33771 | W69: =LOOKUP($V69,Data!$A$6:$A$1806,Data!$B$6:$B$1806) -> 59.99224854 | X69: =LOOKUP($V69,Data!$A$6:$A$1806,Data!$C$6:$C$1806) -> 471.3999939 | Y69: =LOOKUP($V69,Data!$A$6:$A$1806,Data!$D$6:$D$1806) -> 0 | Z69: =IF($Z$1="+",LOOKUP($V69,Data!$A$6:$A$1806,Data!$E$6:$E$1806)*-1,LOOKUP($V69,Data!$A$6:$A$1806,Data!$E$6:$E$1806)) -> 0 | AA69: =LOOKUP($V69,Data!$A$6:$A$1806,Data!$F$6:$F$1806) -> 0 | AC69: =LOOKUP($V69,Data!$A$6:$A$1806,Data!$H$6:$H$1806) -> 0 | AD69: =LOOKUP($V69,Data!$A$6:$A$1806,Data!$I$6:$I$1806) -> 0 | AE69: =IF(LOOKUP($V69,Data!$A$6:$A$1806,Data!$J$6:$J$1806)>0,(LOOKUP($V69,Data!$A$6:$A$1806,Data!$J$6:$J$1806)*-1),LOOKUP($V69,Data!$A$6:$A$1806,Data!$J$6:$J$1806)) -> -653 | AF69: =LOOKUP($V69,Data!$A$6:$A$1806,Data!$K$6:$K$1806) -> 30164.14648 | AG69: 50.61706543 | AH69: T-20 sec | AI69: 40679.33771 | AX69: 0.007751464844
A70: T-18 sec | B70: 40679.33773 | C70: =LOOKUP(B70,Data!$A$6:$A$1806,Data!B$6:B$1806) -> 59.99514771 | D70: =LOOKUP(B70,Data!$A$6:$A$1806,Data!C$6:C$1806) -> 471.3999939 | G70: 19590 | H70: 31.68548584 | I70: 56.81013687 | L70: 2.946882253 | M70: 507.1891016 | U70: T-18 sec | V70: 40679.33773 | W70: =LOOKUP($V70,Data!$A$6:$A$1806,Data!$B$6:$B$1806) -> 59.99514771 | X70: =LOOKUP($V70,Data!$A$6:$A$1806,Data!$C$6:$C$1806) -> 471.3999939 | Y70: =LOOKUP($V70,Data!$A$6:$A$1806,Data!$D$6:$D$1806) -> 0 | Z70: =IF($Z$1="+",LOOKUP($V70,Data!$A$6:$A$1806,Data!$E$6:$E$1806)*-1,LOOKUP($V70,Data!$A$6:$A$1806,Data!$E$6:$E$1806)) -> 0 | AA70: =LOOKUP($V70,Data!$A$6:$A$1806,Data!$F$6:$F$1806) -> 0 | AC70: =LOOKUP($V70,Data!$A$6:$A$1806,Data!$H$6:$H$1806) -> 0 | AD70: =LOOKUP($V70,Data!$A$6:$A$1806,Data!$I$6:$I$1806) -> 0 | AE70: =IF(LOOKUP($V70,Data!$A$6:$A$1806,Data!$J$6:$J$1806)>0,(LOOKUP($V70,Data!$A$6:$A$1806,Data!$J$6:$J$1806)*-1),LOOKUP($V70,Data!$A$6:$A$1806,Data!$J$6:$J$1806)) -> -653 | AF70: =LOOKUP($V70,Data!$A$6:$A$1806,Data!$K$6:$K$1806) -> 30164.14648 | AG70: 31.68548584 | AH70: T-18 sec | AI70: 40679.33773 | AX70: 0.004852294922
A71: T-16 sec | B71: 40679.33775 | C71: =LOOKUP(B71,Data!$A$6:$A$1806,Data!B$6:B$1806) -> 59.99578857 | D71: =LOOKUP(B71,Data!$A$6:$A$1806,Data!C$6:C$1806) -> 471.3999939 | E71: =AVERAGE($C$71:$C$78) -> 59.99862671 | F71: =AVERAGE($D$71:$D$78) -> 471.0874939 | G71: 19590 | H71: 27.50061035 | I71: 46.55180259 | L71: 2.946882253 | M71: 499.8776496 | U71: T-16 sec | V71: 40679.33775 | W71: =LOOKUP($V71,Data!$A$6:$A$1806,Data!$B$6:$B$1806) -> 59.99578857 | X71: =LOOKUP($V71,Data!$A$6:$A$1806,Data!$C$6:$C$1806) -> 471.3999939 | Y71: =LOOKUP($V71,Data!$A$6:$A$1806,Data!$D$6:$D$1806) -> 0 | Z71: =IF($Z$1="+",LOOKUP($V71,Data!$A$6:$A$1806,Data!$E$6:$E$1806)*-1,LOOKUP($V71,Data!$A$6:$A$1806,Data!$E$6:$E$1806)) -> 0 | AA71: =LOOKUP($V71,Data!$A$6:$A$1806,Data!$F$6:$F$1806) -> 0 | AC71: =LOOKUP($V71,Data!$A$6:$A$1806,Data!$H$6:$H$1806) -> 0 | AD71: =LOOKUP($V71,Data!$A$6:$A$1806,Data!$I$6:$I$1806) -> 0 | AE71: =IF(LOOKUP($V71,Data!$A$6:$A$1806,Data!$J$6:$J$1806)>0,(LOOKUP($V71,Data!$A$6:$A$1806,Data!$J$6:$J$1806)*-1),LOOKUP($V71,Data!$A$6:$A$1806,Data!$J$6:$J$1806)) -> -653 | AF71: =LOOKUP($V71,Data!$A$6:$A$1806,Data!$K$6:$K$1806) -> 30203.90625 | AG71: 27.50061035 | AH71: T-16 sec | AI71: 40679.33775 | AJ71: =AVERAGE($W$71:$W$78) -> 59.99862671 | AK71: =AVERAGE($X$71:$X$78) -> 471.0874939 | AL71: =AVERAGE($Y$71:$Y$78) -> 0 | AM71: =AVERAGE($Z$71:$Z$78) -> 0 | AN71: =AVERAGE($AA$71:$AA$78) -> 0 | AP71: =AVERAGE($AC$71:$AC$78) -> 0 | AQ71: =AVERAGE($AD$71:$AD$78) -> 0 | AR71: =AVERAGE($AE$71:$AE$78) -> -653 | AS71: =AVERAGE($AF$71:$AF$78) -> 30202.74219 | AT71: =AVERAGE($AG$71:$AG$78) -> 8.967590332 | AX71: 0.004211425781
A72: T-14 sec | B72: 40679.33778 | C72: =LOOKUP(B72,Data!$A$6:$A$1806,Data!B$6:B$1806) -> 59.99514771 | D72: =LOOKUP(B72,Data!$A$6:$A$1806,Data!C$6:C$1806) -> 471.3999939 | E72: =AVERAGE($C$71:$C$78) -> 59.99862671 | F72: =AVERAGE($D$71:$D$78) -> 471.0874939 | G72: 19590 | H72: 31.68548584 | I72: 41.34859173 | L72: 2.946882253 | M72: 497.621321 | U72: T-14 sec | V72: 40679.33778 | W72: =LOOKUP($V72,Data!$A$6:$A$1806,Data!$B$6:$B$1806) -> 59.99514771 | X72: =LOOKUP($V72,Data!$A$6:$A$1806,Data!$C$6:$C$1806) -> 471.3999939 | Y72: =LOOKUP($V72,Data!$A$6:$A$1806,Data!$D$6:$D$1806) -> 0 | Z72: =IF($Z$1="+",LOOKUP($V72,Data!$A$6:$A$1806,Data!$E$6:$E$1806)*-1,LOOKUP($V72,Data!$A$6:$A$1806,Data!$E$6:$E$1806)) -> 0 | AA72: =LOOKUP($V72,Data!$A$6:$A$1806,Data!$F$6:$F$1806) -> 0 | AC72: =LOOKUP($V72,Data!$A$6:$A$1806,Data!$H$6:$H$1806) -> 0 | AD72: =LOOKUP($V72,Data!$A$6:$A$1806,Data!$I$6:$I$1806) -> 0 | AE72: =IF(LOOKUP($V72,Data!$A$6:$A$1806,Data!$J$6:$J$1806)>0,(LOOKUP($V72,Data!$A$6:$A$1806,Data!$J$6:$J$1806)*-1),LOOKUP($V72,Data!$A$6:$A$1806,Data!$J$6:$J$1806)) -> -653 | AF72: =LOOKUP($V72,Data!$A$6:$A$1806,Data!$K$6:$K$1806) -> 30203.90625 | AG72: 31.68548584 | AH72: T-14 sec | AI72: 40679.33778 | AJ72: =AVERAGE($W$71:$W$78) -> 59.99862671 | AK72: =AVERAGE($X$71:$X$78) -> 471.0874939 | AL72: =AVERAGE($Y$71:$Y$78) -> 0 | AM72: =AVERAGE($Z$71:$Z$78) -> 0 | AN72: =AVERAGE($AA$71:$AA$78) -> 0 | AP72: =AVERAGE($AC$71:$AC$78) -> 0 | AQ72: =AVERAGE($AD$71:$AD$78) -> 0 | AR72: =AVERAGE($AE$71:$AE$78) -> -653 | AS72: =AVERAGE($AF$71:$AF$78) -> 30202.74219 | AT72: =AVERAGE($AG$71:$AG$78) -> 8.967590332 | AX72: 0.004852294922
A73: T-12 sec | B73: 40679.3378 | C73: =LOOKUP(B73,Data!$A$6:$A$1806,Data!B$6:B$1806) -> 59.9954834 | D73: =LOOKUP(B73,Data!$A$6:$A$1806,Data!C$6:C$1806) -> 471.3999939 | E73: 59.99862671 | F73: 471.0874939 | G73: 19590 | H73: 29.4934082 | I73: 37.19927749 | L73: 2.946882253 | M73: 496.418889 | U73: T-12 sec | V73: 40679.3378 | W73: =LOOKUP($V73,Data!$A$6:$A$1806,Data!$B$6:$B$1806) -> 59.9954834 | X73: =LOOKUP($V73,Data!$A$6:$A$1806,Data!$C$6:$C$1806) -> 471.3999939 | Y73: =LOOKUP($V73,Data!$A$6:$A$1806,Data!$D$6:$D$1806) -> 0 | Z73: =IF($Z$1="+",LOOKUP($V73,Data!$A$6:$A$1806,Data!$E$6:$E$1806)*-1,LOOKUP($V73,Data!$A$6:$A$1806,Data!$E$6:$E$1806)) -> 0 | AA73: =LOOKUP($V73,Data!$A$6:$A$1806,Data!$F$6:$F$1806) -> 0 | AC73: =LOOKUP($V73,Data!$A$6:$A$1806,Data!$H$6:$H$1806) -> 0 | AD73: =LOOKUP($V73,Data!$A$6:$A$1806,Data!$I$6:$I$1806) -> 0 | AE73: =IF(LOOKUP($V73,Data!$A$6:$A$1806,Data!$J$6:$J$1806)>0,(LOOKUP($V73,Data!$A$6:$A$1806,Data!$J$6:$J$1806)*-1),LOOKUP($V73,Data!$A$6:$A$1806,Data!$J$6:$J$1806)) -> -653 | AF73: =LOOKUP($V73,Data!$A$6:$A$1806,Data!$K$6:$K$1806) -> 30203.72852 | AG73: 29.4934082 | AH73: T-12 sec | AI73: 40679.3378 | AJ73: 59.99862671 | AK73: 471.0874939 | AL73: 0 | AM73: 0 | AN73: 0 | AP73: 0 | AQ73: 0 | AR73: -653 | AS73: 30202.74219 | AT73: 8.967590332 | AX73: 0.004516601562
A74: T-10 sec | B74: 40679.33782 | C74: =LOOKUP(B74,Data!$A$6:$A$1806,Data!B$6:B$1806) -> 59.99740601 | D74: =LOOKUP(B74,Data!$A$6:$A$1806,Data!C$6:C$1806) -> 470.8999939 | E74: 59.99862671 | F74: 471.0874939 | G74: 19590 | H74: 16.93878174 | I74: 30.10810398 | L74: 2.946882253 | M74: 492.2745977 | U74: T-10 sec | V74: 40679.33782 | W74: =LOOKUP($V74,Data!$A$6:$A$1806,Data!$B$6:$B$1806) -> 59.99740601 | X74: =LOOKUP($V74,Data!$A$6:$A$1806,Data!$C$6:$C$1806) -> 470.8999939 | Y74: =LOOKUP($V74,Data!$A$6:$A$1806,Data!$D$6:$D$1806) -> 0 | Z74: =IF($Z$1="+",LOOKUP($V74,Data!$A$6:$A$1806,Data!$E$6:$E$1806)*-1,LOOKUP($V74,Data!$A$6:$A$1806,Data!$E$6:$E$1806)) -> 0 | AA74: =LOOKUP($V74,Data!$A$6:$A$1806,Data!$F$6:$F$1806) -> 0 | AC74: =LOOKUP($V74,Data!$A$6:$A$1806,Data!$H$6:$H$1806) -> 0 | AD74: =LOOKUP($V74,Data!$A$6:$A$1806,Data!$I$6:$I$1806) -> 0 | AE74: =IF(LOOKUP($V74,Data!$A$6:$A$1806,Data!$J$6:$J$1806)>0,(LOOKUP($V74,Data!$A$6:$A$1806,Data!$J$6:$J$1806)*-1),LOOKUP($V74,Data!$A$6:$A$1806,Data!$J$6:$J$1806)) -> -653 | AF74: =LOOKUP($V74,Data!$A$6:$A$1806,Data!$K$6:$K$1806) -> 30203.72852 | AG74: 16.93878174 | AH74: T-10 sec | AI74: 40679.33782 | AJ74: 59.99862671 | AK74: 471.0874939 | AL74: 0 | AM74: 0 | AN74: 0 | AP74: 0 | AQ74: 0 | AR74: -653 | AS74: 30202.74219 | AT74: 8.967590332 | AX74: 0.002593994141
A75: T-08 sec | B75: 40679.33785 | C75: =LOOKUP(B75,Data!$A$6:$A$1806,Data!B$6:B$1806) -> 60 | D75: =LOOKUP(B75,Data!$A$6:$A$1806,Data!C$6:C$1806) -> 470.8999939 | E75: 59.99862671 | F75: 471.0874939 | G75: 19590 | H75: 0 | I75: 19.57026759 | L75: 2.946882253 | M75: 484.6836436 | U75: T-08 sec | V75: 40679.33785 | W75: =LOOKUP($V75,Data!$A$6:$A$1806,Data!$B$6:$B$1806) -> 60 | X75: =LOOKUP($V75,Data!$A$6:$A$1806,Data!$C$6:$C$1806) -> 470.8999939 | Y75: =LOOKUP($V75,Data!$A$6:$A$1806,Data!$D$6:$D$1806) -> 0 | Z75: =IF($Z$1="+",LOOKUP($V75,Data!$A$6:$A$1806,Data!$E$6:$E$1806)*-1,LOOKUP($V75,Data!$A$6:$A$1806,Data!$E$6:$E$1806)) -> 0 | AA75: =LOOKUP($V75,Data!$A$6:$A$1806,Data!$F$6:$F$1806) -> 0 | AC75: =LOOKUP($V75,Data!$A$6:$A$1806,Data!$H$6:$H$1806) -> 0 | AD75: =LOOKUP($V75,Data!$A$6:$A$1806,Data!$I$6:$I$1806) -> 0 | AE75: =IF(LOOKUP($V75,Data!$A$6:$A$1806,Data!$J$6:$J$1806)>0,(LOOKUP($V75,Data!$A$6:$A$1806,Data!$J$6:$J$1806)*-1),LOOKUP($V75,Data!$A$6:$A$1806,Data!$J$6:$J$1806)) -> -653 | AF75: =LOOKUP($V75,Data!$A$6:$A$1806,Data!$K$6:$K$1806) -> 30203.72852 | AG75: 0 | AH75: T-08 sec | AI75: 40679.33785 | AJ75: 59.99862671 | AK75: 471.0874939 | AL75: 0 | AM75: 0 | AN75: 0 | AP75: 0 | AQ75: 0 | AR75: -653 | AS75: 30202.74219 | AT75: 8.967590332 | AX75: 0
A76: T-06 sec | B76: 40679.33787 | C76: =LOOKUP(B76,Data!$A$6:$A$1806,Data!B$6:B$1806) -> 60.00161743 | D76: =LOOKUP(B76,Data!$A$6:$A$1806,Data!C$6:C$1806) -> 470.8999939 | E76: 59.99862671 | F76: 471.0874939 | G76: 19590 | H76: -10.56182861 | I76: 9.024033916 | L76: 2.946882253 | M76: 477.0842922 | U76: T-06 sec | V76: 40679.33787 | W76: =LOOKUP($V76,Data!$A$6:$A$1806,Data!$B$6:$B$1806) -> 60.00161743 | X76: =LOOKUP($V76,Data!$A$6:$A$1806,Data!$C$6:$C$1806) -> 470.8999939 | Y76: =LOOKUP($V76,Data!$A$6:$A$1806,Data!$D$6:$D$1806) -> 0 | Z76: =IF($Z$1="+",LOOKUP($V76,Data!$A$6:$A$1806,Data!$E$6:$E$1806)*-1,LOOKUP($V76,Data!$A$6:$A$1806,Data!$E$6:$E$1806)) -> 0 | AA76: =LOOKUP($V76,Data!$A$6:$A$1806,Data!$F$6:$F$1806) -> 0 | AC76: =LOOKUP($V76,Data!$A$6:$A$1806,Data!$H$6:$H$1806) -> 0 | AD76: =LOOKUP($V76,Data!$A$6:$A$1806,Data!$I$6:$I$1806) -> 0 | AE76: =IF(LOOKUP($V76,Data!$A$6:$A$1806,Data!$J$6:$J$1806)>0,(LOOKUP($V76,Data!$A$6:$A$1806,Data!$J$6:$J$1806)*-1),LOOKUP($V76,Data!$A$6:$A$1806,Data!$J$6:$J$1806)) -> -653 | AF76: =LOOKUP($V76,Data!$A$6:$A$1806,Data!$K$6:$K$1806) -> 30203.72852 | AG76: -10.56182861 | AH76: T-06 sec | AI76: 40679.33787 | AJ76: 59.99862671 | AK76: 471.0874939 | AL76: 0 | AM76: 0 | AN76: 0 | AP76: 0 | AQ76: 0 | AR76: -653 | AS76: 30202.74219 | AT76: 8.967590332 | AX76: 0.001617431641
A77: T-04 sec | B77: 40679.33789 | C77: =LOOKUP(B77,Data!$A$6:$A$1806,Data!B$6:B$1806) -> 60.00161743 | D77: =LOOKUP(B77,Data!$A$6:$A$1806,Data!C$6:C$1806) -> 470.8999939 | E77: 59.99862671 | F77: 471.0874939 | G77: 19590 | H77: -10.56182861 | I77: 2.168982031 | L77: 2.946882253 | M77: 473.1761225 | U77: T-04 sec | V77: 40679.33789 | W77: =LOOKUP($V77,Data!$A$6:$A$1806,Data!$B$6:$B$1806) -> 60.00161743 | X77: =LOOKUP($V77,Data!$A$6:$A$1806,Data!$C$6:$C$1806) -> 470.8999939 | Y77: =LOOKUP($V77,Data!$A$6:$A$1806,Data!$D$6:$D$1806) -> 0 | Z77: =IF($Z$1="+",LOOKUP($V77,Data!$A$6:$A$1806,Data!$E$6:$E$1806)*-1,LOOKUP($V77,Data!$A$6:$A$1806,Data!$E$6:$E$1806)) -> 0 | AA77: =LOOKUP($V77,Data!$A$6:$A$1806,Data!$F$6:$F$1806) -> 0 | AC77: =LOOKUP($V77,Data!$A$6:$A$1806,Data!$H$6:$H$1806) -> 0 | AD77: =LOOKUP($V77,Data!$A$6:$A$1806,Data!$I$6:$I$1806) -> 0 | AE77: =IF(LOOKUP($V77,Data!$A$6:$A$1806,Data!$J$6:$J$1806)>0,(LOOKUP($V77,Data!$A$6:$A$1806,Data!$J$6:$J$1806)*-1),LOOKUP($V77,Data!$A$6:$A$1806,Data!$J$6:$J$1806)) -> -653 | AF77: =LOOKUP($V77,Data!$A$6:$A$1806,Data!$K$6:$K$1806) -> 30199.60547 | AG77: -10.56182861 | AH77: T-04 sec | AI77: 40679.33789 | AJ77: 59.99862671 | AK77: 471.0874939 | AL77: 0 | AM77: 0 | AN77: 0 | AP77: 0 | AQ77: 0 | AR77: -653 | AS77: 30202.74219 | AT77: 8.967590332 | AX77: 0.001617431641
A78: T-02 sec | B78: =B79-TIME(0,0,$B$1) -> 40679.33792 | C78: =LOOKUP(B78,Data!$A$6:$A$1806,Data!B$6:B$1806) -> 60.00195312 | D78: =LOOKUP(B78,Data!$A$6:$A$1806,Data!C$6:C$1806) -> 470.8999939 | E78: 59.99862671 | F78: 471.0874939 | G78: 19590 | H78: -12.75390625 | I78: -3.054028867 | L78: 2.946882253 | M78: =D78 -> 470.8999939 | U78: T-02 sec | V78: =V79-TIME(0,0,$B$1) -> 40679.33792 | W78: =LOOKUP($V78,Data!$A$6:$A$1806,Data!$B$6:$B$1806) -> 60.00195312 | X78: =LOOKUP($V78,Data!$A$6:$A$1806,Data!$C$6:$C$1806) -> 470.8999939 | Y78: =LOOKUP($V78,Data!$A$6:$A$1806,Data!$D$6:$D$1806) -> 0 | Z78: =IF($Z$1="+",LOOKUP($V78,Data!$A$6:$A$1806,Data!$E$6:$E$1806)*-1,LOOKUP($V78,Data!$A$6:$A$1806,Data!$E$6:$E$1806)) -> 0 | AA78: =LOOKUP($V78,Data!$A$6:$A$1806,Data!$F$6:$F$1806) -> 0 | AC78: =LOOKUP($V78,Data!$A$6:$A$1806,Data!$H$6:$H$1806) -> 0 | AD78: =LOOKUP($V78,Data!$A$6:$A$1806,Data!$I$6:$I$1806) -> 0 | AE78: =IF(LOOKUP($V78,Data!$A$6:$A$1806,Data!$J$6:$J$1806)>0,(LOOKUP($V78,Data!$A$6:$A$1806,Data!$J$6:$J$1806)*-1),LOOKUP($V78,Data!$A$6:$A$1806,Data!$J$6:$J$1806)) -> -653 | AF78: =LOOKUP($V78,Data!$A$6:$A$1806,Data!$K$6:$K$1806) -> 30199.60547 | AG78: -12.75390625 | AH78: T-02 sec | AI78: =AI79-TIME(0,0,$B$1) -> 40679.33792 | AJ78: 59.99862671 | AK78: 471.0874939 | AL78: 0 | AM78: 0 | AN78: 0 | AP78: 0 | AQ78: 0 | AR78: -653 | AS78: 30202.74219 | AT78: 8.967590332 | AX78: 0.001953125
A79: T+0 sec | B79: =G2 -> 40679.33794 | C79: =LOOKUP(B79,Data!$A$6:$A$1806,Data!B$6:B$1806) -> 59.95962524 | D79: =LOOKUP(B79,Data!$A$6:$A$1806,Data!C$6:C$1806) -> 0 | G79: 19590 | H79: 263.6471558 | I79: 90.29138575 | L79: 0 | M79: =M78+L79+(I79-I78) -> 564.2454085 | U79: T+0 sec | V79: =$G2 -> 40679.33794 | W79: =LOOKUP($V79,Data!$A$6:$A$1806,Data!$B$6:$B$1806) -> 59.95962524 | X79: =LOOKUP($V79,Data!$A$6:$A$1806,Data!$C$6:$C$1806) -> 0 | Y79: =LOOKUP($V79,Data!$A$6:$A$1806,Data!$D$6:$D$1806) -> 0 | Z79: =IF($Z$1="+",LOOKUP($V79,Data!$A$6:$A$1806,Data!$E$6:$E$1806)*-1,LOOKUP($V79,Data!$A$6:$A$1806,Data!$E$6:$E$1806)) -> 0 | AA79: =LOOKUP($V79,Data!$A$6:$A$1806,Data!$F$6:$F$1806) -> 0 | AC79: =LOOKUP($V79,Data!$A$6:$A$1806,Data!$H$6:$H$1806) -> 0 | AD79: =LOOKUP($V79,Data!$A$6:$A$1806,Data!$I$6:$I$1806) -> 0 | AE79: =IF(LOOKUP($V79,Data!$A$6:$A$1806,Data!$J$6:$J$1806)>0,(LOOKUP($V79,Data!$A$6:$A$1806,Data!$J$6:$J$1806)*-1),LOOKUP($V79,Data!$A$6:$A$1806,Data!$J$6:$J$1806)) -> -653 | AF79: =LOOKUP($V79,Data!$A$6:$A$1806,Data!$K$6:$K$1806) -> 30199.60547 | AG79: 263.6471558 | AH79: T+0 sec | AI79: =$G2 -> 40679.33794 | AX79: 0.04037475586 | AY79: -653
A80: T+02 sec | B80: =B79+TIME(0,0,$B$1) -> 40679.33796 | C80: =LOOKUP(B80,Data!$A$6:$A$1806,Data!B$6:B$1806) -> 59.88143539 | D80: =LOOKUP(B80,Data!$A$6:$A$1806,Data!C$6:C$1806) -> 0 | G80: 19590 | H80: =(IF((C80-L$2)>0,(IF(C80<'Copy Results'!$C$3,((C80-L$2-L$5)/((L$4*L$2)-L$5)*G80*-1),(('Copy Results'!$C$3-L$2-L$5)/((L$4*L$2)-L$5)*G80*-1))),IF(C80>'Copy Results'!$C$2,((C80-L$2+L$5)/((L$4*L$2)-L$5)*G80*-1),(('Copy Results'!$C$2-L$2+L$5)/((L$4*L$2)-L$5)*G80*-1)))) -> 774.2268753 | I80: 329.6688071 | L80: =IF(B80>G$3,0,(K$21*0.000023148/K$22)) -> -4.263676488 | M80: =M79+L80+(I80-I79)+AD81 -> 799.3591534 | N80: =AVERAGE(D$79:D80) -> 0 | O80: =AVERAGE(M$79:M80) -> 681.8022809 | P80: =K20+L78-I77+AN28-AN20 -> 471.6778941 | Q80: =AVERAGE(P$79:P80) -> 471.6778941 | U80: T+02 sec | V80: =V79+TIME(0,0,$B$1) -> 40679.33796 | W80: =LOOKUP($V80,Data!$A$6:$A$1806,Data!$B$6:$B$1806) -> 59.88143539 | X80: =LOOKUP($V80,Data!$A$6:$A$1806,Data!$C$6:$C$1806) -> 0 | Y80: =LOOKUP($V80,Data!$A$6:$A$1806,Data!$D$6:$D$1806) -> 0 | Z80: =IF($Z$1="+",LOOKUP($V80,Data!$A$6:$A$1806,Data!$E$6:$E$1806)*-1,LOOKUP($V80,Data!$A$6:$A$1806,Data!$E$6:$E$1806)) -> 0 | AA80: =LOOKUP($V80,Data!$A$6:$A$1806,Data!$F$6:$F$1806) -> 0 | AC80: =LOOKUP($V80,Data!$A$6:$A$1806,Data!$H$6:$H$1806) -> 0 | AD80: =LOOKUP($V80,Data!$A$6:$A$1806,Data!$I$6:$I$1806) -> 0 | AE80: =IF(LOOKUP($V80,Data!$A$6:$A$1806,Data!$J$6:$J$1806)>0,(LOOKUP($V80,Data!$A$6:$A$1806,Data!$J$6:$J$1806)*-1),LOOKUP($V80,Data!$A$6:$A$1806,Data!$J$6:$J$1806)) -> -653 | AF80: =LOOKUP($V80,Data!$A$6:$A$1806,Data!$K$6:$K$1806) -> 30199.60547 | AG80: 774.2268753 | AH80: T+02 sec | AI80: =AI79+TIME(0,0,$B$1) -> 40679.33796 | AW80: =IF(((D80-F$78)/((C80-E$78)*10))<0," ",((D80-F$78)/((C80-E$78)*10))) -> 401.9815761 | AX80: 0.1185646057 | AY80: -653
A81: T+04 sec | B81: =B80+TIME(0,0,$B$1) -> 40679.33799 | C81: =LOOKUP(B81,Data!$A$6:$A$1806,Data!B$6:B$1806) -> 59.87237167 | D81: =LOOKUP(B81,Data!$A$6:$A$1806,Data!C$6:C$1806) -> 0 | G81: 19590 | H81: =(IF((C81-L$2)>0,(IF(C81<'Copy Results'!$C$3,((C81-L$2-L$5)/((L$4*L$2)-L$5)*G81*-1),(('Copy Results'!$C$3-L$2-L$5)/((L$4*L$2)-L$5)*G81*-1))),IF(C81>'Copy Results'!$C$2,((C81-L$2+L$5)/((L$4*L$2)-L$5)*G81*-1),(('Copy Results'!$C$2-L$2+L$5)/((L$4*L$2)-L$5)*G81*-1)))) -> 833.4129715 | I81: 505.9792646 | L81: -4.263676488 | M81: =M80+L81+(I81-I80) -> 971.4059344 | N81: =AVERAGE(D$79:D81) -> 0 | O81: =AVERAGE(M$79:M81) -> 778.3368321 | P81: =P80+L81 -> 467.4142176 | Q81: =AVERAGE(P$79:P81) -> 469.5460559 | U81: T+04 sec | V81: =V80+TIME(0,0,$B$1) -> 40679.33799 | W81: =LOOKUP($V81,Data!$A$6:$A$1806,Data!$B$6:$B$1806) -> 59.87237167 | X81: =LOOKUP($V81,Data!$A$6:$A$1806,Data!$C$6:$C$1806) -> 0 | Y81: =LOOKUP($V81,Data!$A$6:$A$1806,Data!$D$6:$D$1806) -> 0 | Z81: =IF($Z$1="+",LOOKUP($V81,Data!$A$6:$A$1806,Data!$E$6:$E$1806)*-1,LOOKUP($V81,Data!$A$6:$A$1806,Data!$E$6:$E$1806)) -> 0 | AA81: =LOOKUP($V81,Data!$A$6:$A$1806,Data!$F$6:$F$1806) -> 0 | AC81: =LOOKUP($V81,Data!$A$6:$A$1806,Data!$H$6:$H$1806) -> 0 | AD81: =LOOKUP($V81,Data!$A$6:$A$1806,Data!$I$6:$I$1806) -> 0 | AE81: =IF(LOOKUP($V81,Data!$A$6:$A$1806,Data!$J$6:$J$1806)>0,(LOOKUP($V81,Data!$A$6:$A$1806,Data!$J$6:$J$1806)*-1),LOOKUP($V81,Data!$A$6:$A$1806,Data!$J$6:$J$1806)) -> -653 | AF81: =LOOKUP($V81,Data!$A$6:$A$1806,Data!$K$6:$K$1806) -> 30086.10938 | AG81: 833.4129715 | AH81: T+04 sec | AI81: =AI80+TIME(0,0,$B$1) -> 40679.33799 | AW81: =IF(((D81-F$78)/((C81-E$78)*10))<0," ",((D81-F$78)/((C81-E$78)*10))) -> 373.1237272 | AX81: 0.1276283264 | AY81: -653
A82: T+06 sec | B82: 40679.33801 | C82: =LOOKUP(B82,Data!$A$6:$A$1806,Data!B$6:B$1806) -> 59.87011337 | D82: =LOOKUP(B82,Data!$A$6:$A$1806,Data!C$6:C$1806) -> 0 | G82: 19590 | H82: =(IF((C82-L$2)>0,(IF(C82<'Copy Results'!$C$3,((C82-L$2-L$5)/((L$4*L$2)-L$5)*G82*-1),(('Copy Results'!$C$3-L$2-L$5)/((L$4*L$2)-L$5)*G82*-1))),IF(C82>'Copy Results'!$C$2,((C82-L$2+L$5)/((L$4*L$2)-L$5)*G82*-1),(('Copy Results'!$C$2-L$2+L$5)/((L$4*L$2)-L$5)*G82*-1)))) -> 848.1596756 | I82: 625.7424085 | L82: -4.263676488 | M82: 1086.905402 | N82: =AVERAGE(D$79:D82) -> 0 | O82: =AVERAGE(M$79:M82) -> 855.4789745 | P82: =P81+L82 -> 463.1505411 | Q82: =AVERAGE(P$79:P82) -> 467.4142176 | U82: T+06 sec | V82: 40679.33801 | W82: =LOOKUP($V82,Data!$A$6:$A$1806,Data!$B$6:$B$1806) -> 59.87011337 | X82: =LOOKUP($V82,Data!$A$6:$A$1806,Data!$C$6:$C$1806) -> 0 | Y82: =LOOKUP($V82,Data!$A$6:$A$1806,Data!$D$6:$D$1806) -> 0 | Z82: =IF($Z$1="+",LOOKUP($V82,Data!$A$6:$A$1806,Data!$E$6:$E$1806)*-1,LOOKUP($V82,Data!$A$6:$A$1806,Data!$E$6:$E$1806)) -> 0 | AA82: =LOOKUP($V82,Data!$A$6:$A$1806,Data!$F$6:$F$1806) -> 0 | AC82: =LOOKUP($V82,Data!$A$6:$A$1806,Data!$H$6:$H$1806) -> 0 | AD82: =LOOKUP($V82,Data!$A$6:$A$1806,Data!$I$6:$I$1806) -> 0 | AE82: =IF(LOOKUP($V82,Data!$A$6:$A$1806,Data!$J$6:$J$1806)>0,(LOOKUP($V82,Data!$A$6:$A$1806,Data!$J$6:$J$1806)*-1),LOOKUP($V82,Data!$A$6:$A$1806,Data!$J$6:$J$1806)) -> -653 | AF82: =LOOKUP($V82,Data!$A$6:$A$1806,Data!$K$6:$K$1806) -> 30086.10938 | AG82: 848.1596756 | AH82: T+06 sec | AI82: 40679.33801 | AW82: 366.56701 | AX82: 0.1298866272 | AY82: -653
A83: T+08 sec | B83: 40679.33803 | C83: =LOOKUP(B83,Data!$A$6:$A$1806,Data!B$6:B$1806) -> 59.87011337 | D83: =LOOKUP(B83,Data!$A$6:$A$1806,Data!C$6:C$1806) -> 0 | G83: 19590 | H83: =(IF((C83-L$2)>0,(IF(C83<'Copy Results'!$C$3,((C83-L$2-L$5)/((L$4*L$2)-L$5)*G83*-1),(('Copy Results'!$C$3-L$2-L$5)/((L$4*L$2)-L$5)*G83*-1))),IF(C83>'Copy Results'!$C$2,((C83-L$2+L$5)/((L$4*L$2)-L$5)*G83*-1),(('Copy Results'!$C$2-L$2+L$5)/((L$4*L$2)-L$5)*G83*-1)))) -> 848.1596756 | I83: 703.588452 | L83: -4.263676488 | M83: 1160.487769 | N83: =AVERAGE(D$79:D83) -> 0 | O83: =AVERAGE(M$79:M83) -> 916.4807334 | P83: 458.8868647 | Q83: =AVERAGE(P$79:P83) -> 465.2823794 | U83: T+08 sec | V83: 40679.33803 | W83: =LOOKUP($V83,Data!$A$6:$A$1806,Data!$B$6:$B$1806) -> 59.87011337 | X83: =LOOKUP($V83,Data!$A$6:$A$1806,Data!$C$6:$C$1806) -> 0 | Y83: =LOOKUP($V83,Data!$A$6:$A$1806,Data!$D$6:$D$1806) -> 0 | Z83: =IF($Z$1="+",LOOKUP($V83,Data!$A$6:$A$1806,Data!$E$6:$E$1806)*-1,LOOKUP($V83,Data!$A$6:$A$1806,Data!$E$6:$E$1806)) -> 0 | AA83: =LOOKUP($V83,Data!$A$6:$A$1806,Data!$F$6:$F$1806) -> 0 | AC83: =LOOKUP($V83,Data!$A$6:$A$1806,Data!$H$6:$H$1806) -> 0 | AD83: =LOOKUP($V83,Data!$A$6:$A$1806,Data!$I$6:$I$1806) -> 0 | AE83: =IF(LOOKUP($V83,Data!$A$6:$A$1806,Data!$J$6:$J$1806)>0,(LOOKUP($V83,Data!$A$6:$A$1806,Data!$J$6:$J$1806)*-1),LOOKUP($V83,Data!$A$6:$A$1806,Data!$J$6:$J$1806)) -> -653 | AF83: =LOOKUP($V83,Data!$A$6:$A$1806,Data!$K$6:$K$1806) -> 30086.10938 | AG83: 848.1596756 | AH83: T+08 sec | AI83: 40679.33803 | AW83: 366.56701 | AX83: 0.1298866272 | AY83: -653
A84: T+10 sec | B84: 40679.33806 | C84: =LOOKUP(B84,Data!$A$6:$A$1806,Data!B$6:B$1806) -> 59.8743248 | D84: =LOOKUP(B84,Data!$A$6:$A$1806,Data!C$6:C$1806) -> 0 | G84: 19590 | H84: =(IF((C84-L$2)>0,(IF(C84<'Copy Results'!$C$3,((C84-L$2-L$5)/((L$4*L$2)-L$5)*G84*-1),(('Copy Results'!$C$3-L$2-L$5)/((L$4*L$2)-L$5)*G84*-1))),IF(C84>'Copy Results'!$C$2,((C84-L$2+L$5)/((L$4*L$2)-L$5)*G84*-1),(('Copy Results'!$C$2-L$2+L$5)/((L$4*L$2)-L$5)*G84*-1)))) -> 820.6590652 | I84: 744.5631666 | L84: -4.263676488 | M84: 1197.198807 | N84: =AVERAGE(D$79:D84) -> 0 | O84: =AVERAGE(M$79:M84) -> 963.267079 | P84: 454.6231882 | Q84: =AVERAGE(P$79:P84) -> 463.1505411 | U84: T+10 sec | V84: 40679.33806 | W84: =LOOKUP($V84,Data!$A$6:$A$1806,Data!$B$6:$B$1806) -> 59.8743248 | X84: =LOOKUP($V84,Data!$A$6:$A$1806,Data!$C$6:$C$1806) -> 0 | Y84: =LOOKUP($V84,Data!$A$6:$A$1806,Data!$D$6:$D$1806) -> 0 | Z84: =IF($Z$1="+",LOOKUP($V84,Data!$A$6:$A$1806,Data!$E$6:$E$1806)*-1,LOOKUP($V84,Data!$A$6:$A$1806,Data!$E$6:$E$1806)) -> 0 | AA84: =LOOKUP($V84,Data!$A$6:$A$1806,Data!$F$6:$F$1806) -> 0 | AC84: =LOOKUP($V84,Data!$A$6:$A$1806,Data!$H$6:$H$1806) -> 0 | AD84: =LOOKUP($V84,Data!$A$6:$A$1806,Data!$I$6:$I$1806) -> 0 | AE84: =IF(LOOKUP($V84,Data!$A$6:$A$1806,Data!$J$6:$J$1806)>0,(LOOKUP($V84,Data!$A$6:$A$1806,Data!$J$6:$J$1806)*-1),LOOKUP($V84,Data!$A$6:$A$1806,Data!$J$6:$J$1806)) -> -653 | AF84: =LOOKUP($V84,Data!$A$6:$A$1806,Data!$K$6:$K$1806) -> 30086.13867 | AG84: 820.6590652 | AH84: T+10 sec | AI84: 40679.33806 | AW84: 378.9865275 | AX84: 0.1256752014 | AY84: -653
A85: T+12 sec | B85: 40679.33808 | C85: =LOOKUP(B85,Data!$A$6:$A$1806,Data!B$6:B$1806) -> 59.88076401 | D85: =LOOKUP(B85,Data!$A$6:$A$1806,Data!C$6:C$1806) -> 0 | G85: 19590 | H85: =(IF((C85-L$2)>0,(IF(C85<'Copy Results'!$C$3,((C85-L$2-L$5)/((L$4*L$2)-L$5)*G85*-1),(('Copy Results'!$C$3-L$2-L$5)/((L$4*L$2)-L$5)*G85*-1))),IF(C85>'Copy Results'!$C$2,((C85-L$2+L$5)/((L$4*L$2)-L$5)*G85*-1),(('Copy Results'!$C$2-L$2+L$5)/((L$4*L$2)-L$5)*G85*-1)))) -> 778.6110306 | I85: 756.479919 | L85: -4.263676488 | M85: 1204.851883 | N85: =AVERAGE(D$79:D85) -> 0 | O85: =AVERAGE(M$79:M85) -> 997.7791938 | P85: 450.3595117 | Q85: =AVERAGE(P$79:P85) -> 461.0187029 | U85: T+12 sec | V85: 40679.33808 | W85: =LOOKUP($V85,Data!$A$6:$A$1806,Data!$B$6:$B$1806) -> 59.88076401 | X85: =LOOKUP($V85,Data!$A$6:$A$1806,Data!$C$6:$C$1806) -> 0 | Y85: =LOOKUP($V85,Data!$A$6:$A$1806,Data!$D$6:$D$1806) -> 0 | Z85: =IF($Z$1="+",LOOKUP($V85,Data!$A$6:$A$1806,Data!$E$6:$E$1806)*-1,LOOKUP($V85,Data!$A$6:$A$1806,Data!$E$6:$E$1806)) -> 0 | AA85: =LOOKUP($V85,Data!$A$6:$A$1806,Data!$F$6:$F$1806) -> 0 | AC85: =LOOKUP($V85,Data!$A$6:$A$1806,Data!$H$6:$H$1806) -> 0 | AD85: =LOOKUP($V85,Data!$A$6:$A$1806,Data!$I$6:$I$1806) -> 0 | AE85: =IF(LOOKUP($V85,Data!$A$6:$A$1806,Data!$J$6:$J$1806)>0,(LOOKUP($V85,Data!$A$6:$A$1806,Data!$J$6:$J$1806)*-1),LOOKUP($V85,Data!$A$6:$A$1806,Data!$J$6:$J$1806)) -> -653 | AF85: =LOOKUP($V85,Data!$A$6:$A$1806,Data!$K$6:$K$1806) -> 30086.13867 | AG85: 778.6110306 | AH85: T+12 sec | AI85: 40679.33808 | AW85: 399.69175 | AX85: 0.1192359924 | AY85: -653
A86: T+14 sec | B86: 40679.3381 | C86: =LOOKUP(B86,Data!$A$6:$A$1806,Data!B$6:B$1806) -> 59.88531113 | D86: =LOOKUP(B86,Data!$A$6:$A$1806,Data!C$6:C$1806) -> 0 | G86: 19590 | H86: =(IF((C86-L$2)>0,(IF(C86<'Copy Results'!$C$3,((C86-L$2-L$5)/((L$4*L$2)-L$5)*G86*-1),(('Copy Results'!$C$3-L$2-L$5)/((L$4*L$2)-L$5)*G86*-1))),IF(C86>'Copy Results'!$C$2,((C86-L$2+L$5)/((L$4*L$2)-L$5)*G86*-1),(('Copy Results'!$C$2-L$2+L$5)/((L$4*L$2)-L$5)*G86*-1)))) -> 748.9183426 | I86: 753.8333673 | L86: -4.263676488 | M86: 1197.941655 | N86: =AVERAGE(D$79:D86) -> 0 | O86: =AVERAGE(M$79:M86) -> 1022.799501 | P86: 446.0958352 | Q86: =AVERAGE(P$79:P86) -> 458.8868647 | U86: T+14 sec | V86: 40679.3381 | W86: =LOOKUP($V86,Data!$A$6:$A$1806,Data!$B$6:$B$1806) -> 59.88531113 | X86: =LOOKUP($V86,Data!$A$6:$A$1806,Data!$C$6:$C$1806) -> 0 | Y86: =LOOKUP($V86,Data!$A$6:$A$1806,Data!$D$6:$D$1806) -> 0 | Z86: =IF($Z$1="+",LOOKUP($V86,Data!$A$6:$A$1806,Data!$E$6:$E$1806)*-1,LOOKUP($V86,Data!$A$6:$A$1806,Data!$E$6:$E$1806)) -> 0 | AA86: =LOOKUP($V86,Data!$A$6:$A$1806,Data!$F$6:$F$1806) -> 0 | AC86: =LOOKUP($V86,Data!$A$6:$A$1806,Data!$H$6:$H$1806) -> 0 | AD86: =LOOKUP($V86,Data!$A$6:$A$1806,Data!$I$6:$I$1806) -> 0 | AE86: =IF(LOOKUP($V86,Data!$A$6:$A$1806,Data!$J$6:$J$1806)>0,(LOOKUP($V86,Data!$A$6:$A$1806,Data!$J$6:$J$1806)*-1),LOOKUP($V86,Data!$A$6:$A$1806,Data!$J$6:$J$1806)) -> -653 | AF86: =LOOKUP($V86,Data!$A$6:$A$1806,Data!$K$6:$K$1806) -> 30086.13867 | AG86: 748.9183426 | AH86: T+14 sec | AI86: 40679.3381 | AW86: 415.7305504 | AX86: 0.1146888733 | AY86: -653
A87: T+16 sec | B87: 40679.33812 | C87: =LOOKUP(B87,Data!$A$6:$A$1806,Data!B$6:B$1806) -> 59.8878746 | D87: =LOOKUP(B87,Data!$A$6:$A$1806,Data!C$6:C$1806) -> 0 | G87: 19590 | H87: =(IF((C87-L$2)>0,(IF(C87<'Copy Results'!$C$3,((C87-L$2-L$5)/((L$4*L$2)-L$5)*G87*-1),(('Copy Results'!$C$3-L$2-L$5)/((L$4*L$2)-L$5)*G87*-1))),IF(C87>'Copy Results'!$C$2,((C87-L$2+L$5)/((L$4*L$2)-L$5)*G87*-1),(('Copy Results'!$C$2-L$2+L$5)/((L$4*L$2)-L$5)*G87*-1)))) -> 732.1788406 | I87: 746.2542829 | L87: -4.263676488 | M87: 1186.098894 | N87: =AVERAGE(D$79:D87) -> 0 | O87: =AVERAGE(M$79:M87) -> 1040.943878 | P87: 441.8321587 | Q87: =AVERAGE(P$79:P87) -> 456.7550264 | U87: T+16 sec | V87: 40679.33812 | W87: =LOOKUP($V87,Data!$A$6:$A$1806,Data!$B$6:$B$1806) -> 59.8878746 | X87: =LOOKUP($V87,Data!$A$6:$A$1806,Data!$C$6:$C$1806) -> 0 | Y87: =LOOKUP($V87,Data!$A$6:$A$1806,Data!$D$6:$D$1806) -> 0 | Z87: =IF($Z$1="+",LOOKUP($V87,Data!$A$6:$A$1806,Data!$E$6:$E$1806)*-1,LOOKUP($V87,Data!$A$6:$A$1806,Data!$E$6:$E$1806)) -> 0 | AA87: =LOOKUP($V87,Data!$A$6:$A$1806,Data!$F$6:$F$1806) -> 0 | AC87: =LOOKUP($V87,Data!$A$6:$A$1806,Data!$H$6:$H$1806) -> 0 | AD87: =LOOKUP($V87,Data!$A$6:$A$1806,Data!$I$6:$I$1806) -> 0 | AE87: =IF(LOOKUP($V87,Data!$A$6:$A$1806,Data!$J$6:$J$1806)>0,(LOOKUP($V87,Data!$A$6:$A$1806,Data!$J$6:$J$1806)*-1),LOOKUP($V87,Data!$A$6:$A$1806,Data!$J$6:$J$1806)) -> -653 | AF87: =LOOKUP($V87,Data!$A$6:$A$1806,Data!$K$6:$K$1806) -> 30086.13867 | AG87: 732.1788406 | AH87: T+16 sec | AI87: 40679.33812 | AW87: 425.353081 | AX87: 0.1121253967 | AY87: -653
A88: T+18 sec | B88: 40679.33815 | C88: =LOOKUP(B88,Data!$A$6:$A$1806,Data!B$6:B$1806) -> 59.88949203 | D88: =LOOKUP(B88,Data!$A$6:$A$1806,Data!C$6:C$1806) -> 0 | G88: 19590 | H88: =(IF((C88-L$2)>0,(IF(C88<'Copy Results'!$C$3,((C88-L$2-L$5)/((L$4*L$2)-L$5)*G88*-1),(('Copy Results'!$C$3-L$2-L$5)/((L$4*L$2)-L$5)*G88*-1))),IF(C88>'Copy Results'!$C$2,((C88-L$2+L$5)/((L$4*L$2)-L$5)*G88*-1),(('Copy Results'!$C$2-L$2+L$5)/((L$4*L$2)-L$5)*G88*-1)))) -> 721.617012 | I88: 737.6312381 | L88: -4.263676488 | M88: 1173.212172 | N88: =AVERAGE(D$79:D88) -> 0 | O88: =AVERAGE(M$79:M88) -> 1054.170708 | P88: 437.5684822 | Q88: =AVERAGE(P$79:P88) -> 454.6231882 | U88: T+18 sec | V88: 40679.33815 | W88: =LOOKUP($V88,Data!$A$6:$A$1806,Data!$B$6:$B$1806) -> 59.88949203 | X88: =LOOKUP($V88,Data!$A$6:$A$1806,Data!$C$6:$C$1806) -> 0 | Y88: =LOOKUP($V88,Data!$A$6:$A$1806,Data!$D$6:$D$1806) -> 0 | Z88: =IF($Z$1="+",LOOKUP($V88,Data!$A$6:$A$1806,Data!$E$6:$E$1806)*-1,LOOKUP($V88,Data!$A$6:$A$1806,Data!$E$6:$E$1806)) -> 0 | AA88: =LOOKUP($V88,Data!$A$6:$A$1806,Data!$F$6:$F$1806) -> 0 | AC88: =LOOKUP($V88,Data!$A$6:$A$1806,Data!$H$6:$H$1806) -> 0 | AD88: =LOOKUP($V88,Data!$A$6:$A$1806,Data!$I$6:$I$1806) -> 0 | AE88: =IF(LOOKUP($V88,Data!$A$6:$A$1806,Data!$J$6:$J$1806)>0,(LOOKUP($V88,Data!$A$6:$A$1806,Data!$J$6:$J$1806)*-1),LOOKUP($V88,Data!$A$6:$A$1806,Data!$J$6:$J$1806)) -> -653 | AF88: =LOOKUP($V88,Data!$A$6:$A$1806,Data!$K$6:$K$1806) -> 30094.42578 | AG88: 721.617012 | AH88: T+18 sec | AI88: 40679.33815 | AW88: 431.657031 | AX88: 0.1105079651 | AY88: -653
A89: T+20 sec | B89: 40679.33817 | C89: =LOOKUP(B89,Data!$A$6:$A$1806,Data!B$6:B$1806) -> 59.89080429 | D89: =LOOKUP(B89,Data!$A$6:$A$1806,Data!C$6:C$1806) -> 0 | E89: =AVERAGE($C$89:$C$105) -> 59.89716092 | F89: =AVERAGE($D$89:$D$105) -> 0 | G89: 19590 | H89: =(IF((C89-L$2)>0,(IF(C89<'Copy Results'!$C$3,((C89-L$2-L$5)/((L$4*L$2)-L$5)*G89*-1),(('Copy Results'!$C$3-L$2-L$5)/((L$4*L$2)-L$5)*G89*-1))),IF(C89>'Copy Results'!$C$2,((C89-L$2+L$5)/((L$4*L$2)-L$5)*G89*-1),(('Copy Results'!$C$2-L$2+L$5)/((L$4*L$2)-L$5)*G89*-1)))) -> 713.0479813 | I89: 729.0270982 | K89: =AU89 -> 653 | L89: -4.263676488 | M89: 1160.344356 | N89: =AVERAGE(D$79:D89) -> 0 | O89: =AVERAGE(M$79:M89) -> 1063.822858 | P89: 433.3048057 | Q89: =AVERAGE(P$79:P89) -> 452.4913499 | U89: T+20 sec | V89: 40679.33817 | W89: =LOOKUP($V89,Data!$A$6:$A$1806,Data!$B$6:$B$1806) -> 59.89080429 | X89: =LOOKUP($V89,Data!$A$6:$A$1806,Data!$C$6:$C$1806) -> 0 | Y89: =LOOKUP($V89,Data!$A$6:$A$1806,Data!$D$6:$D$1806) -> 0 | Z89: =IF($Z$1="+",LOOKUP($V89,Data!$A$6:$A$1806,Data!$E$6:$E$1806)*-1,LOOKUP($V89,Data!$A$6:$A$1806,Data!$E$6:$E$1806)) -> 0 | AA89: =LOOKUP($V89,Data!$A$6:$A$1806,Data!$F$6:$F$1806) -> 0 | AC89: =LOOKUP($V89,Data!$A$6:$A$1806,Data!$H$6:$H$1806) -> 0 | AD89: =LOOKUP($V89,Data!$A$6:$A$1806,Data!$I$6:$I$1806) -> 0 | AE89: =IF(LOOKUP($V89,Data!$A$6:$A$1806,Data!$J$6:$J$1806)>0,(LOOKUP($V89,Data!$A$6:$A$1806,Data!$J$6:$J$1806)*-1),LOOKUP($V89,Data!$A$6:$A$1806,Data!$J$6:$J$1806)) -> -653 | AF89: =LOOKUP($V89,Data!$A$6:$A$1806,Data!$K$6:$K$1806) -> 30094.42578 | AG89: 713.0479813 | AH89: T+20 sec | AI89: 40679.33817 | AJ89: =AVERAGE($W$89:$W$105) -> 59.89716092 | AK89: =AVERAGE($X$89:$X$105) -> 0 | AL89: =AVERAGE($Y$89:$Y$105) -> 0 | AM89: =AVERAGE($Z$89:$Z$105) -> 0 | AN89: =AVERAGE($AA$89:$AA$105) -> 0 | AP89: =AVERAGE($AC$89:$AC$105) -> 0 | AQ89: =AVERAGE($AD$89:$AD$105) -> 0 | AR89: =AVERAGE($AE$89:$AE$105) -> -653 | AS89: =AVERAGE($AF$89:$AF$105) -> 30136.76953 | AT89: =AVERAGE($AG$89:$AG$105) -> 671.5391742 | AU89: =AR89*-1 -> 653 | AV89: =AVERAGE(AW$89:AW$105) -> 464.9540564 | AW89: 436.9105254 | AX89: 0.1091957092 | AY89: -653
A90: T+22 sec | B90: 40679.33819 | C90: =LOOKUP(B90,Data!$A$6:$A$1806,Data!B$6:B$1806) -> 59.89175034 | D90: =LOOKUP(B90,Data!$A$6:$A$1806,Data!C$6:C$1806) -> 0 | E90: =AVERAGE($C$89:$C$105) -> 59.89716092 | F90: =AVERAGE($D$89:$D$105) -> 0 | G90: 19590 | H90: =(IF((C90-L$2)>0,(IF(C90<'Copy Results'!$C$3,((C90-L$2-L$5)/((L$4*L$2)-L$5)*G90*-1),(('Copy Results'!$C$3-L$2-L$5)/((L$4*L$2)-L$5)*G90*-1))),IF(C90>'Copy Results'!$C$2,((C90-L$2+L$5)/((L$4*L$2)-L$5)*G90*-1),(('Copy Results'!$C$2-L$2+L$5)/((L$4*L$2)-L$5)*G90*-1)))) -> 706.8703079 | I90: 721.2722216 | K90: =AU90 -> 653 | L90: -4.263676488 | M90: 1148.325803 | N90: =AVERAGE(D$79:D90) -> 0 | O90: =AVERAGE(M$79:M90) -> 1070.86477 | P90: 429.0411292 | Q90: =AVERAGE(P$79:P90) -> 450.3595117 | U90: T+22 sec | V90: 40679.33819 | W90: =LOOKUP($V90,Data!$A$6:$A$1806,Data!$B$6:$B$1806) -> 59.89175034 | X90: =LOOKUP($V90,Data!$A$6:$A$1806,Data!$C$6:$C$1806) -> 0 | Y90: =LOOKUP($V90,Data!$A$6:$A$1806,Data!$D$6:$D$1806) -> 0 | Z90: =IF($Z$1="+",LOOKUP($V90,Data!$A$6:$A$1806,Data!$E$6:$E$1806)*-1,LOOKUP($V90,Data!$A$6:$A$1806,Data!$E$6:$E$1806)) -> 0 | AA90: =LOOKUP($V90,Data!$A$6:$A$1806,Data!$F$6:$F$1806) -> 0 | AC90: =LOOKUP($V90,Data!$A$6:$A$1806,Data!$H$6:$H$1806) -> 0 | AD90: =LOOKUP($V90,Data!$A$6:$A$1806,Data!$I$6:$I$1806) -> 0 | AE90: =IF(LOOKUP($V90,Data!$A$6:$A$1806,Data!$J$6:$J$1806)>0,(LOOKUP($V90,Data!$A$6:$A$1806,Data!$J$6:$J$1806)*-1),LOOKUP($V90,Data!$A$6:$A$1806,Data!$J$6:$J$1806)) -> -653 | AF90: =LOOKUP($V90,Data!$A$6:$A$1806,Data!$K$6:$K$1806) -> 30094.42578 | AG90: 706.8703079 | AH90: T+22 sec | AI90: 40679.33819 | AJ90: =AVERAGE($W$89:$W$105) -> 59.89716092 | AK90: =AVERAGE($X$89:$X$105) -> 0 | AL90: =AVERAGE($Y$89:$Y$105) -> 0 | AM90: =AVERAGE($Z$89:$Z$105) -> 0 | AN90: =AVERAGE($AA$89:$AA$105) -> 0 | AP90: =AVERAGE($AC$89:$AC$105) -> 0 | AQ90: =AVERAGE($AD$89:$AD$105) -> 0 | AR90: =AVERAGE($AE$89:$AE$105) -> -653 | AS90: =AVERAGE($AF$89:$AF$105) -> 30136.76953 | AT90: =AVERAGE($AG$89:$AG$105) -> 671.5391742 | AU90: =AR90*-1 -> 653 | AV90: =AVERAGE(AW$89:AW$105) -> 464.9540564 | AW90: 440.7779562 | AX90: 0.1082496643 | AY90: -653
A91: T+24 sec | B91: 40679.33822 | C91: =LOOKUP(B91,Data!$A$6:$A$1806,Data!B$6:B$1806) -> 59.89242172 | D91: =LOOKUP(B91,Data!$A$6:$A$1806,Data!C$6:C$1806) -> 0 | E91: 59.89716092 | F91: 0 | G91: 19590 | H91: =(IF((C91-L$2)>0,(IF(C91<'Copy Results'!$C$3,((C91-L$2-L$5)/((L$4*L$2)-L$5)*G91*-1),(('Copy Results'!$C$3-L$2-L$5)/((L$4*L$2)-L$5)*G91*-1))),IF(C91>'Copy Results'!$C$2,((C91-L$2+L$5)/((L$4*L$2)-L$5)*G91*-1),(('Copy Results'!$C$2-L$2+L$5)/((L$4*L$2)-L$5)*G91*-1)))) -> 702.4861526 | I91: 714.6970975 | K91: 653 | L91: -4.263676488 | M91: 1137.487002 | N91: =AVERAGE(D$79:D91) -> 0 | O91: =AVERAGE(M$79:M91) -> 1075.989557 | P91: 424.7774527 | Q91: =AVERAGE(P$79:P91) -> 448.2276734 | U91: T+24 sec | V91: 40679.33822 | W91: =LOOKUP($V91,Data!$A$6:$A$1806,Data!$B$6:$B$1806) -> 59.89242172 | X91: =LOOKUP($V91,Data!$A$6:$A$1806,Data!$C$6:$C$1806) -> 0 | Y91: =LOOKUP($V91,Data!$A$6:$A$1806,Data!$D$6:$D$1806) -> 0 | Z91: =IF($Z$1="+",LOOKUP($V91,Data!$A$6:$A$1806,Data!$E$6:$E$1806)*-1,LOOKUP($V91,Data!$A$6:$A$1806,Data!$E$6:$E$1806)) -> 0 | AA91: =LOOKUP($V91,Data!$A$6:$A$1806,Data!$F$6:$F$1806) -> 0 | AC91: =LOOKUP($V91,Data!$A$6:$A$1806,Data!$H$6:$H$1806) -> 0 | AD91: =LOOKUP($V91,Data!$A$6:$A$1806,Data!$I$6:$I$1806) -> 0 | AE91: =IF(LOOKUP($V91,Data!$A$6:$A$1806,Data!$J$6:$J$1806)>0,(LOOKUP($V91,Data!$A$6:$A$1806,Data!$J$6:$J$1806)*-1),LOOKUP($V91,Data!$A$6:$A$1806,Data!$J$6:$J$1806)) -> -653 | AF91: =LOOKUP($V91,Data!$A$6:$A$1806,Data!$K$6:$K$1806) -> 30094.42578 | AG91: 702.4861526 | AH91: T+24 sec | AI91: 40679.33822 | AJ91: 59.89716092 | AK91: 0 | AL91: 0 | AM91: 0 | AN91: 0 | AP91: 0 | AQ91: 0 | AR91: -653 | AS91: 30136.76953 | AT91: 671.5391742 | AU91: 653 | AV91: 464.9540564 | AW91: 443.5643835 | AX91: 0.1075782776 | AY91: -653
A92: T+26 sec | B92: 40679.33824 | C92: =LOOKUP(B92,Data!$A$6:$A$1806,Data!B$6:B$1806) -> 59.89306259 | D92: =LOOKUP(B92,Data!$A$6:$A$1806,Data!C$6:C$1806) -> 0 | E92: 59.89716092 | F92: 0 | G92: 19590 | H92: =(IF((C92-L$2)>0,(IF(C92<'Copy Results'!$C$3,((C92-L$2-L$5)/((L$4*L$2)-L$5)*G92*-1),(('Copy Results'!$C$3-L$2-L$5)/((L$4*L$2)-L$5)*G92*-1))),IF(C92>'Copy Results'!$C$2,((C92-L$2+L$5)/((L$4*L$2)-L$5)*G92*-1),(('Copy Results'!$C$2-L$2+L$5)/((L$4*L$2)-L$5)*G92*-1)))) -> 698.3012772 | I92: 708.9585604 | K92: 653 | L92: -4.263676488 | M92: 1127.484789 | N92: =AVERAGE(D$79:D92) -> 0 | O92: =AVERAGE(M$79:M92) -> 1079.667788 | P92: 420.5137763 | Q92: =AVERAGE(P$79:P92) -> 446.0958352 | U92: T+26 sec | V92: 40679.33824 | W92: =LOOKUP($V92,Data!$A$6:$A$1806,Data!$B$6:$B$1806) -> 59.89306259 | X92: =LOOKUP($V92,Data!$A$6:$A$1806,Data!$C$6:$C$1806) -> 0 | Y92: =LOOKUP($V92,Data!$A$6:$A$1806,Data!$D$6:$D$1806) -> 0 | Z92: =IF($Z$1="+",LOOKUP($V92,Data!$A$6:$A$1806,Data!$E$6:$E$1806)*-1,LOOKUP($V92,Data!$A$6:$A$1806,Data!$E$6:$E$1806)) -> 0 | AA92: =LOOKUP($V92,Data!$A$6:$A$1806,Data!$F$6:$F$1806) -> 0 | AC92: =LOOKUP($V92,Data!$A$6:$A$1806,Data!$H$6:$H$1806) -> 0 | AD92: =LOOKUP($V92,Data!$A$6:$A$1806,Data!$I$6:$I$1806) -> 0 | AE92: =IF(LOOKUP($V92,Data!$A$6:$A$1806,Data!$J$6:$J$1806)>0,(LOOKUP($V92,Data!$A$6:$A$1806,Data!$J$6:$J$1806)*-1),LOOKUP($V92,Data!$A$6:$A$1806,Data!$J$6:$J$1806)) -> -653 | AF92: =LOOKUP($V92,Data!$A$6:$A$1806,Data!$K$6:$K$1806) -> 30139.48633 | AG92: 698.3012772 | AH92: T+26 sec | AI92: 40679.33824 | AJ92: 59.89716092 | AK92: 0 | AL92: 0 | AM92: 0 | AN92: 0 | AP92: 0 | AQ92: 0 | AR92: -653 | AS92: 30136.76953 | AT92: 671.5391742 | AU92: 653 | AV92: 464.9540564 | AW92: 446.2572182 | AX92: 0.1069374084 | AY92: -653
A93: T+28 sec | B93: 40679.33826 | C93: =LOOKUP(B93,Data!$A$6:$A$1806,Data!B$6:B$1806) -> 59.89306259 | D93: =LOOKUP(B93,Data!$A$6:$A$1806,Data!C$6:C$1806) -> 0 | E93: 59.89716092 | F93: 0 | G93: 19590 | H93: =(IF((C93-L$2)>0,(IF(C93<'Copy Results'!$C$3,((C93-L$2-L$5)/((L$4*L$2)-L$5)*G93*-1),(('Copy Results'!$C$3-L$2-L$5)/((L$4*L$2)-L$5)*G93*-1))),IF(C93>'Copy Results'!$C$2,((C93-L$2+L$5)/((L$4*L$2)-L$5)*G93*-1),(('Copy Results'!$C$2-L$2+L$5)/((L$4*L$2)-L$5)*G93*-1)))) -> 698.3012772 | I93: 705.2285112 | K93: 653 | L93: -4.263676488 | M93: 1119.491063 | N93: =AVERAGE(D$79:D93) -> 0 | O93: =AVERAGE(M$79:M93) -> 1082.322673 | P93: 416.2500998 | Q93: =AVERAGE(P$79:P93) -> 443.9639969 | U93: T+28 sec | V93: 40679.33826 | W93: =LOOKUP($V93,Data!$A$6:$A$1806,Data!$B$6:$B$1806) -> 59.89306259 | X93: =LOOKUP($V93,Data!$A$6:$A$1806,Data!$C$6:$C$1806) -> 0 | Y93: =LOOKUP($V93,Data!$A$6:$A$1806,Data!$D$6:$D$1806) -> 0 | Z93: =IF($Z$1="+",LOOKUP($V93,Data!$A$6:$A$1806,Data!$E$6:$E$1806)*-1,LOOKUP($V93,Data!$A$6:$A$1806,Data!$E$6:$E$1806)) -> 0 | AA93: =LOOKUP($V93,Data!$A$6:$A$1806,Data!$F$6:$F$1806) -> 0 | AC93: =LOOKUP($V93,Data!$A$6:$A$1806,Data!$H$6:$H$1806) -> 0 | AD93: =LOOKUP($V93,Data!$A$6:$A$1806,Data!$I$6:$I$1806) -> 0 | AE93: =IF(LOOKUP($V93,Data!$A$6:$A$1806,Data!$J$6:$J$1806)>0,(LOOKUP($V93,Data!$A$6:$A$1806,Data!$J$6:$J$1806)*-1),LOOKUP($V93,Data!$A$6:$A$1806,Data!$J$6:$J$1806)) -> -653 | AF93: =LOOKUP($V93,Data!$A$6:$A$1806,Data!$K$6:$K$1806) -> 30139.48633 | AG93: 698.3012772 | AH93: T+28 sec | AI93: 40679.33826 | AJ93: 59.89716092 | AK93: 0 | AL93: 0 | AM93: 0 | AN93: 0 | AP93: 0 | AQ93: 0 | AR93: -653 | AS93: 30136.76953 | AT93: 671.5391742 | AU93: 653 | AV93: 464.9540564 | AW93: 446.2572182 | AX93: 0.1069374084 | AY93: -653
A94: T+30 sec | B94: 40679.33829 | C94: =LOOKUP(B94,Data!$A$6:$A$1806,Data!B$6:B$1806) -> 59.89306259 | D94: =LOOKUP(B94,Data!$A$6:$A$1806,Data!C$6:C$1806) -> 0 | E94: 59.89716092 | F94: 0 | G94: 19590 | H94: =(IF((C94-L$2)>0,(IF(C94<'Copy Results'!$C$3,((C94-L$2-L$5)/((L$4*L$2)-L$5)*G94*-1),(('Copy Results'!$C$3-L$2-L$5)/((L$4*L$2)-L$5)*G94*-1))),IF(C94>'Copy Results'!$C$2,((C94-L$2+L$5)/((L$4*L$2)-L$5)*G94*-1),(('Copy Results'!$C$2-L$2+L$5)/((L$4*L$2)-L$5)*G94*-1)))) -> 698.3012772 | I94: 702.8039793 | K94: 653 | L94: -4.263676488 | M94: 1112.802855 | N94: =AVERAGE(D$79:D94) -> 0 | O94: =AVERAGE(M$79:M94) -> 1084.227684 | P94: 411.9864233 | Q94: =AVERAGE(P$79:P94) -> 441.8321587 | U94: T+30 sec | V94: 40679.33829 | W94: =LOOKUP($V94,Data!$A$6:$A$1806,Data!$B$6:$B$1806) -> 59.89306259 | X94: =LOOKUP($V94,Data!$A$6:$A$1806,Data!$C$6:$C$1806) -> 0 | Y94: =LOOKUP($V94,Data!$A$6:$A$1806,Data!$D$6:$D$1806) -> 0 | Z94: =IF($Z$1="+",LOOKUP($V94,Data!$A$6:$A$1806,Data!$E$6:$E$1806)*-1,LOOKUP($V94,Data!$A$6:$A$1806,Data!$E$6:$E$1806)) -> 0 | AA94: =LOOKUP($V94,Data!$A$6:$A$1806,Data!$F$6:$F$1806) -> 0 | AC94: =LOOKUP($V94,Data!$A$6:$A$1806,Data!$H$6:$H$1806) -> 0 | AD94: =LOOKUP($V94,Data!$A$6:$A$1806,Data!$I$6:$I$1806) -> 0 | AE94: =IF(LOOKUP($V94,Data!$A$6:$A$1806,Data!$J$6:$J$1806)>0,(LOOKUP($V94,Data!$A$6:$A$1806,Data!$J$6:$J$1806)*-1),LOOKUP($V94,Data!$A$6:$A$1806,Data!$J$6:$J$1806)) -> -653 | AF94: =LOOKUP($V94,Data!$A$6:$A$1806,Data!$K$6:$K$1806) -> 30133.375 | AG94: 698.3012772 | AH94: T+30 sec | AI94: 40679.33829 | AJ94: 59.89716092 | AK94: 0 | AL94: 0 | AM94: 0 | AN94: 0 | AP94: 0 | AQ94: 0 | AR94: -653 | AS94: 30136.76953 | AT94: 671.5391742 | AU94: 653 | AV94: 464.9540564 | AW94: 446.2572182 | AX94: 0.1069374084 | AY94: -653
A95: T+32 sec | B95: 40679.33831 | C95: =LOOKUP(B95,Data!$A$6:$A$1806,Data!B$6:B$1806) -> 59.89532089 | D95: =LOOKUP(B95,Data!$A$6:$A$1806,Data!C$6:C$1806) -> 0 | E95: 59.89716092 | F95: 0 | G95: 19590 | H95: =(IF((C95-L$2)>0,(IF(C95<'Copy Results'!$C$3,((C95-L$2-L$5)/((L$4*L$2)-L$5)*G95*-1),(('Copy Results'!$C$3-L$2-L$5)/((L$4*L$2)-L$5)*G95*-1))),IF(C95>'Copy Results'!$C$2,((C95-L$2+L$5)/((L$4*L$2)-L$5)*G95*-1),(('Copy Results'!$C$2-L$2+L$5)/((L$4*L$2)-L$5)*G95*-1)))) -> 683.5545731 | I95: 696.0666871 | K95: 653 | L95: -4.263676488 | M95: 1101.801886 | N95: =AVERAGE(D$79:D95) -> 0 | O95: =AVERAGE(M$79:M95) -> 1085.261461 | P95: 407.7227468 | Q95: =AVERAGE(P$79:P95) -> 439.7003205 | U95: T+32 sec | V95: 40679.33831 | W95: =LOOKUP($V95,Data!$A$6:$A$1806,Data!$B$6:$B$1806) -> 59.89532089 | X95: =LOOKUP($V95,Data!$A$6:$A$1806,Data!$C$6:$C$1806) -> 0 | Y95: =LOOKUP($V95,Data!$A$6:$A$1806,Data!$D$6:$D$1806) -> 0 | Z95: =IF($Z$1="+",LOOKUP($V95,Data!$A$6:$A$1806,Data!$E$6:$E$1806)*-1,LOOKUP($V95,Data!$A$6:$A$1806,Data!$E$6:$E$1806)) -> 0 | AA95: =LOOKUP($V95,Data!$A$6:$A$1806,Data!$F$6:$F$1806) -> 0 | AC95: =LOOKUP($V95,Data!$A$6:$A$1806,Data!$H$6:$H$1806) -> 0 | AD95: =LOOKUP($V95,Data!$A$6:$A$1806,Data!$I$6:$I$1806) -> 0 | AE95: =IF(LOOKUP($V95,Data!$A$6:$A$1806,Data!$J$6:$J$1806)>0,(LOOKUP($V95,Data!$A$6:$A$1806,Data!$J$6:$J$1806)*-1),LOOKUP($V95,Data!$A$6:$A$1806,Data!$J$6:$J$1806)) -> -653 | AF95: =LOOKUP($V95,Data!$A$6:$A$1806,Data!$K$6:$K$1806) -> 30133.375 | AG95: 683.5545731 | AH95: T+32 sec | AI95: 40679.33831 | AJ95: 59.89716092 | AK95: 0 | AL95: 0 | AM95: 0 | AN95: 0 | AP95: 0 | AQ95: 0 | AR95: -653 | AS95: 30136.76953 | AT95: 671.5391742 | AU95: 653 | AV95: 464.9540564 | AW95: 456.0125549 | AX95: 0.1046791077 | AY95: -653
A96: T+34 sec | B96: 40679.33833 | C96: =LOOKUP(B96,Data!$A$6:$A$1806,Data!B$6:B$1806) -> 59.89788437 | D96: =LOOKUP(B96,Data!$A$6:$A$1806,Data!C$6:C$1806) -> 0 | E96: 59.89716092 | F96: 0 | G96: 19590 | H96: =(IF((C96-L$2)>0,(IF(C96<'Copy Results'!$C$3,((C96-L$2-L$5)/((L$4*L$2)-L$5)*G96*-1),(('Copy Results'!$C$3-L$2-L$5)/((L$4*L$2)-L$5)*G96*-1))),IF(C96>'Copy Results'!$C$2,((C96-L$2+L$5)/((L$4*L$2)-L$5)*G96*-1),(('Copy Results'!$C$2-L$2+L$5)/((L$4*L$2)-L$5)*G96*-1)))) -> 666.8150711 | I96: 685.8286215 | K96: 653 | L96: -4.263676488 | M96: 1087.300144 | N96: =AVERAGE(D$79:D96) -> 0 | O96: =AVERAGE(M$79:M96) -> 1085.374721 | P96: 403.4590703 | Q96: =AVERAGE(P$79:P96) -> 437.5684822 | U96: T+34 sec | V96: 40679.33833 | W96: =LOOKUP($V96,Data!$A$6:$A$1806,Data!$B$6:$B$1806) -> 59.89788437 | X96: =LOOKUP($V96,Data!$A$6:$A$1806,Data!$C$6:$C$1806) -> 0 | Y96: =LOOKUP($V96,Data!$A$6:$A$1806,Data!$D$6:$D$1806) -> 0 | Z96: =IF($Z$1="+",LOOKUP($V96,Data!$A$6:$A$1806,Data!$E$6:$E$1806)*-1,LOOKUP($V96,Data!$A$6:$A$1806,Data!$E$6:$E$1806)) -> 0 | AA96: =LOOKUP($V96,Data!$A$6:$A$1806,Data!$F$6:$F$1806) -> 0 | AC96: =LOOKUP($V96,Data!$A$6:$A$1806,Data!$H$6:$H$1806) -> 0 | AD96: =LOOKUP($V96,Data!$A$6:$A$1806,Data!$I$6:$I$1806) -> 0 | AE96: =IF(LOOKUP($V96,Data!$A$6:$A$1806,Data!$J$6:$J$1806)>0,(LOOKUP($V96,Data!$A$6:$A$1806,Data!$J$6:$J$1806)*-1),LOOKUP($V96,Data!$A$6:$A$1806,Data!$J$6:$J$1806)) -> -653 | AF96: =LOOKUP($V96,Data!$A$6:$A$1806,Data!$K$6:$K$1806) -> 30133.375 | AG96: 666.8150711 | AH96: T+34 sec | AI96: 40679.33833 | AJ96: 59.89716092 | AK96: 0 | AL96: 0 | AM96: 0 | AN96: 0 | AP96: 0 | AQ96: 0 | AR96: -653 | AS96: 30136.76953 | AT96: 671.5391742 | AU96: 653 | AV96: 464.9540564 | AW96: 467.6161914 | AX96: 0.1021156311 | AY96: -653
A97: T+36 sec | B97: 40679.33836 | C97: =LOOKUP(B97,Data!$A$6:$A$1806,Data!B$6:B$1806) -> 59.8995018 | D97: =LOOKUP(B97,Data!$A$6:$A$1806,Data!C$6:C$1806) -> 0 | E97: 59.89716092 | F97: 0 | G97: 19590 | H97: =(IF((C97-L$2)>0,(IF(C97<'Copy Results'!$C$3,((C97-L$2-L$5)/((L$4*L$2)-L$5)*G97*-1),(('Copy Results'!$C$3-L$2-L$5)/((L$4*L$2)-L$5)*G97*-1))),IF(C97>'Copy Results'!$C$2,((C97-L$2+L$5)/((L$4*L$2)-L$5)*G97*-1),(('Copy Results'!$C$2-L$2+L$5)/((L$4*L$2)-L$5)*G97*-1)))) -> 656.2532425 | I97: 675.4772389 | K97: 653 | L97: -4.263676488 | M97: 1072.685085 | N97: =AVERAGE(D$79:D97) -> 0 | O97: =AVERAGE(M$79:M97) -> 1084.706845 | P97: 399.1953938 | Q97: =AVERAGE(P$79:P97) -> 435.436644 | U97: T+36 sec | V97: 40679.33836 | W97: =LOOKUP($V97,Data!$A$6:$A$1806,Data!$B$6:$B$1806) -> 59.8995018 | X97: =LOOKUP($V97,Data!$A$6:$A$1806,Data!$C$6:$C$1806) -> 0 | Y97: =LOOKUP($V97,Data!$A$6:$A$1806,Data!$D$6:$D$1806) -> 0 | Z97: =IF($Z$1="+",LOOKUP($V97,Data!$A$6:$A$1806,Data!$E$6:$E$1806)*-1,LOOKUP($V97,Data!$A$6:$A$1806,Data!$E$6:$E$1806)) -> 0 | AA97: =LOOKUP($V97,Data!$A$6:$A$1806,Data!$F$6:$F$1806) -> 0 | AC97: =LOOKUP($V97,Data!$A$6:$A$1806,Data!$H$6:$H$1806) -> 0 | AD97: =LOOKUP($V97,Data!$A$6:$A$1806,Data!$I$6:$I$1806) -> 0 | AE97: =IF(LOOKUP($V97,Data!$A$6:$A$1806,Data!$J$6:$J$1806)>0,(LOOKUP($V97,Data!$A$6:$A$1806,Data!$J$6:$J$1806)*-1),LOOKUP($V97,Data!$A$6:$A$1806,Data!$J$6:$J$1806)) -> -653 | AF97: =LOOKUP($V97,Data!$A$6:$A$1806,Data!$K$6:$K$1806) -> 30133.375 | AG97: 656.2532425 | AH97: T+36 sec | AI97: 40679.33836 | AJ97: 59.89716092 | AK97: 0 | AL97: 0 | AM97: 0 | AN97: 0 | AP97: 0 | AQ97: 0 | AR97: -653 | AS97: 30136.76953 | AT97: 671.5391742 | AU97: 653 | AV97: 464.9540564 | AW97: 475.2463344 | AX97: 0.1004981995 | AY97: -653
A98: T+38 sec | B98: 40679.33838 | C98: =LOOKUP(B98,Data!$A$6:$A$1806,Data!B$6:B$1806) -> 59.90081406 | D98: =LOOKUP(B98,Data!$A$6:$A$1806,Data!C$6:C$1806) -> 0 | E98: 59.89716092 | F98: 0 | G98: 19590 | H98: =(IF((C98-L$2)>0,(IF(C98<'Copy Results'!$C$3,((C98-L$2-L$5)/((L$4*L$2)-L$5)*G98*-1),(('Copy Results'!$C$3-L$2-L$5)/((L$4*L$2)-L$5)*G98*-1))),IF(C98>'Copy Results'!$C$2,((C98-L$2+L$5)/((L$4*L$2)-L$5)*G98*-1),(('Copy Results'!$C$2-L$2+L$5)/((L$4*L$2)-L$5)*G98*-1)))) -> 647.6842117 | I98: 665.7496794 | K98: 653 | L98: -4.263676488 | M98: 1058.693849 | N98: =AVERAGE(D$79:D98) -> 0 | O98: =AVERAGE(M$79:M98) -> 1083.406195 | P98: 394.9317173 | Q98: =AVERAGE(P$79:P98) -> 433.3048057 | U98: T+38 sec | V98: 40679.33838 | W98: =LOOKUP($V98,Data!$A$6:$A$1806,Data!$B$6:$B$1806) -> 59.90081406 | X98: =LOOKUP($V98,Data!$A$6:$A$1806,Data!$C$6:$C$1806) -> 0 | Y98: =LOOKUP($V98,Data!$A$6:$A$1806,Data!$D$6:$D$1806) -> 0 | Z98: =IF($Z$1="+",LOOKUP($V98,Data!$A$6:$A$1806,Data!$E$6:$E$1806)*-1,LOOKUP($V98,Data!$A$6:$A$1806,Data!$E$6:$E$1806)) -> 0 | AA98: =LOOKUP($V98,Data!$A$6:$A$1806,Data!$F$6:$F$1806) -> 0 | AC98: =LOOKUP($V98,Data!$A$6:$A$1806,Data!$H$6:$H$1806) -> 0 | AD98: =LOOKUP($V98,Data!$A$6:$A$1806,Data!$I$6:$I$1806) -> 0 | AE98: =IF(LOOKUP($V98,Data!$A$6:$A$1806,Data!$J$6:$J$1806)>0,(LOOKUP($V98,Data!$A$6:$A$1806,Data!$J$6:$J$1806)*-1),LOOKUP($V98,Data!$A$6:$A$1806,Data!$J$6:$J$1806)) -> -653 | AF98: =LOOKUP($V98,Data!$A$6:$A$1806,Data!$K$6:$K$1806) -> 30137.26367 | AG98: 647.6842117 | AH98: T+38 sec | AI98: 40679.33838 | AJ98: 59.89716092 | AK98: 0 | AL98: 0 | AM98: 0 | AN98: 0 | AP98: 0 | AQ98: 0 | AR98: -653 | AS98: 30136.76953 | AT98: 671.5391742 | AU98: 653 | AV98: 464.9540564 | AW98: 481.6222456 | AX98: 0.0991859436 | AY98: -653
A99: T+40 sec | B99: 40679.3384 | C99: =LOOKUP(B99,Data!$A$6:$A$1806,Data!B$6:B$1806) -> 59.90209579 | D99: =LOOKUP(B99,Data!$A$6:$A$1806,Data!C$6:C$1806) -> 0 | E99: 59.89716092 | F99: 0 | G99: 19590 | H99: =(IF((C99-L$2)>0,(IF(C99<'Copy Results'!$C$3,((C99-L$2-L$5)/((L$4*L$2)-L$5)*G99*-1),(('Copy Results'!$C$3-L$2-L$5)/((L$4*L$2)-L$5)*G99*-1))),IF(C99>'Copy Results'!$C$2,((C99-L$2+L$5)/((L$4*L$2)-L$5)*G99*-1),(('Copy Results'!$C$2-L$2+L$5)/((L$4*L$2)-L$5)*G99*-1)))) -> 639.3144608 | I99: 656.4973529 | K99: 653 | L99: -4.263676488 | M99: 1045.177846 | N99: =AVERAGE(D$79:D99) -> 0 | O99: =AVERAGE(M$79:M99) -> 1081.585798 | P99: 390.6680408 | Q99: =AVERAGE(P$79:P99) -> 431.1729675 | U99: T+40 sec | V99: 40679.3384 | W99: =LOOKUP($V99,Data!$A$6:$A$1806,Data!$B$6:$B$1806) -> 59.90209579 | X99: =LOOKUP($V99,Data!$A$6:$A$1806,Data!$C$6:$C$1806) -> 0 | Y99: =LOOKUP($V99,Data!$A$6:$A$1806,Data!$D$6:$D$1806) -> 0 | Z99: =IF($Z$1="+",LOOKUP($V99,Data!$A$6:$A$1806,Data!$E$6:$E$1806)*-1,LOOKUP($V99,Data!$A$6:$A$1806,Data!$E$6:$E$1806)) -> 0 | AA99: =LOOKUP($V99,Data!$A$6:$A$1806,Data!$F$6:$F$1806) -> 0 | AC99: =LOOKUP($V99,Data!$A$6:$A$1806,Data!$H$6:$H$1806) -> 0 | AD99: =LOOKUP($V99,Data!$A$6:$A$1806,Data!$I$6:$I$1806) -> 0 | AE99: =IF(LOOKUP($V99,Data!$A$6:$A$1806,Data!$J$6:$J$1806)>0,(LOOKUP($V99,Data!$A$6:$A$1806,Data!$J$6:$J$1806)*-1),LOOKUP($V99,Data!$A$6:$A$1806,Data!$J$6:$J$1806)) -> -653 | AF99: =LOOKUP($V99,Data!$A$6:$A$1806,Data!$K$6:$K$1806) -> 30137.26367 | AG99: 639.3144608 | AH99: T+40 sec | AI99: 40679.3384 | AJ99: 59.89716092 | AK99: 0 | AL99: 0 | AM99: 0 | AN99: 0 | AP99: 0 | AQ99: 0 | AR99: -653 | AS99: 30136.76953 | AT99: 671.5391742 | AU99: 653 | AV99: 464.9540564 | AW99: 488.0172298 | AX99: 0.09790420532 | AY99: -653
A100: T+42 sec | B100: 40679.33843 | C100: =LOOKUP(B100,Data!$A$6:$A$1806,Data!B$6:B$1806) -> 59.90179062 | D100: =LOOKUP(B100,Data!$A$6:$A$1806,Data!C$6:C$1806) -> 0 | E100: 59.89716092 | F100: 0 | G100: 19590 | H100: =(IF((C100-L$2)>0,(IF(C100<'Copy Results'!$C$3,((C100-L$2-L$5)/((L$4*L$2)-L$5)*G100*-1),(('Copy Results'!$C$3-L$2-L$5)/((L$4*L$2)-L$5)*G100*-1))),IF(C100>'Copy Results'!$C$2,((C100-L$2+L$5)/((L$4*L$2)-L$5)*G100*-1),(('Copy Results'!$C$2-L$2+L$5)/((L$4*L$2)-L$5)*G100*-1)))) -> 641.3072586 | I100: 651.1808199 | K100: 653 | L100: -4.263676488 | M100: 1035.597636 | N100: =AVERAGE(D$79:D100) -> 0 | O100: =AVERAGE(M$79:M100) -> 1079.495427 | P100: 386.4043644 | Q100: =AVERAGE(P$79:P100) -> 429.0411292 | U100: T+42 sec | V100: 40679.33843 | W100: =LOOKUP($V100,Data!$A$6:$A$1806,Data!$B$6:$B$1806) -> 59.90179062 | X100: =LOOKUP($V100,Data!$A$6:$A$1806,Data!$C$6:$C$1806) -> 0 | Y100: =LOOKUP($V100,Data!$A$6:$A$1806,Data!$D$6:$D$1806) -> 0 | Z100: =IF($Z$1="+",LOOKUP($V100,Data!$A$6:$A$1806,Data!$E$6:$E$1806)*-1,LOOKUP($V100,Data!$A$6:$A$1806,Data!$E$6:$E$1806)) -> 0 | AA100: =LOOKUP($V100,Data!$A$6:$A$1806,Data!$F$6:$F$1806) -> 0 | AC100: =LOOKUP($V100,Data!$A$6:$A$1806,Data!$H$6:$H$1806) -> 0 | AD100: =LOOKUP($V100,Data!$A$6:$A$1806,Data!$I$6:$I$1806) -> 0 | AE100: =IF(LOOKUP($V100,Data!$A$6:$A$1806,Data!$J$6:$J$1806)>0,(LOOKUP($V100,Data!$A$6:$A$1806,Data!$J$6:$J$1806)*-1),LOOKUP($V100,Data!$A$6:$A$1806,Data!$J$6:$J$1806)) -> -653 | AF100: =LOOKUP($V100,Data!$A$6:$A$1806,Data!$K$6:$K$1806) -> 30137.26367 | AG100: 641.3072586 | AH100: T+42 sec | AI100: 40679.33843 | AJ100: 59.89716092 | AK100: 0 | AL100: 0 | AM100: 0 | AN100: 0 | AP100: 0 | AQ100: 0 | AR100: -653 | AS100: 30136.76953 | AT100: 671.5391742 | AU100: 653 | AV100: 464.9540564 | AW100: 486.4792594 | AX100: 0.0982093811 | AY100: -653
A101: T+44 sec | B101: 40679.33845 | C101: =LOOKUP(B101,Data!$A$6:$A$1806,Data!B$6:B$1806) -> 59.90081406 | D101: =LOOKUP(B101,Data!$A$6:$A$1806,Data!C$6:C$1806) -> 0 | E101: 59.89716092 | F101: 0 | G101: 19590 | H101: =(IF((C101-L$2)>0,(IF(C101<'Copy Results'!$C$3,((C101-L$2-L$5)/((L$4*L$2)-L$5)*G101*-1),(('Copy Results'!$C$3-L$2-L$5)/((L$4*L$2)-L$5)*G101*-1))),IF(C101>'Copy Results'!$C$2,((C101-L$2+L$5)/((L$4*L$2)-L$5)*G101*-1),(('Copy Results'!$C$2-L$2+L$5)/((L$4*L$2)-L$5)*G101*-1)))) -> 647.6842117 | I101: 649.957007 | K101: 653 | L101: -4.263676488 | M101: 1030.110147 | N101: =AVERAGE(D$79:D101) -> 0 | O101: =AVERAGE(M$79:M101) -> 1077.348241 | P101: 382.1406879 | Q101: =AVERAGE(P$79:P101) -> 426.909291 | U101: T+44 sec | V101: 40679.33845 | W101: =LOOKUP($V101,Data!$A$6:$A$1806,Data!$B$6:$B$1806) -> 59.90081406 | X101: =LOOKUP($V101,Data!$A$6:$A$1806,Data!$C$6:$C$1806) -> 0 | Y101: =LOOKUP($V101,Data!$A$6:$A$1806,Data!$D$6:$D$1806) -> 0 | Z101: =IF($Z$1="+",LOOKUP($V101,Data!$A$6:$A$1806,Data!$E$6:$E$1806)*-1,LOOKUP($V101,Data!$A$6:$A$1806,Data!$E$6:$E$1806)) -> 0 | AA101: =LOOKUP($V101,Data!$A$6:$A$1806,Data!$F$6:$F$1806) -> 0 | AC101: =LOOKUP($V101,Data!$A$6:$A$1806,Data!$H$6:$H$1806) -> 0 | AD101: =LOOKUP($V101,Data!$A$6:$A$1806,Data!$I$6:$I$1806) -> 0 | AE101: =IF(LOOKUP($V101,Data!$A$6:$A$1806,Data!$J$6:$J$1806)>0,(LOOKUP($V101,Data!$A$6:$A$1806,Data!$J$6:$J$1806)*-1),LOOKUP($V101,Data!$A$6:$A$1806,Data!$J$6:$J$1806)) -> -653 | AF101: =LOOKUP($V101,Data!$A$6:$A$1806,Data!$K$6:$K$1806) -> 30137.26367 | AG101: 647.6842117 | AH101: T+44 sec | AI101: 40679.33845 | AJ101: 59.89716092 | AK101: 0 | AL101: 0 | AM101: 0 | AN101: 0 | AP101: 0 | AQ101: 0 | AR101: -653 | AS101: 30136.76953 | AT101: 671.5391742 | AU101: 653 | AV101: 464.9540564 | AW101: 481.6222456 | AX101: 0.0991859436 | AY101: -653
A102: T+46 sec | B102: 40679.33847 | C102: =LOOKUP(B102,Data!$A$6:$A$1806,Data!B$6:B$1806) -> 59.90081406 | D102: =LOOKUP(B102,Data!$A$6:$A$1806,Data!C$6:C$1806) -> 0 | E102: 59.89716092 | F102: 0 | G102: 19590 | H102: =(IF((C102-L$2)>0,(IF(C102<'Copy Results'!$C$3,((C102-L$2-L$5)/((L$4*L$2)-L$5)*G102*-1),(('Copy Results'!$C$3-L$2-L$5)/((L$4*L$2)-L$5)*G102*-1))),IF(C102>'Copy Results'!$C$2,((C102-L$2+L$5)/((L$4*L$2)-L$5)*G102*-1),(('Copy Results'!$C$2-L$2+L$5)/((L$4*L$2)-L$5)*G102*-1)))) -> 647.6842117 | I102: 649.1615287 | K102: 653 | L102: -4.263676488 | M102: 1025.050992 | N102: =AVERAGE(D$79:D102) -> 0 | O102: =AVERAGE(M$79:M102) -> 1075.169189 | P102: 377.8770114 | Q102: =AVERAGE(P$79:P102) -> 424.7774527 | U102: T+46 sec | V102: 40679.33847 | W102: =LOOKUP($V102,Data!$A$6:$A$1806,Data!$B$6:$B$1806) -> 59.90081406 | X102: =LOOKUP($V102,Data!$A$6:$A$1806,Data!$C$6:$C$1806) -> 0 | Y102: =LOOKUP($V102,Data!$A$6:$A$1806,Data!$D$6:$D$1806) -> 0 | Z102: =IF($Z$1="+",LOOKUP($V102,Data!$A$6:$A$1806,Data!$E$6:$E$1806)*-1,LOOKUP($V102,Data!$A$6:$A$1806,Data!$E$6:$E$1806)) -> 0 | AA102: =LOOKUP($V102,Data!$A$6:$A$1806,Data!$F$6:$F$1806) -> 0 | AC102: =LOOKUP($V102,Data!$A$6:$A$1806,Data!$H$6:$H$1806) -> 0 | AD102: =LOOKUP($V102,Data!$A$6:$A$1806,Data!$I$6:$I$1806) -> 0 | AE102: =IF(LOOKUP($V102,Data!$A$6:$A$1806,Data!$J$6:$J$1806)>0,(LOOKUP($V102,Data!$A$6:$A$1806,Data!$J$6:$J$1806)*-1),LOOKUP($V102,Data!$A$6:$A$1806,Data!$J$6:$J$1806)) -> -653 | AF102: =LOOKUP($V102,Data!$A$6:$A$1806,Data!$K$6:$K$1806) -> 30171.375 | AG102: 647.6842117 | AH102: T+46 sec | AI102: 40679.33847 | AJ102: 59.89716092 | AK102: 0 | AL102: 0 | AM102: 0 | AN102: 0 | AP102: 0 | AQ102: 0 | AR102: -653 | AS102: 30136.76953 | AT102: 671.5391742 | AU102: 653 | AV102: 464.9540564 | AW102: 481.6222456 | AX102: 0.0991859436 | AY102: -653
A103: T+48 sec | B103: 40679.3385 | C103: =LOOKUP(B103,Data!$A$6:$A$1806,Data!B$6:B$1806) -> 59.90047836 | D103: =LOOKUP(B103,Data!$A$6:$A$1806,Data!C$6:C$1806) -> 0 | E103: 59.89716092 | F103: 0 | G103: 19590 | H103: =(IF((C103-L$2)>0,(IF(C103<'Copy Results'!$C$3,((C103-L$2-L$5)/((L$4*L$2)-L$5)*G103*-1),(('Copy Results'!$C$3-L$2-L$5)/((L$4*L$2)-L$5)*G103*-1))),IF(C103>'Copy Results'!$C$2,((C103-L$2+L$5)/((L$4*L$2)-L$5)*G103*-1),(('Copy Results'!$C$2-L$2+L$5)/((L$4*L$2)-L$5)*G103*-1)))) -> 649.8762894 | I103: 649.4116949 | K103: 653 | L103: -4.263676488 | M103: 1021.037482 | N103: =AVERAGE(D$79:D103) -> 0 | O103: =AVERAGE(M$79:M103) -> 1073.003921 | P103: 373.6133349 | Q103: =AVERAGE(P$79:P103) -> 422.6456145 | U103: T+48 sec | V103: 40679.3385 | W103: =LOOKUP($V103,Data!$A$6:$A$1806,Data!$B$6:$B$1806) -> 59.90047836 | X103: =LOOKUP($V103,Data!$A$6:$A$1806,Data!$C$6:$C$1806) -> 0 | Y103: =LOOKUP($V103,Data!$A$6:$A$1806,Data!$D$6:$D$1806) -> 0 | Z103: =IF($Z$1="+",LOOKUP($V103,Data!$A$6:$A$1806,Data!$E$6:$E$1806)*-1,LOOKUP($V103,Data!$A$6:$A$1806,Data!$E$6:$E$1806)) -> 0 | AA103: =LOOKUP($V103,Data!$A$6:$A$1806,Data!$F$6:$F$1806) -> 0 | AC103: =LOOKUP($V103,Data!$A$6:$A$1806,Data!$H$6:$H$1806) -> 0 | AD103: =LOOKUP($V103,Data!$A$6:$A$1806,Data!$I$6:$I$1806) -> 0 | AE103: =IF(LOOKUP($V103,Data!$A$6:$A$1806,Data!$J$6:$J$1806)>0,(LOOKUP($V103,Data!$A$6:$A$1806,Data!$J$6:$J$1806)*-1),LOOKUP($V103,Data!$A$6:$A$1806,Data!$J$6:$J$1806)) -> -653 | AF103: =LOOKUP($V103,Data!$A$6:$A$1806,Data!$K$6:$K$1806) -> 30171.375 | AG103: 649.8762894 | AH103: T+48 sec | AI103: 40679.3385 | AJ103: 59.89716092 | AK103: 0 | AL103: 0 | AM103: 0 | AN103: 0 | AP103: 0 | AQ103: 0 | AR103: -653 | AS103: 30136.76953 | AT103: 671.5391742 | AU103: 653 | AV103: 464.9540564 | AW103: 479.9749699 | AX103: 0.09952163696 | AY103: -653
A104: T+50 sec | B104: 40679.33852 | C104: =LOOKUP(B104,Data!$A$6:$A$1806,Data!B$6:B$1806) -> 59.89919662 | D104: =LOOKUP(B104,Data!$A$6:$A$1806,Data!C$6:C$1806) -> 0 | E104: 59.89716092 | F104: 0 | G104: 19590 | H104: =(IF((C104-L$2)>0,(IF(C104<'Copy Results'!$C$3,((C104-L$2-L$5)/((L$4*L$2)-L$5)*G104*-1),(('Copy Results'!$C$3-L$2-L$5)/((L$4*L$2)-L$5)*G104*-1))),IF(C104>'Copy Results'!$C$2,((C104-L$2+L$5)/((L$4*L$2)-L$5)*G104*-1),(('Copy Results'!$C$2-L$2+L$5)/((L$4*L$2)-L$5)*G104*-1)))) -> 658.2460403 | I104: 652.5037158 | K104: 653 | L104: -4.263676488 | M104: 1019.865826 | N104: =AVERAGE(D$79:D104) -> 0 | O104: =AVERAGE(M$79:M104) -> 1070.960148 | P104: 369.3496584 | Q104: =AVERAGE(P$79:P104) -> 420.5137763 | U104: T+50 sec | V104: 40679.33852 | W104: =LOOKUP($V104,Data!$A$6:$A$1806,Data!$B$6:$B$1806) -> 59.89919662 | X104: =LOOKUP($V104,Data!$A$6:$A$1806,Data!$C$6:$C$1806) -> 0 | Y104: =LOOKUP($V104,Data!$A$6:$A$1806,Data!$D$6:$D$1806) -> 0 | Z104: =IF($Z$1="+",LOOKUP($V104,Data!$A$6:$A$1806,Data!$E$6:$E$1806)*-1,LOOKUP($V104,Data!$A$6:$A$1806,Data!$E$6:$E$1806)) -> 0 | AA104: =LOOKUP($V104,Data!$A$6:$A$1806,Data!$F$6:$F$1806) -> 0 | AC104: =LOOKUP($V104,Data!$A$6:$A$1806,Data!$H$6:$H$1806) -> 0 | AD104: =LOOKUP($V104,Data!$A$6:$A$1806,Data!$I$6:$I$1806) -> 0 | AE104: =IF(LOOKUP($V104,Data!$A$6:$A$1806,Data!$J$6:$J$1806)>0,(LOOKUP($V104,Data!$A$6:$A$1806,Data!$J$6:$J$1806)*-1),LOOKUP($V104,Data!$A$6:$A$1806,Data!$J$6:$J$1806)) -> -653 | AF104: =LOOKUP($V104,Data!$A$6:$A$1806,Data!$K$6:$K$1806) -> 30168.76367 | AG104: 658.2460403 | AH104: T+50 sec | AI104: 40679.33852 | AJ104: 59.89716092 | AK104: 0 | AL104: 0 | AM104: 0 | AN104: 0 | AP104: 0 | AQ104: 0 | AR104: -653 | AS104: 30136.76953 | AT104: 671.5391742 | AU104: 653 | AV104: 464.9540564 | AW104: 473.7876846 | AX104: 0.1008033752 | AY104: -653
A105: T+52 sec | B105: 40679.33854 | C105: =LOOKUP(B105,Data!$A$6:$A$1806,Data!B$6:B$1806) -> 59.89886093 | D105: =LOOKUP(B105,Data!$A$6:$A$1806,Data!C$6:C$1806) -> 0 | E105: 59.89716092 | F105: 0 | G105: 19590 | H105: =(IF((C105-L$2)>0,(IF(C105<'Copy Results'!$C$3,((C105-L$2-L$5)/((L$4*L$2)-L$5)*G105*-1),(('Copy Results'!$C$3-L$2-L$5)/((L$4*L$2)-L$5)*G105*-1))),IF(C105>'Copy Results'!$C$2,((C105-L$2+L$5)/((L$4*L$2)-L$5)*G105*-1),(('Copy Results'!$C$2-L$2+L$5)/((L$4*L$2)-L$5)*G105*-1)))) -> 660.438118 | I105: 655.2807566 | K105: 653 | L105: -4.263676488 | M105: 1018.379191 | N105: =AVERAGE(D$79:D105) -> 0 | O105: =AVERAGE(M$79:M105) -> 1069.012705 | P105: 365.0859819 | Q105: =AVERAGE(P$79:P105) -> 418.381938 | U105: T+52 sec | V105: 40679.33854 | W105: =LOOKUP($V105,Data!$A$6:$A$1806,Data!$B$6:$B$1806) -> 59.89886093 | X105: =LOOKUP($V105,Data!$A$6:$A$1806,Data!$C$6:$C$1806) -> 0 | Y105: =LOOKUP($V105,Data!$A$6:$A$1806,Data!$D$6:$D$1806) -> 0 | Z105: =IF($Z$1="+",LOOKUP($V105,Data!$A$6:$A$1806,Data!$E$6:$E$1806)*-1,LOOKUP($V105,Data!$A$6:$A$1806,Data!$E$6:$E$1806)) -> 0 | AA105: =LOOKUP($V105,Data!$A$6:$A$1806,Data!$F$6:$F$1806) -> 0 | AC105: =LOOKUP($V105,Data!$A$6:$A$1806,Data!$H$6:$H$1806) -> 0 | AD105: =LOOKUP($V105,Data!$A$6:$A$1806,Data!$I$6:$I$1806) -> 0 | AE105: =IF(LOOKUP($V105,Data!$A$6:$A$1806,Data!$J$6:$J$1806)>0,(LOOKUP($V105,Data!$A$6:$A$1806,Data!$J$6:$J$1806)*-1),LOOKUP($V105,Data!$A$6:$A$1806,Data!$J$6:$J$1806)) -> -653 | AF105: =LOOKUP($V105,Data!$A$6:$A$1806,Data!$K$6:$K$1806) -> 30168.76367 | AG105: 660.438118 | AH105: T+52 sec | AI105: 40679.33854 | AJ105: 59.89716092 | AK105: 0 | AL105: 0 | AM105: 0 | AN105: 0 | AP105: 0 | AQ105: 0 | AR105: -653 | AS105: 30136.76953 | AT105: 671.5391742 | AU105: 653 | AV105: 464.9540564 | AW105: 472.1934768 | AX105: 0.1011390686 | AY105: -653
A106: T+54 sec | B106: 40679.33856 | C106: =LOOKUP(B106,Data!$A$6:$A$1806,Data!B$6:B$1806) -> 59.89855576 | D106: =LOOKUP(B106,Data!$A$6:$A$1806,Data!C$6:C$1806) -> 0 | G106: 19590 | H106: =(IF((C106-L$2)>0,(IF(C106<'Copy Results'!$C$3,((C106-L$2-L$5)/((L$4*L$2)-L$5)*G106*-1),(('Copy Results'!$C$3-L$2-L$5)/((L$4*L$2)-L$5)*G106*-1))),IF(C106>'Copy Results'!$C$2,((C106-L$2+L$5)/((L$4*L$2)-L$5)*G106*-1),(('Copy Results'!$C$2-L$2+L$5)/((L$4*L$2)-L$5)*G106*-1)))) -> 662.4309158 | I106: 657.7833123 | L106: -4.263676488 | M106: 1016.61807 | N106: =AVERAGE(D$79:D106) -> 0 | O106: =AVERAGE(M$79:M106) -> 1067.141468 | P106: 360.8223054 | Q106: =AVERAGE(P$79:P106) -> 416.2500998 | U106: T+54 sec | V106: 40679.33856 | W106: =LOOKUP($V106,Data!$A$6:$A$1806,Data!$B$6:$B$1806) -> 59.89855576 | X106: =LOOKUP($V106,Data!$A$6:$A$1806,Data!$C$6:$C$1806) -> 0 | Y106: =LOOKUP($V106,Data!$A$6:$A$1806,Data!$D$6:$D$1806) -> 0 | Z106: =IF($Z$1="+",LOOKUP($V106,Data!$A$6:$A$1806,Data!$E$6:$E$1806)*-1,LOOKUP($V106,Data!$A$6:$A$1806,Data!$E$6:$E$1806)) -> 0 | AA106: =LOOKUP($V106,Data!$A$6:$A$1806,Data!$F$6:$F$1806) -> 0 | AC106: =LOOKUP($V106,Data!$A$6:$A$1806,Data!$H$6:$H$1806) -> 0 | AD106: =LOOKUP($V106,Data!$A$6:$A$1806,Data!$I$6:$I$1806) -> 0 | AE106: =IF(LOOKUP($V106,Data!$A$6:$A$1806,Data!$J$6:$J$1806)>0,(LOOKUP($V106,Data!$A$6:$A$1806,Data!$J$6:$J$1806)*-1),LOOKUP($V106,Data!$A$6:$A$1806,Data!$J$6:$J$1806)) -> -653 | AF106: =LOOKUP($V106,Data!$A$6:$A$1806,Data!$K$6:$K$1806) -> 30168.76367 | AG106: 662.4309158 | AH106: T+54 sec | AI106: 40679.33856 | AW106: 470.7534784 | AX106: 0.1014442444 | AY106: -653
A107: T+56 sec | B107: 40679.33859 | C107: =LOOKUP(B107,Data!$A$6:$A$1806,Data!B$6:B$1806) -> 59.90017319 | D107: =LOOKUP(B107,Data!$A$6:$A$1806,Data!C$6:C$1806) -> 0 | G107: 19590 | H107: =(IF((C107-L$2)>0,(IF(C107<'Copy Results'!$C$3,((C107-L$2-L$5)/((L$4*L$2)-L$5)*G107*-1),(('Copy Results'!$C$3-L$2-L$5)/((L$4*L$2)-L$5)*G107*-1))),IF(C107>'Copy Results'!$C$2,((C107-L$2+L$5)/((L$4*L$2)-L$5)*G107*-1),(('Copy Results'!$C$2-L$2+L$5)/((L$4*L$2)-L$5)*G107*-1)))) -> 651.8690872 | I107: =L$13*H107+(1-L$13)*I106 -> 655.7133335 | L107: -4.263676488 | M107: 1010.284415 | N107: =AVERAGE(D$79:D107) -> 0 | O107: =AVERAGE(M$79:M107) -> 1065.18088 | P107: 356.5586289 | Q107: =AVERAGE(P$79:P107) -> 414.1182615 | U107: T+56 sec | V107: 40679.33859 | W107: =LOOKUP($V107,Data!$A$6:$A$1806,Data!$B$6:$B$1806) -> 59.90017319 | X107: =LOOKUP($V107,Data!$A$6:$A$1806,Data!$C$6:$C$1806) -> 0 | Y107: =LOOKUP($V107,Data!$A$6:$A$1806,Data!$D$6:$D$1806) -> 0 | Z107: =IF($Z$1="+",LOOKUP($V107,Data!$A$6:$A$1806,Data!$E$6:$E$1806)*-1,LOOKUP($V107,Data!$A$6:$A$1806,Data!$E$6:$E$1806)) -> 0 | AA107: =LOOKUP($V107,Data!$A$6:$A$1806,Data!$F$6:$F$1806) -> 0 | AC107: =LOOKUP($V107,Data!$A$6:$A$1806,Data!$H$6:$H$1806) -> 0 | AD107: =LOOKUP($V107,Data!$A$6:$A$1806,Data!$I$6:$I$1806) -> 0 | AE107: =IF(LOOKUP($V107,Data!$A$6:$A$1806,Data!$J$6:$J$1806)>0,(LOOKUP($V107,Data!$A$6:$A$1806,Data!$J$6:$J$1806)*-1),LOOKUP($V107,Data!$A$6:$A$1806,Data!$J$6:$J$1806)) -> -653 | AF107: =LOOKUP($V107,Data!$A$6:$A$1806,Data!$K$6:$K$1806) -> 30168.76367 | AG107: 651.8690872 | AH107: T+56 sec | AI107: 40679.33859 | AW107: 478.4871944 | AX107: 0.09982681274 | AY107: -653
A108: T+58 sec | B108: 40679.33861 | C108: =LOOKUP(B108,Data!$A$6:$A$1806,Data!B$6:B$1806) -> 59.90243149 | D108: =LOOKUP(B108,Data!$A$6:$A$1806,Data!C$6:C$1806) -> 0 | G108: =AE108*-M$4*10 -> 19590 | H108: =(IF((C108-L$2)>0,(IF(C108<'Copy Results'!$C$3,((C108-L$2-L$5)/((L$4*L$2)-L$5)*G108*-1),(('Copy Results'!$C$3-L$2-L$5)/((L$4*L$2)-L$5)*G108*-1))),IF(C108>'Copy Results'!$C$2,((C108-L$2+L$5)/((L$4*L$2)-L$5)*G108*-1),(('Copy Results'!$C$2-L$2+L$5)/((L$4*L$2)-L$5)*G108*-1)))) -> 637.1223831 | I108: 649.2065009 | L108: -4.263676488 | M108: 999.5139055 | N108: =AVERAGE(D$79:D108) -> 0 | O108: =AVERAGE(M$79:M108) -> 1062.991981 | P108: 352.2949524 | Q108: =AVERAGE(P$79:P108) -> 411.9864233 | U108: T+58 sec | V108: 40679.33861 | W108: =LOOKUP($V108,Data!$A$6:$A$1806,Data!$B$6:$B$1806) -> 59.90243149 | X108: =LOOKUP($V108,Data!$A$6:$A$1806,Data!$C$6:$C$1806) -> 0 | Y108: =LOOKUP($V108,Data!$A$6:$A$1806,Data!$D$6:$D$1806) -> 0 | Z108: =IF($Z$1="+",LOOKUP($V108,Data!$A$6:$A$1806,Data!$E$6:$E$1806)*-1,LOOKUP($V108,Data!$A$6:$A$1806,Data!$E$6:$E$1806)) -> 0 | AA108: =LOOKUP($V108,Data!$A$6:$A$1806,Data!$F$6:$F$1806) -> 0 | AC108: =LOOKUP($V108,Data!$A$6:$A$1806,Data!$H$6:$H$1806) -> 0 | AD108: =LOOKUP($V108,Data!$A$6:$A$1806,Data!$I$6:$I$1806) -> 0 | AE108: =IF(LOOKUP($V108,Data!$A$6:$A$1806,Data!$J$6:$J$1806)>0,(LOOKUP($V108,Data!$A$6:$A$1806,Data!$J$6:$J$1806)*-1),LOOKUP($V108,Data!$A$6:$A$1806,Data!$J$6:$J$1806)) -> -653 | AF108: =LOOKUP($V108,Data!$A$6:$A$1806,Data!$K$6:$K$1806) -> 30208.99414 | AG108: =(IF((W108-$L$2)>0,((W108-$L$2-$L$5)/(($L$4*$L$2)-$L$5)*G108*-1),((W108-$L$2+$L$5)/(($L$4*$L$2)-$L$5)*G108*-1))) -> 637.1223831 | AH108: T+58 sec | AI108: 40679.33861 | AW108: 489.7202681 | AX108: =ABS(C108-60) -> 0.09756851196 | AY108: =IF(AX108>0.036,AE108," ") -> -653
A109: T+60 sec | B109: 40679.33863 | C109: =LOOKUP(B109,Data!$A$6:$A$1806,Data!B$6:B$1806) -> 59.90468979 | D109: =LOOKUP(B109,Data!$A$6:$A$1806,Data!C$6:C$1806) -> 0 | G109: 19590 | H109: =(IF((C109-L$2)>0,(IF(C109<'Copy Results'!$C$3,((C109-L$2-L$5)/((L$4*L$2)-L$5)*G109*-1),(('Copy Results'!$C$3-L$2-L$5)/((L$4*L$2)-L$5)*G109*-1))),IF(C109>'Copy Results'!$C$2,((C109-L$2+L$5)/((L$4*L$2)-L$5)*G109*-1),(('Copy Results'!$C$2-L$2+L$5)/((L$4*L$2)-L$5)*G109*-1)))) -> 622.375679 | I109: 639.8157132 | L109: -4.263676488 | M109: 985.8594413 | N109: =AVERAGE(D$79:D109) -> 0 | O109: =AVERAGE(M$79:M109) -> 1060.503834 | P109: 348.031276 | Q109: =AVERAGE(P$79:P109) -> 409.854585 | U109: T+60 sec | V109: 40679.33863 | W109: =LOOKUP($V109,Data!$A$6:$A$1806,Data!$B$6:$B$1806) -> 59.90468979 | X109: =LOOKUP($V109,Data!$A$6:$A$1806,Data!$C$6:$C$1806) -> 0 | Y109: =LOOKUP($V109,Data!$A$6:$A$1806,Data!$D$6:$D$1806) -> 0 | Z109: =IF($Z$1="+",LOOKUP($V109,Data!$A$6:$A$1806,Data!$E$6:$E$1806)*-1,LOOKUP($V109,Data!$A$6:$A$1806,Data!$E$6:$E$1806)) -> 0 | AA109: =LOOKUP($V109,Data!$A$6:$A$1806,Data!$F$6:$F$1806) -> 0 | AC109: =LOOKUP($V109,Data!$A$6:$A$1806,Data!$H$6:$H$1806) -> 0 | AD109: =LOOKUP($V109,Data!$A$6:$A$1806,Data!$I$6:$I$1806) -> 0 | AE109: =IF(LOOKUP($V109,Data!$A$6:$A$1806,Data!$J$6:$J$1806)>0,(LOOKUP($V109,Data!$A$6:$A$1806,Data!$J$6:$J$1806)*-1),LOOKUP($V109,Data!$A$6:$A$1806,Data!$J$6:$J$1806)) -> -653 | AF109: =LOOKUP($V109,Data!$A$6:$A$1806,Data!$K$6:$K$1806) -> 30208.99414 | AG109: 622.375679 | AH109: T+60 sec | AI109: 40679.33863 | AW109: 501.4934416 | AX109: 0.09531021118 | AY109: -653
A110: T+62 sec | B110: =B109+TIME(0,0,$B$1) -> 40679.33866 | C110: =LOOKUP(B110,Data!$A$6:$A$1806,Data!B$6:B$1806) -> 59.90694809 | D110: =LOOKUP(B110,Data!$A$6:$A$1806,Data!C$6:C$1806) -> 0 | G110: 19590 | H110: =(IF((C110-L$2)>0,(IF(C110<'Copy Results'!$C$3,((C110-L$2-L$5)/((L$4*L$2)-L$5)*G110*-1),(('Copy Results'!$C$3-L$2-L$5)/((L$4*L$2)-L$5)*G110*-1))),IF(C110>'Copy Results'!$C$2,((C110-L$2+L$5)/((L$4*L$2)-L$5)*G110*-1),(('Copy Results'!$C$2-L$2+L$5)/((L$4*L$2)-L$5)*G110*-1)))) -> 607.6289749 | I110: 628.5503548 | L110: -4.263676488 | M110: 970.3304064 | N110: =AVERAGE(D$79:D110) -> 0 | O110: =AVERAGE(M$79:M110) -> 1057.685915 | P110: 343.7675995 | Q110: =AVERAGE(P$79:P110) -> 407.7227468 | U110: T+62 sec | V110: 40679.33866 | W110: =LOOKUP($V110,Data!$A$6:$A$1806,Data!$B$6:$B$1806) -> 59.90694809 | X110: =LOOKUP($V110,Data!$A$6:$A$1806,Data!$C$6:$C$1806) -> 0 | Y110: =LOOKUP($V110,Data!$A$6:$A$1806,Data!$D$6:$D$1806) -> 0 | Z110: =IF($Z$1="+",LOOKUP($V110,Data!$A$6:$A$1806,Data!$E$6:$E$1806)*-1,LOOKUP($V110,Data!$A$6:$A$1806,Data!$E$6:$E$1806)) -> 0 | AA110: =LOOKUP($V110,Data!$A$6:$A$1806,Data!$F$6:$F$1806) -> 0 | AC110: =LOOKUP($V110,Data!$A$6:$A$1806,Data!$H$6:$H$1806) -> 0 | AD110: =LOOKUP($V110,Data!$A$6:$A$1806,Data!$I$6:$I$1806) -> 0 | AE110: =IF(LOOKUP($V110,Data!$A$6:$A$1806,Data!$J$6:$J$1806)>0,(LOOKUP($V110,Data!$A$6:$A$1806,Data!$J$6:$J$1806)*-1),LOOKUP($V110,Data!$A$6:$A$1806,Data!$J$6:$J$1806)) -> -653 | AF110: =LOOKUP($V110,Data!$A$6:$A$1806,Data!$K$6:$K$1806) -> 30208.99414 | AG110: 607.6289749 | AH110: T+62 sec | AI110: 40679.33866 | AW110: 513.8466276 | AX110: 0.0930519104 | AY110: -653
A111: T+64 sec | B111: 40679.33868 | C111: =LOOKUP(B111,Data!$A$6:$A$1806,Data!B$6:B$1806) -> 59.9088707 | D111: =LOOKUP(B111,Data!$A$6:$A$1806,Data!C$6:C$1806) -> 0 | G111: 19590 | H111: =(IF((C111-L$2)>0,(IF(C111<'Copy Results'!$C$3,((C111-L$2-L$5)/((L$4*L$2)-L$5)*G111*-1),(('Copy Results'!$C$3-L$2-L$5)/((L$4*L$2)-L$5)*G111*-1))),IF(C111>'Copy Results'!$C$2,((C111-L$2+L$5)/((L$4*L$2)-L$5)*G111*-1),(('Copy Results'!$C$2-L$2+L$5)/((L$4*L$2)-L$5)*G111*-1)))) -> 595.0743484 | I111: 616.8337526 | L111: -4.263676488 | M111: 954.3501277 | N111: =AVERAGE(D$79:D111) -> 0 | O111: =AVERAGE(M$79:M111) -> 1054.554527 | P111: 339.503923 | Q111: =AVERAGE(P$79:P111) -> 405.5909085 | U111: T+64 sec | V111: 40679.33868 | W111: =LOOKUP($V111,Data!$A$6:$A$1806,Data!$B$6:$B$1806) -> 59.9088707 | X111: =LOOKUP($V111,Data!$A$6:$A$1806,Data!$C$6:$C$1806) -> 0 | Y111: =LOOKUP($V111,Data!$A$6:$A$1806,Data!$D$6:$D$1806) -> 0 | Z111: =IF($Z$1="+",LOOKUP($V111,Data!$A$6:$A$1806,Data!$E$6:$E$1806)*-1,LOOKUP($V111,Data!$A$6:$A$1806,Data!$E$6:$E$1806)) -> 0 | AA111: =LOOKUP($V111,Data!$A$6:$A$1806,Data!$F$6:$F$1806) -> 0 | AC111: =LOOKUP($V111,Data!$A$6:$A$1806,Data!$H$6:$H$1806) -> 0 | AD111: =LOOKUP($V111,Data!$A$6:$A$1806,Data!$I$6:$I$1806) -> 0 | AE111: =IF(LOOKUP($V111,Data!$A$6:$A$1806,Data!$J$6:$J$1806)>0,(LOOKUP($V111,Data!$A$6:$A$1806,Data!$J$6:$J$1806)*-1),LOOKUP($V111,Data!$A$6:$A$1806,Data!$J$6:$J$1806)) -> -653 | AF111: =LOOKUP($V111,Data!$A$6:$A$1806,Data!$K$6:$K$1806) -> 30208.99414 | AG111: 595.0743484 | AH111: T+64 sec | AI111: 40679.33868 | AW111: 524.8534149 | AX111: 0.09112930298 | AY111: -653
A112: T+66 sec | B112: 40679.3387 | C112: =LOOKUP(B112,Data!$A$6:$A$1806,Data!B$6:B$1806) -> 59.90920639 | D112: =LOOKUP(B112,Data!$A$6:$A$1806,Data!C$6:C$1806) -> 0 | G112: 19590 | H112: =(IF((C112-L$2)>0,(IF(C112<'Copy Results'!$C$3,((C112-L$2-L$5)/((L$4*L$2)-L$5)*G112*-1),(('Copy Results'!$C$3-L$2-L$5)/((L$4*L$2)-L$5)*G112*-1))),IF(C112>'Copy Results'!$C$2,((C112-L$2+L$5)/((L$4*L$2)-L$5)*G112*-1),(('Copy Results'!$C$2-L$2+L$5)/((L$4*L$2)-L$5)*G112*-1)))) -> 592.8822708 | I112: 608.450734 | L112: -4.263676488 | M112: 941.7034326 | N112: =AVERAGE(D$79:D112) -> 0 | O112: =AVERAGE(M$79:M112) -> 1051.235377 | P112: 335.2402465 | Q112: =AVERAGE(P$79:P112) -> 403.4590703 | U112: T+66 sec | V112: 40679.3387 | W112: =LOOKUP($V112,Data!$A$6:$A$1806,Data!$B$6:$B$1806) -> 59.90920639 | X112: =LOOKUP($V112,Data!$A$6:$A$1806,Data!$C$6:$C$1806) -> 0 | Y112: =LOOKUP($V112,Data!$A$6:$A$1806,Data!$D$6:$D$1806) -> 0 | Z112: =IF($Z$1="+",LOOKUP($V112,Data!$A$6:$A$1806,Data!$E$6:$E$1806)*-1,LOOKUP($V112,Data!$A$6:$A$1806,Data!$E$6:$E$1806)) -> 0 | AA112: =LOOKUP($V112,Data!$A$6:$A$1806,Data!$F$6:$F$1806) -> 0 | AC112: =LOOKUP($V112,Data!$A$6:$A$1806,Data!$H$6:$H$1806) -> 0 | AD112: =LOOKUP($V112,Data!$A$6:$A$1806,Data!$I$6:$I$1806) -> 0 | AE112: =IF(LOOKUP($V112,Data!$A$6:$A$1806,Data!$J$6:$J$1806)>0,(LOOKUP($V112,Data!$A$6:$A$1806,Data!$J$6:$J$1806)*-1),LOOKUP($V112,Data!$A$6:$A$1806,Data!$J$6:$J$1806)) -> -653 | AF112: =LOOKUP($V112,Data!$A$6:$A$1806,Data!$K$6:$K$1806) -> 30205.66406 | AG112: 592.8822708 | AH112: T+66 sec | AI112: 40679.3387 | AW112: 526.8237703 | AX112: 0.09079360962 | AY112: -653
A113: T+68 sec | B113: 40679.33873 | C113: =LOOKUP(B113,Data!$A$6:$A$1806,Data!B$6:B$1806) -> 59.90856552 | D113: =LOOKUP(B113,Data!$A$6:$A$1806,Data!C$6:C$1806) -> 0 | G113: 19590 | H113: =(IF((C113-L$2)>0,(IF(C113<'Copy Results'!$C$3,((C113-L$2-L$5)/((L$4*L$2)-L$5)*G113*-1),(('Copy Results'!$C$3-L$2-L$5)/((L$4*L$2)-L$5)*G113*-1))),IF(C113>'Copy Results'!$C$2,((C113-L$2+L$5)/((L$4*L$2)-L$5)*G113*-1),(('Copy Results'!$C$2-L$2+L$5)/((L$4*L$2)-L$5)*G113*-1)))) -> 597.0671463 | I113: 604.4664783 | L113: -4.263676488 | M113: 933.4555004 | N113: =AVERAGE(D$79:D113) -> 0 | O113: =AVERAGE(M$79:M113) -> 1047.870238 | P113: 330.97657 | Q113: =AVERAGE(P$79:P113) -> 401.3272321 | U113: T+68 sec | V113: 40679.33873 | W113: =LOOKUP($V113,Data!$A$6:$A$1806,Data!$B$6:$B$1806) -> 59.90856552 | X113: =LOOKUP($V113,Data!$A$6:$A$1806,Data!$C$6:$C$1806) -> 0 | Y113: =LOOKUP($V113,Data!$A$6:$A$1806,Data!$D$6:$D$1806) -> 0 | Z113: =IF($Z$1="+",LOOKUP($V113,Data!$A$6:$A$1806,Data!$E$6:$E$1806)*-1,LOOKUP($V113,Data!$A$6:$A$1806,Data!$E$6:$E$1806)) -> 0 | AA113: =LOOKUP($V113,Data!$A$6:$A$1806,Data!$F$6:$F$1806) -> 0 | AC113: =LOOKUP($V113,Data!$A$6:$A$1806,Data!$H$6:$H$1806) -> 0 | AD113: =LOOKUP($V113,Data!$A$6:$A$1806,Data!$I$6:$I$1806) -> 0 | AE113: =IF(LOOKUP($V113,Data!$A$6:$A$1806,Data!$J$6:$J$1806)>0,(LOOKUP($V113,Data!$A$6:$A$1806,Data!$J$6:$J$1806)*-1),LOOKUP($V113,Data!$A$6:$A$1806,Data!$J$6:$J$1806)) -> -653 | AF113: =LOOKUP($V113,Data!$A$6:$A$1806,Data!$K$6:$K$1806) -> 30205.66406 | AG113: 597.0671463 | AH113: T+68 sec | AI113: 40679.33873 | AW113: 523.0749291 | AX113: 0.09143447876 | AY113: -653
A114: T+70 sec | B114: 40679.33875 | C114: =LOOKUP(B114,Data!$A$6:$A$1806,Data!B$6:B$1806) -> 59.9088707 | D114: =LOOKUP(B114,Data!$A$6:$A$1806,Data!C$6:C$1806) -> 0 | G114: 19590 | H114: =(IF((C114-L$2)>0,(IF(C114<'Copy Results'!$C$3,((C114-L$2-L$5)/((L$4*L$2)-L$5)*G114*-1),(('Copy Results'!$C$3-L$2-L$5)/((L$4*L$2)-L$5)*G114*-1))),IF(C114>'Copy Results'!$C$2,((C114-L$2+L$5)/((L$4*L$2)-L$5)*G114*-1),(('Copy Results'!$C$2-L$2+L$5)/((L$4*L$2)-L$5)*G114*-1)))) -> 595.0743484 | I114: 601.1792328 | L114: -4.263676488 | M114: 925.9045785 | N114: =AVERAGE(D$79:D114) -> 0 | O114: =AVERAGE(M$79:M114) -> 1044.482303 | P114: 326.7128935 | Q114: =AVERAGE(P$79:P114) -> 399.1953938 | U114: T+70 sec | V114: 40679.33875 | W114: =LOOKUP($V114,Data!$A$6:$A$1806,Data!$B$6:$B$1806) -> 59.9088707 | X114: =LOOKUP($V114,Data!$A$6:$A$1806,Data!$C$6:$C$1806) -> 0 | Y114: =LOOKUP($V114,Data!$A$6:$A$1806,Data!$D$6:$D$1806) -> 0 | Z114: =IF($Z$1="+",LOOKUP($V114,Data!$A$6:$A$1806,Data!$E$6:$E$1806)*-1,LOOKUP($V114,Data!$A$6:$A$1806,Data!$E$6:$E$1806)) -> 0 | AA114: =LOOKUP($V114,Data!$A$6:$A$1806,Data!$F$6:$F$1806) -> 0 | AC114: =LOOKUP($V114,Data!$A$6:$A$1806,Data!$H$6:$H$1806) -> 0 | AD114: =LOOKUP($V114,Data!$A$6:$A$1806,Data!$I$6:$I$1806) -> 0 | AE114: =IF(LOOKUP($V114,Data!$A$6:$A$1806,Data!$J$6:$J$1806)>0,(LOOKUP($V114,Data!$A$6:$A$1806,Data!$J$6:$J$1806)*-1),LOOKUP($V114,Data!$A$6:$A$1806,Data!$J$6:$J$1806)) -> -653 | AF114: =LOOKUP($V114,Data!$A$6:$A$1806,Data!$K$6:$K$1806) -> 30205.6582 | AG114: 595.0743484 | AH114: T+70 sec | AI114: 40679.33875 | AW114: 524.8534149 | AX114: 0.09112930298 | AY114: -653
A115: T+72 sec | B115: 40679.33877 | C115: =LOOKUP(B115,Data!$A$6:$A$1806,Data!B$6:B$1806) -> 59.91018295 | D115: =LOOKUP(B115,Data!$A$6:$A$1806,Data!C$6:C$1806) -> 0 | G115: 19590 | H115: =(IF((C115-L$2)>0,(IF(C115<'Copy Results'!$C$3,((C115-L$2-L$5)/((L$4*L$2)-L$5)*G115*-1),(('Copy Results'!$C$3-L$2-L$5)/((L$4*L$2)-L$5)*G115*-1))),IF(C115>'Copy Results'!$C$2,((C115-L$2+L$5)/((L$4*L$2)-L$5)*G115*-1),(('Copy Results'!$C$2-L$2+L$5)/((L$4*L$2)-L$5)*G115*-1)))) -> 586.5053177 | I115: 596.0433625 | L115: -4.263676488 | M115: 916.5050317 | N115: =AVERAGE(D$79:D115) -> 0 | O115: =AVERAGE(M$79:M115) -> 1041.023458 | P115: 322.449217 | Q115: =AVERAGE(P$79:P115) -> 397.0635556 | U115: T+72 sec | V115: 40679.33877 | W115: =LOOKUP($V115,Data!$A$6:$A$1806,Data!$B$6:$B$1806) -> 59.91018295 | X115: =LOOKUP($V115,Data!$A$6:$A$1806,Data!$C$6:$C$1806) -> 0 | Y115: =LOOKUP($V115,Data!$A$6:$A$1806,Data!$D$6:$D$1806) -> 0 | Z115: =IF($Z$1="+",LOOKUP($V115,Data!$A$6:$A$1806,Data!$E$6:$E$1806)*-1,LOOKUP($V115,Data!$A$6:$A$1806,Data!$E$6:$E$1806)) -> 0 | AA115: =LOOKUP($V115,Data!$A$6:$A$1806,Data!$F$6:$F$1806) -> 0 | AC115: =LOOKUP($V115,Data!$A$6:$A$1806,Data!$H$6:$H$1806) -> 0 | AD115: =LOOKUP($V115,Data!$A$6:$A$1806,Data!$I$6:$I$1806) -> 0 | AE115: =IF(LOOKUP($V115,Data!$A$6:$A$1806,Data!$J$6:$J$1806)>0,(LOOKUP($V115,Data!$A$6:$A$1806,Data!$J$6:$J$1806)*-1),LOOKUP($V115,Data!$A$6:$A$1806,Data!$J$6:$J$1806)) -> -653 | AF115: =LOOKUP($V115,Data!$A$6:$A$1806,Data!$K$6:$K$1806) -> 30205.6582 | AG115: 586.5053177 | AH115: T+72 sec | AI115: 40679.33877 | AW115: 532.6407591 | AX115: 0.08981704712 | AY115: -653
A116: T+74 sec | B116: 40679.3388 | C116: =LOOKUP(B116,Data!$A$6:$A$1806,Data!B$6:B$1806) -> 59.91244125 | D116: =LOOKUP(B116,Data!$A$6:$A$1806,Data!C$6:C$1806) -> 0 | G116: 19590 | H116: =(IF((C116-L$2)>0,(IF(C116<'Copy Results'!$C$3,((C116-L$2-L$5)/((L$4*L$2)-L$5)*G116*-1),(('Copy Results'!$C$3-L$2-L$5)/((L$4*L$2)-L$5)*G116*-1))),IF(C116>'Copy Results'!$C$2,((C116-L$2+L$5)/((L$4*L$2)-L$5)*G116*-1),(('Copy Results'!$C$2-L$2+L$5)/((L$4*L$2)-L$5)*G116*-1)))) -> 571.7586136 | I116: 587.5437004 | L116: -4.263676488 | M116: 903.7416931 | N116: =AVERAGE(D$79:D116) -> 0 | O116: =AVERAGE(M$79:M116) -> 1037.41078 | P116: 318.1855405 | Q116: =AVERAGE(P$79:P116) -> 394.9317173 | U116: T+74 sec | V116: 40679.3388 | W116: =LOOKUP($V116,Data!$A$6:$A$1806,Data!$B$6:$B$1806) -> 59.91244125 | X116: =LOOKUP($V116,Data!$A$6:$A$1806,Data!$C$6:$C$1806) -> 0 | Y116: =LOOKUP($V116,Data!$A$6:$A$1806,Data!$D$6:$D$1806) -> 0 | Z116: =IF($Z$1="+",LOOKUP($V116,Data!$A$6:$A$1806,Data!$E$6:$E$1806)*-1,LOOKUP($V116,Data!$A$6:$A$1806,Data!$E$6:$E$1806)) -> 0 | AA116: =LOOKUP($V116,Data!$A$6:$A$1806,Data!$F$6:$F$1806) -> 0 | AC116: =LOOKUP($V116,Data!$A$6:$A$1806,Data!$H$6:$H$1806) -> 0 | AD116: =LOOKUP($V116,Data!$A$6:$A$1806,Data!$I$6:$I$1806) -> 0 | AE116: =IF(LOOKUP($V116,Data!$A$6:$A$1806,Data!$J$6:$J$1806)>0,(LOOKUP($V116,Data!$A$6:$A$1806,Data!$J$6:$J$1806)*-1),LOOKUP($V116,Data!$A$6:$A$1806,Data!$J$6:$J$1806)) -> -653 | AF116: =LOOKUP($V116,Data!$A$6:$A$1806,Data!$K$6:$K$1806) -> 30205.6582 | AG116: 571.7586136 | AH116: T+74 sec | AI116: 40679.3388 | AW116: 546.5974417 | AX116: 0.08755874634 | AY116: -653
A117: T+76 sec | B117: 40679.33882 | C117: =LOOKUP(B117,Data!$A$6:$A$1806,Data!B$6:B$1806) -> 59.91469955 | D117: =LOOKUP(B117,Data!$A$6:$A$1806,Data!C$6:C$1806) -> 0 | G117: 19590 | H117: =(IF((C117-L$2)>0,(IF(C117<'Copy Results'!$C$3,((C117-L$2-L$5)/((L$4*L$2)-L$5)*G117*-1),(('Copy Results'!$C$3-L$2-L$5)/((L$4*L$2)-L$5)*G117*-1))),IF(C117>'Copy Results'!$C$2,((C117-L$2+L$5)/((L$4*L$2)-L$5)*G117*-1),(('Copy Results'!$C$2-L$2+L$5)/((L$4*L$2)-L$5)*G117*-1)))) -> 557.0119095 | I117: 576.8575736 | L117: -4.263676488 | M117: 888.7918898 | N117: =AVERAGE(D$79:D117) -> 0 | O117: =AVERAGE(M$79:M117) -> 1033.600039 | P117: 313.921864 | Q117: =AVERAGE(P$79:P117) -> 392.7998791 | U117: T+76 sec | V117: 40679.33882 | W117: =LOOKUP($V117,Data!$A$6:$A$1806,Data!$B$6:$B$1806) -> 59.91469955 | X117: =LOOKUP($V117,Data!$A$6:$A$1806,Data!$C$6:$C$1806) -> 0 | Y117: =LOOKUP($V117,Data!$A$6:$A$1806,Data!$D$6:$D$1806) -> 0 | Z117: =IF($Z$1="+",LOOKUP($V117,Data!$A$6:$A$1806,Data!$E$6:$E$1806)*-1,LOOKUP($V117,Data!$A$6:$A$1806,Data!$E$6:$E$1806)) -> 0 | AA117: =LOOKUP($V117,Data!$A$6:$A$1806,Data!$F$6:$F$1806) -> 0 | AC117: =LOOKUP($V117,Data!$A$6:$A$1806,Data!$H$6:$H$1806) -> 0 | AD117: =LOOKUP($V117,Data!$A$6:$A$1806,Data!$I$6:$I$1806) -> 0 | AE117: =IF(LOOKUP($V117,Data!$A$6:$A$1806,Data!$J$6:$J$1806)>0,(LOOKUP($V117,Data!$A$6:$A$1806,Data!$J$6:$J$1806)*-1),LOOKUP($V117,Data!$A$6:$A$1806,Data!$J$6:$J$1806)) -> -653 | AF117: =LOOKUP($V117,Data!$A$6:$A$1806,Data!$K$6:$K$1806) -> 30205.6582 | AG117: 557.0119095 | AH117: T+76 sec | AI117: 40679.33882 | AW117: 561.3052134 | AX117: 0.08530044556 | AY117: -653
A118: T+78 sec | B118: 40679.33884 | C118: =LOOKUP(B118,Data!$A$6:$A$1806,Data!B$6:B$1806) -> 59.91759872 | D118: =LOOKUP(B118,Data!$A$6:$A$1806,Data!C$6:C$1806) -> 0 | G118: 19590 | H118: =(IF((C118-L$2)>0,(IF(C118<'Copy Results'!$C$3,((C118-L$2-L$5)/((L$4*L$2)-L$5)*G118*-1),(('Copy Results'!$C$3-L$2-L$5)/((L$4*L$2)-L$5)*G118*-1))),IF(C118>'Copy Results'!$C$2,((C118-L$2+L$5)/((L$4*L$2)-L$5)*G118*-1),(('Copy Results'!$C$2-L$2+L$5)/((L$4*L$2)-L$5)*G118*-1)))) -> 538.0803299 | I118: 563.2855383 | L118: -4.263676488 | M118: 870.956178 | N118: =AVERAGE(D$79:D118) -> 0 | O118: =AVERAGE(M$79:M118) -> 1029.533942 | P118: 309.6581876 | Q118: =AVERAGE(P$79:P118) -> 390.6680408 | U118: T+78 sec | V118: 40679.33884 | W118: =LOOKUP($V118,Data!$A$6:$A$1806,Data!$B$6:$B$1806) -> 59.91759872 | X118: =LOOKUP($V118,Data!$A$6:$A$1806,Data!$C$6:$C$1806) -> 0 | Y118: =LOOKUP($V118,Data!$A$6:$A$1806,Data!$D$6:$D$1806) -> 0 | Z118: =IF($Z$1="+",LOOKUP($V118,Data!$A$6:$A$1806,Data!$E$6:$E$1806)*-1,LOOKUP($V118,Data!$A$6:$A$1806,Data!$E$6:$E$1806)) -> 0 | AA118: =LOOKUP($V118,Data!$A$6:$A$1806,Data!$F$6:$F$1806) -> 0 | AC118: =LOOKUP($V118,Data!$A$6:$A$1806,Data!$H$6:$H$1806) -> 0 | AD118: =LOOKUP($V118,Data!$A$6:$A$1806,Data!$I$6:$I$1806) -> 0 | AE118: =IF(LOOKUP($V118,Data!$A$6:$A$1806,Data!$J$6:$J$1806)>0,(LOOKUP($V118,Data!$A$6:$A$1806,Data!$J$6:$J$1806)*-1),LOOKUP($V118,Data!$A$6:$A$1806,Data!$J$6:$J$1806)) -> -653 | AF118: =LOOKUP($V118,Data!$A$6:$A$1806,Data!$K$6:$K$1806) -> 30211.75391 | AG118: 538.0803299 | AH118: T+78 sec | AI118: 40679.33884 | AW118: 581.3886352 | AX118: 0.08240127563 | AY118: -653
A119: T+80 sec | B119: 40679.33887 | C119: =LOOKUP(B119,Data!$A$6:$A$1806,Data!B$6:B$1806) -> 59.91921616 | D119: =LOOKUP(B119,Data!$A$6:$A$1806,Data!C$6:C$1806) -> 0 | G119: 19590 | H119: =(IF((C119-L$2)>0,(IF(C119<'Copy Results'!$C$3,((C119-L$2-L$5)/((L$4*L$2)-L$5)*G119*-1),(('Copy Results'!$C$3-L$2-L$5)/((L$4*L$2)-L$5)*G119*-1))),IF(C119>'Copy Results'!$C$2,((C119-L$2+L$5)/((L$4*L$2)-L$5)*G119*-1),(('Copy Results'!$C$2-L$2+L$5)/((L$4*L$2)-L$5)*G119*-1)))) -> 527.5185013 | I119: 550.7670753 | L119: -4.263676488 | M119: 854.1740386 | N119: =AVERAGE(D$79:D119) -> 0 | O119: =AVERAGE(M$79:M119) -> 1025.256872 | P119: 305.3945111 | Q119: =AVERAGE(P$79:P119) -> 388.5362026 | U119: T+80 sec | V119: 40679.33887 | W119: =LOOKUP($V119,Data!$A$6:$A$1806,Data!$B$6:$B$1806) -> 59.91921616 | X119: =LOOKUP($V119,Data!$A$6:$A$1806,Data!$C$6:$C$1806) -> 0 | Y119: =LOOKUP($V119,Data!$A$6:$A$1806,Data!$D$6:$D$1806) -> 0 | Z119: =IF($Z$1="+",LOOKUP($V119,Data!$A$6:$A$1806,Data!$E$6:$E$1806)*-1,LOOKUP($V119,Data!$A$6:$A$1806,Data!$E$6:$E$1806)) -> 0 | AA119: =LOOKUP($V119,Data!$A$6:$A$1806,Data!$F$6:$F$1806) -> 0 | AC119: =LOOKUP($V119,Data!$A$6:$A$1806,Data!$H$6:$H$1806) -> 0 | AD119: =LOOKUP($V119,Data!$A$6:$A$1806,Data!$I$6:$I$1806) -> 0 | AE119: =IF(LOOKUP($V119,Data!$A$6:$A$1806,Data!$J$6:$J$1806)>0,(LOOKUP($V119,Data!$A$6:$A$1806,Data!$J$6:$J$1806)*-1),LOOKUP($V119,Data!$A$6:$A$1806,Data!$J$6:$J$1806)) -> -653 | AF119: =LOOKUP($V119,Data!$A$6:$A$1806,Data!$K$6:$K$1806) -> 30211.75391 | AG119: 527.5185013 | AH119: T+80 sec | AI119: 40679.33887 | AW119: 593.2303406 | AX119: 0.08078384399 | AY119: -653
A120: T+82 sec | B120: 40679.33889 | C120: =LOOKUP(B120,Data!$A$6:$A$1806,Data!B$6:B$1806) -> 59.92083359 | D120: =LOOKUP(B120,Data!$A$6:$A$1806,Data!C$6:C$1806) -> 0 | G120: 19590 | H120: =(IF((C120-L$2)>0,(IF(C120<'Copy Results'!$C$3,((C120-L$2-L$5)/((L$4*L$2)-L$5)*G120*-1),(('Copy Results'!$C$3-L$2-L$5)/((L$4*L$2)-L$5)*G120*-1))),IF(C120>'Copy Results'!$C$2,((C120-L$2+L$5)/((L$4*L$2)-L$5)*G120*-1),(('Copy Results'!$C$2-L$2+L$5)/((L$4*L$2)-L$5)*G120*-1)))) -> 516.9566727 | I120: 538.9334344 | L120: -4.263676488 | M120: 838.0767211 | N120: =AVERAGE(D$79:D120) -> 0 | O120: =AVERAGE(M$79:M120) -> 1020.800201 | P120: 301.1308346 | Q120: =AVERAGE(P$79:P120) -> 386.4043644 | U120: T+82 sec | V120: 40679.33889 | W120: =LOOKUP($V120,Data!$A$6:$A$1806,Data!$B$6:$B$1806) -> 59.92083359 | X120: =LOOKUP($V120,Data!$A$6:$A$1806,Data!$C$6:$C$1806) -> 0 | Y120: =LOOKUP($V120,Data!$A$6:$A$1806,Data!$D$6:$D$1806) -> 0 | Z120: =IF($Z$1="+",LOOKUP($V120,Data!$A$6:$A$1806,Data!$E$6:$E$1806)*-1,LOOKUP($V120,Data!$A$6:$A$1806,Data!$E$6:$E$1806)) -> 0 | AA120: =LOOKUP($V120,Data!$A$6:$A$1806,Data!$F$6:$F$1806) -> 0 | AC120: =LOOKUP($V120,Data!$A$6:$A$1806,Data!$H$6:$H$1806) -> 0 | AD120: =LOOKUP($V120,Data!$A$6:$A$1806,Data!$I$6:$I$1806) -> 0 | AE120: =IF(LOOKUP($V120,Data!$A$6:$A$1806,Data!$J$6:$J$1806)>0,(LOOKUP($V120,Data!$A$6:$A$1806,Data!$J$6:$J$1806)*-1),LOOKUP($V120,Data!$A$6:$A$1806,Data!$J$6:$J$1806)) -> -653 | AF120: =LOOKUP($V120,Data!$A$6:$A$1806,Data!$K$6:$K$1806) -> 30211.75391 | AG120: 516.9566727 | AH120: T+82 sec | AI120: 40679.33889 | AW120: 605.5644584 | AX120: 0.07916641235 | AY120: -653
A121: T+84 sec | B121: 40679.33891 | C121: =LOOKUP(B121,Data!$A$6:$A$1806,Data!B$6:B$1806) -> 59.92214584 | D121: =LOOKUP(B121,Data!$A$6:$A$1806,Data!C$6:C$1806) -> 0 | G121: 19590 | H121: =(IF((C121-L$2)>0,(IF(C121<'Copy Results'!$C$3,((C121-L$2-L$5)/((L$4*L$2)-L$5)*G121*-1),(('Copy Results'!$C$3-L$2-L$5)/((L$4*L$2)-L$5)*G121*-1))),IF(C121>'Copy Results'!$C$2,((C121-L$2+L$5)/((L$4*L$2)-L$5)*G121*-1),(('Copy Results'!$C$2-L$2+L$5)/((L$4*L$2)-L$5)*G121*-1)))) -> 508.3876419 | I121: 528.242407 | L121: -4.263676488 | M121: 823.1220173 | N121: =AVERAGE(D$79:D121) -> 0 | O121: =AVERAGE(M$79:M121) -> 1016.203034 | P121: 296.8671581 | Q121: =AVERAGE(P$79:P121) -> 384.2725261 | U121: T+84 sec | V121: 40679.33891 | W121: =LOOKUP($V121,Data!$A$6:$A$1806,Data!$B$6:$B$1806) -> 59.92214584 | X121: =LOOKUP($V121,Data!$A$6:$A$1806,Data!$C$6:$C$1806) -> 0 | Y121: =LOOKUP($V121,Data!$A$6:$A$1806,Data!$D$6:$D$1806) -> 0 | Z121: =IF($Z$1="+",LOOKUP($V121,Data!$A$6:$A$1806,Data!$E$6:$E$1806)*-1,LOOKUP($V121,Data!$A$6:$A$1806,Data!$E$6:$E$1806)) -> 0 | AA121: =LOOKUP($V121,Data!$A$6:$A$1806,Data!$F$6:$F$1806) -> 0 | AC121: =LOOKUP($V121,Data!$A$6:$A$1806,Data!$H$6:$H$1806) -> 0 | AD121: =LOOKUP($V121,Data!$A$6:$A$1806,Data!$I$6:$I$1806) -> 0 | AE121: =IF(LOOKUP($V121,Data!$A$6:$A$1806,Data!$J$6:$J$1806)>0,(LOOKUP($V121,Data!$A$6:$A$1806,Data!$J$6:$J$1806)*-1),LOOKUP($V121,Data!$A$6:$A$1806,Data!$J$6:$J$1806)) -> -653 | AF121: =LOOKUP($V121,Data!$A$6:$A$1806,Data!$K$6:$K$1806) -> 30211.75391 | AG121: 508.3876419 | AH121: T+84 sec | AI121: 40679.33891 | AW121: 615.954711 | AX121: 0.07785415649 | AY121: -653
A122: T+86 sec | B122: 40679.33894 | C122: =LOOKUP(B122,Data!$A$6:$A$1806,Data!B$6:B$1806) -> 59.92309189 | D122: =LOOKUP(B122,Data!$A$6:$A$1806,Data!C$6:C$1806) -> 0 | G122: 19590 | H122: =(IF((C122-L$2)>0,(IF(C122<'Copy Results'!$C$3,((C122-L$2-L$5)/((L$4*L$2)-L$5)*G122*-1),(('Copy Results'!$C$3-L$2-L$5)/((L$4*L$2)-L$5)*G122*-1))),IF(C122>'Copy Results'!$C$2,((C122-L$2+L$5)/((L$4*L$2)-L$5)*G122*-1),(('Copy Results'!$C$2-L$2+L$5)/((L$4*L$2)-L$5)*G122*-1)))) -> 502.2099686 | I122: 519.1310536 | L122: -4.263676488 | M122: 809.7469873 | N122: =AVERAGE(D$79:D122) -> 0 | O122: =AVERAGE(M$79:M122) -> 1011.510851 | P122: 292.6034816 | Q122: =AVERAGE(P$79:P122) -> 382.1406879 | U122: T+86 sec | V122: 40679.33894 | W122: =LOOKUP($V122,Data!$A$6:$A$1806,Data!$B$6:$B$1806) -> 59.92309189 | X122: =LOOKUP($V122,Data!$A$6:$A$1806,Data!$C$6:$C$1806) -> 0 | Y122: =LOOKUP($V122,Data!$A$6:$A$1806,Data!$D$6:$D$1806) -> 0 | Z122: =IF($Z$1="+",LOOKUP($V122,Data!$A$6:$A$1806,Data!$E$6:$E$1806)*-1,LOOKUP($V122,Data!$A$6:$A$1806,Data!$E$6:$E$1806)) -> 0 | AA122: =LOOKUP($V122,Data!$A$6:$A$1806,Data!$F$6:$F$1806) -> 0 | AC122: =LOOKUP($V122,Data!$A$6:$A$1806,Data!$H$6:$H$1806) -> 0 | AD122: =LOOKUP($V122,Data!$A$6:$A$1806,Data!$I$6:$I$1806) -> 0 | AE122: =IF(LOOKUP($V122,Data!$A$6:$A$1806,Data!$J$6:$J$1806)>0,(LOOKUP($V122,Data!$A$6:$A$1806,Data!$J$6:$J$1806)*-1),LOOKUP($V122,Data!$A$6:$A$1806,Data!$J$6:$J$1806)) -> -653 | AF122: =LOOKUP($V122,Data!$A$6:$A$1806,Data!$K$6:$K$1806) -> 30217.54883 | AG122: 502.2099686 | AH122: T+86 sec | AI122: 40679.33894 | AW122: 623.6693096 | AX122: 0.07690811157 | AY122: -653
A123: T+88 sec | B123: 40679.33896 | C123: =LOOKUP(B123,Data!$A$6:$A$1806,Data!B$6:B$1806) -> 59.92504501 | D123: =LOOKUP(B123,Data!$A$6:$A$1806,Data!C$6:C$1806) -> 0 | G123: 19590 | H123: =(IF((C123-L$2)>0,(IF(C123<'Copy Results'!$C$3,((C123-L$2-L$5)/((L$4*L$2)-L$5)*G123*-1),(('Copy Results'!$C$3-L$2-L$5)/((L$4*L$2)-L$5)*G123*-1))),IF(C123>'Copy Results'!$C$2,((C123-L$2+L$5)/((L$4*L$2)-L$5)*G123*-1),(('Copy Results'!$C$2-L$2+L$5)/((L$4*L$2)-L$5)*G123*-1)))) -> 489.4560623 | I123: 508.7448066 | L123: -4.263676488 | M123: 795.0970639 | N123: =AVERAGE(D$79:D123) -> 0 | O123: =AVERAGE(M$79:M123) -> 1006.701656 | P123: 288.3398051 | Q123: =AVERAGE(P$79:P123) -> 380.0088496 | U123: T+88 sec | V123: 40679.33896 | W123: =LOOKUP($V123,Data!$A$6:$A$1806,Data!$B$6:$B$1806) -> 59.92504501 | X123: =LOOKUP($V123,Data!$A$6:$A$1806,Data!$C$6:$C$1806) -> 0 | Y123: =LOOKUP($V123,Data!$A$6:$A$1806,Data!$D$6:$D$1806) -> 0 | Z123: =IF($Z$1="+",LOOKUP($V123,Data!$A$6:$A$1806,Data!$E$6:$E$1806)*-1,LOOKUP($V123,Data!$A$6:$A$1806,Data!$E$6:$E$1806)) -> 0 | AA123: =LOOKUP($V123,Data!$A$6:$A$1806,Data!$F$6:$F$1806) -> 0 | AC123: =LOOKUP($V123,Data!$A$6:$A$1806,Data!$H$6:$H$1806) -> 0 | AD123: =LOOKUP($V123,Data!$A$6:$A$1806,Data!$I$6:$I$1806) -> 0 | AE123: =IF(LOOKUP($V123,Data!$A$6:$A$1806,Data!$J$6:$J$1806)>0,(LOOKUP($V123,Data!$A$6:$A$1806,Data!$J$6:$J$1806)*-1),LOOKUP($V123,Data!$A$6:$A$1806,Data!$J$6:$J$1806)) -> -653 | AF123: =LOOKUP($V123,Data!$A$6:$A$1806,Data!$K$6:$K$1806) -> 30217.54883 | AG123: 489.4560623 | AH123: T+88 sec | AI123: 40679.33896 | AW123: 640.2237545 | AX123: 0.07495498657 | AY123: -653
A124: T+90 sec | B124: 40679.33898 | C124: =LOOKUP(B124,Data!$A$6:$A$1806,Data!B$6:B$1806) -> 59.92504501 | D124: =LOOKUP(B124,Data!$A$6:$A$1806,Data!C$6:C$1806) -> 0 | G124: 19590 | H124: =(IF((C124-L$2)>0,(IF(C124<'Copy Results'!$C$3,((C124-L$2-L$5)/((L$4*L$2)-L$5)*G124*-1),(('Copy Results'!$C$3-L$2-L$5)/((L$4*L$2)-L$5)*G124*-1))),IF(C124>'Copy Results'!$C$2,((C124-L$2+L$5)/((L$4*L$2)-L$5)*G124*-1),(('Copy Results'!$C$2-L$2+L$5)/((L$4*L$2)-L$5)*G124*-1)))) -> 489.4560623 | I124: 501.9937461 | L124: -4.263676488 | M124: 784.0823269 | N124: =AVERAGE(D$79:D124) -> 0 | O124: =AVERAGE(M$79:M124) -> 1001.862106 | P124: 284.0761286 | Q124: =AVERAGE(P$79:P124) -> 377.8770114 | U124: T+90 sec | V124: 40679.33898 | W124: =LOOKUP($V124,Data!$A$6:$A$1806,Data!$B$6:$B$1806) -> 59.92504501 | X124: =LOOKUP($V124,Data!$A$6:$A$1806,Data!$C$6:$C$1806) -> 0 | Y124: =LOOKUP($V124,Data!$A$6:$A$1806,Data!$D$6:$D$1806) -> 0 | Z124: =IF($Z$1="+",LOOKUP($V124,Data!$A$6:$A$1806,Data!$E$6:$E$1806)*-1,LOOKUP($V124,Data!$A$6:$A$1806,Data!$E$6:$E$1806)) -> 0 | AA124: =LOOKUP($V124,Data!$A$6:$A$1806,Data!$F$6:$F$1806) -> 0 | AC124: =LOOKUP($V124,Data!$A$6:$A$1806,Data!$H$6:$H$1806) -> 0 | AD124: =LOOKUP($V124,Data!$A$6:$A$1806,Data!$I$6:$I$1806) -> 0 | AE124: =IF(LOOKUP($V124,Data!$A$6:$A$1806,Data!$J$6:$J$1806)>0,(LOOKUP($V124,Data!$A$6:$A$1806,Data!$J$6:$J$1806)*-1),LOOKUP($V124,Data!$A$6:$A$1806,Data!$J$6:$J$1806)) -> -653 | AF124: =LOOKUP($V124,Data!$A$6:$A$1806,Data!$K$6:$K$1806) -> 30217.56641 | AG124: 489.4560623 | AH124: T+90 sec | AI124: 40679.33898 | AW124: 640.2237545 | AX124: 0.07495498657 | AY124: -653
A125: T+92 sec | B125: 40679.339 | C125: =LOOKUP(B125,Data!$A$6:$A$1806,Data!B$6:B$1806) -> 59.92730331 | D125: =LOOKUP(B125,Data!$A$6:$A$1806,Data!C$6:C$1806) -> 0 | G125: 19590 | H125: =(IF((C125-L$2)>0,(IF(C125<'Copy Results'!$C$3,((C125-L$2-L$5)/((L$4*L$2)-L$5)*G125*-1),(('Copy Results'!$C$3-L$2-L$5)/((L$4*L$2)-L$5)*G125*-1))),IF(C125>'Copy Results'!$C$2,((C125-L$2+L$5)/((L$4*L$2)-L$5)*G125*-1),(('Copy Results'!$C$2-L$2+L$5)/((L$4*L$2)-L$5)*G125*-1)))) -> 474.7093582 | I125: 492.4442104 | L125: -4.263676488 | M125: 770.2691147 | N125: =AVERAGE(D$79:D125) -> 0 | O125: =AVERAGE(M$79:M125) -> 996.9345951 | P125: 279.8124521 | Q125: =AVERAGE(P$79:P125) -> 375.7451731 | U125: T+92 sec | V125: 40679.339 | W125: =LOOKUP($V125,Data!$A$6:$A$1806,Data!$B$6:$B$1806) -> 59.92730331 | X125: =LOOKUP($V125,Data!$A$6:$A$1806,Data!$C$6:$C$1806) -> 0 | Y125: =LOOKUP($V125,Data!$A$6:$A$1806,Data!$D$6:$D$1806) -> 0 | Z125: =IF($Z$1="+",LOOKUP($V125,Data!$A$6:$A$1806,Data!$E$6:$E$1806)*-1,LOOKUP($V125,Data!$A$6:$A$1806,Data!$E$6:$E$1806)) -> 0 | AA125: =LOOKUP($V125,Data!$A$6:$A$1806,Data!$F$6:$F$1806) -> 0 | AC125: =LOOKUP($V125,Data!$A$6:$A$1806,Data!$H$6:$H$1806) -> 0 | AD125: =LOOKUP($V125,Data!$A$6:$A$1806,Data!$I$6:$I$1806) -> 0 | AE125: =IF(LOOKUP($V125,Data!$A$6:$A$1806,Data!$J$6:$J$1806)>0,(LOOKUP($V125,Data!$A$6:$A$1806,Data!$J$6:$J$1806)*-1),LOOKUP($V125,Data!$A$6:$A$1806,Data!$J$6:$J$1806)) -> -653 | AF125: =LOOKUP($V125,Data!$A$6:$A$1806,Data!$K$6:$K$1806) -> 30217.56641 | AG125: 474.7093582 | AH125: T+92 sec | AI125: 40679.339 | AW125: 660.4950527 | AX125: 0.07269668579 | AY125: -653
A126: T+94 sec | B126: 40679.33903 | C126: =LOOKUP(B126,Data!$A$6:$A$1806,Data!B$6:B$1806) -> 59.93246078 | D126: =LOOKUP(B126,Data!$A$6:$A$1806,Data!C$6:C$1806) -> 0 | G126: 19590 | H126: =(IF((C126-L$2)>0,(IF(C126<'Copy Results'!$C$3,((C126-L$2-L$5)/((L$4*L$2)-L$5)*G126*-1),(('Copy Results'!$C$3-L$2-L$5)/((L$4*L$2)-L$5)*G126*-1))),IF(C126>'Copy Results'!$C$2,((C126-L$2+L$5)/((L$4*L$2)-L$5)*G126*-1),(('Copy Results'!$C$2-L$2+L$5)/((L$4*L$2)-L$5)*G126*-1)))) -> 441.0310745 | I126: 474.4496128 | L126: -4.263676488 | M126: 748.0108406 | N126: =AVERAGE(D$79:D126) -> 0 | O126: =AVERAGE(M$79:M126) -> 991.7486835 | P126: 275.5487757 | Q126: =AVERAGE(P$79:P126) -> 373.6133349 | U126: T+94 sec | V126: 40679.33903 | W126: =LOOKUP($V126,Data!$A$6:$A$1806,Data!$B$6:$B$1806) -> 59.93246078 | X126: =LOOKUP($V126,Data!$A$6:$A$1806,Data!$C$6:$C$1806) -> 0 | Y126: =LOOKUP($V126,Data!$A$6:$A$1806,Data!$D$6:$D$1806) -> 0 | Z126: =IF($Z$1="+",LOOKUP($V126,Data!$A$6:$A$1806,Data!$E$6:$E$1806)*-1,LOOKUP($V126,Data!$A$6:$A$1806,Data!$E$6:$E$1806)) -> 0 | AA126: =LOOKUP($V126,Data!$A$6:$A$1806,Data!$F$6:$F$1806) -> 0 | AC126: =LOOKUP($V126,Data!$A$6:$A$1806,Data!$H$6:$H$1806) -> 0 | AD126: =LOOKUP($V126,Data!$A$6:$A$1806,Data!$I$6:$I$1806) -> 0 | AE126: =IF(LOOKUP($V126,Data!$A$6:$A$1806,Data!$J$6:$J$1806)>0,(LOOKUP($V126,Data!$A$6:$A$1806,Data!$J$6:$J$1806)*-1),LOOKUP($V126,Data!$A$6:$A$1806,Data!$J$6:$J$1806)) -> -653 | AF126: =LOOKUP($V126,Data!$A$6:$A$1806,Data!$K$6:$K$1806) -> 30217.56641 | AG126: 441.0310745 | AH126: T+94 sec | AI126: 40679.33903 | AW126: 711.9790141 | AX126: 0.06753921509 | AY126: -653
A127: T+96 sec | B127: 40679.33905 | C127: =LOOKUP(B127,Data!$A$6:$A$1806,Data!B$6:B$1806) -> 59.93505478 | D127: =LOOKUP(B127,Data!$A$6:$A$1806,Data!C$6:C$1806) -> 0 | G127: 19590 | H127: =(IF((C127-L$2)>0,(IF(C127<'Copy Results'!$C$3,((C127-L$2-L$5)/((L$4*L$2)-L$5)*G127*-1),(('Copy Results'!$C$3-L$2-L$5)/((L$4*L$2)-L$5)*G127*-1))),IF(C127>'Copy Results'!$C$2,((C127-L$2+L$5)/((L$4*L$2)-L$5)*G127*-1),(('Copy Results'!$C$2-L$2+L$5)/((L$4*L$2)-L$5)*G127*-1)))) -> 424.0922928 | I127: 456.8245508 | L127: -4.263676488 | M127: 726.1221021 | N127: =AVERAGE(D$79:D127) -> 0 | O127: =AVERAGE(M$79:M127) -> 986.3277329 | P127: 271.2850992 | Q127: =AVERAGE(P$79:P127) -> 371.4814966 | U127: T+96 sec | V127: 40679.33905 | W127: =LOOKUP($V127,Data!$A$6:$A$1806,Data!$B$6:$B$1806) -> 59.93505478 | X127: =LOOKUP($V127,Data!$A$6:$A$1806,Data!$C$6:$C$1806) -> 0 | Y127: =LOOKUP($V127,Data!$A$6:$A$1806,Data!$D$6:$D$1806) -> 0 | Z127: =IF($Z$1="+",LOOKUP($V127,Data!$A$6:$A$1806,Data!$E$6:$E$1806)*-1,LOOKUP($V127,Data!$A$6:$A$1806,Data!$E$6:$E$1806)) -> 0 | AA127: =LOOKUP($V127,Data!$A$6:$A$1806,Data!$F$6:$F$1806) -> 0 | AC127: =LOOKUP($V127,Data!$A$6:$A$1806,Data!$H$6:$H$1806) -> 0 | AD127: =LOOKUP($V127,Data!$A$6:$A$1806,Data!$I$6:$I$1806) -> 0 | AE127: =IF(LOOKUP($V127,Data!$A$6:$A$1806,Data!$J$6:$J$1806)>0,(LOOKUP($V127,Data!$A$6:$A$1806,Data!$J$6:$J$1806)*-1),LOOKUP($V127,Data!$A$6:$A$1806,Data!$J$6:$J$1806)) -> -653 | AF127: =LOOKUP($V127,Data!$A$6:$A$1806,Data!$K$6:$K$1806) -> 30217.56641 | AG127: 424.0922928 | AH127: T+96 sec | AI127: 40679.33905 | AW127: 741.0306631 | AX127: 0.06494522095 | AY127: -653
A128: T+98 sec | B128: 40679.33907 | C128: =LOOKUP(B128,Data!$A$6:$A$1806,Data!B$6:B$1806) -> 59.9370079 | D128: =LOOKUP(B128,Data!$A$6:$A$1806,Data!C$6:C$1806) -> 0 | G128: 19590 | H128: =(IF((C128-L$2)>0,(IF(C128<'Copy Results'!$C$3,((C128-L$2-L$5)/((L$4*L$2)-L$5)*G128*-1),(('Copy Results'!$C$3-L$2-L$5)/((L$4*L$2)-L$5)*G128*-1))),IF(C128>'Copy Results'!$C$2,((C128-L$2+L$5)/((L$4*L$2)-L$5)*G128*-1),(('Copy Results'!$C$2-L$2+L$5)/((L$4*L$2)-L$5)*G128*-1)))) -> 411.3383865 | I128: 440.9043933 | L128: -4.263676488 | M128: 705.9382681 | N128: =AVERAGE(D$79:D128) -> 0 | O128: =AVERAGE(M$79:M128) -> 980.7199436 | P128: 267.0214227 | Q128: =AVERAGE(P$79:P128) -> 369.3496584 | U128: T+98 sec | V128: 40679.33907 | W128: =LOOKUP($V128,Data!$A$6:$A$1806,Data!$B$6:$B$1806) -> 59.9370079 | X128: =LOOKUP($V128,Data!$A$6:$A$1806,Data!$C$6:$C$1806) -> 0 | Y128: =LOOKUP($V128,Data!$A$6:$A$1806,Data!$D$6:$D$1806) -> 0 | Z128: =IF($Z$1="+",LOOKUP($V128,Data!$A$6:$A$1806,Data!$E$6:$E$1806)*-1,LOOKUP($V128,Data!$A$6:$A$1806,Data!$E$6:$E$1806)) -> 0 | AA128: =LOOKUP($V128,Data!$A$6:$A$1806,Data!$F$6:$F$1806) -> 0 | AC128: =LOOKUP($V128,Data!$A$6:$A$1806,Data!$H$6:$H$1806) -> 0 | AD128: =LOOKUP($V128,Data!$A$6:$A$1806,Data!$I$6:$I$1806) -> 0 | AE128: =IF(LOOKUP($V128,Data!$A$6:$A$1806,Data!$J$6:$J$1806)>0,(LOOKUP($V128,Data!$A$6:$A$1806,Data!$J$6:$J$1806)*-1),LOOKUP($V128,Data!$A$6:$A$1806,Data!$J$6:$J$1806)) -> -653 | AF128: =LOOKUP($V128,Data!$A$6:$A$1806,Data!$K$6:$K$1806) -> 30217.59375 | AG128: 411.3383865 | AH128: T+98 sec | AI128: 40679.33907 | AW128: 764.5190367 | AX128: 0.06299209595 | AY128: -653
A129: T+100 sec | B129: 40679.3391 | C129: =LOOKUP(B129,Data!$A$6:$A$1806,Data!B$6:B$1806) -> 59.93765259 | D129: =LOOKUP(B129,Data!$A$6:$A$1806,Data!C$6:C$1806) -> 0 | G129: 19590 | H129: =(IF((C129-L$2)>0,(IF(C129<'Copy Results'!$C$3,((C129-L$2-L$5)/((L$4*L$2)-L$5)*G129*-1),(('Copy Results'!$C$3-L$2-L$5)/((L$4*L$2)-L$5)*G129*-1))),IF(C129>'Copy Results'!$C$2,((C129-L$2+L$5)/((L$4*L$2)-L$5)*G129*-1),(('Copy Results'!$C$2-L$2+L$5)/((L$4*L$2)-L$5)*G129*-1)))) -> 407.1286011 | I129: 429.082866 | L129: -4.263676488 | M129: 689.8530644 | N129: =AVERAGE(D$79:D129) -> 0 | O129: =AVERAGE(M$79:M129) -> 975.0166715 | P129: 262.7577462 | Q129: =AVERAGE(P$79:P129) -> 367.2178202 | U129: T+100 sec | V129: 40679.3391 | W129: =LOOKUP($V129,Data!$A$6:$A$1806,Data!$B$6:$B$1806) -> 59.93765259 | X129: =LOOKUP($V129,Data!$A$6:$A$1806,Data!$C$6:$C$1806) -> 0 | Y129: =LOOKUP($V129,Data!$A$6:$A$1806,Data!$D$6:$D$1806) -> 0 | Z129: =IF($Z$1="+",LOOKUP($V129,Data!$A$6:$A$1806,Data!$E$6:$E$1806)*-1,LOOKUP($V129,Data!$A$6:$A$1806,Data!$E$6:$E$1806)) -> 0 | AA129: =LOOKUP($V129,Data!$A$6:$A$1806,Data!$F$6:$F$1806) -> 0 | AC129: =LOOKUP($V129,Data!$A$6:$A$1806,Data!$H$6:$H$1806) -> 0 | AD129: =LOOKUP($V129,Data!$A$6:$A$1806,Data!$I$6:$I$1806) -> 0 | AE129: =IF(LOOKUP($V129,Data!$A$6:$A$1806,Data!$J$6:$J$1806)>0,(LOOKUP($V129,Data!$A$6:$A$1806,Data!$J$6:$J$1806)*-1),LOOKUP($V129,Data!$A$6:$A$1806,Data!$J$6:$J$1806)) -> -653 | AF129: =LOOKUP($V129,Data!$A$6:$A$1806,Data!$K$6:$K$1806) -> 30217.59375 | AG129: 407.1286011 | AH129: T+100 sec | AI129: 40679.3391 | AW129: 772.6023524 | AX129: 0.06234741211 | AY129: -653
A130: T+102 sec | B130: 40679.33912 | C130: =LOOKUP(B130,Data!$A$6:$A$1806,Data!B$6:B$1806) -> 59.93927002 | D130: =LOOKUP(B130,Data!$A$6:$A$1806,Data!C$6:C$1806) -> 0 | G130: 19590 | H130: =(IF((C130-L$2)>0,(IF(C130<'Copy Results'!$C$3,((C130-L$2-L$5)/((L$4*L$2)-L$5)*G130*-1),(('Copy Results'!$C$3-L$2-L$5)/((L$4*L$2)-L$5)*G130*-1))),IF(C130>'Copy Results'!$C$2,((C130-L$2+L$5)/((L$4*L$2)-L$5)*G130*-1),(('Copy Results'!$C$2-L$2+L$5)/((L$4*L$2)-L$5)*G130*-1)))) -> 396.5667725 | I130: 417.7022333 | L130: -4.263676488 | M130: 674.2087551 | N130: =AVERAGE(D$79:D130) -> 0 | O130: =AVERAGE(M$79:M130) -> 969.2319038 | P130: 258.4940697 | Q130: =AVERAGE(P$79:P130) -> 365.0859819 | U130: T+102 sec | V130: 40679.33912 | W130: =LOOKUP($V130,Data!$A$6:$A$1806,Data!$B$6:$B$1806) -> 59.93927002 | X130: =LOOKUP($V130,Data!$A$6:$A$1806,Data!$C$6:$C$1806) -> 0 | Y130: =LOOKUP($V130,Data!$A$6:$A$1806,Data!$D$6:$D$1806) -> 0 | Z130: =IF($Z$1="+",LOOKUP($V130,Data!$A$6:$A$1806,Data!$E$6:$E$1806)*-1,LOOKUP($V130,Data!$A$6:$A$1806,Data!$E$6:$E$1806)) -> 0 | AA130: =LOOKUP($V130,Data!$A$6:$A$1806,Data!$F$6:$F$1806) -> 0 | AC130: =LOOKUP($V130,Data!$A$6:$A$1806,Data!$H$6:$H$1806) -> 0 | AD130: =LOOKUP($V130,Data!$A$6:$A$1806,Data!$I$6:$I$1806) -> 0 | AE130: =IF(LOOKUP($V130,Data!$A$6:$A$1806,Data!$J$6:$J$1806)>0,(LOOKUP($V130,Data!$A$6:$A$1806,Data!$J$6:$J$1806)*-1),LOOKUP($V130,Data!$A$6:$A$1806,Data!$J$6:$J$1806)) -> -653 | AF130: =LOOKUP($V130,Data!$A$6:$A$1806,Data!$K$6:$K$1806) -> 30217.59375 | AG130: 396.5667725 | AH130: T+102 sec | AI130: 40679.33912 | AW130: 793.6552699 | AX130: 0.06072998047 | AY130: -653
A131: T+104 sec | B131: 40679.33914 | C131: =LOOKUP(B131,Data!$A$6:$A$1806,Data!B$6:B$1806) -> 59.9418335 | D131: =LOOKUP(B131,Data!$A$6:$A$1806,Data!C$6:C$1806) -> 0 | G131: 19590 | H131: =(IF((C131-L$2)>0,(IF(C131<'Copy Results'!$C$3,((C131-L$2-L$5)/((L$4*L$2)-L$5)*G131*-1),(('Copy Results'!$C$3-L$2-L$5)/((L$4*L$2)-L$5)*G131*-1))),IF(C131>'Copy Results'!$C$2,((C131-L$2+L$5)/((L$4*L$2)-L$5)*G131*-1),(('Copy Results'!$C$2-L$2+L$5)/((L$4*L$2)-L$5)*G131*-1)))) -> 379.8272705 | I131: 404.4459963 | L131: -4.263676488 | M131: 656.6888417 | N131: =AVERAGE(D$79:D131) -> 0 | O131: =AVERAGE(M$79:M131) -> 963.3348649 | P131: 254.2303932 | Q131: =AVERAGE(P$79:P131) -> 362.9541437 | U131: T+104 sec | V131: 40679.33914 | W131: =LOOKUP($V131,Data!$A$6:$A$1806,Data!$B$6:$B$1806) -> 59.9418335 | X131: =LOOKUP($V131,Data!$A$6:$A$1806,Data!$C$6:$C$1806) -> 0 | Y131: =LOOKUP($V131,Data!$A$6:$A$1806,Data!$D$6:$D$1806) -> 0 | Z131: =IF($Z$1="+",LOOKUP($V131,Data!$A$6:$A$1806,Data!$E$6:$E$1806)*-1,LOOKUP($V131,Data!$A$6:$A$1806,Data!$E$6:$E$1806)) -> 0 | AA131: =LOOKUP($V131,Data!$A$6:$A$1806,Data!$F$6:$F$1806) -> 0 | AC131: =LOOKUP($V131,Data!$A$6:$A$1806,Data!$H$6:$H$1806) -> 0 | AD131: =LOOKUP($V131,Data!$A$6:$A$1806,Data!$I$6:$I$1806) -> 0 | AE131: =IF(LOOKUP($V131,Data!$A$6:$A$1806,Data!$J$6:$J$1806)>0,(LOOKUP($V131,Data!$A$6:$A$1806,Data!$J$6:$J$1806)*-1),LOOKUP($V131,Data!$A$6:$A$1806,Data!$J$6:$J$1806)) -> -653 | AF131: =LOOKUP($V131,Data!$A$6:$A$1806,Data!$K$6:$K$1806) -> 30217.59375 | AG131: 379.8272705 | AH131: T+104 sec | AI131: 40679.33914 | AW131: 829.4785062 | AX131: 0.05816650391 | AY131: -653
A132: T+106 sec | B132: 40679.33917 | C132: =LOOKUP(B132,Data!$A$6:$A$1806,Data!B$6:B$1806) -> 59.9440918 | D132: =LOOKUP(B132,Data!$A$6:$A$1806,Data!C$6:C$1806) -> 0 | G132: 19590 | H132: =(IF((C132-L$2)>0,(IF(C132<'Copy Results'!$C$3,((C132-L$2-L$5)/((L$4*L$2)-L$5)*G132*-1),(('Copy Results'!$C$3-L$2-L$5)/((L$4*L$2)-L$5)*G132*-1))),IF(C132>'Copy Results'!$C$2,((C132-L$2+L$5)/((L$4*L$2)-L$5)*G132*-1),(('Copy Results'!$C$2-L$2+L$5)/((L$4*L$2)-L$5)*G132*-1)))) -> 365.0805664 | I132: 390.6680958 | L132: -4.263676488 | M132: 638.6472647 | N132: =AVERAGE(D$79:D132) -> 0 | O132: =AVERAGE(M$79:M132) -> 957.3221316 | P132: 249.9667167 | Q132: =AVERAGE(P$79:P132) -> 360.8223054 | U132: T+106 sec | V132: 40679.33917 | W132: =LOOKUP($V132,Data!$A$6:$A$1806,Data!$B$6:$B$1806) -> 59.9440918 | X132: =LOOKUP($V132,Data!$A$6:$A$1806,Data!$C$6:$C$1806) -> 0 | Y132: =LOOKUP($V132,Data!$A$6:$A$1806,Data!$D$6:$D$1806) -> 0 | Z132: =IF($Z$1="+",LOOKUP($V132,Data!$A$6:$A$1806,Data!$E$6:$E$1806)*-1,LOOKUP($V132,Data!$A$6:$A$1806,Data!$E$6:$E$1806)) -> 0 | AA132: =LOOKUP($V132,Data!$A$6:$A$1806,Data!$F$6:$F$1806) -> 0 | AC132: =LOOKUP($V132,Data!$A$6:$A$1806,Data!$H$6:$H$1806) -> 0 | AD132: =LOOKUP($V132,Data!$A$6:$A$1806,Data!$I$6:$I$1806) -> 0 | AE132: =IF(LOOKUP($V132,Data!$A$6:$A$1806,Data!$J$6:$J$1806)>0,(LOOKUP($V132,Data!$A$6:$A$1806,Data!$J$6:$J$1806)*-1),LOOKUP($V132,Data!$A$6:$A$1806,Data!$J$6:$J$1806)) -> -653 | AF132: =LOOKUP($V132,Data!$A$6:$A$1806,Data!$K$6:$K$1806) -> 30210.48633 | AG132: 365.0805664 | AH132: T+106 sec | AI132: 40679.33917 | AW132: 863.8273643 | AX132: 0.05590820312 | AY132: -653
A133: T+108 sec | B133: 40679.33919 | C133: =LOOKUP(B133,Data!$A$6:$A$1806,Data!B$6:B$1806) -> 59.94570923 | D133: =LOOKUP(B133,Data!$A$6:$A$1806,Data!C$6:C$1806) -> 0 | G133: 19590 | H133: =(IF((C133-L$2)>0,(IF(C133<'Copy Results'!$C$3,((C133-L$2-L$5)/((L$4*L$2)-L$5)*G133*-1),(('Copy Results'!$C$3-L$2-L$5)/((L$4*L$2)-L$5)*G133*-1))),IF(C133>'Copy Results'!$C$2,((C133-L$2+L$5)/((L$4*L$2)-L$5)*G133*-1),(('Copy Results'!$C$2-L$2+L$5)/((L$4*L$2)-L$5)*G133*-1)))) -> 354.5187378 | I133: 378.0158205 | L133: -4.263676488 | M133: 621.7313129 | N133: =AVERAGE(D$79:D133) -> 0 | O133: =AVERAGE(M$79:M133) -> 951.2204803 | P133: 245.7030402 | Q133: =AVERAGE(P$79:P133) -> 358.6904672 | U133: T+108 sec | V133: 40679.33919 | W133: =LOOKUP($V133,Data!$A$6:$A$1806,Data!$B$6:$B$1806) -> 59.94570923 | X133: =LOOKUP($V133,Data!$A$6:$A$1806,Data!$C$6:$C$1806) -> 0 | Y133: =LOOKUP($V133,Data!$A$6:$A$1806,Data!$D$6:$D$1806) -> 0 | Z133: =IF($Z$1="+",LOOKUP($V133,Data!$A$6:$A$1806,Data!$E$6:$E$1806)*-1,LOOKUP($V133,Data!$A$6:$A$1806,Data!$E$6:$E$1806)) -> 0 | AA133: =LOOKUP($V133,Data!$A$6:$A$1806,Data!$F$6:$F$1806) -> 0 | AC133: =LOOKUP($V133,Data!$A$6:$A$1806,Data!$H$6:$H$1806) -> 0 | AD133: =LOOKUP($V133,Data!$A$6:$A$1806,Data!$I$6:$I$1806) -> 0 | AE133: =IF(LOOKUP($V133,Data!$A$6:$A$1806,Data!$J$6:$J$1806)>0,(LOOKUP($V133,Data!$A$6:$A$1806,Data!$J$6:$J$1806)*-1),LOOKUP($V133,Data!$A$6:$A$1806,Data!$J$6:$J$1806)) -> -653 | AF133: =LOOKUP($V133,Data!$A$6:$A$1806,Data!$K$6:$K$1806) -> 30210.48633 | AG133: 354.5187378 | AH133: T+108 sec | AI133: 40679.33919 | AW133: 890.2303922 | AX133: 0.05429077148 | AY133: -653
A134: T+110 sec | B134: 40679.33921 | C134: =LOOKUP(B134,Data!$A$6:$A$1806,Data!B$6:B$1806) -> 59.94796753 | D134: =LOOKUP(B134,Data!$A$6:$A$1806,Data!C$6:C$1806) -> 0 | G134: 19590 | H134: =(IF((C134-L$2)>0,(IF(C134<'Copy Results'!$C$3,((C134-L$2-L$5)/((L$4*L$2)-L$5)*G134*-1),(('Copy Results'!$C$3-L$2-L$5)/((L$4*L$2)-L$5)*G134*-1))),IF(C134>'Copy Results'!$C$2,((C134-L$2+L$5)/((L$4*L$2)-L$5)*G134*-1),(('Copy Results'!$C$2-L$2+L$5)/((L$4*L$2)-L$5)*G134*-1)))) -> 339.7720337 | I134: 364.6304951 | L134: -4.263676488 | M134: 604.082311 | N134: =AVERAGE(D$79:D134) -> 0 | O134: =AVERAGE(M$79:M134) -> 945.0215845 | P134: 241.4393637 | Q134: =AVERAGE(P$79:P134) -> 356.5586289 | U134: T+110 sec | V134: 40679.33921 | W134: =LOOKUP($V134,Data!$A$6:$A$1806,Data!$B$6:$B$1806) -> 59.94796753 | X134: =LOOKUP($V134,Data!$A$6:$A$1806,Data!$C$6:$C$1806) -> 0 | Y134: =LOOKUP($V134,Data!$A$6:$A$1806,Data!$D$6:$D$1806) -> 0 | Z134: =IF($Z$1="+",LOOKUP($V134,Data!$A$6:$A$1806,Data!$E$6:$E$1806)*-1,LOOKUP($V134,Data!$A$6:$A$1806,Data!$E$6:$E$1806)) -> 0 | AA134: =LOOKUP($V134,Data!$A$6:$A$1806,Data!$F$6:$F$1806) -> 0 | AC134: =LOOKUP($V134,Data!$A$6:$A$1806,Data!$H$6:$H$1806) -> 0 | AD134: =LOOKUP($V134,Data!$A$6:$A$1806,Data!$I$6:$I$1806) -> 0 | AE134: =IF(LOOKUP($V134,Data!$A$6:$A$1806,Data!$J$6:$J$1806)>0,(LOOKUP($V134,Data!$A$6:$A$1806,Data!$J$6:$J$1806)*-1),LOOKUP($V134,Data!$A$6:$A$1806,Data!$J$6:$J$1806)) -> -653 | AF134: =LOOKUP($V134,Data!$A$6:$A$1806,Data!$K$6:$K$1806) -> 30210.25586 | AG134: 339.7720337 | AH134: T+110 sec | AI134: 40679.33921 | AW134: 929.9153614 | AX134: 0.0520324707 | AY134: -653
A135: T+112 sec | B135: 40679.33924 | C135: =LOOKUP(B135,Data!$A$6:$A$1806,Data!B$6:B$1806) -> 59.94766235 | D135: =LOOKUP(B135,Data!$A$6:$A$1806,Data!C$6:C$1806) -> 0 | G135: 19590 | H135: =(IF((C135-L$2)>0,(IF(C135<'Copy Results'!$C$3,((C135-L$2-L$5)/((L$4*L$2)-L$5)*G135*-1),(('Copy Results'!$C$3-L$2-L$5)/((L$4*L$2)-L$5)*G135*-1))),IF(C135>'Copy Results'!$C$2,((C135-L$2+L$5)/((L$4*L$2)-L$5)*G135*-1),(('Copy Results'!$C$2-L$2+L$5)/((L$4*L$2)-L$5)*G135*-1)))) -> 341.7648315 | I135: 356.6275129 | L135: -4.263676488 | M135: 591.8156523 | N135: =AVERAGE(D$79:D135) -> 0 | O135: =AVERAGE(M$79:M135) -> 938.8249892 | P135: 237.1756873 | Q135: =AVERAGE(P$79:P135) -> 354.4267907 | U135: T+112 sec | V135: 40679.33924 | W135: =LOOKUP($V135,Data!$A$6:$A$1806,Data!$B$6:$B$1806) -> 59.94766235 | X135: =LOOKUP($V135,Data!$A$6:$A$1806,Data!$C$6:$C$1806) -> 0 | Y135: =LOOKUP($V135,Data!$A$6:$A$1806,Data!$D$6:$D$1806) -> 0 | Z135: =IF($Z$1="+",LOOKUP($V135,Data!$A$6:$A$1806,Data!$E$6:$E$1806)*-1,LOOKUP($V135,Data!$A$6:$A$1806,Data!$E$6:$E$1806)) -> 0 | AA135: =LOOKUP($V135,Data!$A$6:$A$1806,Data!$F$6:$F$1806) -> 0 | AC135: =LOOKUP($V135,Data!$A$6:$A$1806,Data!$H$6:$H$1806) -> 0 | AD135: =LOOKUP($V135,Data!$A$6:$A$1806,Data!$I$6:$I$1806) -> 0 | AE135: =IF(LOOKUP($V135,Data!$A$6:$A$1806,Data!$J$6:$J$1806)>0,(LOOKUP($V135,Data!$A$6:$A$1806,Data!$J$6:$J$1806)*-1),LOOKUP($V135,Data!$A$6:$A$1806,Data!$J$6:$J$1806)) -> -653 | AF135: =LOOKUP($V135,Data!$A$6:$A$1806,Data!$K$6:$K$1806) -> 30210.25586 | AG135: 341.7648315 | AH135: T+112 sec | AI135: 40679.33924 | AW135: 924.347006 | AX135: 0.05233764648 | AY135: -653
A136: T+114 sec | B136: 40679.33926 | C136: =LOOKUP(B136,Data!$A$6:$A$1806,Data!B$6:B$1806) -> 59.94540405 | D136: =LOOKUP(B136,Data!$A$6:$A$1806,Data!C$6:C$1806) -> 0 | G136: 19590 | H136: =(IF((C136-L$2)>0,(IF(C136<'Copy Results'!$C$3,((C136-L$2-L$5)/((L$4*L$2)-L$5)*G136*-1),(('Copy Results'!$C$3-L$2-L$5)/((L$4*L$2)-L$5)*G136*-1))),IF(C136>'Copy Results'!$C$2,((C136-L$2+L$5)/((L$4*L$2)-L$5)*G136*-1),(('Copy Results'!$C$2-L$2+L$5)/((L$4*L$2)-L$5)*G136*-1)))) -> 356.5115356 | I136: 356.5869208 | L136: -4.263676488 | M136: 587.5113838 | N136: =AVERAGE(D$79:D136) -> 0 | O136: =AVERAGE(M$79:M136) -> 932.767858 | P136: 232.9120108 | Q136: =AVERAGE(P$79:P136) -> 352.2949524 | U136: T+114 sec | V136: 40679.33926 | W136: =LOOKUP($V136,Data!$A$6:$A$1806,Data!$B$6:$B$1806) -> 59.94540405 | X136: =LOOKUP($V136,Data!$A$6:$A$1806,Data!$C$6:$C$1806) -> 0 | Y136: =LOOKUP($V136,Data!$A$6:$A$1806,Data!$D$6:$D$1806) -> 0 | Z136: =IF($Z$1="+",LOOKUP($V136,Data!$A$6:$A$1806,Data!$E$6:$E$1806)*-1,LOOKUP($V136,Data!$A$6:$A$1806,Data!$E$6:$E$1806)) -> 0 | AA136: =LOOKUP($V136,Data!$A$6:$A$1806,Data!$F$6:$F$1806) -> 0 | AC136: =LOOKUP($V136,Data!$A$6:$A$1806,Data!$H$6:$H$1806) -> 0 | AD136: =LOOKUP($V136,Data!$A$6:$A$1806,Data!$I$6:$I$1806) -> 0 | AE136: =IF(LOOKUP($V136,Data!$A$6:$A$1806,Data!$J$6:$J$1806)>0,(LOOKUP($V136,Data!$A$6:$A$1806,Data!$J$6:$J$1806)*-1),LOOKUP($V136,Data!$A$6:$A$1806,Data!$J$6:$J$1806)) -> -653 | AF136: =LOOKUP($V136,Data!$A$6:$A$1806,Data!$K$6:$K$1806) -> 30210.25586 | AG136: 356.5115356 | AH136: T+114 sec | AI136: 40679.33926 | AW136: 885.1258601 | AX136: 0.05459594727 | AY136: -653
A137: T+116 sec | B137: 40679.33928 | C137: =LOOKUP(B137,Data!$A$6:$A$1806,Data!B$6:B$1806) -> 59.94442749 | D137: =LOOKUP(B137,Data!$A$6:$A$1806,Data!C$6:C$1806) -> 0 | G137: 19590 | H137: =(IF((C137-L$2)>0,(IF(C137<'Copy Results'!$C$3,((C137-L$2-L$5)/((L$4*L$2)-L$5)*G137*-1),(('Copy Results'!$C$3-L$2-L$5)/((L$4*L$2)-L$5)*G137*-1))),IF(C137>'Copy Results'!$C$2,((C137-L$2+L$5)/((L$4*L$2)-L$5)*G137*-1),(('Copy Results'!$C$2-L$2+L$5)/((L$4*L$2)-L$5)*G137*-1)))) -> 362.8884888 | I137: 358.7924696 | L137: -4.263676488 | M137: 585.4532561 | N137: =AVERAGE(D$79:D137) -> 0 | O137: =AVERAGE(M$79:M137) -> 926.8811699 | P137: 228.6483343 | Q137: =AVERAGE(P$79:P137) -> 350.1631142 | U137: T+116 sec | V137: 40679.33928 | W137: =LOOKUP($V137,Data!$A$6:$A$1806,Data!$B$6:$B$1806) -> 59.94442749 | X137: =LOOKUP($V137,Data!$A$6:$A$1806,Data!$C$6:$C$1806) -> 0 | Y137: =LOOKUP($V137,Data!$A$6:$A$1806,Data!$D$6:$D$1806) -> 0 | Z137: =IF($Z$1="+",LOOKUP($V137,Data!$A$6:$A$1806,Data!$E$6:$E$1806)*-1,LOOKUP($V137,Data!$A$6:$A$1806,Data!$E$6:$E$1806)) -> 0 | AA137: =LOOKUP($V137,Data!$A$6:$A$1806,Data!$F$6:$F$1806) -> 0 | AC137: =LOOKUP($V137,Data!$A$6:$A$1806,Data!$H$6:$H$1806) -> 0 | AD137: =LOOKUP($V137,Data!$A$6:$A$1806,Data!$I$6:$I$1806) -> 0 | AE137: =IF(LOOKUP($V137,Data!$A$6:$A$1806,Data!$J$6:$J$1806)>0,(LOOKUP($V137,Data!$A$6:$A$1806,Data!$J$6:$J$1806)*-1),LOOKUP($V137,Data!$A$6:$A$1806,Data!$J$6:$J$1806)) -> -653 | AF137: =LOOKUP($V137,Data!$A$6:$A$1806,Data!$K$6:$K$1806) -> 30210.25586 | AG137: 362.8884888 | AH137: T+116 sec | AI137: 40679.33928 | AW137: 869.1776464 | AX137: 0.05557250977 | AY137: -653
A138: T+118 sec | B138: 40679.33931 | C138: =LOOKUP(B138,Data!$A$6:$A$1806,Data!B$6:B$1806) -> 59.9440918 | D138: =LOOKUP(B138,Data!$A$6:$A$1806,Data!C$6:C$1806) -> 0 | G138: 19590 | H138: =(IF((C138-L$2)>0,(IF(C138<'Copy Results'!$C$3,((C138-L$2-L$5)/((L$4*L$2)-L$5)*G138*-1),(('Copy Results'!$C$3-L$2-L$5)/((L$4*L$2)-L$5)*G138*-1))),IF(C138>'Copy Results'!$C$2,((C138-L$2+L$5)/((L$4*L$2)-L$5)*G138*-1),(('Copy Results'!$C$2-L$2+L$5)/((L$4*L$2)-L$5)*G138*-1)))) -> 365.0805664 | I138: 360.9933035 | L138: -4.263676488 | M138: 583.3904134 | N138: =AVERAGE(D$79:D138) -> 0 | O138: =AVERAGE(M$79:M138) -> 921.1563239 | P138: 224.3846578 | Q138: =AVERAGE(P$79:P138) -> 348.031276 | U138: T+118 sec | V138: 40679.33931 | W138: =LOOKUP($V138,Data!$A$6:$A$1806,Data!$B$6:$B$1806) -> 59.9440918 | X138: =LOOKUP($V138,Data!$A$6:$A$1806,Data!$C$6:$C$1806) -> 0 | Y138: =LOOKUP($V138,Data!$A$6:$A$1806,Data!$D$6:$D$1806) -> 0 | Z138: =IF($Z$1="+",LOOKUP($V138,Data!$A$6:$A$1806,Data!$E$6:$E$1806)*-1,LOOKUP($V138,Data!$A$6:$A$1806,Data!$E$6:$E$1806)) -> 0 | AA138: =LOOKUP($V138,Data!$A$6:$A$1806,Data!$F$6:$F$1806) -> 0 | AC138: =LOOKUP($V138,Data!$A$6:$A$1806,Data!$H$6:$H$1806) -> 0 | AD138: =LOOKUP($V138,Data!$A$6:$A$1806,Data!$I$6:$I$1806) -> 0 | AE138: =IF(LOOKUP($V138,Data!$A$6:$A$1806,Data!$J$6:$J$1806)>0,(LOOKUP($V138,Data!$A$6:$A$1806,Data!$J$6:$J$1806)*-1),LOOKUP($V138,Data!$A$6:$A$1806,Data!$J$6:$J$1806)) -> -653 | AF138: =LOOKUP($V138,Data!$A$6:$A$1806,Data!$K$6:$K$1806) -> 30234.58594 | AG138: 365.0805664 | AH138: T+118 sec | AI138: 40679.33931 | AW138: 863.8273643 | AX138: 0.05590820312 | AY138: -653
A139: T+120 sec | B139: 40679.33933 | C139: =LOOKUP(B139,Data!$A$6:$A$1806,Data!B$6:B$1806) -> 59.94506836 | D139: =LOOKUP(B139,Data!$A$6:$A$1806,Data!C$6:C$1806) -> 0 | G139: 19590 | H139: =(IF((C139-L$2)>0,(IF(C139<'Copy Results'!$C$3,((C139-L$2-L$5)/((L$4*L$2)-L$5)*G139*-1),(('Copy Results'!$C$3-L$2-L$5)/((L$4*L$2)-L$5)*G139*-1))),IF(C139>'Copy Results'!$C$2,((C139-L$2+L$5)/((L$4*L$2)-L$5)*G139*-1),(('Copy Results'!$C$2-L$2+L$5)/((L$4*L$2)-L$5)*G139*-1)))) -> 358.7036133 | I139: 360.1919119 | L139: -4.263676488 | M139: 578.3253454 | N139: =AVERAGE(D$79:D139) -> 0 | O139: =AVERAGE(M$79:M139) -> 915.536144 | P139: 220.1209813 | Q139: =AVERAGE(P$79:P139) -> 345.8994377 | U139: T+120 sec | V139: 40679.33933 | W139: =LOOKUP($V139,Data!$A$6:$A$1806,Data!$B$6:$B$1806) -> 59.94506836 | X139: =LOOKUP($V139,Data!$A$6:$A$1806,Data!$C$6:$C$1806) -> 0 | Y139: =LOOKUP($V139,Data!$A$6:$A$1806,Data!$D$6:$D$1806) -> 0 | Z139: =IF($Z$1="+",LOOKUP($V139,Data!$A$6:$A$1806,Data!$E$6:$E$1806)*-1,LOOKUP($V139,Data!$A$6:$A$1806,Data!$E$6:$E$1806)) -> 0 | AA139: =LOOKUP($V139,Data!$A$6:$A$1806,Data!$F$6:$F$1806) -> 0 | AC139: =LOOKUP($V139,Data!$A$6:$A$1806,Data!$H$6:$H$1806) -> 0 | AD139: =LOOKUP($V139,Data!$A$6:$A$1806,Data!$I$6:$I$1806) -> 0 | AE139: =IF(LOOKUP($V139,Data!$A$6:$A$1806,Data!$J$6:$J$1806)>0,(LOOKUP($V139,Data!$A$6:$A$1806,Data!$J$6:$J$1806)*-1),LOOKUP($V139,Data!$A$6:$A$1806,Data!$J$6:$J$1806)) -> -653 | AF139: =LOOKUP($V139,Data!$A$6:$A$1806,Data!$K$6:$K$1806) -> 30234.58594 | AG139: 358.7036133 | AH139: T+120 sec | AI139: 40679.33933 | AW139: 879.5780627 | AX139: 0.05493164062 | AY139: -653
A140: T+122 sec | B140: 40679.33935 | C140: =LOOKUP(B140,Data!$A$6:$A$1806,Data!B$6:B$1806) -> 59.94604492 | D140: =LOOKUP(B140,Data!$A$6:$A$1806,Data!C$6:C$1806) -> 0 | G140: 19590 | H140: =(IF((C140-L$2)>0,(IF(C140<'Copy Results'!$C$3,((C140-L$2-L$5)/((L$4*L$2)-L$5)*G140*-1),(('Copy Results'!$C$3-L$2-L$5)/((L$4*L$2)-L$5)*G140*-1))),IF(C140>'Copy Results'!$C$2,((C140-L$2+L$5)/((L$4*L$2)-L$5)*G140*-1),(('Copy Results'!$C$2-L$2+L$5)/((L$4*L$2)-L$5)*G140*-1)))) -> 352.3266602 | I140: 357.4390738 | L140: -4.263676488 | M140: 571.3088308 | N140: =AVERAGE(D$79:D140) -> 0 | O140: =AVERAGE(M$79:M140) -> 909.9840905 | P140: 215.8573048 | Q140: =AVERAGE(P$79:P140) -> 343.7675995 | U140: T+122 sec | V140: 40679.33935 | W140: =LOOKUP($V140,Data!$A$6:$A$1806,Data!$B$6:$B$1806) -> 59.94604492 | X140: =LOOKUP($V140,Data!$A$6:$A$1806,Data!$C$6:$C$1806) -> 0 | Y140: =LOOKUP($V140,Data!$A$6:$A$1806,Data!$D$6:$D$1806) -> 0 | Z140: =IF($Z$1="+",LOOKUP($V140,Data!$A$6:$A$1806,Data!$E$6:$E$1806)*-1,LOOKUP($V140,Data!$A$6:$A$1806,Data!$E$6:$E$1806)) -> 0 | AA140: =LOOKUP($V140,Data!$A$6:$A$1806,Data!$F$6:$F$1806) -> 0 | AC140: =LOOKUP($V140,Data!$A$6:$A$1806,Data!$H$6:$H$1806) -> 0 | AD140: =LOOKUP($V140,Data!$A$6:$A$1806,Data!$I$6:$I$1806) -> 0 | AE140: =IF(LOOKUP($V140,Data!$A$6:$A$1806,Data!$J$6:$J$1806)>0,(LOOKUP($V140,Data!$A$6:$A$1806,Data!$J$6:$J$1806)*-1),LOOKUP($V140,Data!$A$6:$A$1806,Data!$J$6:$J$1806)) -> -653 | AF140: =LOOKUP($V140,Data!$A$6:$A$1806,Data!$K$6:$K$1806) -> 30234.58594 | AG140: 352.3266602 | AH140: T+122 sec | AI140: 40679.33935 | AW140: 895.9138131 | AX140: 0.05395507812 | AY140: -653
A141: T+124 sec | B141: 40679.33937 | C141: =LOOKUP(B141,Data!$A$6:$A$1806,Data!B$6:B$1806) -> 59.94638062 | D141: =LOOKUP(B141,Data!$A$6:$A$1806,Data!C$6:C$1806) -> 0 | G141: 19590 | H141: =(IF((C141-L$2)>0,(IF(C141<'Copy Results'!$C$3,((C141-L$2-L$5)/((L$4*L$2)-L$5)*G141*-1),(('Copy Results'!$C$3-L$2-L$5)/((L$4*L$2)-L$5)*G141*-1))),IF(C141>'Copy Results'!$C$2,((C141-L$2+L$5)/((L$4*L$2)-L$5)*G141*-1),(('Copy Results'!$C$2-L$2+L$5)/((L$4*L$2)-L$5)*G141*-1)))) -> 350.1345825 | I141: 354.8825019 | L141: -4.263676488 | M141: 564.4885823 | N141: =AVERAGE(D$79:D141) -> 0 | O141: =AVERAGE(M$79:M141) -> 904.5000348 | P141: 211.5936283 | Q141: =AVERAGE(P$79:P141) -> 341.6357612 | U141: T+124 sec | V141: 40679.33937 | W141: =LOOKUP($V141,Data!$A$6:$A$1806,Data!$B$6:$B$1806) -> 59.94638062 | X141: =LOOKUP($V141,Data!$A$6:$A$1806,Data!$C$6:$C$1806) -> 0 | Y141: =LOOKUP($V141,Data!$A$6:$A$1806,Data!$D$6:$D$1806) -> 0 | Z141: =IF($Z$1="+",LOOKUP($V141,Data!$A$6:$A$1806,Data!$E$6:$E$1806)*-1,LOOKUP($V141,Data!$A$6:$A$1806,Data!$E$6:$E$1806)) -> 0 | AA141: =LOOKUP($V141,Data!$A$6:$A$1806,Data!$F$6:$F$1806) -> 0 | AC141: =LOOKUP($V141,Data!$A$6:$A$1806,Data!$H$6:$H$1806) -> 0 | AD141: =LOOKUP($V141,Data!$A$6:$A$1806,Data!$I$6:$I$1806) -> 0 | AE141: =IF(LOOKUP($V141,Data!$A$6:$A$1806,Data!$J$6:$J$1806)>0,(LOOKUP($V141,Data!$A$6:$A$1806,Data!$J$6:$J$1806)*-1),LOOKUP($V141,Data!$A$6:$A$1806,Data!$J$6:$J$1806)) -> -653 | AF141: =LOOKUP($V141,Data!$A$6:$A$1806,Data!$K$6:$K$1806) -> 30234.58594 | AG141: 350.1345825 | AH141: T+124 sec | AI141: 40679.33937 | AW141: 901.6702687 | AX141: 0.05361938477 | AY141: -653
A142: T+126 sec | B142: 40679.3394 | C142: =LOOKUP(B142,Data!$A$6:$A$1806,Data!B$6:B$1806) -> 59.94732666 | D142: =LOOKUP(B142,Data!$A$6:$A$1806,Data!C$6:C$1806) -> 0 | G142: 19590 | H142: =(IF((C142-L$2)>0,(IF(C142<'Copy Results'!$C$3,((C142-L$2-L$5)/((L$4*L$2)-L$5)*G142*-1),(('Copy Results'!$C$3-L$2-L$5)/((L$4*L$2)-L$5)*G142*-1))),IF(C142>'Copy Results'!$C$2,((C142-L$2+L$5)/((L$4*L$2)-L$5)*G142*-1),(('Copy Results'!$C$2-L$2+L$5)/((L$4*L$2)-L$5)*G142*-1)))) -> 343.9569092 | I142: 351.0585444 | L142: -4.263676488 | M142: 556.4009484 | N142: =AVERAGE(D$79:D142) -> 0 | O142: =AVERAGE(M$79:M142) -> 899.0609866 | P142: 207.3299518 | Q142: =AVERAGE(P$79:P142) -> 339.503923 | U142: T+126 sec | V142: 40679.3394 | W142: =LOOKUP($V142,Data!$A$6:$A$1806,Data!$B$6:$B$1806) -> 59.94732666 | X142: =LOOKUP($V142,Data!$A$6:$A$1806,Data!$C$6:$C$1806) -> 0 | Y142: =LOOKUP($V142,Data!$A$6:$A$1806,Data!$D$6:$D$1806) -> 0 | Z142: =IF($Z$1="+",LOOKUP($V142,Data!$A$6:$A$1806,Data!$E$6:$E$1806)*-1,LOOKUP($V142,Data!$A$6:$A$1806,Data!$E$6:$E$1806)) -> 0 | AA142: =LOOKUP($V142,Data!$A$6:$A$1806,Data!$F$6:$F$1806) -> 0 | AC142: =LOOKUP($V142,Data!$A$6:$A$1806,Data!$H$6:$H$1806) -> 0 | AD142: =LOOKUP($V142,Data!$A$6:$A$1806,Data!$I$6:$I$1806) -> 0 | AE142: =IF(LOOKUP($V142,Data!$A$6:$A$1806,Data!$J$6:$J$1806)>0,(LOOKUP($V142,Data!$A$6:$A$1806,Data!$J$6:$J$1806)*-1),LOOKUP($V142,Data!$A$6:$A$1806,Data!$J$6:$J$1806)) -> -653 | AF142: =LOOKUP($V142,Data!$A$6:$A$1806,Data!$K$6:$K$1806) -> 30223.59961 | AG142: 343.9569092 | AH142: T+126 sec | AI142: 40679.3394 | AW142: 918.2983343 | AX142: 0.05267333984 | AY142: -653
A143: T+128 sec | B143: 40679.33942 | C143: =LOOKUP(B143,Data!$A$6:$A$1806,Data!B$6:B$1806) -> 59.94830322 | D143: =LOOKUP(B143,Data!$A$6:$A$1806,Data!C$6:C$1806) -> 0 | G143: 19590 | H143: =(IF((C143-L$2)>0,(IF(C143<'Copy Results'!$C$3,((C143-L$2-L$5)/((L$4*L$2)-L$5)*G143*-1),(('Copy Results'!$C$3-L$2-L$5)/((L$4*L$2)-L$5)*G143*-1))),IF(C143>'Copy Results'!$C$2,((C143-L$2+L$5)/((L$4*L$2)-L$5)*G143*-1),(('Copy Results'!$C$2-L$2+L$5)/((L$4*L$2)-L$5)*G143*-1)))) -> 337.5799561 | I143: 346.3410385 | L143: -4.263676488 | M143: 547.419766 | N143: =AVERAGE(D$79:D143) -> 0 | O143: =AVERAGE(M$79:M143) -> 893.6511217 | P143: 203.0662754 | Q143: =AVERAGE(P$79:P143) -> 337.3720847 | U143: T+128 sec | V143: 40679.33942 | W143: =LOOKUP($V143,Data!$A$6:$A$1806,Data!$B$6:$B$1806) -> 59.94830322 | X143: =LOOKUP($V143,Data!$A$6:$A$1806,Data!$C$6:$C$1806) -> 0 | Y143: =LOOKUP($V143,Data!$A$6:$A$1806,Data!$D$6:$D$1806) -> 0 | Z143: =IF($Z$1="+",LOOKUP($V143,Data!$A$6:$A$1806,Data!$E$6:$E$1806)*-1,LOOKUP($V143,Data!$A$6:$A$1806,Data!$E$6:$E$1806)) -> 0 | AA143: =LOOKUP($V143,Data!$A$6:$A$1806,Data!$F$6:$F$1806) -> 0 | AC143: =LOOKUP($V143,Data!$A$6:$A$1806,Data!$H$6:$H$1806) -> 0 | AD143: =LOOKUP($V143,Data!$A$6:$A$1806,Data!$I$6:$I$1806) -> 0 | AE143: =IF(LOOKUP($V143,Data!$A$6:$A$1806,Data!$J$6:$J$1806)>0,(LOOKUP($V143,Data!$A$6:$A$1806,Data!$J$6:$J$1806)*-1),LOOKUP($V143,Data!$A$6:$A$1806,Data!$J$6:$J$1806)) -> -653 | AF143: =LOOKUP($V143,Data!$A$6:$A$1806,Data!$K$6:$K$1806) -> 30223.59961 | AG143: 337.5799561 | AH143: T+128 sec | AI143: 40679.33942 | AW143: 936.1185567 | AX143: 0.05169677734 | AY143: -653
A144: T+130 sec | B144: 40679.33944 | C144: =LOOKUP(B144,Data!$A$6:$A$1806,Data!B$6:B$1806) -> 59.94894409 | D144: =LOOKUP(B144,Data!$A$6:$A$1806,Data!C$6:C$1806) -> 0 | G144: 19590 | H144: =(IF((C144-L$2)>0,(IF(C144<'Copy Results'!$C$3,((C144-L$2-L$5)/((L$4*L$2)-L$5)*G144*-1),(('Copy Results'!$C$3-L$2-L$5)/((L$4*L$2)-L$5)*G144*-1))),IF(C144>'Copy Results'!$C$2,((C144-L$2+L$5)/((L$4*L$2)-L$5)*G144*-1),(('Copy Results'!$C$2-L$2+L$5)/((L$4*L$2)-L$5)*G144*-1)))) -> 333.3950806 | I144: 341.8099532 | L144: =IF(B144>G$3,0,(K$21*0.000023148/K$22)) -> -4.263676488 | M144: =M143+L144+(I144-I143) -> 538.6250042 | N144: =AVERAGE(D$79:D144) -> 0 | O144: =AVERAGE(M$79:M144) -> 888.2719381 | P144: 198.8025989 | Q144: =AVERAGE(P$79:P144) -> 335.2402465 | U144: T+130 sec | V144: 40679.33944 | W144: =LOOKUP($V144,Data!$A$6:$A$1806,Data!$B$6:$B$1806) -> 59.94894409 | X144: =LOOKUP($V144,Data!$A$6:$A$1806,Data!$C$6:$C$1806) -> 0 | Y144: =LOOKUP($V144,Data!$A$6:$A$1806,Data!$D$6:$D$1806) -> 0 | Z144: =IF($Z$1="+",LOOKUP($V144,Data!$A$6:$A$1806,Data!$E$6:$E$1806)*-1,LOOKUP($V144,Data!$A$6:$A$1806,Data!$E$6:$E$1806)) -> 0 | AA144: =LOOKUP($V144,Data!$A$6:$A$1806,Data!$F$6:$F$1806) -> 0 | AC144: =LOOKUP($V144,Data!$A$6:$A$1806,Data!$H$6:$H$1806) -> 0 | AD144: =LOOKUP($V144,Data!$A$6:$A$1806,Data!$I$6:$I$1806) -> 0 | AE144: =IF(LOOKUP($V144,Data!$A$6:$A$1806,Data!$J$6:$J$1806)>0,(LOOKUP($V144,Data!$A$6:$A$1806,Data!$J$6:$J$1806)*-1),LOOKUP($V144,Data!$A$6:$A$1806,Data!$J$6:$J$1806)) -> -653 | AF144: =LOOKUP($V144,Data!$A$6:$A$1806,Data!$K$6:$K$1806) -> 30223.73047 | AG144: 333.3950806 | AH144: T+130 sec | AI144: 40679.33944 | AW144: 948.1937961 | AX144: 0.0510559082 | AY144: -653
A145: T+132 sec | B145: 40679.33947 | C145: =LOOKUP(B145,Data!$A$6:$A$1806,Data!B$6:B$1806) -> 59.94992065 | D145: =LOOKUP(B145,Data!$A$6:$A$1806,Data!C$6:C$1806) -> 0 | G145: 19590 | H145: =(IF((C145-L$2)>0,(IF(C145<'Copy Results'!$C$3,((C145-L$2-L$5)/((L$4*L$2)-L$5)*G145*-1),(('Copy Results'!$C$3-L$2-L$5)/((L$4*L$2)-L$5)*G145*-1))),IF(C145>'Copy Results'!$C$2,((C145-L$2+L$5)/((L$4*L$2)-L$5)*G145*-1),(('Copy Results'!$C$2-L$2+L$5)/((L$4*L$2)-L$5)*G145*-1)))) -> 327.0181274 | I145: 336.6328142 | L145: -4.263676488 | M145: 529.1841887 | N145: =AVERAGE(D$79:D145) -> 0 | O145: =AVERAGE(M$79:M145) -> 882.9124194 | P145: 194.5389224 | Q145: =AVERAGE(P$79:P145) -> 333.1084082 | U145: T+132 sec | V145: =V144+TIME(0,0,$B$1) -> 40679.33947 | W145: =LOOKUP($V145,Data!$A$6:$A$1806,Data!$B$6:$B$1806) -> 59.94992065 | X145: =LOOKUP($V145,Data!$A$6:$A$1806,Data!$C$6:$C$1806) -> 0 | Y145: =LOOKUP($V145,Data!$A$6:$A$1806,Data!$D$6:$D$1806) -> 0 | Z145: =IF($Z$1="+",LOOKUP($V145,Data!$A$6:$A$1806,Data!$E$6:$E$1806)*-1,LOOKUP($V145,Data!$A$6:$A$1806,Data!$E$6:$E$1806)) -> 0 | AA145: =LOOKUP($V145,Data!$A$6:$A$1806,Data!$F$6:$F$1806) -> 0 | AC145: =LOOKUP($V145,Data!$A$6:$A$1806,Data!$H$6:$H$1806) -> 0 | AD145: =LOOKUP($V145,Data!$A$6:$A$1806,Data!$I$6:$I$1806) -> 0 | AE145: =IF(LOOKUP($V145,Data!$A$6:$A$1806,Data!$J$6:$J$1806)>0,(LOOKUP($V145,Data!$A$6:$A$1806,Data!$J$6:$J$1806)*-1),LOOKUP($V145,Data!$A$6:$A$1806,Data!$J$6:$J$1806)) -> -653 | AF145: =LOOKUP($V145,Data!$A$6:$A$1806,Data!$K$6:$K$1806) -> 30223.73047 | AG145: 327.0181274 | AH145: T+132 sec | AI145: =AI144+TIME(0,0,$B$1) -> 40679.33947 | AW145: =IF(((D145-F$78)/((C145-E$78)*10))<0," ",((D145-F$78)/((C145-E$78)*10))) -> 967.2052005 | AX145: 0.0500793457 | AY145: -653
A146: T+134 sec | B146: 40679.33949 | C146: =LOOKUP(B146,Data!$A$6:$A$1806,Data!B$6:B$1806) -> 59.95089722 | D146: =LOOKUP(B146,Data!$A$6:$A$1806,Data!C$6:C$1806) -> 0 | G146: 19590 | H146: =(IF((C146-L$2)>0,(IF(C146<'Copy Results'!$C$3,((C146-L$2-L$5)/((L$4*L$2)-L$5)*G146*-1),(('Copy Results'!$C$3-L$2-L$5)/((L$4*L$2)-L$5)*G146*-1))),IF(C146>'Copy Results'!$C$2,((C146-L$2+L$5)/((L$4*L$2)-L$5)*G146*-1),(('Copy Results'!$C$2-L$2+L$5)/((L$4*L$2)-L$5)*G146*-1)))) -> 320.6411743 | I146: 331.0357402 | L146: -4.263676488 | M146: 519.3234383 | N146: =AVERAGE(D$79:D146) -> 0 | O146: =AVERAGE(M$79:M146) -> 877.5655226 | P146: =P145+L146 -> 190.2752459 | Q146: =AVERAGE(P$79:P146) -> 330.97657 | U146: T+134 sec | V146: 40679.33949 | W146: =LOOKUP($V146,Data!$A$6:$A$1806,Data!$B$6:$B$1806) -> 59.95089722 | X146: =LOOKUP($V146,Data!$A$6:$A$1806,Data!$C$6:$C$1806) -> 0 | Y146: =LOOKUP($V146,Data!$A$6:$A$1806,Data!$D$6:$D$1806) -> 0 | Z146: =IF($Z$1="+",LOOKUP($V146,Data!$A$6:$A$1806,Data!$E$6:$E$1806)*-1,LOOKUP($V146,Data!$A$6:$A$1806,Data!$E$6:$E$1806)) -> 0 | AA146: =LOOKUP($V146,Data!$A$6:$A$1806,Data!$F$6:$F$1806) -> 0 | AC146: =LOOKUP($V146,Data!$A$6:$A$1806,Data!$H$6:$H$1806) -> 0 | AD146: =LOOKUP($V146,Data!$A$6:$A$1806,Data!$I$6:$I$1806) -> 0 | AE146: =IF(LOOKUP($V146,Data!$A$6:$A$1806,Data!$J$6:$J$1806)>0,(LOOKUP($V146,Data!$A$6:$A$1806,Data!$J$6:$J$1806)*-1),LOOKUP($V146,Data!$A$6:$A$1806,Data!$J$6:$J$1806)) -> -653 | AF146: =LOOKUP($V146,Data!$A$6:$A$1806,Data!$K$6:$K$1806) -> 30223.73047 | AG146: 320.6411743 | AH146: T+134 sec | AI146: 40679.33949 | AW146: 986.9945652 | AX146: 0.0491027832 | AY146: -653
A147: T+136 sec | B147: 40679.33951 | C147: =LOOKUP(B147,Data!$A$6:$A$1806,Data!B$6:B$1806) -> 59.95153809 | D147: =LOOKUP(B147,Data!$A$6:$A$1806,Data!C$6:C$1806) -> 0 | G147: 19590 | H147: =(IF((C147-L$2)>0,(IF(C147<'Copy Results'!$C$3,((C147-L$2-L$5)/((L$4*L$2)-L$5)*G147*-1),(('Copy Results'!$C$3-L$2-L$5)/((L$4*L$2)-L$5)*G147*-1))),IF(C147>'Copy Results'!$C$2,((C147-L$2+L$5)/((L$4*L$2)-L$5)*G147*-1),(('Copy Results'!$C$2-L$2+L$5)/((L$4*L$2)-L$5)*G147*-1)))) -> 316.4562988 | I147: 325.9329357 | L147: -4.263676488 | M147: 509.9569573 | N147: =AVERAGE(D$79:D147) -> 0 | O147: =AVERAGE(M$79:M147) -> 872.2378623 | P147: 186.0115694 | Q147: =AVERAGE(P$79:P147) -> 328.8447318 | U147: T+136 sec | V147: 40679.33951 | W147: =LOOKUP($V147,Data!$A$6:$A$1806,Data!$B$6:$B$1806) -> 59.95153809 | X147: =LOOKUP($V147,Data!$A$6:$A$1806,Data!$C$6:$C$1806) -> 0 | Y147: =LOOKUP($V147,Data!$A$6:$A$1806,Data!$D$6:$D$1806) -> 0 | Z147: =IF($Z$1="+",LOOKUP($V147,Data!$A$6:$A$1806,Data!$E$6:$E$1806)*-1,LOOKUP($V147,Data!$A$6:$A$1806,Data!$E$6:$E$1806)) -> 0 | AA147: =LOOKUP($V147,Data!$A$6:$A$1806,Data!$F$6:$F$1806) -> 0 | AC147: =LOOKUP($V147,Data!$A$6:$A$1806,Data!$H$6:$H$1806) -> 0 | AD147: =LOOKUP($V147,Data!$A$6:$A$1806,Data!$I$6:$I$1806) -> 0 | AE147: =IF(LOOKUP($V147,Data!$A$6:$A$1806,Data!$J$6:$J$1806)>0,(LOOKUP($V147,Data!$A$6:$A$1806,Data!$J$6:$J$1806)*-1),LOOKUP($V147,Data!$A$6:$A$1806,Data!$J$6:$J$1806)) -> -653 | AF147: =LOOKUP($V147,Data!$A$6:$A$1806,Data!$K$6:$K$1806) -> 30223.73047 | AG147: 316.4562988 | AH147: T+136 sec | AI147: 40679.33951 | AW147: 1000.427414 | AX147: 0.04846191406 | AY147: -653
A148: T+138 sec | B148: 40679.33954 | C148: =LOOKUP(B148,Data!$A$6:$A$1806,Data!B$6:B$1806) -> 59.95187378 | D148: =LOOKUP(B148,Data!$A$6:$A$1806,Data!C$6:C$1806) -> 0 | G148: 19590 | H148: =(IF((C148-L$2)>0,(IF(C148<'Copy Results'!$C$3,((C148-L$2-L$5)/((L$4*L$2)-L$5)*G148*-1),(('Copy Results'!$C$3-L$2-L$5)/((L$4*L$2)-L$5)*G148*-1))),IF(C148>'Copy Results'!$C$2,((C148-L$2+L$5)/((L$4*L$2)-L$5)*G148*-1),(('Copy Results'!$C$2-L$2+L$5)/((L$4*L$2)-L$5)*G148*-1)))) -> 314.2642212 | I148: 321.8488857 | L148: -4.263676488 | M148: 501.6092307 | N148: =AVERAGE(D$79:D148) -> 0 | O148: =AVERAGE(M$79:M148) -> 866.9431675 | P148: 181.7478929 | Q148: =AVERAGE(P$79:P148) -> 326.7128935 | U148: T+138 sec | V148: 40679.33954 | W148: =LOOKUP($V148,Data!$A$6:$A$1806,Data!$B$6:$B$1806) -> 59.95187378 | X148: =LOOKUP($V148,Data!$A$6:$A$1806,Data!$C$6:$C$1806) -> 0 | Y148: =LOOKUP($V148,Data!$A$6:$A$1806,Data!$D$6:$D$1806) -> 0 | Z148: =IF($Z$1="+",LOOKUP($V148,Data!$A$6:$A$1806,Data!$E$6:$E$1806)*-1,LOOKUP($V148,Data!$A$6:$A$1806,Data!$E$6:$E$1806)) -> 0 | AA148: =LOOKUP($V148,Data!$A$6:$A$1806,Data!$F$6:$F$1806) -> 0 | AC148: =LOOKUP($V148,Data!$A$6:$A$1806,Data!$H$6:$H$1806) -> 0 | AD148: =LOOKUP($V148,Data!$A$6:$A$1806,Data!$I$6:$I$1806) -> 0 | AE148: =IF(LOOKUP($V148,Data!$A$6:$A$1806,Data!$J$6:$J$1806)>0,(LOOKUP($V148,Data!$A$6:$A$1806,Data!$J$6:$J$1806)*-1),LOOKUP($V148,Data!$A$6:$A$1806,Data!$J$6:$J$1806)) -> -653 | AF148: =LOOKUP($V148,Data!$A$6:$A$1806,Data!$K$6:$K$1806) -> 30224.39258 | AG148: 314.2642212 | AH148: T+138 sec | AI148: 40679.33954 | AW148: 1007.61064 | AX148: 0.0481262207 | AY148: -653
A149: T+140 sec | B149: 40679.33956 | C149: =LOOKUP(B149,Data!$A$6:$A$1806,Data!B$6:B$1806) -> 59.95346069 | D149: =LOOKUP(B149,Data!$A$6:$A$1806,Data!C$6:C$1806) -> 0 | G149: 19590 | H149: =(IF((C149-L$2)>0,(IF(C149<'Copy Results'!$C$3,((C149-L$2-L$5)/((L$4*L$2)-L$5)*G149*-1),(('Copy Results'!$C$3-L$2-L$5)/((L$4*L$2)-L$5)*G149*-1))),IF(C149>'Copy Results'!$C$2,((C149-L$2+L$5)/((L$4*L$2)-L$5)*G149*-1),(('Copy Results'!$C$2-L$2+L$5)/((L$4*L$2)-L$5)*G149*-1)))) -> 303.9016724 | I149: 315.567361 | L149: -4.263676488 | M149: 491.0640296 | N149: =AVERAGE(D$79:D149) -> 0 | O149: =AVERAGE(M$79:M149) -> 861.6490952 | P149: 177.4842164 | Q149: =AVERAGE(P$79:P149) -> 324.5810553 | U149: T+140 sec | V149: 40679.33956 | W149: =LOOKUP($V149,Data!$A$6:$A$1806,Data!$B$6:$B$1806) -> 59.95346069 | X149: =LOOKUP($V149,Data!$A$6:$A$1806,Data!$C$6:$C$1806) -> 0 | Y149: =LOOKUP($V149,Data!$A$6:$A$1806,Data!$D$6:$D$1806) -> 0 | Z149: =IF($Z$1="+",LOOKUP($V149,Data!$A$6:$A$1806,Data!$E$6:$E$1806)*-1,LOOKUP($V149,Data!$A$6:$A$1806,Data!$E$6:$E$1806)) -> 0 | AA149: =LOOKUP($V149,Data!$A$6:$A$1806,Data!$F$6:$F$1806) -> 0 | AC149: =LOOKUP($V149,Data!$A$6:$A$1806,Data!$H$6:$H$1806) -> 0 | AD149: =LOOKUP($V149,Data!$A$6:$A$1806,Data!$I$6:$I$1806) -> 0 | AE149: =IF(LOOKUP($V149,Data!$A$6:$A$1806,Data!$J$6:$J$1806)>0,(LOOKUP($V149,Data!$A$6:$A$1806,Data!$J$6:$J$1806)*-1),LOOKUP($V149,Data!$A$6:$A$1806,Data!$J$6:$J$1806)) -> -653 | AF149: =LOOKUP($V149,Data!$A$6:$A$1806,Data!$K$6:$K$1806) -> 30224.39258 | AG149: 303.9016724 | AH149: T+140 sec | AI149: 40679.33956 | AW149: 1043.013176 | AX149: 0.04653930664 | AY149: -653
A150: T+142 sec | B150: 40679.33958 | C150: =LOOKUP(B150,Data!$A$6:$A$1806,Data!B$6:B$1806) -> 59.95507812 | D150: =LOOKUP(B150,Data!$A$6:$A$1806,Data!C$6:C$1806) -> 0 | G150: 19590 | H150: =(IF((C150-L$2)>0,(IF(C150<'Copy Results'!$C$3,((C150-L$2-L$5)/((L$4*L$2)-L$5)*G150*-1),(('Copy Results'!$C$3-L$2-L$5)/((L$4*L$2)-L$5)*G150*-1))),IF(C150>'Copy Results'!$C$2,((C150-L$2+L$5)/((L$4*L$2)-L$5)*G150*-1),(('Copy Results'!$C$2-L$2+L$5)/((L$4*L$2)-L$5)*G150*-1)))) -> 293.3398438 | I150: 307.78773 | L150: -4.263676488 | M150: 479.0207221 | N150: =AVERAGE(D$79:D150) -> 0 | O150: =AVERAGE(M$79:M150) -> 856.3348122 | P150: 173.2205399 | Q150: =AVERAGE(P$79:P150) -> 322.449217 | U150: T+142 sec | V150: 40679.33958 | W150: =LOOKUP($V150,Data!$A$6:$A$1806,Data!$B$6:$B$1806) -> 59.95507812 | X150: =LOOKUP($V150,Data!$A$6:$A$1806,Data!$C$6:$C$1806) -> 0 | Y150: =LOOKUP($V150,Data!$A$6:$A$1806,Data!$D$6:$D$1806) -> 0 | Z150: =IF($Z$1="+",LOOKUP($V150,Data!$A$6:$A$1806,Data!$E$6:$E$1806)*-1,LOOKUP($V150,Data!$A$6:$A$1806,Data!$E$6:$E$1806)) -> 0 | AA150: =LOOKUP($V150,Data!$A$6:$A$1806,Data!$F$6:$F$1806) -> 0 | AC150: =LOOKUP($V150,Data!$A$6:$A$1806,Data!$H$6:$H$1806) -> 0 | AD150: =LOOKUP($V150,Data!$A$6:$A$1806,Data!$I$6:$I$1806) -> 0 | AE150: =IF(LOOKUP($V150,Data!$A$6:$A$1806,Data!$J$6:$J$1806)>0,(LOOKUP($V150,Data!$A$6:$A$1806,Data!$J$6:$J$1806)*-1),LOOKUP($V150,Data!$A$6:$A$1806,Data!$J$6:$J$1806)) -> -653 | AF150: =LOOKUP($V150,Data!$A$6:$A$1806,Data!$K$6:$K$1806) -> 30224.39258 | AG150: 293.3398438 | AH150: T+142 sec | AI150: 40679.33958 | AW150: 1081.751577 | AX150: 0.044921875 | AY150: -653
A151: T+144 sec | B151: 40679.33961 | C151: =LOOKUP(B151,Data!$A$6:$A$1806,Data!B$6:B$1806) -> 59.95574951 | D151: =LOOKUP(B151,Data!$A$6:$A$1806,Data!C$6:C$1806) -> 0 | G151: 19590 | H151: =(IF((C151-L$2)>0,(IF(C151<'Copy Results'!$C$3,((C151-L$2-L$5)/((L$4*L$2)-L$5)*G151*-1),(('Copy Results'!$C$3-L$2-L$5)/((L$4*L$2)-L$5)*G151*-1))),IF(C151>'Copy Results'!$C$2,((C151-L$2+L$5)/((L$4*L$2)-L$5)*G151*-1),(('Copy Results'!$C$2-L$2+L$5)/((L$4*L$2)-L$5)*G151*-1)))) -> 288.9556885 | I151: 301.1965154 | L151: -4.263676488 | M151: 468.165831 | N151: =AVERAGE(D$79:D151) -> 0 | O151: =AVERAGE(M$79:M151) -> 851.0174289 | P151: 168.9568634 | Q151: =AVERAGE(P$79:P151) -> 320.3173788 | U151: T+144 sec | V151: 40679.33961 | W151: =LOOKUP($V151,Data!$A$6:$A$1806,Data!$B$6:$B$1806) -> 59.95574951 | X151: =LOOKUP($V151,Data!$A$6:$A$1806,Data!$C$6:$C$1806) -> 0 | Y151: =LOOKUP($V151,Data!$A$6:$A$1806,Data!$D$6:$D$1806) -> 0 | Z151: =IF($Z$1="+",LOOKUP($V151,Data!$A$6:$A$1806,Data!$E$6:$E$1806)*-1,LOOKUP($V151,Data!$A$6:$A$1806,Data!$E$6:$E$1806)) -> 0 | AA151: =LOOKUP($V151,Data!$A$6:$A$1806,Data!$F$6:$F$1806) -> 0 | AC151: =LOOKUP($V151,Data!$A$6:$A$1806,Data!$H$6:$H$1806) -> 0 | AD151: =LOOKUP($V151,Data!$A$6:$A$1806,Data!$I$6:$I$1806) -> 0 | AE151: =IF(LOOKUP($V151,Data!$A$6:$A$1806,Data!$J$6:$J$1806)>0,(LOOKUP($V151,Data!$A$6:$A$1806,Data!$J$6:$J$1806)*-1),LOOKUP($V151,Data!$A$6:$A$1806,Data!$J$6:$J$1806)) -> -653 | AF151: =LOOKUP($V151,Data!$A$6:$A$1806,Data!$K$6:$K$1806) -> 30224.39258 | AG151: 288.9556885 | AH151: T+144 sec | AI151: 40679.33961 | AW151: 1098.690036 | AX151: 0.04425048828 | AY151: -653
A152: T+146 sec | B152: 40679.33963 | C152: =LOOKUP(B152,Data!$A$6:$A$1806,Data!B$6:B$1806) -> 59.95639038 | D152: =LOOKUP(B152,Data!$A$6:$A$1806,Data!C$6:C$1806) -> 0 | G152: 19590 | H152: =(IF((C152-L$2)>0,(IF(C152<'Copy Results'!$C$3,((C152-L$2-L$5)/((L$4*L$2)-L$5)*G152*-1),(('Copy Results'!$C$3-L$2-L$5)/((L$4*L$2)-L$5)*G152*-1))),IF(C152>'Copy Results'!$C$2,((C152-L$2+L$5)/((L$4*L$2)-L$5)*G152*-1),(('Copy Results'!$C$2-L$2+L$5)/((L$4*L$2)-L$5)*G152*-1)))) -> 284.770813 | I152: 295.4475196 | L152: -4.263676488 | M152: 458.1531587 | N152: =AVERAGE(D$79:D152) -> 0 | O152: =AVERAGE(M$79:M152) -> 845.7084523 | P152: 164.693187 | Q152: =AVERAGE(P$79:P152) -> 318.1855405 | U152: T+146 sec | V152: 40679.33963 | W152: =LOOKUP($V152,Data!$A$6:$A$1806,Data!$B$6:$B$1806) -> 59.95639038 | X152: =LOOKUP($V152,Data!$A$6:$A$1806,Data!$C$6:$C$1806) -> 0 | Y152: =LOOKUP($V152,Data!$A$6:$A$1806,Data!$D$6:$D$1806) -> 0 | Z152: =IF($Z$1="+",LOOKUP($V152,Data!$A$6:$A$1806,Data!$E$6:$E$1806)*-1,LOOKUP($V152,Data!$A$6:$A$1806,Data!$E$6:$E$1806)) -> 0 | AA152: =LOOKUP($V152,Data!$A$6:$A$1806,Data!$F$6:$F$1806) -> 0 | AC152: =LOOKUP($V152,Data!$A$6:$A$1806,Data!$H$6:$H$1806) -> 0 | AD152: =LOOKUP($V152,Data!$A$6:$A$1806,Data!$I$6:$I$1806) -> 0 | AE152: =IF(LOOKUP($V152,Data!$A$6:$A$1806,Data!$J$6:$J$1806)>0,(LOOKUP($V152,Data!$A$6:$A$1806,Data!$J$6:$J$1806)*-1),LOOKUP($V152,Data!$A$6:$A$1806,Data!$J$6:$J$1806)) -> -653 | AF152: =LOOKUP($V152,Data!$A$6:$A$1806,Data!$K$6:$K$1806) -> 30255.5293 | AG152: 284.770813 | AH152: T+146 sec | AI152: 40679.33963 | AW152: 1115.36091 | AX152: 0.04360961914 | AY152: -653
A153: T+148 sec | B153: 40679.33965 | C153: =LOOKUP(B153,Data!$A$6:$A$1806,Data!B$6:B$1806) -> 59.95800781 | D153: =LOOKUP(B153,Data!$A$6:$A$1806,Data!C$6:C$1806) -> 0 | G153: 19590 | H153: =(IF((C153-L$2)>0,(IF(C153<'Copy Results'!$C$3,((C153-L$2-L$5)/((L$4*L$2)-L$5)*G153*-1),(('Copy Results'!$C$3-L$2-L$5)/((L$4*L$2)-L$5)*G153*-1))),IF(C153>'Copy Results'!$C$2,((C153-L$2+L$5)/((L$4*L$2)-L$5)*G153*-1),(('Copy Results'!$C$2-L$2+L$5)/((L$4*L$2)-L$5)*G153*-1)))) -> 274.2089844 | I153: 288.0140323 | L153: -4.263676488 | M153: 446.4559949 | N153: =AVERAGE(D$79:D153) -> 0 | O153: =AVERAGE(M$79:M153) -> 840.3850862 | P153: 160.4295105 | Q153: =AVERAGE(P$79:P153) -> 316.0537023 | U153: T+148 sec | V153: 40679.33965 | W153: =LOOKUP($V153,Data!$A$6:$A$1806,Data!$B$6:$B$1806) -> 59.95800781 | X153: =LOOKUP($V153,Data!$A$6:$A$1806,Data!$C$6:$C$1806) -> 0 | Y153: =LOOKUP($V153,Data!$A$6:$A$1806,Data!$D$6:$D$1806) -> 0 | Z153: =IF($Z$1="+",LOOKUP($V153,Data!$A$6:$A$1806,Data!$E$6:$E$1806)*-1,LOOKUP($V153,Data!$A$6:$A$1806,Data!$E$6:$E$1806)) -> 0 | AA153: =LOOKUP($V153,Data!$A$6:$A$1806,Data!$F$6:$F$1806) -> 0 | AC153: =LOOKUP($V153,Data!$A$6:$A$1806,Data!$H$6:$H$1806) -> 0 | AD153: =LOOKUP($V153,Data!$A$6:$A$1806,Data!$I$6:$I$1806) -> 0 | AE153: =IF(LOOKUP($V153,Data!$A$6:$A$1806,Data!$J$6:$J$1806)>0,(LOOKUP($V153,Data!$A$6:$A$1806,Data!$J$6:$J$1806)*-1),LOOKUP($V153,Data!$A$6:$A$1806,Data!$J$6:$J$1806)) -> -653 | AF153: =LOOKUP($V153,Data!$A$6:$A$1806,Data!$K$6:$K$1806) -> 30255.5293 | AG153: 274.2089844 | AH153: T+148 sec | AI153: 40679.33965 | AW153: 1159.77423 | AX153: 0.0419921875 | AY153: -653
A154: T+150 sec | B154: 40679.33968 | C154: =LOOKUP(B154,Data!$A$6:$A$1806,Data!B$6:B$1806) -> 59.96124268 | D154: =LOOKUP(B154,Data!$A$6:$A$1806,Data!C$6:C$1806) -> 0 | G154: 19590 | H154: =(IF((C154-L$2)>0,(IF(C154<'Copy Results'!$C$3,((C154-L$2-L$5)/((L$4*L$2)-L$5)*G154*-1),(('Copy Results'!$C$3-L$2-L$5)/((L$4*L$2)-L$5)*G154*-1))),IF(C154>'Copy Results'!$C$2,((C154-L$2+L$5)/((L$4*L$2)-L$5)*G154*-1),(('Copy Results'!$C$2-L$2+L$5)/((L$4*L$2)-L$5)*G154*-1)))) -> 253.0853271 | I154: 275.7889855 | L154: -4.263676488 | M154: 429.9672716 | N154: =AVERAGE(D$79:D154) -> 0 | O154: =AVERAGE(M$79:M154) -> 834.9848518 | P154: 156.165834 | Q154: =AVERAGE(P$79:P154) -> 313.921864 | U154: T+150 sec | V154: 40679.33968 | W154: =LOOKUP($V154,Data!$A$6:$A$1806,Data!$B$6:$B$1806) -> 59.96124268 | X154: =LOOKUP($V154,Data!$A$6:$A$1806,Data!$C$6:$C$1806) -> 0 | Y154: =LOOKUP($V154,Data!$A$6:$A$1806,Data!$D$6:$D$1806) -> 0 | Z154: =IF($Z$1="+",LOOKUP($V154,Data!$A$6:$A$1806,Data!$E$6:$E$1806)*-1,LOOKUP($V154,Data!$A$6:$A$1806,Data!$E$6:$E$1806)) -> 0 | AA154: =LOOKUP($V154,Data!$A$6:$A$1806,Data!$F$6:$F$1806) -> 0 | AC154: =LOOKUP($V154,Data!$A$6:$A$1806,Data!$H$6:$H$1806) -> 0 | AD154: =LOOKUP($V154,Data!$A$6:$A$1806,Data!$I$6:$I$1806) -> 0 | AE154: =IF(LOOKUP($V154,Data!$A$6:$A$1806,Data!$J$6:$J$1806)>0,(LOOKUP($V154,Data!$A$6:$A$1806,Data!$J$6:$J$1806)*-1),LOOKUP($V154,Data!$A$6:$A$1806,Data!$J$6:$J$1806)) -> -653 | AF154: =LOOKUP($V154,Data!$A$6:$A$1806,Data!$K$6:$K$1806) -> 30252.86719 | AG154: 253.0853271 | AH154: T+150 sec | AI154: 40679.33968 | AW154: 1260.130204 | AX154: 0.03875732422 | AY154: -653
A155: T+152 sec | B155: 40679.3397 | C155: =LOOKUP(B155,Data!$A$6:$A$1806,Data!B$6:B$1806) -> 59.96252441 | D155: =LOOKUP(B155,Data!$A$6:$A$1806,Data!C$6:C$1806) -> 0 | G155: 19590 | H155: =(IF((C155-L$2)>0,(IF(C155<'Copy Results'!$C$3,((C155-L$2-L$5)/((L$4*L$2)-L$5)*G155*-1),(('Copy Results'!$C$3-L$2-L$5)/((L$4*L$2)-L$5)*G155*-1))),IF(C155>'Copy Results'!$C$2,((C155-L$2+L$5)/((L$4*L$2)-L$5)*G155*-1),(('Copy Results'!$C$2-L$2+L$5)/((L$4*L$2)-L$5)*G155*-1)))) -> 244.7155762 | I155: 264.9132922 | L155: -4.263676488 | M155: 414.8279019 | N155: =AVERAGE(D$79:D155) -> 0 | O155: =AVERAGE(M$79:M155) -> 829.528268 | P155: 151.9021575 | Q155: =AVERAGE(P$79:P155) -> 311.7900258 | U155: T+152 sec | V155: 40679.3397 | W155: =LOOKUP($V155,Data!$A$6:$A$1806,Data!$B$6:$B$1806) -> 59.96252441 | X155: =LOOKUP($V155,Data!$A$6:$A$1806,Data!$C$6:$C$1806) -> 0 | Y155: =LOOKUP($V155,Data!$A$6:$A$1806,Data!$D$6:$D$1806) -> 0 | Z155: =IF($Z$1="+",LOOKUP($V155,Data!$A$6:$A$1806,Data!$E$6:$E$1806)*-1,LOOKUP($V155,Data!$A$6:$A$1806,Data!$E$6:$E$1806)) -> 0 | AA155: =LOOKUP($V155,Data!$A$6:$A$1806,Data!$F$6:$F$1806) -> 0 | AC155: =LOOKUP($V155,Data!$A$6:$A$1806,Data!$H$6:$H$1806) -> 0 | AD155: =LOOKUP($V155,Data!$A$6:$A$1806,Data!$I$6:$I$1806) -> 0 | AE155: =IF(LOOKUP($V155,Data!$A$6:$A$1806,Data!$J$6:$J$1806)>0,(LOOKUP($V155,Data!$A$6:$A$1806,Data!$J$6:$J$1806)*-1),LOOKUP($V155,Data!$A$6:$A$1806,Data!$J$6:$J$1806)) -> -653 | AF155: =LOOKUP($V155,Data!$A$6:$A$1806,Data!$K$6:$K$1806) -> 30252.86719 | AG155: 244.7155762 | AH155: T+152 sec | AI155: 40679.3397 | AW155: 1304.868555 | AX155: 0.03747558594 | AY155: -653
A156: T+154 sec | B156: 40679.33972 | C156: =LOOKUP(B156,Data!$A$6:$A$1806,Data!B$6:B$1806) -> 59.96188354 | D156: =LOOKUP(B156,Data!$A$6:$A$1806,Data!C$6:C$1806) -> 0 | G156: 19590 | H156: =(IF((C156-L$2)>0,(IF(C156<'Copy Results'!$C$3,((C156-L$2-L$5)/((L$4*L$2)-L$5)*G156*-1),(('Copy Results'!$C$3-L$2-L$5)/((L$4*L$2)-L$5)*G156*-1))),IF(C156>'Copy Results'!$C$2,((C156-L$2+L$5)/((L$4*L$2)-L$5)*G156*-1),(('Copy Results'!$C$2-L$2+L$5)/((L$4*L$2)-L$5)*G156*-1)))) -> 248.9004517 | I156: 259.308798 | L156: -4.263676488 | M156: 404.9597312 | N156: =AVERAGE(D$79:D156) -> 0 | O156: =AVERAGE(M$79:M156) -> 824.0850817 | P156: 147.638481 | Q156: =AVERAGE(P$79:P156) -> 309.6581876 | U156: T+154 sec | V156: 40679.33972 | W156: =LOOKUP($V156,Data!$A$6:$A$1806,Data!$B$6:$B$1806) -> 59.96188354 | X156: =LOOKUP($V156,Data!$A$6:$A$1806,Data!$C$6:$C$1806) -> 0 | Y156: =LOOKUP($V156,Data!$A$6:$A$1806,Data!$D$6:$D$1806) -> 0 | Z156: =IF($Z$1="+",LOOKUP($V156,Data!$A$6:$A$1806,Data!$E$6:$E$1806)*-1,LOOKUP($V156,Data!$A$6:$A$1806,Data!$E$6:$E$1806)) -> 0 | AA156: =LOOKUP($V156,Data!$A$6:$A$1806,Data!$F$6:$F$1806) -> 0 | AC156: =LOOKUP($V156,Data!$A$6:$A$1806,Data!$H$6:$H$1806) -> 0 | AD156: =LOOKUP($V156,Data!$A$6:$A$1806,Data!$I$6:$I$1806) -> 0 | AE156: =IF(LOOKUP($V156,Data!$A$6:$A$1806,Data!$J$6:$J$1806)>0,(LOOKUP($V156,Data!$A$6:$A$1806,Data!$J$6:$J$1806)*-1),LOOKUP($V156,Data!$A$6:$A$1806,Data!$J$6:$J$1806)) -> -653 | AF156: =LOOKUP($V156,Data!$A$6:$A$1806,Data!$K$6:$K$1806) -> 30252.86719 | AG156: 248.9004517 | AH156: T+154 sec | AI156: 40679.33972 | AW156: 1282.109219 | AX156: 0.03811645508 | AY156: -653
A157: T+156 sec | B157: 40679.33975 | C157: =LOOKUP(B157,Data!$A$6:$A$1806,Data!B$6:B$1806) -> 59.96124268 | D157: =LOOKUP(B157,Data!$A$6:$A$1806,Data!C$6:C$1806) -> 0 | G157: 19590 | H157: =(IF((C157-L$2)>0,(IF(C157<'Copy Results'!$C$3,((C157-L$2-L$5)/((L$4*L$2)-L$5)*G157*-1),(('Copy Results'!$C$3-L$2-L$5)/((L$4*L$2)-L$5)*G157*-1))),IF(C157>'Copy Results'!$C$2,((C157-L$2+L$5)/((L$4*L$2)-L$5)*G157*-1),(('Copy Results'!$C$2-L$2+L$5)/((L$4*L$2)-L$5)*G157*-1)))) -> 253.0853271 | I157: 257.1305832 | L157: -4.263676488 | M157: 398.5178399 | N157: =AVERAGE(D$79:D157) -> 0 | O157: =AVERAGE(M$79:M157) -> 818.6981545 | P157: 143.3748045 | Q157: =AVERAGE(P$79:P157) -> 307.5263493 | U157: T+156 sec | V157: 40679.33975 | W157: =LOOKUP($V157,Data!$A$6:$A$1806,Data!$B$6:$B$1806) -> 59.96124268 | X157: =LOOKUP($V157,Data!$A$6:$A$1806,Data!$C$6:$C$1806) -> 0 | Y157: =LOOKUP($V157,Data!$A$6:$A$1806,Data!$D$6:$D$1806) -> 0 | Z157: =IF($Z$1="+",LOOKUP($V157,Data!$A$6:$A$1806,Data!$E$6:$E$1806)*-1,LOOKUP($V157,Data!$A$6:$A$1806,Data!$E$6:$E$1806)) -> 0 | AA157: =LOOKUP($V157,Data!$A$6:$A$1806,Data!$F$6:$F$1806) -> 0 | AC157: =LOOKUP($V157,Data!$A$6:$A$1806,Data!$H$6:$H$1806) -> 0 | AD157: =LOOKUP($V157,Data!$A$6:$A$1806,Data!$I$6:$I$1806) -> 0 | AE157: =IF(LOOKUP($V157,Data!$A$6:$A$1806,Data!$J$6:$J$1806)>0,(LOOKUP($V157,Data!$A$6:$A$1806,Data!$J$6:$J$1806)*-1),LOOKUP($V157,Data!$A$6:$A$1806,Data!$J$6:$J$1806)) -> -653 | AF157: =LOOKUP($V157,Data!$A$6:$A$1806,Data!$K$6:$K$1806) -> 30252.86719 | AG157: 253.0853271 | AH157: T+156 sec | AI157: 40679.33975 | AW157: 1260.130204 | AX157: 0.03875732422 | AY157: -653
A158: T+158 sec | B158: 40679.33977 | C158: =LOOKUP(B158,Data!$A$6:$A$1806,Data!B$6:B$1806) -> 59.96026611 | D158: =LOOKUP(B158,Data!$A$6:$A$1806,Data!C$6:C$1806) -> 0 | G158: 19590 | H158: =(IF((C158-L$2)>0,(IF(C158<'Copy Results'!$C$3,((C158-L$2-L$5)/((L$4*L$2)-L$5)*G158*-1),(('Copy Results'!$C$3-L$2-L$5)/((L$4*L$2)-L$5)*G158*-1))),IF(C158>'Copy Results'!$C$2,((C158-L$2+L$5)/((L$4*L$2)-L$5)*G158*-1),(('Copy Results'!$C$2-L$2+L$5)/((L$4*L$2)-L$5)*G158*-1)))) -> 259.4622803 | I158: 257.9466772 | L158: -4.263676488 | M158: 395.0702574 | N158: =AVERAGE(D$79:D158) -> 0 | O158: =AVERAGE(M$79:M158) -> 813.4028058 | P158: 139.111128 | Q158: =AVERAGE(P$79:P158) -> 305.3945111 | U158: T+158 sec | V158: 40679.33977 | W158: =LOOKUP($V158,Data!$A$6:$A$1806,Data!$B$6:$B$1806) -> 59.96026611 | X158: =LOOKUP($V158,Data!$A$6:$A$1806,Data!$C$6:$C$1806) -> 0 | Y158: =LOOKUP($V158,Data!$A$6:$A$1806,Data!$D$6:$D$1806) -> 0 | Z158: =IF($Z$1="+",LOOKUP($V158,Data!$A$6:$A$1806,Data!$E$6:$E$1806)*-1,LOOKUP($V158,Data!$A$6:$A$1806,Data!$E$6:$E$1806)) -> 0 | AA158: =LOOKUP($V158,Data!$A$6:$A$1806,Data!$F$6:$F$1806) -> 0 | AC158: =LOOKUP($V158,Data!$A$6:$A$1806,Data!$H$6:$H$1806) -> 0 | AD158: =LOOKUP($V158,Data!$A$6:$A$1806,Data!$I$6:$I$1806) -> 0 | AE158: =IF(LOOKUP($V158,Data!$A$6:$A$1806,Data!$J$6:$J$1806)>0,(LOOKUP($V158,Data!$A$6:$A$1806,Data!$J$6:$J$1806)*-1),LOOKUP($V158,Data!$A$6:$A$1806,Data!$J$6:$J$1806)) -> -653 | AF158: =LOOKUP($V158,Data!$A$6:$A$1806,Data!$K$6:$K$1806) -> 30232.44922 | AG158: 259.4622803 | AH158: T+158 sec | AI158: 40679.33977 | AW158: 1228.050517 | AX158: 0.03973388672 | AY158: -653
A159: T+160 sec | B159: 40679.33979 | C159: =LOOKUP(B159,Data!$A$6:$A$1806,Data!B$6:B$1806) -> 59.96057129 | D159: =LOOKUP(B159,Data!$A$6:$A$1806,Data!C$6:C$1806) -> 0 | G159: 19590 | H159: =(IF((C159-L$2)>0,(IF(C159<'Copy Results'!$C$3,((C159-L$2-L$5)/((L$4*L$2)-L$5)*G159*-1),(('Copy Results'!$C$3-L$2-L$5)/((L$4*L$2)-L$5)*G159*-1))),IF(C159>'Copy Results'!$C$2,((C159-L$2+L$5)/((L$4*L$2)-L$5)*G159*-1),(('Copy Results'!$C$2-L$2+L$5)/((L$4*L$2)-L$5)*G159*-1)))) -> 257.4694824 | I159: 257.779659 | L159: -4.263676488 | M159: 390.6395627 | N159: =AVERAGE(D$79:D159) -> 0 | O159: =AVERAGE(M$79:M159) -> 808.1835065 | P159: 134.8474515 | Q159: =AVERAGE(P$79:P159) -> 303.2626728 | U159: T+160 sec | V159: 40679.33979 | W159: =LOOKUP($V159,Data!$A$6:$A$1806,Data!$B$6:$B$1806) -> 59.96057129 | X159: =LOOKUP($V159,Data!$A$6:$A$1806,Data!$C$6:$C$1806) -> 0 | Y159: =LOOKUP($V159,Data!$A$6:$A$1806,Data!$D$6:$D$1806) -> 0 | Z159: =IF($Z$1="+",LOOKUP($V159,Data!$A$6:$A$1806,Data!$E$6:$E$1806)*-1,LOOKUP($V159,Data!$A$6:$A$1806,Data!$E$6:$E$1806)) -> 0 | AA159: =LOOKUP($V159,Data!$A$6:$A$1806,Data!$F$6:$F$1806) -> 0 | AC159: =LOOKUP($V159,Data!$A$6:$A$1806,Data!$H$6:$H$1806) -> 0 | AD159: =LOOKUP($V159,Data!$A$6:$A$1806,Data!$I$6:$I$1806) -> 0 | AE159: =IF(LOOKUP($V159,Data!$A$6:$A$1806,Data!$J$6:$J$1806)>0,(LOOKUP($V159,Data!$A$6:$A$1806,Data!$J$6:$J$1806)*-1),LOOKUP($V159,Data!$A$6:$A$1806,Data!$J$6:$J$1806)) -> -653 | AF159: =LOOKUP($V159,Data!$A$6:$A$1806,Data!$K$6:$K$1806) -> 30232.44922 | AG159: 257.4694824 | AH159: T+160 sec | AI159: 40679.33979 | AW159: 1237.898557 | AX159: 0.03942871094 | AY159: -653
A160: T+162 sec | B160: 40679.33981 | C160: =LOOKUP(B160,Data!$A$6:$A$1806,Data!B$6:B$1806) -> 59.96218872 | D160: =LOOKUP(B160,Data!$A$6:$A$1806,Data!C$6:C$1806) -> 0 | G160: 19590 | H160: =(IF((C160-L$2)>0,(IF(C160<'Copy Results'!$C$3,((C160-L$2-L$5)/((L$4*L$2)-L$5)*G160*-1),(('Copy Results'!$C$3-L$2-L$5)/((L$4*L$2)-L$5)*G160*-1))),IF(C160>'Copy Results'!$C$2,((C160-L$2+L$5)/((L$4*L$2)-L$5)*G160*-1),(('Copy Results'!$C$2-L$2+L$5)/((L$4*L$2)-L$5)*G160*-1)))) -> 246.9076538 | I160: 253.9744572 | L160: -4.263676488 | M160: 382.5706844 | N160: =AVERAGE(D$79:D160) -> 0 | O160: =AVERAGE(M$79:M160) -> 802.9931063 | P160: 130.583775 | Q160: =AVERAGE(P$79:P160) -> 301.1308346 | U160: T+162 sec | V160: 40679.33981 | W160: =LOOKUP($V160,Data!$A$6:$A$1806,Data!$B$6:$B$1806) -> 59.96218872 | X160: =LOOKUP($V160,Data!$A$6:$A$1806,Data!$C$6:$C$1806) -> 0 | Y160: =LOOKUP($V160,Data!$A$6:$A$1806,Data!$D$6:$D$1806) -> 0 | Z160: =IF($Z$1="+",LOOKUP($V160,Data!$A$6:$A$1806,Data!$E$6:$E$1806)*-1,LOOKUP($V160,Data!$A$6:$A$1806,Data!$E$6:$E$1806)) -> 0 | AA160: =LOOKUP($V160,Data!$A$6:$A$1806,Data!$F$6:$F$1806) -> 0 | AC160: =LOOKUP($V160,Data!$A$6:$A$1806,Data!$H$6:$H$1806) -> 0 | AD160: =LOOKUP($V160,Data!$A$6:$A$1806,Data!$I$6:$I$1806) -> 0 | AE160: =IF(LOOKUP($V160,Data!$A$6:$A$1806,Data!$J$6:$J$1806)>0,(LOOKUP($V160,Data!$A$6:$A$1806,Data!$J$6:$J$1806)*-1),LOOKUP($V160,Data!$A$6:$A$1806,Data!$J$6:$J$1806)) -> -653 | AF160: =LOOKUP($V160,Data!$A$6:$A$1806,Data!$K$6:$K$1806) -> 30232.44922 | AG160: 246.9076538 | AH160: T+162 sec | AI160: 40679.33981 | AW160: 1292.847152 | AX160: 0.0378112793 | AY160: -653
A161: T+164 sec | B161: 40679.33984 | C161: =LOOKUP(B161,Data!$A$6:$A$1806,Data!B$6:B$1806) -> 59.96511841 | D161: =LOOKUP(B161,Data!$A$6:$A$1806,Data!C$6:C$1806) -> 0 | G161: 19590 | H161: =(IF((C161-L$2)>0,(IF(C161<'Copy Results'!$C$3,((C161-L$2-L$5)/((L$4*L$2)-L$5)*G161*-1),(('Copy Results'!$C$3-L$2-L$5)/((L$4*L$2)-L$5)*G161*-1))),IF(C161>'Copy Results'!$C$2,((C161-L$2+L$5)/((L$4*L$2)-L$5)*G161*-1),(('Copy Results'!$C$2-L$2+L$5)/((L$4*L$2)-L$5)*G161*-1)))) -> 227.7767944 | I161: 244.8052752 | L161: -4.263676488 | M161: 369.1378259 | N161: =AVERAGE(D$79:D161) -> 0 | O161: =AVERAGE(M$79:M161) -> 797.7659342 | P161: 126.3200986 | Q161: =AVERAGE(P$79:P161) -> 298.9989963 | U161: T+164 sec | V161: 40679.33984 | W161: =LOOKUP($V161,Data!$A$6:$A$1806,Data!$B$6:$B$1806) -> 59.96511841 | X161: =LOOKUP($V161,Data!$A$6:$A$1806,Data!$C$6:$C$1806) -> 0 | Y161: =LOOKUP($V161,Data!$A$6:$A$1806,Data!$D$6:$D$1806) -> 0 | Z161: =IF($Z$1="+",LOOKUP($V161,Data!$A$6:$A$1806,Data!$E$6:$E$1806)*-1,LOOKUP($V161,Data!$A$6:$A$1806,Data!$E$6:$E$1806)) -> 0 | AA161: =LOOKUP($V161,Data!$A$6:$A$1806,Data!$F$6:$F$1806) -> 0 | AC161: =LOOKUP($V161,Data!$A$6:$A$1806,Data!$H$6:$H$1806) -> 0 | AD161: =LOOKUP($V161,Data!$A$6:$A$1806,Data!$I$6:$I$1806) -> 0 | AE161: =IF(LOOKUP($V161,Data!$A$6:$A$1806,Data!$J$6:$J$1806)>0,(LOOKUP($V161,Data!$A$6:$A$1806,Data!$J$6:$J$1806)*-1),LOOKUP($V161,Data!$A$6:$A$1806,Data!$J$6:$J$1806)) -> -653 | AF161: =LOOKUP($V161,Data!$A$6:$A$1806,Data!$K$6:$K$1806) -> 30232.44922 | AG161: 227.7767944 | AH161: T+164 sec | AI161: 40679.33984 | AW161: 1405.882969 | AX161: 0.0348815918
A162: T+166 sec | B162: 40679.33986 | C162: =LOOKUP(B162,Data!$A$6:$A$1806,Data!B$6:B$1806) -> 59.96737671 | D162: =LOOKUP(B162,Data!$A$6:$A$1806,Data!C$6:C$1806) -> 0 | G162: 19590 | H162: =(IF((C162-L$2)>0,(IF(C162<'Copy Results'!$C$3,((C162-L$2-L$5)/((L$4*L$2)-L$5)*G162*-1),(('Copy Results'!$C$3-L$2-L$5)/((L$4*L$2)-L$5)*G162*-1))),IF(C162>'Copy Results'!$C$2,((C162-L$2+L$5)/((L$4*L$2)-L$5)*G162*-1),(('Copy Results'!$C$2-L$2+L$5)/((L$4*L$2)-L$5)*G162*-1)))) -> 213.0300903 | I162: 233.6839605 | L162: -4.263676488 | M162: 353.7528347 | N162: =AVERAGE(D$79:D162) -> 0 | O162: =AVERAGE(M$79:M162) -> 792.480064 | P162: 122.0564221 | Q162: =AVERAGE(P$79:P162) -> 296.8671581 | U162: T+166 sec | V162: 40679.33986 | W162: =LOOKUP($V162,Data!$A$6:$A$1806,Data!$B$6:$B$1806) -> 59.96737671 | X162: =LOOKUP($V162,Data!$A$6:$A$1806,Data!$C$6:$C$1806) -> 0 | Y162: =LOOKUP($V162,Data!$A$6:$A$1806,Data!$D$6:$D$1806) -> 0 | Z162: =IF($Z$1="+",LOOKUP($V162,Data!$A$6:$A$1806,Data!$E$6:$E$1806)*-1,LOOKUP($V162,Data!$A$6:$A$1806,Data!$E$6:$E$1806)) -> 0 | AA162: =LOOKUP($V162,Data!$A$6:$A$1806,Data!$F$6:$F$1806) -> 0 | AC162: =LOOKUP($V162,Data!$A$6:$A$1806,Data!$H$6:$H$1806) -> 0 | AD162: =LOOKUP($V162,Data!$A$6:$A$1806,Data!$I$6:$I$1806) -> 0 | AE162: =IF(LOOKUP($V162,Data!$A$6:$A$1806,Data!$J$6:$J$1806)>0,(LOOKUP($V162,Data!$A$6:$A$1806,Data!$J$6:$J$1806)*-1),LOOKUP($V162,Data!$A$6:$A$1806,Data!$J$6:$J$1806)) -> -653 | AF162: =LOOKUP($V162,Data!$A$6:$A$1806,Data!$K$6:$K$1806) -> 30263.99023 | AG162: 213.0300903 | AH162: T+166 sec | AI162: 40679.33986 | AW162: 1507.47998 | AX162: 0.03262329102
A163: T+168 sec | B163: 40679.33988 | C163: =LOOKUP(B163,Data!$A$6:$A$1806,Data!B$6:B$1806) -> 59.96899414 | D163: =LOOKUP(B163,Data!$A$6:$A$1806,Data!C$6:C$1806) -> 0 | G163: 19590 | H163: =(IF((C163-L$2)>0,(IF(C163<'Copy Results'!$C$3,((C163-L$2-L$5)/((L$4*L$2)-L$5)*G163*-1),(('Copy Results'!$C$3-L$2-L$5)/((L$4*L$2)-L$5)*G163*-1))),IF(C163>'Copy Results'!$C$2,((C163-L$2+L$5)/((L$4*L$2)-L$5)*G163*-1),(('Copy Results'!$C$2-L$2+L$5)/((L$4*L$2)-L$5)*G163*-1)))) -> 202.4682617 | I163: 222.7584659 | L163: -4.263676488 | M163: 338.5636637 | N163: =AVERAGE(D$79:D163) -> 0 | O163: =AVERAGE(M$79:M163) -> 787.139871 | P163: 117.7927456 | Q163: =AVERAGE(P$79:P163) -> 294.7353199 | U163: T+168 sec | V163: 40679.33988 | W163: =LOOKUP($V163,Data!$A$6:$A$1806,Data!$B$6:$B$1806) -> 59.96899414 | X163: =LOOKUP($V163,Data!$A$6:$A$1806,Data!$C$6:$C$1806) -> 0 | Y163: =LOOKUP($V163,Data!$A$6:$A$1806,Data!$D$6:$D$1806) -> 0 | Z163: =IF($Z$1="+",LOOKUP($V163,Data!$A$6:$A$1806,Data!$E$6:$E$1806)*-1,LOOKUP($V163,Data!$A$6:$A$1806,Data!$E$6:$E$1806)) -> 0 | AA163: =LOOKUP($V163,Data!$A$6:$A$1806,Data!$F$6:$F$1806) -> 0 | AC163: =LOOKUP($V163,Data!$A$6:$A$1806,Data!$H$6:$H$1806) -> 0 | AD163: =LOOKUP($V163,Data!$A$6:$A$1806,Data!$I$6:$I$1806) -> 0 | AE163: =IF(LOOKUP($V163,Data!$A$6:$A$1806,Data!$J$6:$J$1806)>0,(LOOKUP($V163,Data!$A$6:$A$1806,Data!$J$6:$J$1806)*-1),LOOKUP($V163,Data!$A$6:$A$1806,Data!$J$6:$J$1806)) -> -653 | AF163: =LOOKUP($V163,Data!$A$6:$A$1806,Data!$K$6:$K$1806) -> 30263.99023 | AG163: 202.4682617 | AH163: T+168 sec | AI163: 40679.33988 | AW163: 1589.762616 | AX163: 0.03100585938
A164: T+170 sec | B164: 40679.33991 | C164: =LOOKUP(B164,Data!$A$6:$A$1806,Data!B$6:B$1806) -> 59.97061157 | D164: =LOOKUP(B164,Data!$A$6:$A$1806,Data!C$6:C$1806) -> 0 | G164: 19590 | H164: =(IF((C164-L$2)>0,(IF(C164<'Copy Results'!$C$3,((C164-L$2-L$5)/((L$4*L$2)-L$5)*G164*-1),(('Copy Results'!$C$3-L$2-L$5)/((L$4*L$2)-L$5)*G164*-1))),IF(C164>'Copy Results'!$C$2,((C164-L$2+L$5)/((L$4*L$2)-L$5)*G164*-1),(('Copy Results'!$C$2-L$2+L$5)/((L$4*L$2)-L$5)*G164*-1)))) -> 191.9064331 | I164: 211.9602544 | L164: -4.263676488 | M164: 323.5017757 | N164: =AVERAGE(D$79:D164) -> 0 | O164: =AVERAGE(M$79:M164) -> 781.7487304 | P164: 113.5290691 | Q164: =AVERAGE(P$79:P164) -> 292.6034816 | U164: T+170 sec | V164: 40679.33991 | W164: =LOOKUP($V164,Data!$A$6:$A$1806,Data!$B$6:$B$1806) -> 59.97061157 | X164: =LOOKUP($V164,Data!$A$6:$A$1806,Data!$C$6:$C$1806) -> 0 | Y164: =LOOKUP($V164,Data!$A$6:$A$1806,Data!$D$6:$D$1806) -> 0 | Z164: =IF($Z$1="+",LOOKUP($V164,Data!$A$6:$A$1806,Data!$E$6:$E$1806)*-1,LOOKUP($V164,Data!$A$6:$A$1806,Data!$E$6:$E$1806)) -> 0 | AA164: =LOOKUP($V164,Data!$A$6:$A$1806,Data!$F$6:$F$1806) -> 0 | AC164: =LOOKUP($V164,Data!$A$6:$A$1806,Data!$H$6:$H$1806) -> 0 | AD164: =LOOKUP($V164,Data!$A$6:$A$1806,Data!$I$6:$I$1806) -> 0 | AE164: =IF(LOOKUP($V164,Data!$A$6:$A$1806,Data!$J$6:$J$1806)>0,(LOOKUP($V164,Data!$A$6:$A$1806,Data!$J$6:$J$1806)*-1),LOOKUP($V164,Data!$A$6:$A$1806,Data!$J$6:$J$1806)) -> -653 | AF164: =LOOKUP($V164,Data!$A$6:$A$1806,Data!$K$6:$K$1806) -> 30263.68359 | AG164: 191.9064331 | AH164: T+170 sec | AI164: 40679.33991 | AW164: 1681.546296 | AX164: 0.02938842773
A165: T+172 sec | B165: 40679.33993 | C165: =LOOKUP(B165,Data!$A$6:$A$1806,Data!B$6:B$1806) -> 59.97317505 | D165: =LOOKUP(B165,Data!$A$6:$A$1806,Data!C$6:C$1806) -> 0 | G165: 19590 | H165: =(IF((C165-L$2)>0,(IF(C165<'Copy Results'!$C$3,((C165-L$2-L$5)/((L$4*L$2)-L$5)*G165*-1),(('Copy Results'!$C$3-L$2-L$5)/((L$4*L$2)-L$5)*G165*-1))),IF(C165>'Copy Results'!$C$2,((C165-L$2+L$5)/((L$4*L$2)-L$5)*G165*-1),(('Copy Results'!$C$2-L$2+L$5)/((L$4*L$2)-L$5)*G165*-1)))) -> 175.1669312 | I165: 199.0825913 | L165: -4.263676488 | M165: 306.3604361 | N165: =AVERAGE(D$79:D165) -> 0 | O165: =AVERAGE(M$79:M165) -> 776.2844971 | P165: 109.2653926 | Q165: =AVERAGE(P$79:P165) -> 290.4716434 | U165: T+172 sec | V165: 40679.33993 | W165: =LOOKUP($V165,Data!$A$6:$A$1806,Data!$B$6:$B$1806) -> 59.97317505 | X165: =LOOKUP($V165,Data!$A$6:$A$1806,Data!$C$6:$C$1806) -> 0 | Y165: =LOOKUP($V165,Data!$A$6:$A$1806,Data!$D$6:$D$1806) -> 0 | Z165: =IF($Z$1="+",LOOKUP($V165,Data!$A$6:$A$1806,Data!$E$6:$E$1806)*-1,LOOKUP($V165,Data!$A$6:$A$1806,Data!$E$6:$E$1806)) -> 0 | AA165: =LOOKUP($V165,Data!$A$6:$A$1806,Data!$F$6:$F$1806) -> 0 | AC165: =LOOKUP($V165,Data!$A$6:$A$1806,Data!$H$6:$H$1806) -> 0 | AD165: =LOOKUP($V165,Data!$A$6:$A$1806,Data!$I$6:$I$1806) -> 0 | AE165: =IF(LOOKUP($V165,Data!$A$6:$A$1806,Data!$J$6:$J$1806)>0,(LOOKUP($V165,Data!$A$6:$A$1806,Data!$J$6:$J$1806)*-1),LOOKUP($V165,Data!$A$6:$A$1806,Data!$J$6:$J$1806)) -> -653 | AF165: =LOOKUP($V165,Data!$A$6:$A$1806,Data!$K$6:$K$1806) -> 30263.68359 | AG165: 175.1669312 | AH165: T+172 sec | AI165: 40679.33993 | AW165: 1850.910671 | AX165: 0.02682495117
A166: T+174 sec | B166: 40679.33995 | C166: =LOOKUP(B166,Data!$A$6:$A$1806,Data!B$6:B$1806) -> 59.97351074 | D166: =LOOKUP(B166,Data!$A$6:$A$1806,Data!C$6:C$1806) -> 0 | G166: 19590 | H166: =(IF((C166-L$2)>0,(IF(C166<'Copy Results'!$C$3,((C166-L$2-L$5)/((L$4*L$2)-L$5)*G166*-1),(('Copy Results'!$C$3-L$2-L$5)/((L$4*L$2)-L$5)*G166*-1))),IF(C166>'Copy Results'!$C$2,((C166-L$2+L$5)/((L$4*L$2)-L$5)*G166*-1),(('Copy Results'!$C$2-L$2+L$5)/((L$4*L$2)-L$5)*G166*-1)))) -> 172.9748535 | I166: 189.9448831 | L166: -4.263676488 | M166: 292.9590513 | N166: =AVERAGE(D$79:D166) -> 0 | O166: =AVERAGE(M$79:M166) -> 770.7921625 | P166: 105.0017161 | Q166: =AVERAGE(P$79:P166) -> 288.3398051 | U166: T+174 sec | V166: 40679.33995 | W166: =LOOKUP($V166,Data!$A$6:$A$1806,Data!$B$6:$B$1806) -> 59.97351074 | X166: =LOOKUP($V166,Data!$A$6:$A$1806,Data!$C$6:$C$1806) -> 0 | Y166: =LOOKUP($V166,Data!$A$6:$A$1806,Data!$D$6:$D$1806) -> 0 | Z166: =IF($Z$1="+",LOOKUP($V166,Data!$A$6:$A$1806,Data!$E$6:$E$1806)*-1,LOOKUP($V166,Data!$A$6:$A$1806,Data!$E$6:$E$1806)) -> 0 | AA166: =LOOKUP($V166,Data!$A$6:$A$1806,Data!$F$6:$F$1806) -> 0 | AC166: =LOOKUP($V166,Data!$A$6:$A$1806,Data!$H$6:$H$1806) -> 0 | AD166: =LOOKUP($V166,Data!$A$6:$A$1806,Data!$I$6:$I$1806) -> 0 | AE166: =IF(LOOKUP($V166,Data!$A$6:$A$1806,Data!$J$6:$J$1806)>0,(LOOKUP($V166,Data!$A$6:$A$1806,Data!$J$6:$J$1806)*-1),LOOKUP($V166,Data!$A$6:$A$1806,Data!$J$6:$J$1806)) -> -653 | AF166: =LOOKUP($V166,Data!$A$6:$A$1806,Data!$K$6:$K$1806) -> 30263.68359 | AG166: 172.9748535 | AH166: T+174 sec | AI166: 40679.33995 | AW166: 1875.649453 | AX166: 0.02648925781
A167: T+176 sec | B167: 40679.33998 | C167: =LOOKUP(B167,Data!$A$6:$A$1806,Data!B$6:B$1806) -> 59.97286987 | D167: =LOOKUP(B167,Data!$A$6:$A$1806,Data!C$6:C$1806) -> 0 | G167: 19590 | H167: =(IF((C167-L$2)>0,(IF(C167<'Copy Results'!$C$3,((C167-L$2-L$5)/((L$4*L$2)-L$5)*G167*-1),(('Copy Results'!$C$3-L$2-L$5)/((L$4*L$2)-L$5)*G167*-1))),IF(C167>'Copy Results'!$C$2,((C167-L$2+L$5)/((L$4*L$2)-L$5)*G167*-1),(('Copy Results'!$C$2-L$2+L$5)/((L$4*L$2)-L$5)*G167*-1)))) -> 177.159729 | I167: 185.4700791 | L167: -4.263676488 | M167: 284.2205709 | N167: =AVERAGE(D$79:D167) -> 0 | O167: =AVERAGE(M$79:M167) -> 765.325066 | P167: 100.7380396 | Q167: =AVERAGE(P$79:P167) -> 286.2079669 | U167: T+176 sec | V167: 40679.33998 | W167: =LOOKUP($V167,Data!$A$6:$A$1806,Data!$B$6:$B$1806) -> 59.97286987 | X167: =LOOKUP($V167,Data!$A$6:$A$1806,Data!$C$6:$C$1806) -> 0 | Y167: =LOOKUP($V167,Data!$A$6:$A$1806,Data!$D$6:$D$1806) -> 0 | Z167: =IF($Z$1="+",LOOKUP($V167,Data!$A$6:$A$1806,Data!$E$6:$E$1806)*-1,LOOKUP($V167,Data!$A$6:$A$1806,Data!$E$6:$E$1806)) -> 0 | AA167: =LOOKUP($V167,Data!$A$6:$A$1806,Data!$F$6:$F$1806) -> 0 | AC167: =LOOKUP($V167,Data!$A$6:$A$1806,Data!$H$6:$H$1806) -> 0 | AD167: =LOOKUP($V167,Data!$A$6:$A$1806,Data!$I$6:$I$1806) -> 0 | AE167: =IF(LOOKUP($V167,Data!$A$6:$A$1806,Data!$J$6:$J$1806)>0,(LOOKUP($V167,Data!$A$6:$A$1806,Data!$J$6:$J$1806)*-1),LOOKUP($V167,Data!$A$6:$A$1806,Data!$J$6:$J$1806)) -> -653 | AF167: =LOOKUP($V167,Data!$A$6:$A$1806,Data!$K$6:$K$1806) -> 30263.68359 | AG167: 177.159729 | AH167: T+176 sec | AI167: 40679.33998 | AW167: 1828.98045 | AX167: 0.02713012695
A168: T+178 sec | B168: 40679.34 | C168: =LOOKUP(B168,Data!$A$6:$A$1806,Data!B$6:B$1806) -> 59.97253418 | D168: =LOOKUP(B168,Data!$A$6:$A$1806,Data!C$6:C$1806) -> 0 | G168: 19590 | H168: =(IF((C168-L$2)>0,(IF(C168<'Copy Results'!$C$3,((C168-L$2-L$5)/((L$4*L$2)-L$5)*G168*-1),(('Copy Results'!$C$3-L$2-L$5)/((L$4*L$2)-L$5)*G168*-1))),IF(C168>'Copy Results'!$C$2,((C168-L$2+L$5)/((L$4*L$2)-L$5)*G168*-1),(('Copy Results'!$C$2-L$2+L$5)/((L$4*L$2)-L$5)*G168*-1)))) -> 179.3518066 | I168: 183.3286838 | L168: -4.263676488 | M168: 277.8154991 | N168: =AVERAGE(D$79:D168) -> 0 | O168: =AVERAGE(M$79:M168) -> 759.908293 | P168: 96.47436314 | Q168: =AVERAGE(P$79:P168) -> 284.0761286 | U168: T+178 sec | V168: 40679.34 | W168: =LOOKUP($V168,Data!$A$6:$A$1806,Data!$B$6:$B$1806) -> 59.97253418 | X168: =LOOKUP($V168,Data!$A$6:$A$1806,Data!$C$6:$C$1806) -> 0 | Y168: =LOOKUP($V168,Data!$A$6:$A$1806,Data!$D$6:$D$1806) -> 0 | Z168: =IF($Z$1="+",LOOKUP($V168,Data!$A$6:$A$1806,Data!$E$6:$E$1806)*-1,LOOKUP($V168,Data!$A$6:$A$1806,Data!$E$6:$E$1806)) -> 0 | AA168: =LOOKUP($V168,Data!$A$6:$A$1806,Data!$F$6:$F$1806) -> 0 | AC168: =LOOKUP($V168,Data!$A$6:$A$1806,Data!$H$6:$H$1806) -> 0 | AD168: =LOOKUP($V168,Data!$A$6:$A$1806,Data!$I$6:$I$1806) -> 0 | AE168: =IF(LOOKUP($V168,Data!$A$6:$A$1806,Data!$J$6:$J$1806)>0,(LOOKUP($V168,Data!$A$6:$A$1806,Data!$J$6:$J$1806)*-1),LOOKUP($V168,Data!$A$6:$A$1806,Data!$J$6:$J$1806)) -> -653 | AF168: =LOOKUP($V168,Data!$A$6:$A$1806,Data!$K$6:$K$1806) -> 30264.96094 | AG168: 179.3518066 | AH168: T+178 sec | AI168: 40679.34 | AW168: 1805.449708 | AX168: 0.02746582031
A169: T+180 sec | B169: 40679.34002 | C169: =LOOKUP(B169,Data!$A$6:$A$1806,Data!B$6:B$1806) -> 59.97317505 | D169: =LOOKUP(B169,Data!$A$6:$A$1806,Data!C$6:C$1806) -> 0 | G169: 19590 | H169: =(IF((C169-L$2)>0,(IF(C169<'Copy Results'!$C$3,((C169-L$2-L$5)/((L$4*L$2)-L$5)*G169*-1),(('Copy Results'!$C$3-L$2-L$5)/((L$4*L$2)-L$5)*G169*-1))),IF(C169>'Copy Results'!$C$2,((C169-L$2+L$5)/((L$4*L$2)-L$5)*G169*-1),(('Copy Results'!$C$2-L$2+L$5)/((L$4*L$2)-L$5)*G169*-1)))) -> 175.1669312 | I169: 180.4720704 | L169: -4.263676488 | M169: 270.6952092 | N169: =AVERAGE(D$79:D169) -> 0 | O169: =AVERAGE(M$79:M169) -> 754.5323251 | P169: 92.21068665 | Q169: =AVERAGE(P$79:P169) -> 281.9442904 | U169: T+180 sec | V169: 40679.34002 | W169: =LOOKUP($V169,Data!$A$6:$A$1806,Data!$B$6:$B$1806) -> 59.97317505 | X169: =LOOKUP($V169,Data!$A$6:$A$1806,Data!$C$6:$C$1806) -> 0 | Y169: =LOOKUP($V169,Data!$A$6:$A$1806,Data!$D$6:$D$1806) -> 0 | Z169: =IF($Z$1="+",LOOKUP($V169,Data!$A$6:$A$1806,Data!$E$6:$E$1806)*-1,LOOKUP($V169,Data!$A$6:$A$1806,Data!$E$6:$E$1806)) -> 0 | AA169: =LOOKUP($V169,Data!$A$6:$A$1806,Data!$F$6:$F$1806) -> 0 | AC169: =LOOKUP($V169,Data!$A$6:$A$1806,Data!$H$6:$H$1806) -> 0 | AD169: =LOOKUP($V169,Data!$A$6:$A$1806,Data!$I$6:$I$1806) -> 0 | AE169: =IF(LOOKUP($V169,Data!$A$6:$A$1806,Data!$J$6:$J$1806)>0,(LOOKUP($V169,Data!$A$6:$A$1806,Data!$J$6:$J$1806)*-1),LOOKUP($V169,Data!$A$6:$A$1806,Data!$J$6:$J$1806)) -> -653 | AF169: =LOOKUP($V169,Data!$A$6:$A$1806,Data!$K$6:$K$1806) -> 30264.96094 | AG169: 175.1669312 | AH169: T+180 sec | AI169: 40679.34002 | AW169: 1850.910671 | AX169: 0.02682495117
B170: 40679.34005 | C170: =LOOKUP(B170,Data!$A$6:$A$1806,Data!B$6:B$1806) -> 59.97415161 | D170: =LOOKUP(B170,Data!$A$6:$A$1806,Data!C$6:C$1806) -> 0 | G170: 19590 | H170: =(IF((C170-L$2)>0,(IF(C170<'Copy Results'!$C$3,((C170-L$2-L$5)/((L$4*L$2)-L$5)*G170*-1),(('Copy Results'!$C$3-L$2-L$5)/((L$4*L$2)-L$5)*G170*-1))),IF(C170>'Copy Results'!$C$2,((C170-L$2+L$5)/((L$4*L$2)-L$5)*G170*-1),(('Copy Results'!$C$2-L$2+L$5)/((L$4*L$2)-L$5)*G170*-1)))) -> 168.789978 | I170: 176.383338 | L170: -4.263676488 | M170: 262.3428004 | N170: =AVERAGE(D$79:D170) -> 0 | O170: =AVERAGE(M$79:M170) -> 749.1824389 | P170: 87.94701017 | Q170: =AVERAGE(P$79:P170) -> 279.8124521 | V170: 40679.34005 | W170: =LOOKUP($V170,Data!$A$6:$A$1806,Data!$B$6:$B$1806) -> 59.97415161 | X170: =LOOKUP($V170,Data!$A$6:$A$1806,Data!$C$6:$C$1806) -> 0 | Y170: =LOOKUP($V170,Data!$A$6:$A$1806,Data!$D$6:$D$1806) -> 0 | Z170: =IF($Z$1="+",LOOKUP($V170,Data!$A$6:$A$1806,Data!$E$6:$E$1806)*-1,LOOKUP($V170,Data!$A$6:$A$1806,Data!$E$6:$E$1806)) -> 0 | AA170: =LOOKUP($V170,Data!$A$6:$A$1806,Data!$F$6:$F$1806) -> 0 | AC170: =LOOKUP($V170,Data!$A$6:$A$1806,Data!$H$6:$H$1806) -> 0 | AD170: =LOOKUP($V170,Data!$A$6:$A$1806,Data!$I$6:$I$1806) -> 0 | AE170: =IF(LOOKUP($V170,Data!$A$6:$A$1806,Data!$J$6:$J$1806)>0,(LOOKUP($V170,Data!$A$6:$A$1806,Data!$J$6:$J$1806)*-1),LOOKUP($V170,Data!$A$6:$A$1806,Data!$J$6:$J$1806)) -> -653 | AF170: =LOOKUP($V170,Data!$A$6:$A$1806,Data!$K$6:$K$1806) -> 30264.96094 | AG170: 168.789978 | AW170: 1924.762469 | AX170: 0.02584838867
B171: 40679.34007 | C171: =LOOKUP(B171,Data!$A$6:$A$1806,Data!B$6:B$1806) -> 59.97543335 | D171: =LOOKUP(B171,Data!$A$6:$A$1806,Data!C$6:C$1806) -> 0 | G171: 19590 | H171: =(IF((C171-L$2)>0,(IF(C171<'Copy Results'!$C$3,((C171-L$2-L$5)/((L$4*L$2)-L$5)*G171*-1),(('Copy Results'!$C$3-L$2-L$5)/((L$4*L$2)-L$5)*G171*-1))),IF(C171>'Copy Results'!$C$2,((C171-L$2+L$5)/((L$4*L$2)-L$5)*G171*-1),(('Copy Results'!$C$2-L$2+L$5)/((L$4*L$2)-L$5)*G171*-1)))) -> 160.4202271 | I171: =L$13*H171+(1-L$13)*I170 -> 170.7962492 | L171: -4.263676488 | M171: 252.492035 | N171: =AVERAGE(D$79:D171) -> 0 | O171: =AVERAGE(M$79:M171) -> 743.8416819 | P171: 83.68333368 | Q171: =AVERAGE(P$79:P171) -> 277.6806139 | V171: 40679.34007 | W171: =LOOKUP($V171,Data!$A$6:$A$1806,Data!$B$6:$B$1806) -> 59.97543335 | X171: =LOOKUP($V171,Data!$A$6:$A$1806,Data!$C$6:$C$1806) -> 0 | Y171: =LOOKUP($V171,Data!$A$6:$A$1806,Data!$D$6:$D$1806) -> 0 | Z171: =IF($Z$1="+",LOOKUP($V171,Data!$A$6:$A$1806,Data!$E$6:$E$1806)*-1,LOOKUP($V171,Data!$A$6:$A$1806,Data!$E$6:$E$1806)) -> 0 | AA171: =LOOKUP($V171,Data!$A$6:$A$1806,Data!$F$6:$F$1806) -> 0 | AC171: =LOOKUP($V171,Data!$A$6:$A$1806,Data!$H$6:$H$1806) -> 0 | AD171: =LOOKUP($V171,Data!$A$6:$A$1806,Data!$I$6:$I$1806) -> 0 | AE171: =IF(LOOKUP($V171,Data!$A$6:$A$1806,Data!$J$6:$J$1806)>0,(LOOKUP($V171,Data!$A$6:$A$1806,Data!$J$6:$J$1806)*-1),LOOKUP($V171,Data!$A$6:$A$1806,Data!$J$6:$J$1806)) -> -653 | AF171: =LOOKUP($V171,Data!$A$6:$A$1806,Data!$K$6:$K$1806) -> 30264.96094 | AG171: 160.4202271 | AW171: 2031.130921 | AX171: 0.02456665039
B172: 40679.34009 | C172: =LOOKUP(B172,Data!$A$6:$A$1806,Data!B$6:B$1806) -> 59.97576904 | D172: =LOOKUP(B172,Data!$A$6:$A$1806,Data!C$6:C$1806) -> 0 | G172: =AE172*-M$4*10 -> 19590 | H172: =(IF((C172-L$2)>0,(IF(C172<'Copy Results'!$C$3,((C172-L$2-L$5)/((L$4*L$2)-L$5)*G172*-1),(('Copy Results'!$C$3-L$2-L$5)/((L$4*L$2)-L$5)*G172*-1))),IF(C172>'Copy Results'!$C$2,((C172-L$2+L$5)/((L$4*L$2)-L$5)*G172*-1),(('Copy Results'!$C$2-L$2+L$5)/((L$4*L$2)-L$5)*G172*-1)))) -> 158.2281494 | I172: 166.3974143 | L172: -4.263676488 | M172: 243.8295236 | N172: =AVERAGE(D$79:D172) -> 0 | O172: =AVERAGE(M$79:M172) -> 738.5224036 | P172: 79.41965719 | Q172: =AVERAGE(P$79:P172) -> 275.5487757 | V172: 40679.34009 | W172: =LOOKUP($V172,Data!$A$6:$A$1806,Data!$B$6:$B$1806) -> 59.97576904 | X172: =LOOKUP($V172,Data!$A$6:$A$1806,Data!$C$6:$C$1806) -> 0 | Y172: =LOOKUP($V172,Data!$A$6:$A$1806,Data!$D$6:$D$1806) -> 0 | Z172: =IF($Z$1="+",LOOKUP($V172,Data!$A$6:$A$1806,Data!$E$6:$E$1806)*-1,LOOKUP($V172,Data!$A$6:$A$1806,Data!$E$6:$E$1806)) -> 0 | AA172: =LOOKUP($V172,Data!$A$6:$A$1806,Data!$F$6:$F$1806) -> 0 | AC172: =LOOKUP($V172,Data!$A$6:$A$1806,Data!$H$6:$H$1806) -> 0 | AD172: =LOOKUP($V172,Data!$A$6:$A$1806,Data!$I$6:$I$1806) -> 0 | AE172: =IF(LOOKUP($V172,Data!$A$6:$A$1806,Data!$J$6:$J$1806)>0,(LOOKUP($V172,Data!$A$6:$A$1806,Data!$J$6:$J$1806)*-1),LOOKUP($V172,Data!$A$6:$A$1806,Data!$J$6:$J$1806)) -> -653 | AF172: =LOOKUP($V172,Data!$A$6:$A$1806,Data!$K$6:$K$1806) -> 30263.625 | AG172: =(IF((W172-$L$2)>0,((W172-$L$2-$L$5)/(($L$4*$L$2)-$L$5)*G172*-1),((W172-$L$2+$L$5)/(($L$4*$L$2)-$L$5)*G172*-1))) -> 158.2281494 | AW172: 2060.960614 | AX172: =ABS(C172-60) -> 0.02423095703 | AY172: =IF(AX172>0.036,AE172," ") -> 
B173: 40679.34012 | C173: =LOOKUP(B173,Data!$A$6:$A$1806,Data!B$6:B$1806) -> 59.97610474 | D173: =LOOKUP(B173,Data!$A$6:$A$1806,Data!C$6:C$1806) -> 0 | G173: 19590 | H173: =(IF((C173-L$2)>0,(IF(C173<'Copy Results'!$C$3,((C173-L$2-L$5)/((L$4*L$2)-L$5)*G173*-1),(('Copy Results'!$C$3-L$2-L$5)/((L$4*L$2)-L$5)*G173*-1))),IF(C173>'Copy Results'!$C$2,((C173-L$2+L$5)/((L$4*L$2)-L$5)*G173*-1),(('Copy Results'!$C$2-L$2+L$5)/((L$4*L$2)-L$5)*G173*-1)))) -> 156.0360718 | I173: 162.7709444 | L173: -4.263676488 | M173: 235.9393773 | N173: =AVERAGE(D$79:D173) -> 0 | O173: =AVERAGE(M$79:M173) -> 733.232056 | P173: 75.1559807 | Q173: =AVERAGE(P$79:P173) -> 273.4169374 | V173: 40679.34012 | W173: =LOOKUP($V173,Data!$A$6:$A$1806,Data!$B$6:$B$1806) -> 59.97610474 | X173: =LOOKUP($V173,Data!$A$6:$A$1806,Data!$C$6:$C$1806) -> 0 | Y173: =LOOKUP($V173,Data!$A$6:$A$1806,Data!$D$6:$D$1806) -> 0 | Z173: =IF($Z$1="+",LOOKUP($V173,Data!$A$6:$A$1806,Data!$E$6:$E$1806)*-1,LOOKUP($V173,Data!$A$6:$A$1806,Data!$E$6:$E$1806)) -> 0 | AA173: =LOOKUP($V173,Data!$A$6:$A$1806,Data!$F$6:$F$1806) -> 0 | AC173: =LOOKUP($V173,Data!$A$6:$A$1806,Data!$H$6:$H$1806) -> 0 | AD173: =LOOKUP($V173,Data!$A$6:$A$1806,Data!$I$6:$I$1806) -> 0 | AE173: =IF(LOOKUP($V173,Data!$A$6:$A$1806,Data!$J$6:$J$1806)>0,(LOOKUP($V173,Data!$A$6:$A$1806,Data!$J$6:$J$1806)*-1),LOOKUP($V173,Data!$A$6:$A$1806,Data!$J$6:$J$1806)) -> -653 | AF173: =LOOKUP($V173,Data!$A$6:$A$1806,Data!$K$6:$K$1806) -> 30263.625 | AG173: 156.0360718 | AW173: 2091.679539 | AX173: 0.02389526367
B174: =B173+TIME(0,0,$B$1) -> 40679.34014 | C174: =LOOKUP(B174,Data!$A$6:$A$1806,Data!B$6:B$1806) -> 59.97674561 | D174: =LOOKUP(B174,Data!$A$6:$A$1806,Data!C$6:C$1806) -> 0 | G174: 19590 | H174: =(IF((C174-L$2)>0,(IF(C174<'Copy Results'!$C$3,((C174-L$2-L$5)/((L$4*L$2)-L$5)*G174*-1),(('Copy Results'!$C$3-L$2-L$5)/((L$4*L$2)-L$5)*G174*-1))),IF(C174>'Copy Results'!$C$2,((C174-L$2+L$5)/((L$4*L$2)-L$5)*G174*-1),(('Copy Results'!$C$2-L$2+L$5)/((L$4*L$2)-L$5)*G174*-1)))) -> 151.8511963 | I174: 158.9490326 | L174: -4.263676488 | M174: 227.8537889 | N174: =AVERAGE(D$79:D174) -> 0 | O174: =AVERAGE(M$79:M174) -> 727.967699 | P174: 70.89230421 | Q174: =AVERAGE(P$79:P174) -> 271.2850992 | V174: 40679.34014 | W174: =LOOKUP($V174,Data!$A$6:$A$1806,Data!$B$6:$B$1806) -> 59.97674561 | X174: =LOOKUP($V174,Data!$A$6:$A$1806,Data!$C$6:$C$1806) -> 0 | Y174: =LOOKUP($V174,Data!$A$6:$A$1806,Data!$D$6:$D$1806) -> 0 | Z174: =IF($Z$1="+",LOOKUP($V174,Data!$A$6:$A$1806,Data!$E$6:$E$1806)*-1,LOOKUP($V174,Data!$A$6:$A$1806,Data!$E$6:$E$1806)) -> 0 | AA174: =LOOKUP($V174,Data!$A$6:$A$1806,Data!$F$6:$F$1806) -> 0 | AC174: =LOOKUP($V174,Data!$A$6:$A$1806,Data!$H$6:$H$1806) -> 0 | AD174: =LOOKUP($V174,Data!$A$6:$A$1806,Data!$I$6:$I$1806) -> 0 | AE174: =IF(LOOKUP($V174,Data!$A$6:$A$1806,Data!$J$6:$J$1806)>0,(LOOKUP($V174,Data!$A$6:$A$1806,Data!$J$6:$J$1806)*-1),LOOKUP($V174,Data!$A$6:$A$1806,Data!$J$6:$J$1806)) -> -653 | AF174: =LOOKUP($V174,Data!$A$6:$A$1806,Data!$K$6:$K$1806) -> 30279.38867 | AG174: 151.8511963 | AW174: 2152.94212 | AX174: 0.02325439453
B175: 40679.34016 | C175: =LOOKUP(B175,Data!$A$6:$A$1806,Data!B$6:B$1806) -> 59.97802734 | D175: =LOOKUP(B175,Data!$A$6:$A$1806,Data!C$6:C$1806) -> 0 | G175: 19590 | H175: =(IF((C175-L$2)>0,(IF(C175<'Copy Results'!$C$3,((C175-L$2-L$5)/((L$4*L$2)-L$5)*G175*-1),(('Copy Results'!$C$3-L$2-L$5)/((L$4*L$2)-L$5)*G175*-1))),IF(C175>'Copy Results'!$C$2,((C175-L$2+L$5)/((L$4*L$2)-L$5)*G175*-1),(('Copy Results'!$C$2-L$2+L$5)/((L$4*L$2)-L$5)*G175*-1)))) -> 143.4814453 | I175: 153.535377 | L175: -4.263676488 | M175: 218.1764569 | N175: =AVERAGE(D$79:D175) -> 0 | O175: =AVERAGE(M$79:M175) -> 722.7121192 | P175: 66.62862772 | Q175: =AVERAGE(P$79:P175) -> 269.1532609 | V175: 40679.34016 | W175: =LOOKUP($V175,Data!$A$6:$A$1806,Data!$B$6:$B$1806) -> 59.97802734 | X175: =LOOKUP($V175,Data!$A$6:$A$1806,Data!$C$6:$C$1806) -> 0 | Y175: =LOOKUP($V175,Data!$A$6:$A$1806,Data!$D$6:$D$1806) -> 0 | Z175: =IF($Z$1="+",LOOKUP($V175,Data!$A$6:$A$1806,Data!$E$6:$E$1806)*-1,LOOKUP($V175,Data!$A$6:$A$1806,Data!$E$6:$E$1806)) -> 0 | AA175: =LOOKUP($V175,Data!$A$6:$A$1806,Data!$F$6:$F$1806) -> 0 | AC175: =LOOKUP($V175,Data!$A$6:$A$1806,Data!$H$6:$H$1806) -> 0 | AD175: =LOOKUP($V175,Data!$A$6:$A$1806,Data!$I$6:$I$1806) -> 0 | AE175: =IF(LOOKUP($V175,Data!$A$6:$A$1806,Data!$J$6:$J$1806)>0,(LOOKUP($V175,Data!$A$6:$A$1806,Data!$J$6:$J$1806)*-1),LOOKUP($V175,Data!$A$6:$A$1806,Data!$J$6:$J$1806)) -> -653 | AF175: =LOOKUP($V175,Data!$A$6:$A$1806,Data!$K$6:$K$1806) -> 30279.38867 | AG175: 143.4814453 | AW175: 2286.902963 | AX175: 0.02197265625
B176: 40679.34019 | C176: =LOOKUP(B176,Data!$A$6:$A$1806,Data!B$6:B$1806) -> 59.97930908 | D176: =LOOKUP(B176,Data!$A$6:$A$1806,Data!C$6:C$1806) -> 0 | G176: 19590 | H176: =(IF((C176-L$2)>0,(IF(C176<'Copy Results'!$C$3,((C176-L$2-L$5)/((L$4*L$2)-L$5)*G176*-1),(('Copy Results'!$C$3-L$2-L$5)/((L$4*L$2)-L$5)*G176*-1))),IF(C176>'Copy Results'!$C$2,((C176-L$2+L$5)/((L$4*L$2)-L$5)*G176*-1),(('Copy Results'!$C$2-L$2+L$5)/((L$4*L$2)-L$5)*G176*-1)))) -> 135.1116943 | I176: 147.0870881 | L176: -4.263676488 | M176: 207.4644915 | N176: =AVERAGE(D$79:D176) -> 0 | O176: =AVERAGE(M$79:M176) -> 717.4544903 | P176: 62.36495124 | Q176: =AVERAGE(P$79:P176) -> 267.0214227 | V176: 40679.34019 | W176: =LOOKUP($V176,Data!$A$6:$A$1806,Data!$B$6:$B$1806) -> 59.97930908 | X176: =LOOKUP($V176,Data!$A$6:$A$1806,Data!$C$6:$C$1806) -> 0 | Y176: =LOOKUP($V176,Data!$A$6:$A$1806,Data!$D$6:$D$1806) -> 0 | Z176: =IF($Z$1="+",LOOKUP($V176,Data!$A$6:$A$1806,Data!$E$6:$E$1806)*-1,LOOKUP($V176,Data!$A$6:$A$1806,Data!$E$6:$E$1806)) -> 0 | AA176: =LOOKUP($V176,Data!$A$6:$A$1806,Data!$F$6:$F$1806) -> 0 | AC176: =LOOKUP($V176,Data!$A$6:$A$1806,Data!$H$6:$H$1806) -> 0 | AD176: =LOOKUP($V176,Data!$A$6:$A$1806,Data!$I$6:$I$1806) -> 0 | AE176: =IF(LOOKUP($V176,Data!$A$6:$A$1806,Data!$J$6:$J$1806)>0,(LOOKUP($V176,Data!$A$6:$A$1806,Data!$J$6:$J$1806)*-1),LOOKUP($V176,Data!$A$6:$A$1806,Data!$J$6:$J$1806)) -> -653 | AF176: =LOOKUP($V176,Data!$A$6:$A$1806,Data!$K$6:$K$1806) -> 30279.38867 | AG176: 135.1116943 | AW176: 2438.6406 | AX176: 0.02069091797
B177: 40679.34021 | C177: =LOOKUP(B177,Data!$A$6:$A$1806,Data!B$6:B$1806) -> 59.97998047 | D177: =LOOKUP(B177,Data!$A$6:$A$1806,Data!C$6:C$1806) -> 0 | G177: 19590 | H177: =(IF((C177-L$2)>0,(IF(C177<'Copy Results'!$C$3,((C177-L$2-L$5)/((L$4*L$2)-L$5)*G177*-1),(('Copy Results'!$C$3-L$2-L$5)/((L$4*L$2)-L$5)*G177*-1))),IF(C177>'Copy Results'!$C$2,((C177-L$2+L$5)/((L$4*L$2)-L$5)*G177*-1),(('Copy Results'!$C$2-L$2+L$5)/((L$4*L$2)-L$5)*G177*-1)))) -> 130.7275391 | I177: 141.3612459 | L177: -4.263676488 | M177: 197.4749728 | N177: =AVERAGE(D$79:D177) -> 0 | O177: =AVERAGE(M$79:M177) -> 712.202172 | P177: 58.10127475 | Q177: =AVERAGE(P$79:P177) -> 264.8895844 | V177: 40679.34021 | W177: =LOOKUP($V177,Data!$A$6:$A$1806,Data!$B$6:$B$1806) -> 59.97998047 | X177: =LOOKUP($V177,Data!$A$6:$A$1806,Data!$C$6:$C$1806) -> 0 | Y177: =LOOKUP($V177,Data!$A$6:$A$1806,Data!$D$6:$D$1806) -> 0 | Z177: =IF($Z$1="+",LOOKUP($V177,Data!$A$6:$A$1806,Data!$E$6:$E$1806)*-1,LOOKUP($V177,Data!$A$6:$A$1806,Data!$E$6:$E$1806)) -> 0 | AA177: =LOOKUP($V177,Data!$A$6:$A$1806,Data!$F$6:$F$1806) -> 0 | AC177: =LOOKUP($V177,Data!$A$6:$A$1806,Data!$H$6:$H$1806) -> 0 | AD177: =LOOKUP($V177,Data!$A$6:$A$1806,Data!$I$6:$I$1806) -> 0 | AE177: =IF(LOOKUP($V177,Data!$A$6:$A$1806,Data!$J$6:$J$1806)>0,(LOOKUP($V177,Data!$A$6:$A$1806,Data!$J$6:$J$1806)*-1),LOOKUP($V177,Data!$A$6:$A$1806,Data!$J$6:$J$1806)) -> -653 | AF177: =LOOKUP($V177,Data!$A$6:$A$1806,Data!$K$6:$K$1806) -> 30279.38867 | AG177: 130.7275391 | AW177: 2526.447627 | AX177: 0.02001953125
B178: 40679.34023 | C178: =LOOKUP(B178,Data!$A$6:$A$1806,Data!B$6:B$1806) -> 59.97964478 | D178: =LOOKUP(B178,Data!$A$6:$A$1806,Data!C$6:C$1806) -> 0 | G178: 19590 | H178: =(IF((C178-L$2)>0,(IF(C178<'Copy Results'!$C$3,((C178-L$2-L$5)/((L$4*L$2)-L$5)*G178*-1),(('Copy Results'!$C$3-L$2-L$5)/((L$4*L$2)-L$5)*G178*-1))),IF(C178>'Copy Results'!$C$2,((C178-L$2+L$5)/((L$4*L$2)-L$5)*G178*-1),(('Copy Results'!$C$2-L$2+L$5)/((L$4*L$2)-L$5)*G178*-1)))) -> 132.9196167 | I178: 138.4066757 | L178: -4.263676488 | M178: 190.2567261 | N178: =AVERAGE(D$79:D178) -> 0 | O178: =AVERAGE(M$79:M178) -> 706.9827175 | P178: 53.83759826 | Q178: =AVERAGE(P$79:P178) -> 262.7577462 | V178: 40679.34023 | W178: =LOOKUP($V178,Data!$A$6:$A$1806,Data!$B$6:$B$1806) -> 59.97964478 | X178: =LOOKUP($V178,Data!$A$6:$A$1806,Data!$C$6:$C$1806) -> 0 | Y178: =LOOKUP($V178,Data!$A$6:$A$1806,Data!$D$6:$D$1806) -> 0 | Z178: =IF($Z$1="+",LOOKUP($V178,Data!$A$6:$A$1806,Data!$E$6:$E$1806)*-1,LOOKUP($V178,Data!$A$6:$A$1806,Data!$E$6:$E$1806)) -> 0 | AA178: =LOOKUP($V178,Data!$A$6:$A$1806,Data!$F$6:$F$1806) -> 0 | AC178: =LOOKUP($V178,Data!$A$6:$A$1806,Data!$H$6:$H$1806) -> 0 | AD178: =LOOKUP($V178,Data!$A$6:$A$1806,Data!$I$6:$I$1806) -> 0 | AE178: =IF(LOOKUP($V178,Data!$A$6:$A$1806,Data!$J$6:$J$1806)>0,(LOOKUP($V178,Data!$A$6:$A$1806,Data!$J$6:$J$1806)*-1),LOOKUP($V178,Data!$A$6:$A$1806,Data!$J$6:$J$1806)) -> -653 | AF178: =LOOKUP($V178,Data!$A$6:$A$1806,Data!$K$6:$K$1806) -> 30255.31836 | AG178: 132.9196167 | AW178: 2481.767685 | AX178: 0.02035522461
B179: 40679.34025 | C179: =LOOKUP(B179,Data!$A$6:$A$1806,Data!B$6:B$1806) -> 59.97900391 | D179: =LOOKUP(B179,Data!$A$6:$A$1806,Data!C$6:C$1806) -> 0 | G179: 19590 | H179: =(IF((C179-L$2)>0,(IF(C179<'Copy Results'!$C$3,((C179-L$2-L$5)/((L$4*L$2)-L$5)*G179*-1),(('Copy Results'!$C$3-L$2-L$5)/((L$4*L$2)-L$5)*G179*-1))),IF(C179>'Copy Results'!$C$2,((C179-L$2+L$5)/((L$4*L$2)-L$5)*G179*-1),(('Copy Results'!$C$2-L$2+L$5)/((L$4*L$2)-L$5)*G179*-1)))) -> 137.1044922 | I179: 137.9509115 | L179: -4.263676488 | M179: 185.5372854 | N179: =AVERAGE(D$79:D179) -> 0 | O179: =AVERAGE(M$79:M179) -> 701.8198915 | P179: 49.57392177 | Q179: =AVERAGE(P$79:P179) -> 260.6259079 | V179: 40679.34025 | W179: =LOOKUP($V179,Data!$A$6:$A$1806,Data!$B$6:$B$1806) -> 59.97900391 | X179: =LOOKUP($V179,Data!$A$6:$A$1806,Data!$C$6:$C$1806) -> 0 | Y179: =LOOKUP($V179,Data!$A$6:$A$1806,Data!$D$6:$D$1806) -> 0 | Z179: =IF($Z$1="+",LOOKUP($V179,Data!$A$6:$A$1806,Data!$E$6:$E$1806)*-1,LOOKUP($V179,Data!$A$6:$A$1806,Data!$E$6:$E$1806)) -> 0 | AA179: =LOOKUP($V179,Data!$A$6:$A$1806,Data!$F$6:$F$1806) -> 0 | AC179: =LOOKUP($V179,Data!$A$6:$A$1806,Data!$H$6:$H$1806) -> 0 | AD179: =LOOKUP($V179,Data!$A$6:$A$1806,Data!$I$6:$I$1806) -> 0 | AE179: =IF(LOOKUP($V179,Data!$A$6:$A$1806,Data!$J$6:$J$1806)>0,(LOOKUP($V179,Data!$A$6:$A$1806,Data!$J$6:$J$1806)*-1),LOOKUP($V179,Data!$A$6:$A$1806,Data!$J$6:$J$1806)) -> -653 | AF179: =LOOKUP($V179,Data!$A$6:$A$1806,Data!$K$6:$K$1806) -> 30255.31836 | AG179: 137.1044922 | AW179: 2400.714619 | AX179: 0.02099609375
B180: 40679.34028 | C180: =LOOKUP(B180,Data!$A$6:$A$1806,Data!B$6:B$1806) -> 59.97964478 | D180: =LOOKUP(B180,Data!$A$6:$A$1806,Data!C$6:C$1806) -> 0 | G180: 19590 | H180: =(IF((C180-L$2)>0,(IF(C180<'Copy Results'!$C$3,((C180-L$2-L$5)/((L$4*L$2)-L$5)*G180*-1),(('Copy Results'!$C$3-L$2-L$5)/((L$4*L$2)-L$5)*G180*-1))),IF(C180>'Copy Results'!$C$2,((C180-L$2+L$5)/((L$4*L$2)-L$5)*G180*-1),(('Copy Results'!$C$2-L$2+L$5)/((L$4*L$2)-L$5)*G180*-1)))) -> 132.9196167 | I180: 136.1899583 | L180: -4.263676488 | M180: 179.5126557 | N180: =AVERAGE(D$79:D180) -> 0 | O180: =AVERAGE(M$79:M180) -> 696.6992323 | P180: 45.31024528 | Q180: =AVERAGE(P$79:P180) -> 258.4940697 | V180: 40679.34028 | W180: =LOOKUP($V180,Data!$A$6:$A$1806,Data!$B$6:$B$1806) -> 59.97964478 | X180: =LOOKUP($V180,Data!$A$6:$A$1806,Data!$C$6:$C$1806) -> 0 | Y180: =LOOKUP($V180,Data!$A$6:$A$1806,Data!$D$6:$D$1806) -> 0 | Z180: =IF($Z$1="+",LOOKUP($V180,Data!$A$6:$A$1806,Data!$E$6:$E$1806)*-1,LOOKUP($V180,Data!$A$6:$A$1806,Data!$E$6:$E$1806)) -> 0 | AA180: =LOOKUP($V180,Data!$A$6:$A$1806,Data!$F$6:$F$1806) -> 0 | AC180: =LOOKUP($V180,Data!$A$6:$A$1806,Data!$H$6:$H$1806) -> 0 | AD180: =LOOKUP($V180,Data!$A$6:$A$1806,Data!$I$6:$I$1806) -> 0 | AE180: =IF(LOOKUP($V180,Data!$A$6:$A$1806,Data!$J$6:$J$1806)>0,(LOOKUP($V180,Data!$A$6:$A$1806,Data!$J$6:$J$1806)*-1),LOOKUP($V180,Data!$A$6:$A$1806,Data!$J$6:$J$1806)) -> -653 | AF180: =LOOKUP($V180,Data!$A$6:$A$1806,Data!$K$6:$K$1806) -> 30255.31836 | AG180: 132.9196167 | AW180: 2481.767685 | AX180: 0.02035522461
B181: 40679.3403 | C181: =LOOKUP(B181,Data!$A$6:$A$1806,Data!B$6:B$1806) -> 59.98092651 | D181: =LOOKUP(B181,Data!$A$6:$A$1806,Data!C$6:C$1806) -> 0 | G181: 19590 | H181: =(IF((C181-L$2)>0,(IF(C181<'Copy Results'!$C$3,((C181-L$2-L$5)/((L$4*L$2)-L$5)*G181*-1),(('Copy Results'!$C$3-L$2-L$5)/((L$4*L$2)-L$5)*G181*-1))),IF(C181>'Copy Results'!$C$2,((C181-L$2+L$5)/((L$4*L$2)-L$5)*G181*-1),(('Copy Results'!$C$2-L$2+L$5)/((L$4*L$2)-L$5)*G181*-1)))) -> 124.5498657 | I181: 132.1159259 | L181: -4.263676488 | M181: 171.1749468 | N181: =AVERAGE(D$79:D181) -> 0 | O181: =AVERAGE(M$79:M181) -> 691.5970548 | P181: 41.04656879 | Q181: =AVERAGE(P$79:P181) -> 256.3622315 | V181: 40679.3403 | W181: =LOOKUP($V181,Data!$A$6:$A$1806,Data!$B$6:$B$1806) -> 59.98092651 | X181: =LOOKUP($V181,Data!$A$6:$A$1806,Data!$C$6:$C$1806) -> 0 | Y181: =LOOKUP($V181,Data!$A$6:$A$1806,Data!$D$6:$D$1806) -> 0 | Z181: =IF($Z$1="+",LOOKUP($V181,Data!$A$6:$A$1806,Data!$E$6:$E$1806)*-1,LOOKUP($V181,Data!$A$6:$A$1806,Data!$E$6:$E$1806)) -> 0 | AA181: =LOOKUP($V181,Data!$A$6:$A$1806,Data!$F$6:$F$1806) -> 0 | AC181: =LOOKUP($V181,Data!$A$6:$A$1806,Data!$H$6:$H$1806) -> 0 | AD181: =LOOKUP($V181,Data!$A$6:$A$1806,Data!$I$6:$I$1806) -> 0 | AE181: =IF(LOOKUP($V181,Data!$A$6:$A$1806,Data!$J$6:$J$1806)>0,(LOOKUP($V181,Data!$A$6:$A$1806,Data!$J$6:$J$1806)*-1),LOOKUP($V181,Data!$A$6:$A$1806,Data!$J$6:$J$1806)) -> -653 | AF181: =LOOKUP($V181,Data!$A$6:$A$1806,Data!$K$6:$K$1806) -> 30255.31836 | AG181: 124.5498657 | AW181: 2661.481897 | AX181: 0.01907348633
B182: 40679.34032 | C182: =LOOKUP(B182,Data!$A$6:$A$1806,Data!B$6:B$1806) -> 59.98223877 | D182: =LOOKUP(B182,Data!$A$6:$A$1806,Data!C$6:C$1806) -> 0 | G182: 19590 | H182: =(IF((C182-L$2)>0,(IF(C182<'Copy Results'!$C$3,((C182-L$2-L$5)/((L$4*L$2)-L$5)*G182*-1),(('Copy Results'!$C$3-L$2-L$5)/((L$4*L$2)-L$5)*G182*-1))),IF(C182>'Copy Results'!$C$2,((C182-L$2+L$5)/((L$4*L$2)-L$5)*G182*-1),(('Copy Results'!$C$2-L$2+L$5)/((L$4*L$2)-L$5)*G182*-1)))) -> 115.980835 | I182: 126.4686441 | L182: -4.263676488 | M182: 161.2639885 | N182: =AVERAGE(D$79:D182) -> 0 | O182: =AVERAGE(M$79:M182) -> 686.4976984 | P182: 36.78289231 | Q182: =AVERAGE(P$79:P182) -> 254.2303932 | V182: 40679.34032 | W182: =LOOKUP($V182,Data!$A$6:$A$1806,Data!$B$6:$B$1806) -> 59.98223877 | X182: =LOOKUP($V182,Data!$A$6:$A$1806,Data!$C$6:$C$1806) -> 0 | Y182: =LOOKUP($V182,Data!$A$6:$A$1806,Data!$D$6:$D$1806) -> 0 | Z182: =IF($Z$1="+",LOOKUP($V182,Data!$A$6:$A$1806,Data!$E$6:$E$1806)*-1,LOOKUP($V182,Data!$A$6:$A$1806,Data!$E$6:$E$1806)) -> 0 | AA182: =LOOKUP($V182,Data!$A$6:$A$1806,Data!$F$6:$F$1806) -> 0 | AC182: =LOOKUP($V182,Data!$A$6:$A$1806,Data!$H$6:$H$1806) -> 0 | AD182: =LOOKUP($V182,Data!$A$6:$A$1806,Data!$I$6:$I$1806) -> 0 | AE182: =IF(LOOKUP($V182,Data!$A$6:$A$1806,Data!$J$6:$J$1806)>0,(LOOKUP($V182,Data!$A$6:$A$1806,Data!$J$6:$J$1806)*-1),LOOKUP($V182,Data!$A$6:$A$1806,Data!$J$6:$J$1806)) -> -653 | AF182: =LOOKUP($V182,Data!$A$6:$A$1806,Data!$K$6:$K$1806) -> 30260.67383 | AG182: 115.980835 | AW182: 2874.598696 | AX182: 0.01776123047
B183: 40679.34035 | C183: =LOOKUP(B183,Data!$A$6:$A$1806,Data!B$6:B$1806) -> 59.9838562 | D183: =LOOKUP(B183,Data!$A$6:$A$1806,Data!C$6:C$1806) -> 0 | G183: 19590 | H183: =(IF((C183-L$2)>0,(IF(C183<'Copy Results'!$C$3,((C183-L$2-L$5)/((L$4*L$2)-L$5)*G183*-1),(('Copy Results'!$C$3-L$2-L$5)/((L$4*L$2)-L$5)*G183*-1))),IF(C183>'Copy Results'!$C$2,((C183-L$2+L$5)/((L$4*L$2)-L$5)*G183*-1),(('Copy Results'!$C$2-L$2+L$5)/((L$4*L$2)-L$5)*G183*-1)))) -> 105.4190063 | I183: 119.1012709 | L183: -4.263676488 | M183: 149.6329388 | N183: =AVERAGE(D$79:D183) -> 0 | O183: =AVERAGE(M$79:M183) -> 681.3847006 | P183: 32.51921582 | Q183: =AVERAGE(P$79:P183) -> 252.098555 | V183: 40679.34035 | W183: =LOOKUP($V183,Data!$A$6:$A$1806,Data!$B$6:$B$1806) -> 59.9838562 | X183: =LOOKUP($V183,Data!$A$6:$A$1806,Data!$C$6:$C$1806) -> 0 | Y183: =LOOKUP($V183,Data!$A$6:$A$1806,Data!$D$6:$D$1806) -> 0 | Z183: =IF($Z$1="+",LOOKUP($V183,Data!$A$6:$A$1806,Data!$E$6:$E$1806)*-1,LOOKUP($V183,Data!$A$6:$A$1806,Data!$E$6:$E$1806)) -> 0 | AA183: =LOOKUP($V183,Data!$A$6:$A$1806,Data!$F$6:$F$1806) -> 0 | AC183: =LOOKUP($V183,Data!$A$6:$A$1806,Data!$H$6:$H$1806) -> 0 | AD183: =LOOKUP($V183,Data!$A$6:$A$1806,Data!$I$6:$I$1806) -> 0 | AE183: =IF(LOOKUP($V183,Data!$A$6:$A$1806,Data!$J$6:$J$1806)>0,(LOOKUP($V183,Data!$A$6:$A$1806,Data!$J$6:$J$1806)*-1),LOOKUP($V183,Data!$A$6:$A$1806,Data!$J$6:$J$1806)) -> -653 | AF183: =LOOKUP($V183,Data!$A$6:$A$1806,Data!$K$6:$K$1806) -> 30260.67383 | AG183: 105.4190063 | AW183: 3189.379132 | AX183: 0.01614379883
B184: 40679.34037 | C184: =LOOKUP(B184,Data!$A$6:$A$1806,Data!B$6:B$1806) -> 59.98513794 | D184: =LOOKUP(B184,Data!$A$6:$A$1806,Data!C$6:C$1806) -> 0 | G184: 19590 | H184: =(IF((C184-L$2)>0,(IF(C184<'Copy Results'!$C$3,((C184-L$2-L$5)/((L$4*L$2)-L$5)*G184*-1),(('Copy Results'!$C$3-L$2-L$5)/((L$4*L$2)-L$5)*G184*-1))),IF(C184>'Copy Results'!$C$2,((C184-L$2+L$5)/((L$4*L$2)-L$5)*G184*-1),(('Copy Results'!$C$2-L$2+L$5)/((L$4*L$2)-L$5)*G184*-1)))) -> 97.04925537 | I184: 111.3830654 | L184: -4.263676488 | M184: 137.6510569 | N184: =AVERAGE(D$79:D184) -> 0 | O184: =AVERAGE(M$79:M184) -> 676.255138 | P184: 28.25553933 | Q184: =AVERAGE(P$79:P184) -> 249.9667167 | V184: 40679.34037 | W184: =LOOKUP($V184,Data!$A$6:$A$1806,Data!$B$6:$B$1806) -> 59.98513794 | X184: =LOOKUP($V184,Data!$A$6:$A$1806,Data!$C$6:$C$1806) -> 0 | Y184: =LOOKUP($V184,Data!$A$6:$A$1806,Data!$D$6:$D$1806) -> 0 | Z184: =IF($Z$1="+",LOOKUP($V184,Data!$A$6:$A$1806,Data!$E$6:$E$1806)*-1,LOOKUP($V184,Data!$A$6:$A$1806,Data!$E$6:$E$1806)) -> 0 | AA184: =LOOKUP($V184,Data!$A$6:$A$1806,Data!$F$6:$F$1806) -> 0 | AC184: =LOOKUP($V184,Data!$A$6:$A$1806,Data!$H$6:$H$1806) -> 0 | AD184: =LOOKUP($V184,Data!$A$6:$A$1806,Data!$I$6:$I$1806) -> 0 | AE184: =IF(LOOKUP($V184,Data!$A$6:$A$1806,Data!$J$6:$J$1806)>0,(LOOKUP($V184,Data!$A$6:$A$1806,Data!$J$6:$J$1806)*-1),LOOKUP($V184,Data!$A$6:$A$1806,Data!$J$6:$J$1806)) -> -653 | AF184: =LOOKUP($V184,Data!$A$6:$A$1806,Data!$K$6:$K$1806) -> 30259.99219 | AG184: 97.04925537 | AW184: 3492.442308 | AX184: 0.01486206055
B185: 40679.34039 | C185: =LOOKUP(B185,Data!$A$6:$A$1806,Data!B$6:B$1806) -> 59.98773193 | D185: =LOOKUP(B185,Data!$A$6:$A$1806,Data!C$6:C$1806) -> 0 | G185: 19590 | H185: =(IF((C185-L$2)>0,(IF(C185<'Copy Results'!$C$3,((C185-L$2-L$5)/((L$4*L$2)-L$5)*G185*-1),(('Copy Results'!$C$3-L$2-L$5)/((L$4*L$2)-L$5)*G185*-1))),IF(C185>'Copy Results'!$C$2,((C185-L$2+L$5)/((L$4*L$2)-L$5)*G185*-1),(('Copy Results'!$C$2-L$2+L$5)/((L$4*L$2)-L$5)*G185*-1)))) -> 80.11047363 | I185: 100.4376583 | L185: -4.263676488 | M185: 122.4419733 | N185: =AVERAGE(D$79:D185) -> 0 | O185: =AVERAGE(M$79:M185) -> 671.079314 | P185: 23.99186284 | Q185: =AVERAGE(P$79:P185) -> 247.8348785 | V185: 40679.34039 | W185: =LOOKUP($V185,Data!$A$6:$A$1806,Data!$B$6:$B$1806) -> 59.98773193 | X185: =LOOKUP($V185,Data!$A$6:$A$1806,Data!$C$6:$C$1806) -> 0 | Y185: =LOOKUP($V185,Data!$A$6:$A$1806,Data!$D$6:$D$1806) -> 0 | Z185: =IF($Z$1="+",LOOKUP($V185,Data!$A$6:$A$1806,Data!$E$6:$E$1806)*-1,LOOKUP($V185,Data!$A$6:$A$1806,Data!$E$6:$E$1806)) -> 0 | AA185: =LOOKUP($V185,Data!$A$6:$A$1806,Data!$F$6:$F$1806) -> 0 | AC185: =LOOKUP($V185,Data!$A$6:$A$1806,Data!$H$6:$H$1806) -> 0 | AD185: =LOOKUP($V185,Data!$A$6:$A$1806,Data!$I$6:$I$1806) -> 0 | AE185: =IF(LOOKUP($V185,Data!$A$6:$A$1806,Data!$J$6:$J$1806)>0,(LOOKUP($V185,Data!$A$6:$A$1806,Data!$J$6:$J$1806)*-1),LOOKUP($V185,Data!$A$6:$A$1806,Data!$J$6:$J$1806)) -> -653 | AF185: =LOOKUP($V185,Data!$A$6:$A$1806,Data!$K$6:$K$1806) -> 30259.99219 | AG185: 80.11047363 | AW185: 4323.97619 | AX185: 0.01226806641
B186: 40679.34042 | C186: =LOOKUP(B186,Data!$A$6:$A$1806,Data!B$6:B$1806) -> 59.99029541 | D186: =LOOKUP(B186,Data!$A$6:$A$1806,Data!C$6:C$1806) -> 0 | G186: 19590 | H186: =(IF((C186-L$2)>0,(IF(C186<'Copy Results'!$C$3,((C186-L$2-L$5)/((L$4*L$2)-L$5)*G186*-1),(('Copy Results'!$C$3-L$2-L$5)/((L$4*L$2)-L$5)*G186*-1))),IF(C186>'Copy Results'!$C$2,((C186-L$2+L$5)/((L$4*L$2)-L$5)*G186*-1),(('Copy Results'!$C$2-L$2+L$5)/((L$4*L$2)-L$5)*G186*-1)))) -> 63.37097168 | I186: 87.46431799 | L186: -4.263676488 | M186: 105.2049565 | N186: =AVERAGE(D$79:D186) -> 0 | O186: =AVERAGE(M$79:M186) -> 665.8397366 | P186: 19.72818635 | Q186: =AVERAGE(P$79:P186) -> 245.7030402 | V186: 40679.34042 | W186: =LOOKUP($V186,Data!$A$6:$A$1806,Data!$B$6:$B$1806) -> 59.99029541 | X186: =LOOKUP($V186,Data!$A$6:$A$1806,Data!$C$6:$C$1806) -> 0 | Y186: =LOOKUP($V186,Data!$A$6:$A$1806,Data!$D$6:$D$1806) -> 0 | Z186: =IF($Z$1="+",LOOKUP($V186,Data!$A$6:$A$1806,Data!$E$6:$E$1806)*-1,LOOKUP($V186,Data!$A$6:$A$1806,Data!$E$6:$E$1806)) -> 0 | AA186: =LOOKUP($V186,Data!$A$6:$A$1806,Data!$F$6:$F$1806) -> 0 | AC186: =LOOKUP($V186,Data!$A$6:$A$1806,Data!$H$6:$H$1806) -> 0 | AD186: =LOOKUP($V186,Data!$A$6:$A$1806,Data!$I$6:$I$1806) -> 0 | AE186: =IF(LOOKUP($V186,Data!$A$6:$A$1806,Data!$J$6:$J$1806)>0,(LOOKUP($V186,Data!$A$6:$A$1806,Data!$J$6:$J$1806)*-1),LOOKUP($V186,Data!$A$6:$A$1806,Data!$J$6:$J$1806)) -> -653 | AF186: =LOOKUP($V186,Data!$A$6:$A$1806,Data!$K$6:$K$1806) -> 30259.99219 | AG186: 63.37097168 | AW186: 5654.430403 | AX186: 0.009704589844
B187: 40679.34044 | C187: =LOOKUP(B187,Data!$A$6:$A$1806,Data!B$6:B$1806) -> 59.9928894 | D187: =LOOKUP(B187,Data!$A$6:$A$1806,Data!C$6:C$1806) -> 0 | G187: 19590 | H187: =(IF((C187-L$2)>0,(IF(C187<'Copy Results'!$C$3,((C187-L$2-L$5)/((L$4*L$2)-L$5)*G187*-1),(('Copy Results'!$C$3-L$2-L$5)/((L$4*L$2)-L$5)*G187*-1))),IF(C187>'Copy Results'!$C$2,((C187-L$2+L$5)/((L$4*L$2)-L$5)*G187*-1),(('Copy Results'!$C$2-L$2+L$5)/((L$4*L$2)-L$5)*G187*-1)))) -> 46.43218994 | I187: 73.10307317 | L187: -4.263676488 | M187: 86.58003519 | N187: =AVERAGE(D$79:D187) -> 0 | O187: =AVERAGE(M$79:M187) -> 660.5254274 | P187: 15.46450986 | Q187: =AVERAGE(P$79:P187) -> 243.571202 | V187: 40679.34044 | W187: =LOOKUP($V187,Data!$A$6:$A$1806,Data!$B$6:$B$1806) -> 59.9928894 | X187: =LOOKUP($V187,Data!$A$6:$A$1806,Data!$C$6:$C$1806) -> 0 | Y187: =LOOKUP($V187,Data!$A$6:$A$1806,Data!$D$6:$D$1806) -> 0 | Z187: =IF($Z$1="+",LOOKUP($V187,Data!$A$6:$A$1806,Data!$E$6:$E$1806)*-1,LOOKUP($V187,Data!$A$6:$A$1806,Data!$E$6:$E$1806)) -> 0 | AA187: =LOOKUP($V187,Data!$A$6:$A$1806,Data!$F$6:$F$1806) -> 0 | AC187: =LOOKUP($V187,Data!$A$6:$A$1806,Data!$H$6:$H$1806) -> 0 | AD187: =LOOKUP($V187,Data!$A$6:$A$1806,Data!$I$6:$I$1806) -> 0 | AE187: =IF(LOOKUP($V187,Data!$A$6:$A$1806,Data!$J$6:$J$1806)>0,(LOOKUP($V187,Data!$A$6:$A$1806,Data!$J$6:$J$1806)*-1),LOOKUP($V187,Data!$A$6:$A$1806,Data!$J$6:$J$1806)) -> -653 | AF187: =LOOKUP($V187,Data!$A$6:$A$1806,Data!$K$6:$K$1806) -> 30259.99219 | AG187: 46.43218994 | AW187: 8210.954787 | AX187: 0.007110595703
B188: 40679.34046 | C188: =LOOKUP(B188,Data!$A$6:$A$1806,Data!B$6:B$1806) -> 59.99578857 | D188: =LOOKUP(B188,Data!$A$6:$A$1806,Data!C$6:C$1806) -> 0 | G188: 19590 | H188: =(IF((C188-L$2)>0,(IF(C188<'Copy Results'!$C$3,((C188-L$2-L$5)/((L$4*L$2)-L$5)*G188*-1),(('Copy Results'!$C$3-L$2-L$5)/((L$4*L$2)-L$5)*G188*-1))),IF(C188>'Copy Results'!$C$2,((C188-L$2+L$5)/((L$4*L$2)-L$5)*G188*-1),(('Copy Results'!$C$2-L$2+L$5)/((L$4*L$2)-L$5)*G188*-1)))) -> 27.50061035 | I188: 57.14221119 | L188: -4.263676488 | M188: 66.35549672 | N188: =AVERAGE(D$79:D188) -> 0 | O188: =AVERAGE(M$79:M188) -> 655.1238826 | P188: 11.20083338 | Q188: =AVERAGE(P$79:P188) -> 241.4393637 | V188: 40679.34046 | W188: =LOOKUP($V188,Data!$A$6:$A$1806,Data!$B$6:$B$1806) -> 59.99578857 | X188: =LOOKUP($V188,Data!$A$6:$A$1806,Data!$C$6:$C$1806) -> 0 | Y188: =LOOKUP($V188,Data!$A$6:$A$1806,Data!$D$6:$D$1806) -> 0 | Z188: =IF($Z$1="+",LOOKUP($V188,Data!$A$6:$A$1806,Data!$E$6:$E$1806)*-1,LOOKUP($V188,Data!$A$6:$A$1806,Data!$E$6:$E$1806)) -> 0 | AA188: =LOOKUP($V188,Data!$A$6:$A$1806,Data!$F$6:$F$1806) -> 0 | AC188: =LOOKUP($V188,Data!$A$6:$A$1806,Data!$H$6:$H$1806) -> 0 | AD188: =LOOKUP($V188,Data!$A$6:$A$1806,Data!$I$6:$I$1806) -> 0 | AE188: =IF(LOOKUP($V188,Data!$A$6:$A$1806,Data!$J$6:$J$1806)>0,(LOOKUP($V188,Data!$A$6:$A$1806,Data!$J$6:$J$1806)*-1),LOOKUP($V188,Data!$A$6:$A$1806,Data!$J$6:$J$1806)) -> -653 | AF188: =LOOKUP($V188,Data!$A$6:$A$1806,Data!$K$6:$K$1806) -> 30274.08008 | AG188: 27.50061035 | AW188: 16598.48925 | AX188: 0.004211425781
B189: 40679.34049 | C189: =LOOKUP(B189,Data!$A$6:$A$1806,Data!B$6:B$1806) -> 59.99645996 | D189: =LOOKUP(B189,Data!$A$6:$A$1806,Data!C$6:C$1806) -> 0 | G189: 19590 | H189: =(IF((C189-L$2)>0,(IF(C189<'Copy Results'!$C$3,((C189-L$2-L$5)/((L$4*L$2)-L$5)*G189*-1),(('Copy Results'!$C$3-L$2-L$5)/((L$4*L$2)-L$5)*G189*-1))),IF(C189>'Copy Results'!$C$2,((C189-L$2+L$5)/((L$4*L$2)-L$5)*G189*-1),(('Copy Results'!$C$2-L$2+L$5)/((L$4*L$2)-L$5)*G189*-1)))) -> 23.11645508 | I189: 45.23319655 | L189: -4.263676488 | M189: 50.18280559 | N189: =AVERAGE(D$79:D189) -> 0 | O189: =AVERAGE(M$79:M189) -> 649.673963 | P189: 6.937156887 | Q189: =AVERAGE(P$79:P189) -> 239.3075255 | V189: 40679.34049 | W189: =LOOKUP($V189,Data!$A$6:$A$1806,Data!$B$6:$B$1806) -> 59.99645996 | X189: =LOOKUP($V189,Data!$A$6:$A$1806,Data!$C$6:$C$1806) -> 0 | Y189: =LOOKUP($V189,Data!$A$6:$A$1806,Data!$D$6:$D$1806) -> 0 | Z189: =IF($Z$1="+",LOOKUP($V189,Data!$A$6:$A$1806,Data!$E$6:$E$1806)*-1,LOOKUP($V189,Data!$A$6:$A$1806,Data!$E$6:$E$1806)) -> 0 | AA189: =LOOKUP($V189,Data!$A$6:$A$1806,Data!$F$6:$F$1806) -> 0 | AC189: =LOOKUP($V189,Data!$A$6:$A$1806,Data!$H$6:$H$1806) -> 0 | AD189: =LOOKUP($V189,Data!$A$6:$A$1806,Data!$I$6:$I$1806) -> 0 | AE189: =IF(LOOKUP($V189,Data!$A$6:$A$1806,Data!$J$6:$J$1806)>0,(LOOKUP($V189,Data!$A$6:$A$1806,Data!$J$6:$J$1806)*-1),LOOKUP($V189,Data!$A$6:$A$1806,Data!$J$6:$J$1806)) -> -653 | AF189: =LOOKUP($V189,Data!$A$6:$A$1806,Data!$K$6:$K$1806) -> 30274.08008 | AG189: 23.11645508 | AW189: 21741.6831 | AX189: 0.003540039062
B190: 40679.34051 | C190: =LOOKUP(B190,Data!$A$6:$A$1806,Data!B$6:B$1806) -> 59.99578857 | D190: =LOOKUP(B190,Data!$A$6:$A$1806,Data!C$6:C$1806) -> 0 | G190: 19590 | H190: =(IF((C190-L$2)>0,(IF(C190<'Copy Results'!$C$3,((C190-L$2-L$5)/((L$4*L$2)-L$5)*G190*-1),(('Copy Results'!$C$3-L$2-L$5)/((L$4*L$2)-L$5)*G190*-1))),IF(C190>'Copy Results'!$C$2,((C190-L$2+L$5)/((L$4*L$2)-L$5)*G190*-1),(('Copy Results'!$C$2-L$2+L$5)/((L$4*L$2)-L$5)*G190*-1)))) -> 27.50061035 | I190: 39.02679138 | L190: -4.263676488 | M190: 39.71272393 | N190: =AVERAGE(D$79:D190) -> 0 | O190: =AVERAGE(M$79:M190) -> 644.2278805 | P190: 2.673480398 | Q190: =AVERAGE(P$79:P190) -> 237.1756873 | V190: 40679.34051 | W190: =LOOKUP($V190,Data!$A$6:$A$1806,Data!$B$6:$B$1806) -> 59.99578857 | X190: =LOOKUP($V190,Data!$A$6:$A$1806,Data!$C$6:$C$1806) -> 0 | Y190: =LOOKUP($V190,Data!$A$6:$A$1806,Data!$D$6:$D$1806) -> 0 | Z190: =IF($Z$1="+",LOOKUP($V190,Data!$A$6:$A$1806,Data!$E$6:$E$1806)*-1,LOOKUP($V190,Data!$A$6:$A$1806,Data!$E$6:$E$1806)) -> 0 | AA190: =LOOKUP($V190,Data!$A$6:$A$1806,Data!$F$6:$F$1806) -> 0 | AC190: =LOOKUP($V190,Data!$A$6:$A$1806,Data!$H$6:$H$1806) -> 0 | AD190: =LOOKUP($V190,Data!$A$6:$A$1806,Data!$I$6:$I$1806) -> 0 | AE190: =IF(LOOKUP($V190,Data!$A$6:$A$1806,Data!$J$6:$J$1806)>0,(LOOKUP($V190,Data!$A$6:$A$1806,Data!$J$6:$J$1806)*-1),LOOKUP($V190,Data!$A$6:$A$1806,Data!$J$6:$J$1806)) -> -653 | AF190: =LOOKUP($V190,Data!$A$6:$A$1806,Data!$K$6:$K$1806) -> 30274.08008 | AG190: 27.50061035 | AW190: 16598.48925 | AX190: 0.004211425781
B191: 40679.34053 | C191: =LOOKUP(B191,Data!$A$6:$A$1806,Data!B$6:B$1806) -> 59.99612427 | D191: =LOOKUP(B191,Data!$A$6:$A$1806,Data!C$6:C$1806) -> 0 | G191: 19590 | H191: =(IF((C191-L$2)>0,(IF(C191<'Copy Results'!$C$3,((C191-L$2-L$5)/((L$4*L$2)-L$5)*G191*-1),(('Copy Results'!$C$3-L$2-L$5)/((L$4*L$2)-L$5)*G191*-1))),IF(C191>'Copy Results'!$C$2,((C191-L$2+L$5)/((L$4*L$2)-L$5)*G191*-1),(('Copy Results'!$C$2-L$2+L$5)/((L$4*L$2)-L$5)*G191*-1)))) -> 25.30853271 | I191: 34.22540085 | L191: -4.263676488 | M191: 30.64765691 | N191: =AVERAGE(D$79:D191) -> 0 | O191: =AVERAGE(M$79:M191) -> 638.797967 | P191: -1.59019609 | Q191: =AVERAGE(P$79:P191) -> 235.043849 | V191: 40679.34053 | W191: =LOOKUP($V191,Data!$A$6:$A$1806,Data!$B$6:$B$1806) -> 59.99612427 | X191: =LOOKUP($V191,Data!$A$6:$A$1806,Data!$C$6:$C$1806) -> 0 | Y191: =LOOKUP($V191,Data!$A$6:$A$1806,Data!$D$6:$D$1806) -> 0 | Z191: =IF($Z$1="+",LOOKUP($V191,Data!$A$6:$A$1806,Data!$E$6:$E$1806)*-1,LOOKUP($V191,Data!$A$6:$A$1806,Data!$E$6:$E$1806)) -> 0 | AA191: =LOOKUP($V191,Data!$A$6:$A$1806,Data!$F$6:$F$1806) -> 0 | AC191: =LOOKUP($V191,Data!$A$6:$A$1806,Data!$H$6:$H$1806) -> 0 | AD191: =LOOKUP($V191,Data!$A$6:$A$1806,Data!$I$6:$I$1806) -> 0 | AE191: =IF(LOOKUP($V191,Data!$A$6:$A$1806,Data!$J$6:$J$1806)>0,(LOOKUP($V191,Data!$A$6:$A$1806,Data!$J$6:$J$1806)*-1),LOOKUP($V191,Data!$A$6:$A$1806,Data!$J$6:$J$1806)) -> -653 | AF191: =LOOKUP($V191,Data!$A$6:$A$1806,Data!$K$6:$K$1806) -> 30274.08008 | AG191: 25.30853271 | AW191: 18825.11585 | AX191: 0.003875732422
B192: 40679.34056 | C192: =LOOKUP(B192,Data!$A$6:$A$1806,Data!B$6:B$1806) -> 59.99578857 | D192: =LOOKUP(B192,Data!$A$6:$A$1806,Data!C$6:C$1806) -> 0 | G192: 19590 | H192: =(IF((C192-L$2)>0,(IF(C192<'Copy Results'!$C$3,((C192-L$2-L$5)/((L$4*L$2)-L$5)*G192*-1),(('Copy Results'!$C$3-L$2-L$5)/((L$4*L$2)-L$5)*G192*-1))),IF(C192>'Copy Results'!$C$2,((C192-L$2+L$5)/((L$4*L$2)-L$5)*G192*-1),(('Copy Results'!$C$2-L$2+L$5)/((L$4*L$2)-L$5)*G192*-1)))) -> 27.50061035 | I192: 31.87172417 | L192: -4.263676488 | M192: 24.03030375 | N192: =AVERAGE(D$79:D192) -> 0 | O192: =AVERAGE(M$79:M192) -> 633.4052682 | P192: -5.853872578 | Q192: =AVERAGE(P$79:P192) -> 232.9120108 | V192: 40679.34056 | W192: =LOOKUP($V192,Data!$A$6:$A$1806,Data!$B$6:$B$1806) -> 59.99578857 | X192: =LOOKUP($V192,Data!$A$6:$A$1806,Data!$C$6:$C$1806) -> 0 | Y192: =LOOKUP($V192,Data!$A$6:$A$1806,Data!$D$6:$D$1806) -> 0 | Z192: =IF($Z$1="+",LOOKUP($V192,Data!$A$6:$A$1806,Data!$E$6:$E$1806)*-1,LOOKUP($V192,Data!$A$6:$A$1806,Data!$E$6:$E$1806)) -> 0 | AA192: =LOOKUP($V192,Data!$A$6:$A$1806,Data!$F$6:$F$1806) -> 0 | AC192: =LOOKUP($V192,Data!$A$6:$A$1806,Data!$H$6:$H$1806) -> 0 | AD192: =LOOKUP($V192,Data!$A$6:$A$1806,Data!$I$6:$I$1806) -> 0 | AE192: =IF(LOOKUP($V192,Data!$A$6:$A$1806,Data!$J$6:$J$1806)>0,(LOOKUP($V192,Data!$A$6:$A$1806,Data!$J$6:$J$1806)*-1),LOOKUP($V192,Data!$A$6:$A$1806,Data!$J$6:$J$1806)) -> -653 | AF192: =LOOKUP($V192,Data!$A$6:$A$1806,Data!$K$6:$K$1806) -> 30297.67773 | AG192: 27.50061035 | AW192: 16598.48925 | AX192: 0.004211425781
B193: 40679.34058 | C193: =LOOKUP(B193,Data!$A$6:$A$1806,Data!B$6:B$1806) -> 59.99484253 | D193: =LOOKUP(B193,Data!$A$6:$A$1806,Data!C$6:C$1806) -> 0 | G193: 19590 | H193: =(IF((C193-L$2)>0,(IF(C193<'Copy Results'!$C$3,((C193-L$2-L$5)/((L$4*L$2)-L$5)*G193*-1),(('Copy Results'!$C$3-L$2-L$5)/((L$4*L$2)-L$5)*G193*-1))),IF(C193>'Copy Results'!$C$2,((C193-L$2+L$5)/((L$4*L$2)-L$5)*G193*-1),(('Copy Results'!$C$2-L$2+L$5)/((L$4*L$2)-L$5)*G193*-1)))) -> 33.67828369 | I193: 32.50402 | L193: -4.263676488 | M193: 20.3989231 | N193: =AVERAGE(D$79:D193) -> 0 | O193: =AVERAGE(M$79:M193) -> 628.0747783 | P193: -10.11754907 | Q193: =AVERAGE(P$79:P193) -> 230.7801725 | V193: 40679.34058 | W193: =LOOKUP($V193,Data!$A$6:$A$1806,Data!$B$6:$B$1806) -> 59.99484253 | X193: =LOOKUP($V193,Data!$A$6:$A$1806,Data!$C$6:$C$1806) -> 0 | Y193: =LOOKUP($V193,Data!$A$6:$A$1806,Data!$D$6:$D$1806) -> 0 | Z193: =IF($Z$1="+",LOOKUP($V193,Data!$A$6:$A$1806,Data!$E$6:$E$1806)*-1,LOOKUP($V193,Data!$A$6:$A$1806,Data!$E$6:$E$1806)) -> 0 | AA193: =LOOKUP($V193,Data!$A$6:$A$1806,Data!$F$6:$F$1806) -> 0 | AC193: =LOOKUP($V193,Data!$A$6:$A$1806,Data!$H$6:$H$1806) -> 0 | AD193: =LOOKUP($V193,Data!$A$6:$A$1806,Data!$I$6:$I$1806) -> 0 | AE193: =IF(LOOKUP($V193,Data!$A$6:$A$1806,Data!$J$6:$J$1806)>0,(LOOKUP($V193,Data!$A$6:$A$1806,Data!$J$6:$J$1806)*-1),LOOKUP($V193,Data!$A$6:$A$1806,Data!$J$6:$J$1806)) -> -653 | AF193: =LOOKUP($V193,Data!$A$6:$A$1806,Data!$K$6:$K$1806) -> 30297.67773 | AG193: 33.67828369 | AW193: 12448.86694 | AX193: 0.005157470703
B194: 40679.3406 | C194: =LOOKUP(B194,Data!$A$6:$A$1806,Data!B$6:B$1806) -> 59.99484253 | D194: =LOOKUP(B194,Data!$A$6:$A$1806,Data!C$6:C$1806) -> 0 | G194: 19590 | H194: =(IF((C194-L$2)>0,(IF(C194<'Copy Results'!$C$3,((C194-L$2-L$5)/((L$4*L$2)-L$5)*G194*-1),(('Copy Results'!$C$3-L$2-L$5)/((L$4*L$2)-L$5)*G194*-1))),IF(C194>'Copy Results'!$C$2,((C194-L$2+L$5)/((L$4*L$2)-L$5)*G194*-1),(('Copy Results'!$C$2-L$2+L$5)/((L$4*L$2)-L$5)*G194*-1)))) -> 33.67828369 | I194: 32.9150123 | L194: -4.263676488 | M194: 16.5462389 | N194: =AVERAGE(D$79:D194) -> 0 | O194: =AVERAGE(M$79:M194) -> 622.8029805 | P194: -14.38122556 | Q194: =AVERAGE(P$79:P194) -> 228.6483343 | V194: 40679.3406 | W194: =LOOKUP($V194,Data!$A$6:$A$1806,Data!$B$6:$B$1806) -> 59.99484253 | X194: =LOOKUP($V194,Data!$A$6:$A$1806,Data!$C$6:$C$1806) -> 0 | Y194: =LOOKUP($V194,Data!$A$6:$A$1806,Data!$D$6:$D$1806) -> 0 | Z194: =IF($Z$1="+",LOOKUP($V194,Data!$A$6:$A$1806,Data!$E$6:$E$1806)*-1,LOOKUP($V194,Data!$A$6:$A$1806,Data!$E$6:$E$1806)) -> 0 | AA194: =LOOKUP($V194,Data!$A$6:$A$1806,Data!$F$6:$F$1806) -> 0 | AC194: =LOOKUP($V194,Data!$A$6:$A$1806,Data!$H$6:$H$1806) -> 0 | AD194: =LOOKUP($V194,Data!$A$6:$A$1806,Data!$I$6:$I$1806) -> 0 | AE194: =IF(LOOKUP($V194,Data!$A$6:$A$1806,Data!$J$6:$J$1806)>0,(LOOKUP($V194,Data!$A$6:$A$1806,Data!$J$6:$J$1806)*-1),LOOKUP($V194,Data!$A$6:$A$1806,Data!$J$6:$J$1806)) -> -653 | AF194: =LOOKUP($V194,Data!$A$6:$A$1806,Data!$K$6:$K$1806) -> 30297.64844 | AG194: 33.67828369 | AW194: 12448.86694 | AX194: 0.005157470703
B195: 40679.34062 | C195: =LOOKUP(B195,Data!$A$6:$A$1806,Data!B$6:B$1806) -> 59.99804688 | D195: =LOOKUP(B195,Data!$A$6:$A$1806,Data!C$6:C$1806) -> 0 | G195: 19590 | H195: =(IF((C195-L$2)>0,(IF(C195<'Copy Results'!$C$3,((C195-L$2-L$5)/((L$4*L$2)-L$5)*G195*-1),(('Copy Results'!$C$3-L$2-L$5)/((L$4*L$2)-L$5)*G195*-1))),IF(C195>'Copy Results'!$C$2,((C195-L$2+L$5)/((L$4*L$2)-L$5)*G195*-1),(('Copy Results'!$C$2-L$2+L$5)/((L$4*L$2)-L$5)*G195*-1)))) -> 12.75390625 | I195: 25.85862518 | L195: -4.263676488 | M195: 5.226175293 | N195: =AVERAGE(D$79:D195) -> 0 | O195: =AVERAGE(M$79:M195) -> 617.5245463 | P195: -18.64490204 | Q195: =AVERAGE(P$79:P195) -> 226.516496 | V195: 40679.34062 | W195: =LOOKUP($V195,Data!$A$6:$A$1806,Data!$B$6:$B$1806) -> 59.99804688 | X195: =LOOKUP($V195,Data!$A$6:$A$1806,Data!$C$6:$C$1806) -> 0 | Y195: =LOOKUP($V195,Data!$A$6:$A$1806,Data!$D$6:$D$1806) -> 0 | Z195: =IF($Z$1="+",LOOKUP($V195,Data!$A$6:$A$1806,Data!$E$6:$E$1806)*-1,LOOKUP($V195,Data!$A$6:$A$1806,Data!$E$6:$E$1806)) -> 0 | AA195: =LOOKUP($V195,Data!$A$6:$A$1806,Data!$F$6:$F$1806) -> 0 | AC195: =LOOKUP($V195,Data!$A$6:$A$1806,Data!$H$6:$H$1806) -> 0 | AD195: =LOOKUP($V195,Data!$A$6:$A$1806,Data!$I$6:$I$1806) -> 0 | AE195: =IF(LOOKUP($V195,Data!$A$6:$A$1806,Data!$J$6:$J$1806)>0,(LOOKUP($V195,Data!$A$6:$A$1806,Data!$J$6:$J$1806)*-1),LOOKUP($V195,Data!$A$6:$A$1806,Data!$J$6:$J$1806)) -> -653 | AF195: =LOOKUP($V195,Data!$A$6:$A$1806,Data!$K$6:$K$1806) -> 30297.64844 | AG195: 12.75390625 | AW195: 81245.23684 | AX195: 0.001953125
B196: 40679.34065 | C196: =LOOKUP(B196,Data!$A$6:$A$1806,Data!B$6:B$1806) -> 59.99871826 | D196: =LOOKUP(B196,Data!$A$6:$A$1806,Data!C$6:C$1806) -> 0 | G196: 19590 | H196: =(IF((C196-L$2)>0,(IF(C196<'Copy Results'!$C$3,((C196-L$2-L$5)/((L$4*L$2)-L$5)*G196*-1),(('Copy Results'!$C$3-L$2-L$5)/((L$4*L$2)-L$5)*G196*-1))),IF(C196>'Copy Results'!$C$2,((C196-L$2+L$5)/((L$4*L$2)-L$5)*G196*-1),(('Copy Results'!$C$2-L$2+L$5)/((L$4*L$2)-L$5)*G196*-1)))) -> 8.369750977 | I196: 19.73751921 | L196: 0 | M196: -0.8949306778 | N196: =AVERAGE(D$79:D196) -> 0 | O196: =AVERAGE(M$79:M196) -> 612.2837032 | P196: -18.64490204 | Q196: =AVERAGE(P$79:P196) -> 224.4210995 | V196: 40679.34065 | W196: =LOOKUP($V196,Data!$A$6:$A$1806,Data!$B$6:$B$1806) -> 59.99871826 | X196: =LOOKUP($V196,Data!$A$6:$A$1806,Data!$C$6:$C$1806) -> 0 | Y196: =LOOKUP($V196,Data!$A$6:$A$1806,Data!$D$6:$D$1806) -> 0 | Z196: =IF($Z$1="+",LOOKUP($V196,Data!$A$6:$A$1806,Data!$E$6:$E$1806)*-1,LOOKUP($V196,Data!$A$6:$A$1806,Data!$E$6:$E$1806)) -> 0 | AA196: =LOOKUP($V196,Data!$A$6:$A$1806,Data!$F$6:$F$1806) -> 0 | AC196: =LOOKUP($V196,Data!$A$6:$A$1806,Data!$H$6:$H$1806) -> 0 | AD196: =LOOKUP($V196,Data!$A$6:$A$1806,Data!$I$6:$I$1806) -> 0 | AE196: =IF(LOOKUP($V196,Data!$A$6:$A$1806,Data!$J$6:$J$1806)>0,(LOOKUP($V196,Data!$A$6:$A$1806,Data!$J$6:$J$1806)*-1),LOOKUP($V196,Data!$A$6:$A$1806,Data!$J$6:$J$1806)) -> -653 | AF196: =LOOKUP($V196,Data!$A$6:$A$1806,Data!$K$6:$K$1806) -> 30297.64844 | AG196: 8.369750977 | AX196: 0.001281738281
B197: 40679.34067 | C197: =LOOKUP(B197,Data!$A$6:$A$1806,Data!B$6:B$1806) -> 60.00033569 | D197: =LOOKUP(B197,Data!$A$6:$A$1806,Data!C$6:C$1806) -> 0 | G197: 19590 | H197: =(IF((C197-L$2)>0,(IF(C197<'Copy Results'!$C$3,((C197-L$2-L$5)/((L$4*L$2)-L$5)*G197*-1),(('Copy Results'!$C$3-L$2-L$5)/((L$4*L$2)-L$5)*G197*-1))),IF(C197>'Copy Results'!$C$2,((C197-L$2+L$5)/((L$4*L$2)-L$5)*G197*-1),(('Copy Results'!$C$2-L$2+L$5)/((L$4*L$2)-L$5)*G197*-1)))) -> -2.192077637 | I197: 12.06216031 | L197: 0 | M197: -8.570289574 | N197: =AVERAGE(D$79:D197) -> 0 | O197: =AVERAGE(M$79:M197) -> 607.0664428 | P197: -18.64490204 | Q197: =AVERAGE(P$79:P197) -> 222.3612181 | V197: 40679.34067 | W197: =LOOKUP($V197,Data!$A$6:$A$1806,Data!$B$6:$B$1806) -> 60.00033569 | X197: =LOOKUP($V197,Data!$A$6:$A$1806,Data!$C$6:$C$1806) -> 0 | Y197: =LOOKUP($V197,Data!$A$6:$A$1806,Data!$D$6:$D$1806) -> 0 | Z197: =IF($Z$1="+",LOOKUP($V197,Data!$A$6:$A$1806,Data!$E$6:$E$1806)*-1,LOOKUP($V197,Data!$A$6:$A$1806,Data!$E$6:$E$1806)) -> 0 | AA197: =LOOKUP($V197,Data!$A$6:$A$1806,Data!$F$6:$F$1806) -> 0 | AC197: =LOOKUP($V197,Data!$A$6:$A$1806,Data!$H$6:$H$1806) -> 0 | AD197: =LOOKUP($V197,Data!$A$6:$A$1806,Data!$I$6:$I$1806) -> 0 | AE197: =IF(LOOKUP($V197,Data!$A$6:$A$1806,Data!$J$6:$J$1806)>0,(LOOKUP($V197,Data!$A$6:$A$1806,Data!$J$6:$J$1806)*-1),LOOKUP($V197,Data!$A$6:$A$1806,Data!$J$6:$J$1806)) -> -653 | AF197: =LOOKUP($V197,Data!$A$6:$A$1806,Data!$K$6:$K$1806) -> 30297.64844 | AG197: -2.192077637 | AX197: 0.0003356933594
B198: 40679.34069 | C198: =LOOKUP(B198,Data!$A$6:$A$1806,Data!B$6:B$1806) -> 60.00195312 | D198: =LOOKUP(B198,Data!$A$6:$A$1806,Data!C$6:C$1806) -> 0 | G198: 19590 | H198: =(IF((C198-L$2)>0,(IF(C198<'Copy Results'!$C$3,((C198-L$2-L$5)/((L$4*L$2)-L$5)*G198*-1),(('Copy Results'!$C$3-L$2-L$5)/((L$4*L$2)-L$5)*G198*-1))),IF(C198>'Copy Results'!$C$2,((C198-L$2+L$5)/((L$4*L$2)-L$5)*G198*-1),(('Copy Results'!$C$2-L$2+L$5)/((L$4*L$2)-L$5)*G198*-1)))) -> -12.75390625 | I198: 3.376537016 | L198: 0 | M198: -17.25591287 | N198: =AVERAGE(D$79:D198) -> 0 | O198: =AVERAGE(M$79:M198) -> 601.8637565 | P198: -18.64490204 | Q198: =AVERAGE(P$79:P198) -> 220.3359566 | V198: 40679.34069 | W198: =LOOKUP($V198,Data!$A$6:$A$1806,Data!$B$6:$B$1806) -> 60.00195312 | X198: =LOOKUP($V198,Data!$A$6:$A$1806,Data!$C$6:$C$1806) -> 0 | Y198: =LOOKUP($V198,Data!$A$6:$A$1806,Data!$D$6:$D$1806) -> 0 | Z198: =IF($Z$1="+",LOOKUP($V198,Data!$A$6:$A$1806,Data!$E$6:$E$1806)*-1,LOOKUP($V198,Data!$A$6:$A$1806,Data!$E$6:$E$1806)) -> 0 | AA198: =LOOKUP($V198,Data!$A$6:$A$1806,Data!$F$6:$F$1806) -> 0 | AC198: =LOOKUP($V198,Data!$A$6:$A$1806,Data!$H$6:$H$1806) -> 0 | AD198: =LOOKUP($V198,Data!$A$6:$A$1806,Data!$I$6:$I$1806) -> 0 | AE198: =IF(LOOKUP($V198,Data!$A$6:$A$1806,Data!$J$6:$J$1806)>0,(LOOKUP($V198,Data!$A$6:$A$1806,Data!$J$6:$J$1806)*-1),LOOKUP($V198,Data!$A$6:$A$1806,Data!$J$6:$J$1806)) -> -653 | AF198: =LOOKUP($V198,Data!$A$6:$A$1806,Data!$K$6:$K$1806) -> 30300.10352 | AG198: -12.75390625 | AX198: 0.001953125
B199: 40679.34072 | C199: =LOOKUP(B199,Data!$A$6:$A$1806,Data!B$6:B$1806) -> 60.00259399 | D199: =LOOKUP(B199,Data!$A$6:$A$1806,Data!C$6:C$1806) -> 0 | G199: 19590 | H199: =(IF((C199-L$2)>0,(IF(C199<'Copy Results'!$C$3,((C199-L$2-L$5)/((L$4*L$2)-L$5)*G199*-1),(('Copy Results'!$C$3-L$2-L$5)/((L$4*L$2)-L$5)*G199*-1))),IF(C199>'Copy Results'!$C$2,((C199-L$2+L$5)/((L$4*L$2)-L$5)*G199*-1),(('Copy Results'!$C$2-L$2+L$5)/((L$4*L$2)-L$5)*G199*-1)))) -> -16.93878174 | I199: -3.733824548 | L199: 0 | M199: -24.36627443 | N199: =AVERAGE(D$79:D199) -> 0 | O199: =AVERAGE(M$79:M199) -> 596.6883017 | P199: -18.64490204 | Q199: =AVERAGE(P$79:P199) -> 218.3444494 | V199: 40679.34072 | W199: =LOOKUP($V199,Data!$A$6:$A$1806,Data!$B$6:$B$1806) -> 60.00259399 | X199: =LOOKUP($V199,Data!$A$6:$A$1806,Data!$C$6:$C$1806) -> 0 | Y199: =LOOKUP($V199,Data!$A$6:$A$1806,Data!$D$6:$D$1806) -> 0 | Z199: =IF($Z$1="+",LOOKUP($V199,Data!$A$6:$A$1806,Data!$E$6:$E$1806)*-1,LOOKUP($V199,Data!$A$6:$A$1806,Data!$E$6:$E$1806)) -> 0 | AA199: =LOOKUP($V199,Data!$A$6:$A$1806,Data!$F$6:$F$1806) -> 0 | AC199: =LOOKUP($V199,Data!$A$6:$A$1806,Data!$H$6:$H$1806) -> 0 | AD199: =LOOKUP($V199,Data!$A$6:$A$1806,Data!$I$6:$I$1806) -> 0 | AE199: =IF(LOOKUP($V199,Data!$A$6:$A$1806,Data!$J$6:$J$1806)>0,(LOOKUP($V199,Data!$A$6:$A$1806,Data!$J$6:$J$1806)*-1),LOOKUP($V199,Data!$A$6:$A$1806,Data!$J$6:$J$1806)) -> -653 | AF199: =LOOKUP($V199,Data!$A$6:$A$1806,Data!$K$6:$K$1806) -> 30300.10352 | AG199: -16.93878174 | AX199: 0.002593994141
B200: 40679.34074 | C200: =LOOKUP(B200,Data!$A$6:$A$1806,Data!B$6:B$1806) -> 60.0022583 | D200: =LOOKUP(B200,Data!$A$6:$A$1806,Data!C$6:C$1806) -> 0 | G200: 19590 | H200: =(IF((C200-L$2)>0,(IF(C200<'Copy Results'!$C$3,((C200-L$2-L$5)/((L$4*L$2)-L$5)*G200*-1),(('Copy Results'!$C$3-L$2-L$5)/((L$4*L$2)-L$5)*G200*-1))),IF(C200>'Copy Results'!$C$2,((C200-L$2+L$5)/((L$4*L$2)-L$5)*G200*-1),(('Copy Results'!$C$2-L$2+L$5)/((L$4*L$2)-L$5)*G200*-1)))) -> -14.7467041 | I200: -7.588332392 | L200: 0 | M200: -28.22078228 | N200: =AVERAGE(D$79:D200) -> 0 | O200: =AVERAGE(M$79:M200) -> 591.5660961 | P200: -18.64490204 | Q200: =AVERAGE(P$79:P200) -> 216.3858598 | V200: 40679.34074 | W200: =LOOKUP($V200,Data!$A$6:$A$1806,Data!$B$6:$B$1806) -> 60.0022583 | X200: =LOOKUP($V200,Data!$A$6:$A$1806,Data!$C$6:$C$1806) -> 0 | Y200: =LOOKUP($V200,Data!$A$6:$A$1806,Data!$D$6:$D$1806) -> 0 | Z200: =IF($Z$1="+",LOOKUP($V200,Data!$A$6:$A$1806,Data!$E$6:$E$1806)*-1,LOOKUP($V200,Data!$A$6:$A$1806,Data!$E$6:$E$1806)) -> 0 | AA200: =LOOKUP($V200,Data!$A$6:$A$1806,Data!$F$6:$F$1806) -> 0 | AC200: =LOOKUP($V200,Data!$A$6:$A$1806,Data!$H$6:$H$1806) -> 0 | AD200: =LOOKUP($V200,Data!$A$6:$A$1806,Data!$I$6:$I$1806) -> 0 | AE200: =IF(LOOKUP($V200,Data!$A$6:$A$1806,Data!$J$6:$J$1806)>0,(LOOKUP($V200,Data!$A$6:$A$1806,Data!$J$6:$J$1806)*-1),LOOKUP($V200,Data!$A$6:$A$1806,Data!$J$6:$J$1806)) -> -653 | AF200: =LOOKUP($V200,Data!$A$6:$A$1806,Data!$K$6:$K$1806) -> 30300.10352 | AG200: -14.7467041 | AX200: 0.002258300781
B201: 40679.34076 | C201: =LOOKUP(B201,Data!$A$6:$A$1806,Data!B$6:B$1806) -> 60.00195312 | D201: =LOOKUP(B201,Data!$A$6:$A$1806,Data!C$6:C$1806) -> 0 | G201: 19590 | H201: =(IF((C201-L$2)>0,(IF(C201<'Copy Results'!$C$3,((C201-L$2-L$5)/((L$4*L$2)-L$5)*G201*-1),(('Copy Results'!$C$3-L$2-L$5)/((L$4*L$2)-L$5)*G201*-1))),IF(C201>'Copy Results'!$C$2,((C201-L$2+L$5)/((L$4*L$2)-L$5)*G201*-1),(('Copy Results'!$C$2-L$2+L$5)/((L$4*L$2)-L$5)*G201*-1)))) -> -12.75390625 | I201: -9.396283242 | L201: 0 | M201: -30.02873313 | N201: =AVERAGE(D$79:D201) -> 0 | O201: =AVERAGE(M$79:M201) -> 586.5124796 | P201: -18.64490204 | Q201: =AVERAGE(P$79:P201) -> 214.4593781 | V201: 40679.34076 | W201: =LOOKUP($V201,Data!$A$6:$A$1806,Data!$B$6:$B$1806) -> 60.00195312 | X201: =LOOKUP($V201,Data!$A$6:$A$1806,Data!$C$6:$C$1806) -> 0 | Y201: =LOOKUP($V201,Data!$A$6:$A$1806,Data!$D$6:$D$1806) -> 0 | Z201: =IF($Z$1="+",LOOKUP($V201,Data!$A$6:$A$1806,Data!$E$6:$E$1806)*-1,LOOKUP($V201,Data!$A$6:$A$1806,Data!$E$6:$E$1806)) -> 0 | AA201: =LOOKUP($V201,Data!$A$6:$A$1806,Data!$F$6:$F$1806) -> 0 | AC201: =LOOKUP($V201,Data!$A$6:$A$1806,Data!$H$6:$H$1806) -> 0 | AD201: =LOOKUP($V201,Data!$A$6:$A$1806,Data!$I$6:$I$1806) -> 0 | AE201: =IF(LOOKUP($V201,Data!$A$6:$A$1806,Data!$J$6:$J$1806)>0,(LOOKUP($V201,Data!$A$6:$A$1806,Data!$J$6:$J$1806)*-1),LOOKUP($V201,Data!$A$6:$A$1806,Data!$J$6:$J$1806)) -> -653 | AF201: =LOOKUP($V201,Data!$A$6:$A$1806,Data!$K$6:$K$1806) -> 30300.10352 | AG201: -12.75390625 | AX201: 0.001953125
... 328 more rows

Sheet Graph 20 to 52s
Q1: "Auto" Event Detection adjustment of T(0).
Q2: # of rows to shift T(0)
Q3: 1
Q4: A zero value aligns the data to the hightest Frequency change value.
Q5: Usually the event begins one or two data scans earlier than this scan.
Q7: Increasing this value shifts graph data to the right.
Q8: Decreasing this value shifts graph data to the left.
P16: Note: The P.U. Performance values indicate performance as a P.U. value of BA Bias setting.
P17: For BAs that utilize a variable Bias, the Bias average during T(+20) to T(+52) is used.
P18: P.U. values above 1.0 indicate that the Bias setting was below measured Frequency Response.
P19: P.U. values below 1.0 indicate that the Bias setting was above measured Frequency Response.
H33: T(0)
H35: First change in frequency of the event should occur here on the vertical grid line.
H36: It is important that the pre-event frequency average to NOT contain frequency data of the event, "Average Frequency" trend to the left of center of the graph.
H37: To shift the data on the graph left or right, adjust the value in cell Q3 highlighted in yellow above.

Sheet Sustained Graph (hidden)

Sheet Bias Graph

Sheet Form 1 Summary Data
G1: Value A Data | I1: BA Performance | R1: Value B | S1: 20 to 52 second Average Period Evaluation | AG1: Frequency Response Initiative - Additional Primary Frequency Response Evaluation Points
J2: Non- | U2: Non- | AF2: Average | AG2: Unadjusted | AH2: Unadjusted | AI2: Unadjusted | AJ2: Unadjusted | AK2: Unadjusted | AL2: Adjusted | AM2: Adjusted | AN2: Adjusted | AO2: Adjusted | AP2: Adjusted
A3: Date | B3: A Value | C3: FPointA | D3: A Value | E3: t(0) Time | F3: C Value | H3: Contingent | I3: Load | J3: Conforming | O3: BA | P3: BA | Q3: Bias | S3: Contingent | T3: Load | U3: Conforming | Z3: Initial | AA3: Initial | AB3: Sustained | AC3: BA | AD3: BA | AE3: Bias | AF3: Bias While | AG3: PFR | AH3: PFR | AI3: PFR | AJ3: PFR | AK3: PFR | AL3: PFR | AM3: PFR | AN3: PFR | AO3: PFR | AP3: PFR
B4: Time | C4: Hz | D4: Hz | F4: Hz | H4: Resource | I4: Resources | J4: Load | O4: Bias | P4: Load | Q4: Setting | S4: Resource | T4: Resources | U4: Load | Z4: Performance | AA4: Performance | AB4: Performance | AC4: Bias | AD4: Load | AE4: Setting | AF4: Hz > +/-0.036 | AG4: Performance | AH4: Performance | AI4: Performance | AJ4: Performance | AK4: Performance | AL4: Performance | AM4: Performance | AN4: Performance | AO4: Performance | AP4: Performance | AQ4: Maximum | AR4: Minimum
G5: Frequency | H5: Lost | I5: Tripped | J5: Load (-) | K5: Spare | L5: Spare | M5: Spare | N5: Spare | O5: Setting | Q5: EPFR | R5: Frequency | S5: Lost | T5: Tripped | U5: Load (-) | V5: Spare | W5: Spare | X5: Spare | Y5: Spare | Z5: Adjusted | AA5: Unadjusted | AC5: Setting | AE5: EPFR | AF5: Hz | AG5: @ T(+46) | AH5: @ T(+76) | AI5: @ T(+106) | AJ5: @ T(+136) | AK5: @ T(+166) | AL5: @ T(+46) | AM5: @ T(+76) | AN5: @ T(+106) | AO5: @ T(+136) | AP5: @ T(+166) | AQ5: Bias Setting | AR5: Bias Setting
G6: Hz | H6: MW | I6: MW | J6: MW | K6: MW | L6: MW | M6: MW | N6: MW | O6: MW/0.1 Hz | P6: MW | Q6: MW | R6: Hz | S6: MW | T6: MW | U6: MW | V6: MW | W6: MW | X6: MW | Y6: MW | Z6: P.U. | AA6: P.U. | AB6: P.U. | AC6: MW/0.1 Hz | AD6: MW | AE6: MW | AF6: MW/0.1 Hz | AG6: P.U. | AH6: P.U. | AI6: P.U. | AJ6: P.U. | AK6: P.U. | AL6: P.U. | AM6: P.U. | AN6: P.U. | AO6: P.U. | AP6: P.U. | AQ6: MW/0.1 Hz | AR6: MW/0.1 Hz
A7: =Evaluation!AN2 -> 2011-05-16T08:06:38 | B7: =Evaluation!G2 -> 40679.33794 | C7: =Evaluation!S2 -> 60.00195312 | D7: =Evaluation!S3 -> 59.99862671 | E7: =Evaluation!G2 -> 40679.33794 | F7: =Evaluation!S4 -> 59.87011337 | G7: =Evaluation!AN4 -> 59.99862671 | H7: =Evaluation!AN7 -> 471.0874939 | I7: =Evaluation!AN15 -> 0 | J7: =Evaluation!AN16 -> 0 | K7: =Evaluation!AN17 -> 0 | L7: =Evaluation!AN18 -> 0 | M7: =Evaluation!AN19 -> 0 | N7: =Evaluation!AN20 -> 0 | O7: =Evaluation!AS15 -> -653 | P7: =Evaluation!AS23 -> 30202.74219 | Q7: =Evaluation!AS17 -> 8.967590332 | R7: =Evaluation!AN5 -> 59.89716092 | S7: =Evaluation!AN8 -> 0 | T7: =Evaluation!AN23 -> 0 | U7: =Evaluation!AN16 -> 0 | V7: =Evaluation!AN25 -> 0 | W7: =Evaluation!AN26 -> 0 | X7: =Evaluation!AN27 -> 0 | Y7: =Evaluation!AN28 -> 0 | Z7: =Evaluation!AN34 -> 0.7109986382 | AA7: =Evaluation!AN33 -> 0.7109986382 | AB7: =Evaluation!$K$33 -> 0.7375532092 | AC7: =Evaluation!AS16 -> -653 | AD7: =Evaluation!AS24 -> 30136.76953 | AE7: =Evaluation!AS18 -> 671.5391742 | AF7: =Evaluation!AS30 -> -653 | AG7: =Evaluation!$AV7 -> 0.7375532092 | AH7: =Evaluation!$AV8 -> 0.8595791936 | AI7: =Evaluation!$AV9 -> 1.32285967 | AJ7: =Evaluation!$AV10 -> 1.532048107 | AK7: =Evaluation!$AV11 -> 2.308545146 | AL7: =Evaluation!$BB7 -> 0.7375532092 | AM7: =Evaluation!$BB8 -> 0.8595791936 | AN7: =Evaluation!$BB9 -> 1.32285967 | AO7: =Evaluation!$BB10 -> 1.532048107 | AP7: =Evaluation!$BB11 -> 2.308545146 | AQ7: =MAX(Data!$J6:$J1838) -> -653 | AR7: =MIN(Data!$J6:$J1838) -> -653

Sheet Instructions
A1: Steps | B1: To be completed for each event evaluated.
